{"text_format":"1","workbook":"xlsx","n_sheets":1,"sheets":["Number to Word"],"not_rendered":{"charts":0,"images":0,"macros":1,"external_links":0,"defined_names":0,"comments":0,"pivot_tables":0},"unopened":[],"bounds":{"document_bytes":16777216,"sheet_cells":100000,"rows_first":2000,"rows_last":500,"rows_between":2000,"halvings":0,"cell_chars":16384,"cell_head_chars":4096},"cells_cut":0,"cells_raw":0,"read":"whole","date_system":"1900"}

{"sheet":"Number to Word","index":0,"n_rows":10001,"n_cols":2,"rows_kept":10001,"cut":false,"hidden":false,"merged":[]}
["Number","Word"]
[0,"Zero"]
[1,"One"]
[2,{"$f":"spellnumber(A4)","v":"Two"}]
[3,{"$f":"spellnumber(A5)","v":"Three"}]
[4,{"$f":"spellnumber(A6)","v":"Four"}]
[5,"Five"]
[6,"Six"]
[7,"Seven"]
[8,"Eight"]
[9,"Nine"]
[10,"Ten"]
[11,"Eleven"]
[12,"Twelve"]
[13,"Thirteen"]
[14,"Fourteen"]
[15,"Fifteen"]
[16,"Sixteen"]
[17,"Seventeen"]
[18,"Eighteen"]
[19,"Nineteen"]
[20,"Twenty "]
[21,"Twenty One"]
[22,"Twenty Two"]
[23,"Twenty Three"]
[24,"Twenty Four"]
[25,"Twenty Five"]
[26,"Twenty Six"]
[27,"Twenty Seven"]
[28,"Twenty Eight"]
[29,"Twenty Nine"]
[30,"Thirty "]
[31,"Thirty One"]
[32,"Thirty Two"]
[33,"Thirty Three"]
[34,"Thirty Four"]
[35,"Thirty Five"]
[36,"Thirty Six"]
[37,"Thirty Seven"]
[38,"Thirty Eight"]
[39,"Thirty Nine"]
[40,"Forty "]
[41,"Forty One"]
[42,"Forty Two"]
[43,"Forty Three"]
[44,"Forty Four"]
[45,"Forty Five"]
[46,"Forty Six"]
[47,"Forty Seven"]
[48,"Forty Eight"]
[49,"Forty Nine"]
[50,"Fifty "]
[51,"Fifty One"]
[52,"Fifty Two"]
[53,"Fifty Three"]
[54,"Fifty Four"]
[55,"Fifty Five"]
[56,"Fifty Six"]
[57,"Fifty Seven"]
[58,"Fifty Eight"]
[59,"Fifty Nine"]
[60,"Sixty "]
[61,"Sixty One"]
[62,"Sixty Two"]
[63,"Sixty Three"]
[64,"Sixty Four"]
[65,"Sixty Five"]
[66,"Sixty Six"]
[67,"Sixty Seven"]
[68,{"$f":"spellnumber(A70)","v":"Sixty Eight"}]
[69,"Sixty Nine"]
[70,"Seventy "]
[71,"Seventy One"]
[72,"Seventy Two"]
[73,"Seventy Three"]
[74,"Seventy Four"]
[75,"Seventy Five"]
[76,"Seventy Six"]
[77,"Seventy Seven"]
[78,"Seventy Eight"]
[79,"Seventy Nine"]
[80,"Eighty "]
[81,"Eighty One"]
[82,"Eighty Two"]
[83,"Eighty Three"]
[84,"Eighty Four"]
[85,"Eighty Five"]
[86,"Eighty Six"]
[87,"Eighty Seven"]
[88,"Eighty Eight"]
[89,"Eighty Nine"]
[90,"Ninety "]
[91,"Ninety One"]
[92,"Ninety Two"]
[93,"Ninety Three"]
[94,"Ninety Four"]
[95,"Ninety Five"]
[96,"Ninety Six"]
[97,"Ninety Seven"]
[98,"Ninety Eight"]
[99,"Ninety Nine"]
[100,"One Hundred "]
[101,{"$f":"spellnumber(A103)","v":"One Hundred One"}]
[102,"One Hundred Two"]
[103,"One Hundred Three"]
[104,"One Hundred Four"]
[105,"One Hundred Five"]
[106,"One Hundred Six"]
[107,"One Hundred Seven"]
[108,"One Hundred Eight"]
[109,"One Hundred Nine"]
[110,"One Hundred Ten"]
[111,"One Hundred Eleven"]
[112,"One Hundred Twelve"]
[113,"One Hundred Thirteen"]
[114,"One Hundred Fourteen"]
[115,"One Hundred Fifteen"]
[116,"One Hundred Sixteen"]
[117,{"$f":"spellnumber(A119)","v":"One Hundred Seventeen"}]
[118,"One Hundred Eighteen"]
[119,"One Hundred Nineteen"]
[120,"One Hundred Twenty "]
[121,"One Hundred Twenty One"]
[122,"One Hundred Twenty Two"]
[123,"One Hundred Twenty Three"]
[124,"One Hundred Twenty Four"]
[125,"One Hundred Twenty Five"]
[126,"One Hundred Twenty Six"]
[127,"One Hundred Twenty Seven"]
[128,"One Hundred Twenty Eight"]
[129,"One Hundred Twenty Nine"]
[130,"One Hundred Thirty "]
[131,"One Hundred Thirty One"]
[132,"One Hundred Thirty Two"]
[133,"One Hundred Thirty Three"]
[134,"One Hundred Thirty Four"]
[135,"One Hundred Thirty Five"]
[136,"One Hundred Thirty Six"]
[137,"One Hundred Thirty Seven"]
[138,"One Hundred Thirty Eight"]
[139,"One Hundred Thirty Nine"]
[140,"One Hundred Forty "]
[141,"One Hundred Forty One"]
[142,"One Hundred Forty Two"]
[143,"One Hundred Forty Three"]
[144,"One Hundred Forty Four"]
[145,"One Hundred Forty Five"]
[146,"One Hundred Forty Six"]
[147,"One Hundred Forty Seven"]
[148,"One Hundred Forty Eight"]
[149,"One Hundred Forty Nine"]
[150,"One Hundred Fifty "]
[151,"One Hundred Fifty One"]
[152,"One Hundred Fifty Two"]
[153,"One Hundred Fifty Three"]
[154,"One Hundred Fifty Four"]
[155,"One Hundred Fifty Five"]
[156,"One Hundred Fifty Six"]
[157,"One Hundred Fifty Seven"]
[158,"One Hundred Fifty Eight"]
[159,"One Hundred Fifty Nine"]
[160,"One Hundred Sixty "]
[161,"One Hundred Sixty One"]
[162,"One Hundred Sixty Two"]
[163,"One Hundred Sixty Three"]
[164,"One Hundred Sixty Four"]
[165,"One Hundred Sixty Five"]
[166,"One Hundred Sixty Six"]
[167,"One Hundred Sixty Seven"]
[168,"One Hundred Sixty Eight"]
[169,"One Hundred Sixty Nine"]
[170,"One Hundred Seventy "]
[171,"One Hundred Seventy One"]
[172,"One Hundred Seventy Two"]
[173,"One Hundred Seventy Three"]
[174,"One Hundred Seventy Four"]
[175,"One Hundred Seventy Five"]
[176,"One Hundred Seventy Six"]
[177,"One Hundred Seventy Seven"]
[178,"One Hundred Seventy Eight"]
[179,"One Hundred Seventy Nine"]
[180,"One Hundred Eighty "]
[181,{"$f":"spellnumber(A183)","v":"One Hundred Eighty One"}]
[182,"One Hundred Eighty Two"]
[183,"One Hundred Eighty Three"]
[184,"One Hundred Eighty Four"]
[185,"One Hundred Eighty Five"]
[186,"One Hundred Eighty Six"]
[187,"One Hundred Eighty Seven"]
[188,"One Hundred Eighty Eight"]
[189,"One Hundred Eighty Nine"]
[190,"One Hundred Ninety "]
[191,"One Hundred Ninety One"]
[192,"One Hundred Ninety Two"]
[193,"One Hundred Ninety Three"]
[194,"One Hundred Ninety Four"]
[195,"One Hundred Ninety Five"]
[196,"One Hundred Ninety Six"]
[197,"One Hundred Ninety Seven"]
[198,"One Hundred Ninety Eight"]
[199,"One Hundred Ninety Nine"]
[200,"Two Hundred "]
[201,"Two Hundred One"]
[202,"Two Hundred Two"]
[203,"Two Hundred Three"]
[204,"Two Hundred Four"]
[205,"Two Hundred Five"]
[206,"Two Hundred Six"]
[207,"Two Hundred Seven"]
[208,"Two Hundred Eight"]
[209,"Two Hundred Nine"]
[210,"Two Hundred Ten"]
[211,"Two Hundred Eleven"]
[212,"Two Hundred Twelve"]
[213,"Two Hundred Thirteen"]
[214,"Two Hundred Fourteen"]
[215,"Two Hundred Fifteen"]
[216,"Two Hundred Sixteen"]
[217,"Two Hundred Seventeen"]
[218,"Two Hundred Eighteen"]
[219,"Two Hundred Nineteen"]
[220,"Two Hundred Twenty "]
[221,"Two Hundred Twenty One"]
[222,"Two Hundred Twenty Two"]
[223,"Two Hundred Twenty Three"]
[224,"Two Hundred Twenty Four"]
[225,"Two Hundred Twenty Five"]
[226,"Two Hundred Twenty Six"]
[227,"Two Hundred Twenty Seven"]
[228,"Two Hundred Twenty Eight"]
[229,"Two Hundred Twenty Nine"]
[230,"Two Hundred Thirty "]
[231,"Two Hundred Thirty One"]
[232,"Two Hundred Thirty Two"]
[233,"Two Hundred Thirty Three"]
[234,"Two Hundred Thirty Four"]
[235,"Two Hundred Thirty Five"]
[236,"Two Hundred Thirty Six"]
[237,"Two Hundred Thirty Seven"]
[238,"Two Hundred Thirty Eight"]
[239,"Two Hundred Thirty Nine"]
[240,"Two Hundred Forty "]
[241,"Two Hundred Forty One"]
[242,"Two Hundred Forty Two"]
[243,"Two Hundred Forty Three"]
[244,"Two Hundred Forty Four"]
[245,{"$f":"spellnumber(A247)","v":"Two Hundred Forty Five"}]
[246,"Two Hundred Forty Six"]
[247,"Two Hundred Forty Seven"]
[248,"Two Hundred Forty Eight"]
[249,"Two Hundred Forty Nine"]
[250,"Two Hundred Fifty "]
[251,"Two Hundred Fifty One"]
[252,"Two Hundred Fifty Two"]
[253,"Two Hundred Fifty Three"]
[254,"Two Hundred Fifty Four"]
[255,"Two Hundred Fifty Five"]
[256,"Two Hundred Fifty Six"]
[257,"Two Hundred Fifty Seven"]
[258,"Two Hundred Fifty Eight"]
[259,"Two Hundred Fifty Nine"]
[260,"Two Hundred Sixty "]
[261,"Two Hundred Sixty One"]
[262,"Two Hundred Sixty Two"]
[263,"Two Hundred Sixty Three"]
[264,"Two Hundred Sixty Four"]
[265,"Two Hundred Sixty Five"]
[266,"Two Hundred Sixty Six"]
[267,"Two Hundred Sixty Seven"]
[268,"Two Hundred Sixty Eight"]
[269,"Two Hundred Sixty Nine"]
[270,"Two Hundred Seventy "]
[271,"Two Hundred Seventy One"]
[272,"Two Hundred Seventy Two"]
[273,"Two Hundred Seventy Three"]
[274,"Two Hundred Seventy Four"]
[275,"Two Hundred Seventy Five"]
[276,"Two Hundred Seventy Six"]
[277,"Two Hundred Seventy Seven"]
[278,"Two Hundred Seventy Eight"]
[279,"Two Hundred Seventy Nine"]
[280,"Two Hundred Eighty "]
[281,"Two Hundred Eighty One"]
[282,"Two Hundred Eighty Two"]
[283,"Two Hundred Eighty Three"]
[284,"Two Hundred Eighty Four"]
[285,"Two Hundred Eighty Five"]
[286,"Two Hundred Eighty Six"]
[287,"Two Hundred Eighty Seven"]
[288,"Two Hundred Eighty Eight"]
[289,"Two Hundred Eighty Nine"]
[290,"Two Hundred Ninety "]
[291,"Two Hundred Ninety One"]
[292,"Two Hundred Ninety Two"]
[293,"Two Hundred Ninety Three"]
[294,"Two Hundred Ninety Four"]
[295,"Two Hundred Ninety Five"]
[296,"Two Hundred Ninety Six"]
[297,"Two Hundred Ninety Seven"]
[298,"Two Hundred Ninety Eight"]
[299,"Two Hundred Ninety Nine"]
[300,"Three Hundred "]
[301,"Three Hundred One"]
[302,"Three Hundred Two"]
[303,"Three Hundred Three"]
[304,"Three Hundred Four"]
[305,"Three Hundred Five"]
[306,"Three Hundred Six"]
[307,"Three Hundred Seven"]
[308,"Three Hundred Eight"]
[309,{"$f":"spellnumber(A311)","v":"Three Hundred Nine"}]
[310,"Three Hundred Ten"]
[311,"Three Hundred Eleven"]
[312,"Three Hundred Twelve"]
[313,"Three Hundred Thirteen"]
[314,"Three Hundred Fourteen"]
[315,"Three Hundred Fifteen"]
[316,"Three Hundred Sixteen"]
[317,"Three Hundred Seventeen"]
[318,"Three Hundred Eighteen"]
[319,"Three Hundred Nineteen"]
[320,"Three Hundred Twenty "]
[321,"Three Hundred Twenty One"]
[322,"Three Hundred Twenty Two"]
[323,"Three Hundred Twenty Three"]
[324,"Three Hundred Twenty Four"]
[325,"Three Hundred Twenty Five"]
[326,"Three Hundred Twenty Six"]
[327,"Three Hundred Twenty Seven"]
[328,"Three Hundred Twenty Eight"]
[329,"Three Hundred Twenty Nine"]
[330,"Three Hundred Thirty "]
[331,"Three Hundred Thirty One"]
[332,"Three Hundred Thirty Two"]
[333,"Three Hundred Thirty Three"]
[334,"Three Hundred Thirty Four"]
[335,"Three Hundred Thirty Five"]
[336,"Three Hundred Thirty Six"]
[337,"Three Hundred Thirty Seven"]
[338,"Three Hundred Thirty Eight"]
[339,"Three Hundred Thirty Nine"]
[340,"Three Hundred Forty "]
[341,"Three Hundred Forty One"]
[342,"Three Hundred Forty Two"]
[343,"Three Hundred Forty Three"]
[344,"Three Hundred Forty Four"]
[345,"Three Hundred Forty Five"]
[346,"Three Hundred Forty Six"]
[347,"Three Hundred Forty Seven"]
[348,"Three Hundred Forty Eight"]
[349,"Three Hundred Forty Nine"]
[350,"Three Hundred Fifty "]
[351,"Three Hundred Fifty One"]
[352,"Three Hundred Fifty Two"]
[353,"Three Hundred Fifty Three"]
[354,"Three Hundred Fifty Four"]
[355,"Three Hundred Fifty Five"]
[356,"Three Hundred Fifty Six"]
[357,"Three Hundred Fifty Seven"]
[358,"Three Hundred Fifty Eight"]
[359,"Three Hundred Fifty Nine"]
[360,"Three Hundred Sixty "]
[361,"Three Hundred Sixty One"]
[362,"Three Hundred Sixty Two"]
[363,"Three Hundred Sixty Three"]
[364,"Three Hundred Sixty Four"]
[365,"Three Hundred Sixty Five"]
[366,"Three Hundred Sixty Six"]
[367,"Three Hundred Sixty Seven"]
[368,"Three Hundred Sixty Eight"]
[369,"Three Hundred Sixty Nine"]
[370,"Three Hundred Seventy "]
[371,"Three Hundred Seventy One"]
[372,"Three Hundred Seventy Two"]
[373,{"$f":"spellnumber(A375)","v":"Three Hundred Seventy Three"}]
[374,"Three Hundred Seventy Four"]
[375,"Three Hundred Seventy Five"]
[376,"Three Hundred Seventy Six"]
[377,"Three Hundred Seventy Seven"]
[378,"Three Hundred Seventy Eight"]
[379,"Three Hundred Seventy Nine"]
[380,"Three Hundred Eighty "]
[381,"Three Hundred Eighty One"]
[382,"Three Hundred Eighty Two"]
[383,"Three Hundred Eighty Three"]
[384,"Three Hundred Eighty Four"]
[385,"Three Hundred Eighty Five"]
[386,"Three Hundred Eighty Six"]
[387,"Three Hundred Eighty Seven"]
[388,"Three Hundred Eighty Eight"]
[389,"Three Hundred Eighty Nine"]
[390,"Three Hundred Ninety "]
[391,"Three Hundred Ninety One"]
[392,"Three Hundred Ninety Two"]
[393,"Three Hundred Ninety Three"]
[394,"Three Hundred Ninety Four"]
[395,"Three Hundred Ninety Five"]
[396,"Three Hundred Ninety Six"]
[397,"Three Hundred Ninety Seven"]
[398,"Three Hundred Ninety Eight"]
[399,"Three Hundred Ninety Nine"]
[400,"Four Hundred "]
[401,"Four Hundred One"]
[402,"Four Hundred Two"]
[403,"Four Hundred Three"]
[404,"Four Hundred Four"]
[405,"Four Hundred Five"]
[406,"Four Hundred Six"]
[407,"Four Hundred Seven"]
[408,"Four Hundred Eight"]
[409,"Four Hundred Nine"]
[410,"Four Hundred Ten"]
[411,"Four Hundred Eleven"]
[412,"Four Hundred Twelve"]
[413,"Four Hundred Thirteen"]
[414,"Four Hundred Fourteen"]
[415,"Four Hundred Fifteen"]
[416,"Four Hundred Sixteen"]
[417,"Four Hundred Seventeen"]
[418,"Four Hundred Eighteen"]
[419,"Four Hundred Nineteen"]
[420,"Four Hundred Twenty "]
[421,"Four Hundred Twenty One"]
[422,"Four Hundred Twenty Two"]
[423,"Four Hundred Twenty Three"]
[424,"Four Hundred Twenty Four"]
[425,"Four Hundred Twenty Five"]
[426,"Four Hundred Twenty Six"]
[427,"Four Hundred Twenty Seven"]
[428,"Four Hundred Twenty Eight"]
[429,"Four Hundred Twenty Nine"]
[430,"Four Hundred Thirty "]
[431,"Four Hundred Thirty One"]
[432,"Four Hundred Thirty Two"]
[433,"Four Hundred Thirty Three"]
[434,"Four Hundred Thirty Four"]
[435,"Four Hundred Thirty Five"]
[436,"Four Hundred Thirty Six"]
[437,{"$f":"spellnumber(A439)","v":"Four Hundred Thirty Seven"}]
[438,"Four Hundred Thirty Eight"]
[439,"Four Hundred Thirty Nine"]
[440,"Four Hundred Forty "]
[441,"Four Hundred Forty One"]
[442,"Four Hundred Forty Two"]
[443,"Four Hundred Forty Three"]
[444,"Four Hundred Forty Four"]
[445,"Four Hundred Forty Five"]
[446,"Four Hundred Forty Six"]
[447,"Four Hundred Forty Seven"]
[448,"Four Hundred Forty Eight"]
[449,"Four Hundred Forty Nine"]
[450,"Four Hundred Fifty "]
[451,"Four Hundred Fifty One"]
[452,"Four Hundred Fifty Two"]
[453,"Four Hundred Fifty Three"]
[454,"Four Hundred Fifty Four"]
[455,"Four Hundred Fifty Five"]
[456,"Four Hundred Fifty Six"]
[457,"Four Hundred Fifty Seven"]
[458,"Four Hundred Fifty Eight"]
[459,"Four Hundred Fifty Nine"]
[460,"Four Hundred Sixty "]
[461,"Four Hundred Sixty One"]
[462,"Four Hundred Sixty Two"]
[463,"Four Hundred Sixty Three"]
[464,"Four Hundred Sixty Four"]
[465,"Four Hundred Sixty Five"]
[466,"Four Hundred Sixty Six"]
[467,"Four Hundred Sixty Seven"]
[468,"Four Hundred Sixty Eight"]
[469,"Four Hundred Sixty Nine"]
[470,"Four Hundred Seventy "]
[471,"Four Hundred Seventy One"]
[472,"Four Hundred Seventy Two"]
[473,"Four Hundred Seventy Three"]
[474,"Four Hundred Seventy Four"]
[475,"Four Hundred Seventy Five"]
[476,"Four Hundred Seventy Six"]
[477,"Four Hundred Seventy Seven"]
[478,"Four Hundred Seventy Eight"]
[479,"Four Hundred Seventy Nine"]
[480,"Four Hundred Eighty "]
[481,"Four Hundred Eighty One"]
[482,"Four Hundred Eighty Two"]
[483,"Four Hundred Eighty Three"]
[484,"Four Hundred Eighty Four"]
[485,"Four Hundred Eighty Five"]
[486,"Four Hundred Eighty Six"]
[487,"Four Hundred Eighty Seven"]
[488,"Four Hundred Eighty Eight"]
[489,"Four Hundred Eighty Nine"]
[490,"Four Hundred Ninety "]
[491,"Four Hundred Ninety One"]
[492,"Four Hundred Ninety Two"]
[493,"Four Hundred Ninety Three"]
[494,"Four Hundred Ninety Four"]
[495,"Four Hundred Ninety Five"]
[496,"Four Hundred Ninety Six"]
[497,"Four Hundred Ninety Seven"]
[498,"Four Hundred Ninety Eight"]
[499,"Four Hundred Ninety Nine"]
[500,"Five Hundred "]
[501,{"$f":"spellnumber(A503)","v":"Five Hundred One"}]
[502,"Five Hundred Two"]
[503,"Five Hundred Three"]
[504,"Five Hundred Four"]
[505,"Five Hundred Five"]
[506,"Five Hundred Six"]
[507,"Five Hundred Seven"]
[508,"Five Hundred Eight"]
[509,"Five Hundred Nine"]
[510,"Five Hundred Ten"]
[511,"Five Hundred Eleven"]
[512,"Five Hundred Twelve"]
[513,"Five Hundred Thirteen"]
[514,"Five Hundred Fourteen"]
[515,"Five Hundred Fifteen"]
[516,"Five Hundred Sixteen"]
[517,"Five Hundred Seventeen"]
[518,"Five Hundred Eighteen"]
[519,"Five Hundred Nineteen"]
[520,"Five Hundred Twenty "]
[521,"Five Hundred Twenty One"]
[522,"Five Hundred Twenty Two"]
[523,"Five Hundred Twenty Three"]
[524,"Five Hundred Twenty Four"]
[525,"Five Hundred Twenty Five"]
[526,"Five Hundred Twenty Six"]
[527,"Five Hundred Twenty Seven"]
[528,"Five Hundred Twenty Eight"]
[529,"Five Hundred Twenty Nine"]
[530,"Five Hundred Thirty "]
[531,"Five Hundred Thirty One"]
[532,"Five Hundred Thirty Two"]
[533,"Five Hundred Thirty Three"]
[534,"Five Hundred Thirty Four"]
[535,"Five Hundred Thirty Five"]
[536,"Five Hundred Thirty Six"]
[537,"Five Hundred Thirty Seven"]
[538,"Five Hundred Thirty Eight"]
[539,"Five Hundred Thirty Nine"]
[540,"Five Hundred Forty "]
[541,"Five Hundred Forty One"]
[542,"Five Hundred Forty Two"]
[543,"Five Hundred Forty Three"]
[544,"Five Hundred Forty Four"]
[545,"Five Hundred Forty Five"]
[546,"Five Hundred Forty Six"]
[547,"Five Hundred Forty Seven"]
[548,"Five Hundred Forty Eight"]
[549,"Five Hundred Forty Nine"]
[550,"Five Hundred Fifty "]
[551,"Five Hundred Fifty One"]
[552,"Five Hundred Fifty Two"]
[553,"Five Hundred Fifty Three"]
[554,"Five Hundred Fifty Four"]
[555,"Five Hundred Fifty Five"]
[556,"Five Hundred Fifty Six"]
[557,"Five Hundred Fifty Seven"]
[558,"Five Hundred Fifty Eight"]
[559,"Five Hundred Fifty Nine"]
[560,"Five Hundred Sixty "]
[561,"Five Hundred Sixty One"]
[562,"Five Hundred Sixty Two"]
[563,"Five Hundred Sixty Three"]
[564,"Five Hundred Sixty Four"]
[565,{"$f":"spellnumber(A567)","v":"Five Hundred Sixty Five"}]
[566,"Five Hundred Sixty Six"]
[567,"Five Hundred Sixty Seven"]
[568,"Five Hundred Sixty Eight"]
[569,"Five Hundred Sixty Nine"]
[570,"Five Hundred Seventy "]
[571,"Five Hundred Seventy One"]
[572,"Five Hundred Seventy Two"]
[573,"Five Hundred Seventy Three"]
[574,"Five Hundred Seventy Four"]
[575,"Five Hundred Seventy Five"]
[576,"Five Hundred Seventy Six"]
[577,"Five Hundred Seventy Seven"]
[578,"Five Hundred Seventy Eight"]
[579,"Five Hundred Seventy Nine"]
[580,"Five Hundred Eighty "]
[581,"Five Hundred Eighty One"]
[582,"Five Hundred Eighty Two"]
[583,"Five Hundred Eighty Three"]
[584,"Five Hundred Eighty Four"]
[585,"Five Hundred Eighty Five"]
[586,"Five Hundred Eighty Six"]
[587,"Five Hundred Eighty Seven"]
[588,"Five Hundred Eighty Eight"]
[589,"Five Hundred Eighty Nine"]
[590,"Five Hundred Ninety "]
[591,"Five Hundred Ninety One"]
[592,"Five Hundred Ninety Two"]
[593,"Five Hundred Ninety Three"]
[594,"Five Hundred Ninety Four"]
[595,"Five Hundred Ninety Five"]
[596,"Five Hundred Ninety Six"]
[597,"Five Hundred Ninety Seven"]
[598,"Five Hundred Ninety Eight"]
[599,"Five Hundred Ninety Nine"]
[600,"Six Hundred "]
[601,"Six Hundred One"]
[602,"Six Hundred Two"]
[603,"Six Hundred Three"]
[604,"Six Hundred Four"]
[605,"Six Hundred Five"]
[606,"Six Hundred Six"]
[607,"Six Hundred Seven"]
[608,"Six Hundred Eight"]
[609,"Six Hundred Nine"]
[610,"Six Hundred Ten"]
[611,"Six Hundred Eleven"]
[612,"Six Hundred Twelve"]
[613,"Six Hundred Thirteen"]
[614,"Six Hundred Fourteen"]
[615,"Six Hundred Fifteen"]
[616,"Six Hundred Sixteen"]
[617,"Six Hundred Seventeen"]
[618,"Six Hundred Eighteen"]
[619,"Six Hundred Nineteen"]
[620,"Six Hundred Twenty "]
[621,"Six Hundred Twenty One"]
[622,"Six Hundred Twenty Two"]
[623,"Six Hundred Twenty Three"]
[624,"Six Hundred Twenty Four"]
[625,"Six Hundred Twenty Five"]
[626,"Six Hundred Twenty Six"]
[627,"Six Hundred Twenty Seven"]
[628,"Six Hundred Twenty Eight"]
[629,{"$f":"spellnumber(A631)","v":"Six Hundred Twenty Nine"}]
[630,"Six Hundred Thirty "]
[631,"Six Hundred Thirty One"]
[632,"Six Hundred Thirty Two"]
[633,"Six Hundred Thirty Three"]
[634,"Six Hundred Thirty Four"]
[635,"Six Hundred Thirty Five"]
[636,"Six Hundred Thirty Six"]
[637,"Six Hundred Thirty Seven"]
[638,"Six Hundred Thirty Eight"]
[639,"Six Hundred Thirty Nine"]
[640,"Six Hundred Forty "]
[641,"Six Hundred Forty One"]
[642,"Six Hundred Forty Two"]
[643,"Six Hundred Forty Three"]
[644,"Six Hundred Forty Four"]
[645,"Six Hundred Forty Five"]
[646,"Six Hundred Forty Six"]
[647,"Six Hundred Forty Seven"]
[648,"Six Hundred Forty Eight"]
[649,"Six Hundred Forty Nine"]
[650,"Six Hundred Fifty "]
[651,"Six Hundred Fifty One"]
[652,"Six Hundred Fifty Two"]
[653,"Six Hundred Fifty Three"]
[654,"Six Hundred Fifty Four"]
[655,"Six Hundred Fifty Five"]
[656,"Six Hundred Fifty Six"]
[657,"Six Hundred Fifty Seven"]
[658,"Six Hundred Fifty Eight"]
[659,"Six Hundred Fifty Nine"]
[660,"Six Hundred Sixty "]
[661,"Six Hundred Sixty One"]
[662,"Six Hundred Sixty Two"]
[663,"Six Hundred Sixty Three"]
[664,"Six Hundred Sixty Four"]
[665,"Six Hundred Sixty Five"]
[666,"Six Hundred Sixty Six"]
[667,"Six Hundred Sixty Seven"]
[668,"Six Hundred Sixty Eight"]
[669,"Six Hundred Sixty Nine"]
[670,"Six Hundred Seventy "]
[671,"Six Hundred Seventy One"]
[672,"Six Hundred Seventy Two"]
[673,"Six Hundred Seventy Three"]
[674,"Six Hundred Seventy Four"]
[675,"Six Hundred Seventy Five"]
[676,"Six Hundred Seventy Six"]
[677,"Six Hundred Seventy Seven"]
[678,"Six Hundred Seventy Eight"]
[679,"Six Hundred Seventy Nine"]
[680,"Six Hundred Eighty "]
[681,"Six Hundred Eighty One"]
[682,"Six Hundred Eighty Two"]
[683,"Six Hundred Eighty Three"]
[684,"Six Hundred Eighty Four"]
[685,"Six Hundred Eighty Five"]
[686,"Six Hundred Eighty Six"]
[687,"Six Hundred Eighty Seven"]
[688,"Six Hundred Eighty Eight"]
[689,"Six Hundred Eighty Nine"]
[690,"Six Hundred Ninety "]
[691,"Six Hundred Ninety One"]
[692,"Six Hundred Ninety Two"]
[693,{"$f":"spellnumber(A695)","v":"Six Hundred Ninety Three"}]
[694,"Six Hundred Ninety Four"]
[695,"Six Hundred Ninety Five"]
[696,"Six Hundred Ninety Six"]
[697,"Six Hundred Ninety Seven"]
[698,"Six Hundred Ninety Eight"]
[699,"Six Hundred Ninety Nine"]
[700,"Seven Hundred "]
[701,"Seven Hundred One"]
[702,"Seven Hundred Two"]
[703,"Seven Hundred Three"]
[704,"Seven Hundred Four"]
[705,"Seven Hundred Five"]
[706,"Seven Hundred Six"]
[707,"Seven Hundred Seven"]
[708,"Seven Hundred Eight"]
[709,"Seven Hundred Nine"]
[710,"Seven Hundred Ten"]
[711,"Seven Hundred Eleven"]
[712,"Seven Hundred Twelve"]
[713,"Seven Hundred Thirteen"]
[714,"Seven Hundred Fourteen"]
[715,"Seven Hundred Fifteen"]
[716,"Seven Hundred Sixteen"]
[717,"Seven Hundred Seventeen"]
[718,"Seven Hundred Eighteen"]
[719,"Seven Hundred Nineteen"]
[720,"Seven Hundred Twenty "]
[721,"Seven Hundred Twenty One"]
[722,"Seven Hundred Twenty Two"]
[723,"Seven Hundred Twenty Three"]
[724,"Seven Hundred Twenty Four"]
[725,"Seven Hundred Twenty Five"]
[726,"Seven Hundred Twenty Six"]
[727,"Seven Hundred Twenty Seven"]
[728,"Seven Hundred Twenty Eight"]
[729,"Seven Hundred Twenty Nine"]
[730,"Seven Hundred Thirty "]
[731,"Seven Hundred Thirty One"]
[732,"Seven Hundred Thirty Two"]
[733,"Seven Hundred Thirty Three"]
[734,"Seven Hundred Thirty Four"]
[735,"Seven Hundred Thirty Five"]
[736,"Seven Hundred Thirty Six"]
[737,"Seven Hundred Thirty Seven"]
[738,"Seven Hundred Thirty Eight"]
[739,"Seven Hundred Thirty Nine"]
[740,"Seven Hundred Forty "]
[741,"Seven Hundred Forty One"]
[742,"Seven Hundred Forty Two"]
[743,"Seven Hundred Forty Three"]
[744,"Seven Hundred Forty Four"]
[745,"Seven Hundred Forty Five"]
[746,"Seven Hundred Forty Six"]
[747,"Seven Hundred Forty Seven"]
[748,"Seven Hundred Forty Eight"]
[749,"Seven Hundred Forty Nine"]
[750,"Seven Hundred Fifty "]
[751,"Seven Hundred Fifty One"]
[752,"Seven Hundred Fifty Two"]
[753,"Seven Hundred Fifty Three"]
[754,"Seven Hundred Fifty Four"]
[755,"Seven Hundred Fifty Five"]
[756,"Seven Hundred Fifty Six"]
[757,{"$f":"spellnumber(A759)","v":"Seven Hundred Fifty Seven"}]
[758,"Seven Hundred Fifty Eight"]
[759,"Seven Hundred Fifty Nine"]
[760,"Seven Hundred Sixty "]
[761,"Seven Hundred Sixty One"]
[762,"Seven Hundred Sixty Two"]
[763,"Seven Hundred Sixty Three"]
[764,"Seven Hundred Sixty Four"]
[765,"Seven Hundred Sixty Five"]
[766,"Seven Hundred Sixty Six"]
[767,"Seven Hundred Sixty Seven"]
[768,"Seven Hundred Sixty Eight"]
[769,"Seven Hundred Sixty Nine"]
[770,"Seven Hundred Seventy "]
[771,"Seven Hundred Seventy One"]
[772,"Seven Hundred Seventy Two"]
[773,"Seven Hundred Seventy Three"]
[774,"Seven Hundred Seventy Four"]
[775,"Seven Hundred Seventy Five"]
[776,"Seven Hundred Seventy Six"]
[777,"Seven Hundred Seventy Seven"]
[778,"Seven Hundred Seventy Eight"]
[779,"Seven Hundred Seventy Nine"]
[780,"Seven Hundred Eighty "]
[781,"Seven Hundred Eighty One"]
[782,"Seven Hundred Eighty Two"]
[783,"Seven Hundred Eighty Three"]
[784,"Seven Hundred Eighty Four"]
[785,"Seven Hundred Eighty Five"]
[786,"Seven Hundred Eighty Six"]
[787,"Seven Hundred Eighty Seven"]
[788,"Seven Hundred Eighty Eight"]
[789,"Seven Hundred Eighty Nine"]
[790,"Seven Hundred Ninety "]
[791,"Seven Hundred Ninety One"]
[792,"Seven Hundred Ninety Two"]
[793,"Seven Hundred Ninety Three"]
[794,"Seven Hundred Ninety Four"]
[795,"Seven Hundred Ninety Five"]
[796,"Seven Hundred Ninety Six"]
[797,"Seven Hundred Ninety Seven"]
[798,"Seven Hundred Ninety Eight"]
[799,"Seven Hundred Ninety Nine"]
[800,"Eight Hundred "]
[801,"Eight Hundred One"]
[802,"Eight Hundred Two"]
[803,"Eight Hundred Three"]
[804,"Eight Hundred Four"]
[805,"Eight Hundred Five"]
[806,"Eight Hundred Six"]
[807,"Eight Hundred Seven"]
[808,"Eight Hundred Eight"]
[809,"Eight Hundred Nine"]
[810,"Eight Hundred Ten"]
[811,"Eight Hundred Eleven"]
[812,"Eight Hundred Twelve"]
[813,"Eight Hundred Thirteen"]
[814,"Eight Hundred Fourteen"]
[815,"Eight Hundred Fifteen"]
[816,"Eight Hundred Sixteen"]
[817,"Eight Hundred Seventeen"]
[818,"Eight Hundred Eighteen"]
[819,"Eight Hundred Nineteen"]
[820,"Eight Hundred Twenty "]
[821,{"$f":"spellnumber(A823)","v":"Eight Hundred Twenty One"}]
[822,"Eight Hundred Twenty Two"]
[823,"Eight Hundred Twenty Three"]
[824,"Eight Hundred Twenty Four"]
[825,"Eight Hundred Twenty Five"]
[826,"Eight Hundred Twenty Six"]
[827,"Eight Hundred Twenty Seven"]
[828,"Eight Hundred Twenty Eight"]
[829,"Eight Hundred Twenty Nine"]
[830,"Eight Hundred Thirty "]
[831,"Eight Hundred Thirty One"]
[832,"Eight Hundred Thirty Two"]
[833,"Eight Hundred Thirty Three"]
[834,"Eight Hundred Thirty Four"]
[835,"Eight Hundred Thirty Five"]
[836,"Eight Hundred Thirty Six"]
[837,"Eight Hundred Thirty Seven"]
[838,"Eight Hundred Thirty Eight"]
[839,"Eight Hundred Thirty Nine"]
[840,"Eight Hundred Forty "]
[841,"Eight Hundred Forty One"]
[842,"Eight Hundred Forty Two"]
[843,"Eight Hundred Forty Three"]
[844,"Eight Hundred Forty Four"]
[845,"Eight Hundred Forty Five"]
[846,"Eight Hundred Forty Six"]
[847,"Eight Hundred Forty Seven"]
[848,"Eight Hundred Forty Eight"]
[849,"Eight Hundred Forty Nine"]
[850,"Eight Hundred Fifty "]
[851,"Eight Hundred Fifty One"]
[852,"Eight Hundred Fifty Two"]
[853,"Eight Hundred Fifty Three"]
[854,"Eight Hundred Fifty Four"]
[855,"Eight Hundred Fifty Five"]
[856,"Eight Hundred Fifty Six"]
[857,"Eight Hundred Fifty Seven"]
[858,"Eight Hundred Fifty Eight"]
[859,"Eight Hundred Fifty Nine"]
[860,"Eight Hundred Sixty "]
[861,"Eight Hundred Sixty One"]
[862,"Eight Hundred Sixty Two"]
[863,"Eight Hundred Sixty Three"]
[864,"Eight Hundred Sixty Four"]
[865,"Eight Hundred Sixty Five"]
[866,"Eight Hundred Sixty Six"]
[867,"Eight Hundred Sixty Seven"]
[868,"Eight Hundred Sixty Eight"]
[869,"Eight Hundred Sixty Nine"]
[870,"Eight Hundred Seventy "]
[871,"Eight Hundred Seventy One"]
[872,"Eight Hundred Seventy Two"]
[873,"Eight Hundred Seventy Three"]
[874,"Eight Hundred Seventy Four"]
[875,"Eight Hundred Seventy Five"]
[876,"Eight Hundred Seventy Six"]
[877,"Eight Hundred Seventy Seven"]
[878,"Eight Hundred Seventy Eight"]
[879,"Eight Hundred Seventy Nine"]
[880,"Eight Hundred Eighty "]
[881,"Eight Hundred Eighty One"]
[882,"Eight Hundred Eighty Two"]
[883,"Eight Hundred Eighty Three"]
[884,"Eight Hundred Eighty Four"]
[885,{"$f":"spellnumber(A887)","v":"Eight Hundred Eighty Five"}]
[886,"Eight Hundred Eighty Six"]
[887,"Eight Hundred Eighty Seven"]
[888,"Eight Hundred Eighty Eight"]
[889,"Eight Hundred Eighty Nine"]
[890,"Eight Hundred Ninety "]
[891,"Eight Hundred Ninety One"]
[892,"Eight Hundred Ninety Two"]
[893,"Eight Hundred Ninety Three"]
[894,"Eight Hundred Ninety Four"]
[895,"Eight Hundred Ninety Five"]
[896,"Eight Hundred Ninety Six"]
[897,"Eight Hundred Ninety Seven"]
[898,"Eight Hundred Ninety Eight"]
[899,"Eight Hundred Ninety Nine"]
[900,"Nine Hundred "]
[901,"Nine Hundred One"]
[902,"Nine Hundred Two"]
[903,"Nine Hundred Three"]
[904,"Nine Hundred Four"]
[905,"Nine Hundred Five"]
[906,"Nine Hundred Six"]
[907,"Nine Hundred Seven"]
[908,"Nine Hundred Eight"]
[909,"Nine Hundred Nine"]
[910,"Nine Hundred Ten"]
[911,"Nine Hundred Eleven"]
[912,"Nine Hundred Twelve"]
[913,"Nine Hundred Thirteen"]
[914,"Nine Hundred Fourteen"]
[915,"Nine Hundred Fifteen"]
[916,"Nine Hundred Sixteen"]
[917,"Nine Hundred Seventeen"]
[918,"Nine Hundred Eighteen"]
[919,"Nine Hundred Nineteen"]
[920,"Nine Hundred Twenty "]
[921,"Nine Hundred Twenty One"]
[922,"Nine Hundred Twenty Two"]
[923,"Nine Hundred Twenty Three"]
[924,"Nine Hundred Twenty Four"]
[925,"Nine Hundred Twenty Five"]
[926,"Nine Hundred Twenty Six"]
[927,"Nine Hundred Twenty Seven"]
[928,"Nine Hundred Twenty Eight"]
[929,"Nine Hundred Twenty Nine"]
[930,"Nine Hundred Thirty "]
[931,"Nine Hundred Thirty One"]
[932,"Nine Hundred Thirty Two"]
[933,"Nine Hundred Thirty Three"]
[934,"Nine Hundred Thirty Four"]
[935,"Nine Hundred Thirty Five"]
[936,"Nine Hundred Thirty Six"]
[937,"Nine Hundred Thirty Seven"]
[938,"Nine Hundred Thirty Eight"]
[939,"Nine Hundred Thirty Nine"]
[940,"Nine Hundred Forty "]
[941,"Nine Hundred Forty One"]
[942,"Nine Hundred Forty Two"]
[943,"Nine Hundred Forty Three"]
[944,"Nine Hundred Forty Four"]
[945,"Nine Hundred Forty Five"]
[946,"Nine Hundred Forty Six"]
[947,"Nine Hundred Forty Seven"]
[948,"Nine Hundred Forty Eight"]
[949,{"$f":"spellnumber(A951)","v":"Nine Hundred Forty Nine"}]
[950,"Nine Hundred Fifty "]
[951,"Nine Hundred Fifty One"]
[952,"Nine Hundred Fifty Two"]
[953,"Nine Hundred Fifty Three"]
[954,"Nine Hundred Fifty Four"]
[955,"Nine Hundred Fifty Five"]
[956,"Nine Hundred Fifty Six"]
[957,"Nine Hundred Fifty Seven"]
[958,"Nine Hundred Fifty Eight"]
[959,"Nine Hundred Fifty Nine"]
[960,"Nine Hundred Sixty "]
[961,"Nine Hundred Sixty One"]
[962,"Nine Hundred Sixty Two"]
[963,"Nine Hundred Sixty Three"]
[964,"Nine Hundred Sixty Four"]
[965,"Nine Hundred Sixty Five"]
[966,"Nine Hundred Sixty Six"]
[967,"Nine Hundred Sixty Seven"]
[968,"Nine Hundred Sixty Eight"]
[969,"Nine Hundred Sixty Nine"]
[970,"Nine Hundred Seventy "]
[971,"Nine Hundred Seventy One"]
[972,"Nine Hundred Seventy Two"]
[973,"Nine Hundred Seventy Three"]
[974,"Nine Hundred Seventy Four"]
[975,"Nine Hundred Seventy Five"]
[976,"Nine Hundred Seventy Six"]
[977,"Nine Hundred Seventy Seven"]
[978,"Nine Hundred Seventy Eight"]
[979,"Nine Hundred Seventy Nine"]
[980,"Nine Hundred Eighty "]
[981,"Nine Hundred Eighty One"]
[982,"Nine Hundred Eighty Two"]
[983,"Nine Hundred Eighty Three"]
[984,"Nine Hundred Eighty Four"]
[985,"Nine Hundred Eighty Five"]
[986,"Nine Hundred Eighty Six"]
[987,"Nine Hundred Eighty Seven"]
[988,"Nine Hundred Eighty Eight"]
[989,"Nine Hundred Eighty Nine"]
[990,"Nine Hundred Ninety "]
[991,"Nine Hundred Ninety One"]
[992,"Nine Hundred Ninety Two"]
[993,"Nine Hundred Ninety Three"]
[994,"Nine Hundred Ninety Four"]
[995,"Nine Hundred Ninety Five"]
[996,"Nine Hundred Ninety Six"]
[997,"Nine Hundred Ninety Seven"]
[998,"Nine Hundred Ninety Eight"]
[999,"Nine Hundred Ninety Nine"]
[1000,{"$f":"spellnumber(A1002)","v":"One Thousand "}]
[1001,"One Thousand One"]
[1002,"One Thousand Two"]
[1003,"One Thousand Three"]
[1004,"One Thousand Four"]
[1005,"One Thousand Five"]
[1006,"One Thousand Six"]
[1007,"One Thousand Seven"]
[1008,{"$f":"spellnumber(A1010)","v":"One Thousand Eight"}]
[1009,"One Thousand Nine"]
[1010,"One Thousand Ten"]
[1011,"One Thousand Eleven"]
[1012,"One Thousand Twelve"]
[1013,"One Thousand Thirteen"]
[1014,"One Thousand Fourteen"]
[1015,"One Thousand Fifteen"]
[1016,"One Thousand Sixteen"]
[1017,"One Thousand Seventeen"]
[1018,"One Thousand Eighteen"]
[1019,"One Thousand Nineteen"]
[1020,"One Thousand Twenty "]
[1021,"One Thousand Twenty One"]
[1022,"One Thousand Twenty Two"]
[1023,"One Thousand Twenty Three"]
[1024,"One Thousand Twenty Four"]
[1025,"One Thousand Twenty Five"]
[1026,"One Thousand Twenty Six"]
[1027,"One Thousand Twenty Seven"]
[1028,"One Thousand Twenty Eight"]
[1029,"One Thousand Twenty Nine"]
[1030,"One Thousand Thirty "]
[1031,"One Thousand Thirty One"]
[1032,"One Thousand Thirty Two"]
[1033,"One Thousand Thirty Three"]
[1034,"One Thousand Thirty Four"]
[1035,"One Thousand Thirty Five"]
[1036,"One Thousand Thirty Six"]
[1037,"One Thousand Thirty Seven"]
[1038,"One Thousand Thirty Eight"]
[1039,"One Thousand Thirty Nine"]
[1040,"One Thousand Forty "]
[1041,"One Thousand Forty One"]
[1042,"One Thousand Forty Two"]
[1043,"One Thousand Forty Three"]
[1044,"One Thousand Forty Four"]
[1045,"One Thousand Forty Five"]
[1046,"One Thousand Forty Six"]
[1047,"One Thousand Forty Seven"]
[1048,"One Thousand Forty Eight"]
[1049,"One Thousand Forty Nine"]
[1050,"One Thousand Fifty "]
[1051,"One Thousand Fifty One"]
[1052,"One Thousand Fifty Two"]
[1053,"One Thousand Fifty Three"]
[1054,"One Thousand Fifty Four"]
[1055,"One Thousand Fifty Five"]
[1056,"One Thousand Fifty Six"]
[1057,"One Thousand Fifty Seven"]
[1058,"One Thousand Fifty Eight"]
[1059,"One Thousand Fifty Nine"]
[1060,"One Thousand Sixty "]
[1061,"One Thousand Sixty One"]
[1062,"One Thousand Sixty Two"]
[1063,"One Thousand Sixty Three"]
[1064,"One Thousand Sixty Four"]
[1065,"One Thousand Sixty Five"]
[1066,"One Thousand Sixty Six"]
[1067,"One Thousand Sixty Seven"]
[1068,"One Thousand Sixty Eight"]
[1069,"One Thousand Sixty Nine"]
[1070,"One Thousand Seventy "]
[1071,"One Thousand Seventy One"]
[1072,{"$f":"spellnumber(A1074)","v":"One Thousand Seventy Two"}]
[1073,"One Thousand Seventy Three"]
[1074,"One Thousand Seventy Four"]
[1075,"One Thousand Seventy Five"]
[1076,"One Thousand Seventy Six"]
[1077,"One Thousand Seventy Seven"]
[1078,"One Thousand Seventy Eight"]
[1079,"One Thousand Seventy Nine"]
[1080,"One Thousand Eighty "]
[1081,"One Thousand Eighty One"]
[1082,"One Thousand Eighty Two"]
[1083,"One Thousand Eighty Three"]
[1084,"One Thousand Eighty Four"]
[1085,"One Thousand Eighty Five"]
[1086,"One Thousand Eighty Six"]
[1087,"One Thousand Eighty Seven"]
[1088,"One Thousand Eighty Eight"]
[1089,"One Thousand Eighty Nine"]
[1090,"One Thousand Ninety "]
[1091,"One Thousand Ninety One"]
[1092,"One Thousand Ninety Two"]
[1093,"One Thousand Ninety Three"]
[1094,"One Thousand Ninety Four"]
[1095,"One Thousand Ninety Five"]
[1096,"One Thousand Ninety Six"]
[1097,"One Thousand Ninety Seven"]
[1098,"One Thousand Ninety Eight"]
[1099,"One Thousand Ninety Nine"]
[1100,"One Thousand One Hundred "]
[1101,"One Thousand One Hundred One"]
[1102,"One Thousand One Hundred Two"]
[1103,"One Thousand One Hundred Three"]
[1104,"One Thousand One Hundred Four"]
[1105,"One Thousand One Hundred Five"]
[1106,"One Thousand One Hundred Six"]
[1107,"One Thousand One Hundred Seven"]
[1108,"One Thousand One Hundred Eight"]
[1109,"One Thousand One Hundred Nine"]
[1110,"One Thousand One Hundred Ten"]
[1111,"One Thousand One Hundred Eleven"]
[1112,"One Thousand One Hundred Twelve"]
[1113,"One Thousand One Hundred Thirteen"]
[1114,"One Thousand One Hundred Fourteen"]
[1115,"One Thousand One Hundred Fifteen"]
[1116,"One Thousand One Hundred Sixteen"]
[1117,"One Thousand One Hundred Seventeen"]
[1118,"One Thousand One Hundred Eighteen"]
[1119,"One Thousand One Hundred Nineteen"]
[1120,"One Thousand One Hundred Twenty "]
[1121,"One Thousand One Hundred Twenty One"]
[1122,"One Thousand One Hundred Twenty Two"]
[1123,"One Thousand One Hundred Twenty Three"]
[1124,"One Thousand One Hundred Twenty Four"]
[1125,"One Thousand One Hundred Twenty Five"]
[1126,"One Thousand One Hundred Twenty Six"]
[1127,"One Thousand One Hundred Twenty Seven"]
[1128,"One Thousand One Hundred Twenty Eight"]
[1129,"One Thousand One Hundred Twenty Nine"]
[1130,"One Thousand One Hundred Thirty "]
[1131,"One Thousand One Hundred Thirty One"]
[1132,"One Thousand One Hundred Thirty Two"]
[1133,"One Thousand One Hundred Thirty Three"]
[1134,"One Thousand One Hundred Thirty Four"]
[1135,"One Thousand One Hundred Thirty Five"]
[1136,{"$f":"spellnumber(A1138)","v":"One Thousand One Hundred Thirty Six"}]
[1137,"One Thousand One Hundred Thirty Seven"]
[1138,"One Thousand One Hundred Thirty Eight"]
[1139,"One Thousand One Hundred Thirty Nine"]
[1140,"One Thousand One Hundred Forty "]
[1141,"One Thousand One Hundred Forty One"]
[1142,"One Thousand One Hundred Forty Two"]
[1143,"One Thousand One Hundred Forty Three"]
[1144,"One Thousand One Hundred Forty Four"]
[1145,"One Thousand One Hundred Forty Five"]
[1146,"One Thousand One Hundred Forty Six"]
[1147,"One Thousand One Hundred Forty Seven"]
[1148,"One Thousand One Hundred Forty Eight"]
[1149,"One Thousand One Hundred Forty Nine"]
[1150,"One Thousand One Hundred Fifty "]
[1151,"One Thousand One Hundred Fifty One"]
[1152,"One Thousand One Hundred Fifty Two"]
[1153,"One Thousand One Hundred Fifty Three"]
[1154,"One Thousand One Hundred Fifty Four"]
[1155,"One Thousand One Hundred Fifty Five"]
[1156,"One Thousand One Hundred Fifty Six"]
[1157,"One Thousand One Hundred Fifty Seven"]
[1158,"One Thousand One Hundred Fifty Eight"]
[1159,"One Thousand One Hundred Fifty Nine"]
[1160,"One Thousand One Hundred Sixty "]
[1161,"One Thousand One Hundred Sixty One"]
[1162,"One Thousand One Hundred Sixty Two"]
[1163,"One Thousand One Hundred Sixty Three"]
[1164,"One Thousand One Hundred Sixty Four"]
[1165,"One Thousand One Hundred Sixty Five"]
[1166,"One Thousand One Hundred Sixty Six"]
[1167,"One Thousand One Hundred Sixty Seven"]
[1168,"One Thousand One Hundred Sixty Eight"]
[1169,"One Thousand One Hundred Sixty Nine"]
[1170,"One Thousand One Hundred Seventy "]
[1171,"One Thousand One Hundred Seventy One"]
[1172,"One Thousand One Hundred Seventy Two"]
[1173,"One Thousand One Hundred Seventy Three"]
[1174,"One Thousand One Hundred Seventy Four"]
[1175,"One Thousand One Hundred Seventy Five"]
[1176,"One Thousand One Hundred Seventy Six"]
[1177,"One Thousand One Hundred Seventy Seven"]
[1178,"One Thousand One Hundred Seventy Eight"]
[1179,"One Thousand One Hundred Seventy Nine"]
[1180,"One Thousand One Hundred Eighty "]
[1181,"One Thousand One Hundred Eighty One"]
[1182,"One Thousand One Hundred Eighty Two"]
[1183,"One Thousand One Hundred Eighty Three"]
[1184,"One Thousand One Hundred Eighty Four"]
[1185,"One Thousand One Hundred Eighty Five"]
[1186,"One Thousand One Hundred Eighty Six"]
[1187,"One Thousand One Hundred Eighty Seven"]
[1188,"One Thousand One Hundred Eighty Eight"]
[1189,"One Thousand One Hundred Eighty Nine"]
[1190,"One Thousand One Hundred Ninety "]
[1191,"One Thousand One Hundred Ninety One"]
[1192,"One Thousand One Hundred Ninety Two"]
[1193,"One Thousand One Hundred Ninety Three"]
[1194,"One Thousand One Hundred Ninety Four"]
[1195,"One Thousand One Hundred Ninety Five"]
[1196,"One Thousand One Hundred Ninety Six"]
[1197,"One Thousand One Hundred Ninety Seven"]
[1198,"One Thousand One Hundred Ninety Eight"]
[1199,"One Thousand One Hundred Ninety Nine"]
[1200,{"$f":"spellnumber(A1202)","v":"One Thousand Two Hundred "}]
[1201,"One Thousand Two Hundred One"]
[1202,"One Thousand Two Hundred Two"]
[1203,"One Thousand Two Hundred Three"]
[1204,"One Thousand Two Hundred Four"]
[1205,"One Thousand Two Hundred Five"]
[1206,"One Thousand Two Hundred Six"]
[1207,"One Thousand Two Hundred Seven"]
[1208,"One Thousand Two Hundred Eight"]
[1209,"One Thousand Two Hundred Nine"]
[1210,"One Thousand Two Hundred Ten"]
[1211,"One Thousand Two Hundred Eleven"]
[1212,"One Thousand Two Hundred Twelve"]
[1213,"One Thousand Two Hundred Thirteen"]
[1214,"One Thousand Two Hundred Fourteen"]
[1215,"One Thousand Two Hundred Fifteen"]
[1216,"One Thousand Two Hundred Sixteen"]
[1217,"One Thousand Two Hundred Seventeen"]
[1218,"One Thousand Two Hundred Eighteen"]
[1219,"One Thousand Two Hundred Nineteen"]
[1220,"One Thousand Two Hundred Twenty "]
[1221,"One Thousand Two Hundred Twenty One"]
[1222,"One Thousand Two Hundred Twenty Two"]
[1223,"One Thousand Two Hundred Twenty Three"]
[1224,"One Thousand Two Hundred Twenty Four"]
[1225,"One Thousand Two Hundred Twenty Five"]
[1226,"One Thousand Two Hundred Twenty Six"]
[1227,"One Thousand Two Hundred Twenty Seven"]
[1228,"One Thousand Two Hundred Twenty Eight"]
[1229,"One Thousand Two Hundred Twenty Nine"]
[1230,"One Thousand Two Hundred Thirty "]
[1231,"One Thousand Two Hundred Thirty One"]
[1232,"One Thousand Two Hundred Thirty Two"]
[1233,"One Thousand Two Hundred Thirty Three"]
[1234,"One Thousand Two Hundred Thirty Four"]
[1235,"One Thousand Two Hundred Thirty Five"]
[1236,"One Thousand Two Hundred Thirty Six"]
[1237,"One Thousand Two Hundred Thirty Seven"]
[1238,"One Thousand Two Hundred Thirty Eight"]
[1239,"One Thousand Two Hundred Thirty Nine"]
[1240,"One Thousand Two Hundred Forty "]
[1241,"One Thousand Two Hundred Forty One"]
[1242,"One Thousand Two Hundred Forty Two"]
[1243,"One Thousand Two Hundred Forty Three"]
[1244,"One Thousand Two Hundred Forty Four"]
[1245,"One Thousand Two Hundred Forty Five"]
[1246,"One Thousand Two Hundred Forty Six"]
[1247,"One Thousand Two Hundred Forty Seven"]
[1248,"One Thousand Two Hundred Forty Eight"]
[1249,"One Thousand Two Hundred Forty Nine"]
[1250,"One Thousand Two Hundred Fifty "]
[1251,"One Thousand Two Hundred Fifty One"]
[1252,"One Thousand Two Hundred Fifty Two"]
[1253,"One Thousand Two Hundred Fifty Three"]
[1254,"One Thousand Two Hundred Fifty Four"]
[1255,"One Thousand Two Hundred Fifty Five"]
[1256,"One Thousand Two Hundred Fifty Six"]
[1257,"One Thousand Two Hundred Fifty Seven"]
[1258,"One Thousand Two Hundred Fifty Eight"]
[1259,"One Thousand Two Hundred Fifty Nine"]
[1260,"One Thousand Two Hundred Sixty "]
[1261,"One Thousand Two Hundred Sixty One"]
[1262,"One Thousand Two Hundred Sixty Two"]
[1263,"One Thousand Two Hundred Sixty Three"]
[1264,{"$f":"spellnumber(A1266)","v":"One Thousand Two Hundred Sixty Four"}]
[1265,"One Thousand Two Hundred Sixty Five"]
[1266,"One Thousand Two Hundred Sixty Six"]
[1267,"One Thousand Two Hundred Sixty Seven"]
[1268,"One Thousand Two Hundred Sixty Eight"]
[1269,"One Thousand Two Hundred Sixty Nine"]
[1270,"One Thousand Two Hundred Seventy "]
[1271,"One Thousand Two Hundred Seventy One"]
[1272,"One Thousand Two Hundred Seventy Two"]
[1273,"One Thousand Two Hundred Seventy Three"]
[1274,"One Thousand Two Hundred Seventy Four"]
[1275,"One Thousand Two Hundred Seventy Five"]
[1276,"One Thousand Two Hundred Seventy Six"]
[1277,"One Thousand Two Hundred Seventy Seven"]
[1278,"One Thousand Two Hundred Seventy Eight"]
[1279,"One Thousand Two Hundred Seventy Nine"]
[1280,"One Thousand Two Hundred Eighty "]
[1281,"One Thousand Two Hundred Eighty One"]
[1282,"One Thousand Two Hundred Eighty Two"]
[1283,"One Thousand Two Hundred Eighty Three"]
[1284,"One Thousand Two Hundred Eighty Four"]
[1285,"One Thousand Two Hundred Eighty Five"]
[1286,"One Thousand Two Hundred Eighty Six"]
[1287,"One Thousand Two Hundred Eighty Seven"]
[1288,"One Thousand Two Hundred Eighty Eight"]
[1289,"One Thousand Two Hundred Eighty Nine"]
[1290,"One Thousand Two Hundred Ninety "]
[1291,"One Thousand Two Hundred Ninety One"]
[1292,"One Thousand Two Hundred Ninety Two"]
[1293,"One Thousand Two Hundred Ninety Three"]
[1294,"One Thousand Two Hundred Ninety Four"]
[1295,"One Thousand Two Hundred Ninety Five"]
[1296,"One Thousand Two Hundred Ninety Six"]
[1297,"One Thousand Two Hundred Ninety Seven"]
[1298,"One Thousand Two Hundred Ninety Eight"]
[1299,"One Thousand Two Hundred Ninety Nine"]
[1300,"One Thousand Three Hundred "]
[1301,"One Thousand Three Hundred One"]
[1302,"One Thousand Three Hundred Two"]
[1303,"One Thousand Three Hundred Three"]
[1304,"One Thousand Three Hundred Four"]
[1305,"One Thousand Three Hundred Five"]
[1306,"One Thousand Three Hundred Six"]
[1307,"One Thousand Three Hundred Seven"]
[1308,"One Thousand Three Hundred Eight"]
[1309,"One Thousand Three Hundred Nine"]
[1310,"One Thousand Three Hundred Ten"]
[1311,"One Thousand Three Hundred Eleven"]
[1312,"One Thousand Three Hundred Twelve"]
[1313,"One Thousand Three Hundred Thirteen"]
[1314,"One Thousand Three Hundred Fourteen"]
[1315,"One Thousand Three Hundred Fifteen"]
[1316,"One Thousand Three Hundred Sixteen"]
[1317,"One Thousand Three Hundred Seventeen"]
[1318,"One Thousand Three Hundred Eighteen"]
[1319,"One Thousand Three Hundred Nineteen"]
[1320,"One Thousand Three Hundred Twenty "]
[1321,"One Thousand Three Hundred Twenty One"]
[1322,"One Thousand Three Hundred Twenty Two"]
[1323,"One Thousand Three Hundred Twenty Three"]
[1324,"One Thousand Three Hundred Twenty Four"]
[1325,"One Thousand Three Hundred Twenty Five"]
[1326,"One Thousand Three Hundred Twenty Six"]
[1327,"One Thousand Three Hundred Twenty Seven"]
[1328,{"$f":"spellnumber(A1330)","v":"One Thousand Three Hundred Twenty Eight"}]
[1329,"One Thousand Three Hundred Twenty Nine"]
[1330,"One Thousand Three Hundred Thirty "]
[1331,"One Thousand Three Hundred Thirty One"]
[1332,"One Thousand Three Hundred Thirty Two"]
[1333,"One Thousand Three Hundred Thirty Three"]
[1334,"One Thousand Three Hundred Thirty Four"]
[1335,"One Thousand Three Hundred Thirty Five"]
[1336,"One Thousand Three Hundred Thirty Six"]
[1337,"One Thousand Three Hundred Thirty Seven"]
[1338,"One Thousand Three Hundred Thirty Eight"]
[1339,"One Thousand Three Hundred Thirty Nine"]
[1340,"One Thousand Three Hundred Forty "]
[1341,"One Thousand Three Hundred Forty One"]
[1342,"One Thousand Three Hundred Forty Two"]
[1343,"One Thousand Three Hundred Forty Three"]
[1344,"One Thousand Three Hundred Forty Four"]
[1345,"One Thousand Three Hundred Forty Five"]
[1346,"One Thousand Three Hundred Forty Six"]
[1347,"One Thousand Three Hundred Forty Seven"]
[1348,"One Thousand Three Hundred Forty Eight"]
[1349,"One Thousand Three Hundred Forty Nine"]
[1350,"One Thousand Three Hundred Fifty "]
[1351,"One Thousand Three Hundred Fifty One"]
[1352,"One Thousand Three Hundred Fifty Two"]
[1353,"One Thousand Three Hundred Fifty Three"]
[1354,"One Thousand Three Hundred Fifty Four"]
[1355,"One Thousand Three Hundred Fifty Five"]
[1356,"One Thousand Three Hundred Fifty Six"]
[1357,"One Thousand Three Hundred Fifty Seven"]
[1358,"One Thousand Three Hundred Fifty Eight"]
[1359,"One Thousand Three Hundred Fifty Nine"]
[1360,"One Thousand Three Hundred Sixty "]
[1361,"One Thousand Three Hundred Sixty One"]
[1362,"One Thousand Three Hundred Sixty Two"]
[1363,"One Thousand Three Hundred Sixty Three"]
[1364,"One Thousand Three Hundred Sixty Four"]
[1365,"One Thousand Three Hundred Sixty Five"]
[1366,"One Thousand Three Hundred Sixty Six"]
[1367,"One Thousand Three Hundred Sixty Seven"]
[1368,"One Thousand Three Hundred Sixty Eight"]
[1369,"One Thousand Three Hundred Sixty Nine"]
[1370,"One Thousand Three Hundred Seventy "]
[1371,"One Thousand Three Hundred Seventy One"]
[1372,"One Thousand Three Hundred Seventy Two"]
[1373,"One Thousand Three Hundred Seventy Three"]
[1374,"One Thousand Three Hundred Seventy Four"]
[1375,"One Thousand Three Hundred Seventy Five"]
[1376,"One Thousand Three Hundred Seventy Six"]
[1377,"One Thousand Three Hundred Seventy Seven"]
[1378,"One Thousand Three Hundred Seventy Eight"]
[1379,"One Thousand Three Hundred Seventy Nine"]
[1380,"One Thousand Three Hundred Eighty "]
[1381,"One Thousand Three Hundred Eighty One"]
[1382,"One Thousand Three Hundred Eighty Two"]
[1383,"One Thousand Three Hundred Eighty Three"]
[1384,"One Thousand Three Hundred Eighty Four"]
[1385,"One Thousand Three Hundred Eighty Five"]
[1386,"One Thousand Three Hundred Eighty Six"]
[1387,"One Thousand Three Hundred Eighty Seven"]
[1388,"One Thousand Three Hundred Eighty Eight"]
[1389,"One Thousand Three Hundred Eighty Nine"]
[1390,"One Thousand Three Hundred Ninety "]
[1391,"One Thousand Three Hundred Ninety One"]
[1392,{"$f":"spellnumber(A1394)","v":"One Thousand Three Hundred Ninety Two"}]
[1393,"One Thousand Three Hundred Ninety Three"]
[1394,"One Thousand Three Hundred Ninety Four"]
[1395,"One Thousand Three Hundred Ninety Five"]
[1396,"One Thousand Three Hundred Ninety Six"]
[1397,"One Thousand Three Hundred Ninety Seven"]
[1398,"One Thousand Three Hundred Ninety Eight"]
[1399,"One Thousand Three Hundred Ninety Nine"]
[1400,"One Thousand Four Hundred "]
[1401,"One Thousand Four Hundred One"]
[1402,"One Thousand Four Hundred Two"]
[1403,"One Thousand Four Hundred Three"]
[1404,"One Thousand Four Hundred Four"]
[1405,"One Thousand Four Hundred Five"]
[1406,"One Thousand Four Hundred Six"]
[1407,"One Thousand Four Hundred Seven"]
[1408,"One Thousand Four Hundred Eight"]
[1409,"One Thousand Four Hundred Nine"]
[1410,"One Thousand Four Hundred Ten"]
[1411,"One Thousand Four Hundred Eleven"]
[1412,"One Thousand Four Hundred Twelve"]
[1413,"One Thousand Four Hundred Thirteen"]
[1414,"One Thousand Four Hundred Fourteen"]
[1415,"One Thousand Four Hundred Fifteen"]
[1416,"One Thousand Four Hundred Sixteen"]
[1417,"One Thousand Four Hundred Seventeen"]
[1418,"One Thousand Four Hundred Eighteen"]
[1419,"One Thousand Four Hundred Nineteen"]
[1420,"One Thousand Four Hundred Twenty "]
[1421,"One Thousand Four Hundred Twenty One"]
[1422,"One Thousand Four Hundred Twenty Two"]
[1423,"One Thousand Four Hundred Twenty Three"]
[1424,"One Thousand Four Hundred Twenty Four"]
[1425,"One Thousand Four Hundred Twenty Five"]
[1426,"One Thousand Four Hundred Twenty Six"]
[1427,"One Thousand Four Hundred Twenty Seven"]
[1428,"One Thousand Four Hundred Twenty Eight"]
[1429,"One Thousand Four Hundred Twenty Nine"]
[1430,"One Thousand Four Hundred Thirty "]
[1431,"One Thousand Four Hundred Thirty One"]
[1432,"One Thousand Four Hundred Thirty Two"]
[1433,"One Thousand Four Hundred Thirty Three"]
[1434,"One Thousand Four Hundred Thirty Four"]
[1435,"One Thousand Four Hundred Thirty Five"]
[1436,"One Thousand Four Hundred Thirty Six"]
[1437,"One Thousand Four Hundred Thirty Seven"]
[1438,"One Thousand Four Hundred Thirty Eight"]
[1439,"One Thousand Four Hundred Thirty Nine"]
[1440,"One Thousand Four Hundred Forty "]
[1441,"One Thousand Four Hundred Forty One"]
[1442,"One Thousand Four Hundred Forty Two"]
[1443,"One Thousand Four Hundred Forty Three"]
[1444,"One Thousand Four Hundred Forty Four"]
[1445,"One Thousand Four Hundred Forty Five"]
[1446,"One Thousand Four Hundred Forty Six"]
[1447,"One Thousand Four Hundred Forty Seven"]
[1448,"One Thousand Four Hundred Forty Eight"]
[1449,"One Thousand Four Hundred Forty Nine"]
[1450,"One Thousand Four Hundred Fifty "]
[1451,"One Thousand Four Hundred Fifty One"]
[1452,"One Thousand Four Hundred Fifty Two"]
[1453,"One Thousand Four Hundred Fifty Three"]
[1454,"One Thousand Four Hundred Fifty Four"]
[1455,"One Thousand Four Hundred Fifty Five"]
[1456,{"$f":"spellnumber(A1458)","v":"One Thousand Four Hundred Fifty Six"}]
[1457,"One Thousand Four Hundred Fifty Seven"]
[1458,"One Thousand Four Hundred Fifty Eight"]
[1459,"One Thousand Four Hundred Fifty Nine"]
[1460,"One Thousand Four Hundred Sixty "]
[1461,"One Thousand Four Hundred Sixty One"]
[1462,"One Thousand Four Hundred Sixty Two"]
[1463,"One Thousand Four Hundred Sixty Three"]
[1464,"One Thousand Four Hundred Sixty Four"]
[1465,"One Thousand Four Hundred Sixty Five"]
[1466,"One Thousand Four Hundred Sixty Six"]
[1467,"One Thousand Four Hundred Sixty Seven"]
[1468,"One Thousand Four Hundred Sixty Eight"]
[1469,"One Thousand Four Hundred Sixty Nine"]
[1470,"One Thousand Four Hundred Seventy "]
[1471,"One Thousand Four Hundred Seventy One"]
[1472,"One Thousand Four Hundred Seventy Two"]
[1473,"One Thousand Four Hundred Seventy Three"]
[1474,"One Thousand Four Hundred Seventy Four"]
[1475,"One Thousand Four Hundred Seventy Five"]
[1476,"One Thousand Four Hundred Seventy Six"]
[1477,"One Thousand Four Hundred Seventy Seven"]
[1478,"One Thousand Four Hundred Seventy Eight"]
[1479,"One Thousand Four Hundred Seventy Nine"]
[1480,"One Thousand Four Hundred Eighty "]
[1481,"One Thousand Four Hundred Eighty One"]
[1482,"One Thousand Four Hundred Eighty Two"]
[1483,"One Thousand Four Hundred Eighty Three"]
[1484,"One Thousand Four Hundred Eighty Four"]
[1485,"One Thousand Four Hundred Eighty Five"]
[1486,"One Thousand Four Hundred Eighty Six"]
[1487,"One Thousand Four Hundred Eighty Seven"]
[1488,"One Thousand Four Hundred Eighty Eight"]
[1489,"One Thousand Four Hundred Eighty Nine"]
[1490,"One Thousand Four Hundred Ninety "]
[1491,"One Thousand Four Hundred Ninety One"]
[1492,"One Thousand Four Hundred Ninety Two"]
[1493,"One Thousand Four Hundred Ninety Three"]
[1494,"One Thousand Four Hundred Ninety Four"]
[1495,"One Thousand Four Hundred Ninety Five"]
[1496,"One Thousand Four Hundred Ninety Six"]
[1497,"One Thousand Four Hundred Ninety Seven"]
[1498,"One Thousand Four Hundred Ninety Eight"]
[1499,"One Thousand Four Hundred Ninety Nine"]
[1500,"One Thousand Five Hundred "]
[1501,"One Thousand Five Hundred One"]
[1502,"One Thousand Five Hundred Two"]
[1503,"One Thousand Five Hundred Three"]
[1504,"One Thousand Five Hundred Four"]
[1505,"One Thousand Five Hundred Five"]
[1506,"One Thousand Five Hundred Six"]
[1507,"One Thousand Five Hundred Seven"]
[1508,"One Thousand Five Hundred Eight"]
[1509,"One Thousand Five Hundred Nine"]
[1510,"One Thousand Five Hundred Ten"]
[1511,"One Thousand Five Hundred Eleven"]
[1512,"One Thousand Five Hundred Twelve"]
[1513,"One Thousand Five Hundred Thirteen"]
[1514,"One Thousand Five Hundred Fourteen"]
[1515,"One Thousand Five Hundred Fifteen"]
[1516,"One Thousand Five Hundred Sixteen"]
[1517,"One Thousand Five Hundred Seventeen"]
[1518,"One Thousand Five Hundred Eighteen"]
[1519,"One Thousand Five Hundred Nineteen"]
[1520,{"$f":"spellnumber(A1522)","v":"One Thousand Five Hundred Twenty "}]
[1521,"One Thousand Five Hundred Twenty One"]
[1522,"One Thousand Five Hundred Twenty Two"]
[1523,"One Thousand Five Hundred Twenty Three"]
[1524,"One Thousand Five Hundred Twenty Four"]
[1525,"One Thousand Five Hundred Twenty Five"]
[1526,"One Thousand Five Hundred Twenty Six"]
[1527,"One Thousand Five Hundred Twenty Seven"]
[1528,"One Thousand Five Hundred Twenty Eight"]
[1529,"One Thousand Five Hundred Twenty Nine"]
[1530,"One Thousand Five Hundred Thirty "]
[1531,"One Thousand Five Hundred Thirty One"]
[1532,"One Thousand Five Hundred Thirty Two"]
[1533,"One Thousand Five Hundred Thirty Three"]
[1534,"One Thousand Five Hundred Thirty Four"]
[1535,"One Thousand Five Hundred Thirty Five"]
[1536,"One Thousand Five Hundred Thirty Six"]
[1537,"One Thousand Five Hundred Thirty Seven"]
[1538,"One Thousand Five Hundred Thirty Eight"]
[1539,"One Thousand Five Hundred Thirty Nine"]
[1540,"One Thousand Five Hundred Forty "]
[1541,"One Thousand Five Hundred Forty One"]
[1542,"One Thousand Five Hundred Forty Two"]
[1543,"One Thousand Five Hundred Forty Three"]
[1544,"One Thousand Five Hundred Forty Four"]
[1545,"One Thousand Five Hundred Forty Five"]
[1546,"One Thousand Five Hundred Forty Six"]
[1547,"One Thousand Five Hundred Forty Seven"]
[1548,"One Thousand Five Hundred Forty Eight"]
[1549,"One Thousand Five Hundred Forty Nine"]
[1550,"One Thousand Five Hundred Fifty "]
[1551,"One Thousand Five Hundred Fifty One"]
[1552,"One Thousand Five Hundred Fifty Two"]
[1553,"One Thousand Five Hundred Fifty Three"]
[1554,"One Thousand Five Hundred Fifty Four"]
[1555,"One Thousand Five Hundred Fifty Five"]
[1556,"One Thousand Five Hundred Fifty Six"]
[1557,"One Thousand Five Hundred Fifty Seven"]
[1558,"One Thousand Five Hundred Fifty Eight"]
[1559,"One Thousand Five Hundred Fifty Nine"]
[1560,"One Thousand Five Hundred Sixty "]
[1561,"One Thousand Five Hundred Sixty One"]
[1562,"One Thousand Five Hundred Sixty Two"]
[1563,"One Thousand Five Hundred Sixty Three"]
[1564,"One Thousand Five Hundred Sixty Four"]
[1565,"One Thousand Five Hundred Sixty Five"]
[1566,"One Thousand Five Hundred Sixty Six"]
[1567,"One Thousand Five Hundred Sixty Seven"]
[1568,"One Thousand Five Hundred Sixty Eight"]
[1569,"One Thousand Five Hundred Sixty Nine"]
[1570,"One Thousand Five Hundred Seventy "]
[1571,"One Thousand Five Hundred Seventy One"]
[1572,"One Thousand Five Hundred Seventy Two"]
[1573,"One Thousand Five Hundred Seventy Three"]
[1574,"One Thousand Five Hundred Seventy Four"]
[1575,"One Thousand Five Hundred Seventy Five"]
[1576,"One Thousand Five Hundred Seventy Six"]
[1577,"One Thousand Five Hundred Seventy Seven"]
[1578,"One Thousand Five Hundred Seventy Eight"]
[1579,"One Thousand Five Hundred Seventy Nine"]
[1580,"One Thousand Five Hundred Eighty "]
[1581,"One Thousand Five Hundred Eighty One"]
[1582,"One Thousand Five Hundred Eighty Two"]
[1583,"One Thousand Five Hundred Eighty Three"]
[1584,{"$f":"spellnumber(A1586)","v":"One Thousand Five Hundred Eighty Four"}]
[1585,"One Thousand Five Hundred Eighty Five"]
[1586,"One Thousand Five Hundred Eighty Six"]
[1587,"One Thousand Five Hundred Eighty Seven"]
[1588,"One Thousand Five Hundred Eighty Eight"]
[1589,"One Thousand Five Hundred Eighty Nine"]
[1590,"One Thousand Five Hundred Ninety "]
[1591,"One Thousand Five Hundred Ninety One"]
[1592,"One Thousand Five Hundred Ninety Two"]
[1593,"One Thousand Five Hundred Ninety Three"]
[1594,"One Thousand Five Hundred Ninety Four"]
[1595,"One Thousand Five Hundred Ninety Five"]
[1596,"One Thousand Five Hundred Ninety Six"]
[1597,"One Thousand Five Hundred Ninety Seven"]
[1598,"One Thousand Five Hundred Ninety Eight"]
[1599,"One Thousand Five Hundred Ninety Nine"]
[1600,"One Thousand Six Hundred "]
[1601,"One Thousand Six Hundred One"]
[1602,"One Thousand Six Hundred Two"]
[1603,"One Thousand Six Hundred Three"]
[1604,"One Thousand Six Hundred Four"]
[1605,"One Thousand Six Hundred Five"]
[1606,"One Thousand Six Hundred Six"]
[1607,"One Thousand Six Hundred Seven"]
[1608,"One Thousand Six Hundred Eight"]
[1609,"One Thousand Six Hundred Nine"]
[1610,"One Thousand Six Hundred Ten"]
[1611,"One Thousand Six Hundred Eleven"]
[1612,"One Thousand Six Hundred Twelve"]
[1613,"One Thousand Six Hundred Thirteen"]
[1614,"One Thousand Six Hundred Fourteen"]
[1615,"One Thousand Six Hundred Fifteen"]
[1616,"One Thousand Six Hundred Sixteen"]
[1617,"One Thousand Six Hundred Seventeen"]
[1618,"One Thousand Six Hundred Eighteen"]
[1619,"One Thousand Six Hundred Nineteen"]
[1620,"One Thousand Six Hundred Twenty "]
[1621,"One Thousand Six Hundred Twenty One"]
[1622,"One Thousand Six Hundred Twenty Two"]
[1623,"One Thousand Six Hundred Twenty Three"]
[1624,"One Thousand Six Hundred Twenty Four"]
[1625,"One Thousand Six Hundred Twenty Five"]
[1626,"One Thousand Six Hundred Twenty Six"]
[1627,"One Thousand Six Hundred Twenty Seven"]
[1628,"One Thousand Six Hundred Twenty Eight"]
[1629,"One Thousand Six Hundred Twenty Nine"]
[1630,"One Thousand Six Hundred Thirty "]
[1631,"One Thousand Six Hundred Thirty One"]
[1632,"One Thousand Six Hundred Thirty Two"]
[1633,"One Thousand Six Hundred Thirty Three"]
[1634,"One Thousand Six Hundred Thirty Four"]
[1635,"One Thousand Six Hundred Thirty Five"]
[1636,"One Thousand Six Hundred Thirty Six"]
[1637,"One Thousand Six Hundred Thirty Seven"]
[1638,"One Thousand Six Hundred Thirty Eight"]
[1639,"One Thousand Six Hundred Thirty Nine"]
[1640,"One Thousand Six Hundred Forty "]
[1641,"One Thousand Six Hundred Forty One"]
[1642,"One Thousand Six Hundred Forty Two"]
[1643,"One Thousand Six Hundred Forty Three"]
[1644,"One Thousand Six Hundred Forty Four"]
[1645,"One Thousand Six Hundred Forty Five"]
[1646,"One Thousand Six Hundred Forty Six"]
[1647,"One Thousand Six Hundred Forty Seven"]
[1648,{"$f":"spellnumber(A1650)","v":"One Thousand Six Hundred Forty Eight"}]
[1649,"One Thousand Six Hundred Forty Nine"]
[1650,"One Thousand Six Hundred Fifty "]
[1651,"One Thousand Six Hundred Fifty One"]
[1652,"One Thousand Six Hundred Fifty Two"]
[1653,"One Thousand Six Hundred Fifty Three"]
[1654,"One Thousand Six Hundred Fifty Four"]
[1655,"One Thousand Six Hundred Fifty Five"]
[1656,"One Thousand Six Hundred Fifty Six"]
[1657,"One Thousand Six Hundred Fifty Seven"]
[1658,"One Thousand Six Hundred Fifty Eight"]
[1659,"One Thousand Six Hundred Fifty Nine"]
[1660,"One Thousand Six Hundred Sixty "]
[1661,"One Thousand Six Hundred Sixty One"]
[1662,"One Thousand Six Hundred Sixty Two"]
[1663,"One Thousand Six Hundred Sixty Three"]
[1664,"One Thousand Six Hundred Sixty Four"]
[1665,"One Thousand Six Hundred Sixty Five"]
[1666,"One Thousand Six Hundred Sixty Six"]
[1667,"One Thousand Six Hundred Sixty Seven"]
[1668,"One Thousand Six Hundred Sixty Eight"]
[1669,"One Thousand Six Hundred Sixty Nine"]
[1670,"One Thousand Six Hundred Seventy "]
[1671,"One Thousand Six Hundred Seventy One"]
[1672,"One Thousand Six Hundred Seventy Two"]
[1673,"One Thousand Six Hundred Seventy Three"]
[1674,"One Thousand Six Hundred Seventy Four"]
[1675,"One Thousand Six Hundred Seventy Five"]
[1676,"One Thousand Six Hundred Seventy Six"]
[1677,"One Thousand Six Hundred Seventy Seven"]
[1678,"One Thousand Six Hundred Seventy Eight"]
[1679,"One Thousand Six Hundred Seventy Nine"]
[1680,"One Thousand Six Hundred Eighty "]
[1681,"One Thousand Six Hundred Eighty One"]
[1682,"One Thousand Six Hundred Eighty Two"]
[1683,"One Thousand Six Hundred Eighty Three"]
[1684,"One Thousand Six Hundred Eighty Four"]
[1685,"One Thousand Six Hundred Eighty Five"]
[1686,"One Thousand Six Hundred Eighty Six"]
[1687,"One Thousand Six Hundred Eighty Seven"]
[1688,"One Thousand Six Hundred Eighty Eight"]
[1689,"One Thousand Six Hundred Eighty Nine"]
[1690,"One Thousand Six Hundred Ninety "]
[1691,"One Thousand Six Hundred Ninety One"]
[1692,"One Thousand Six Hundred Ninety Two"]
[1693,"One Thousand Six Hundred Ninety Three"]
[1694,"One Thousand Six Hundred Ninety Four"]
[1695,"One Thousand Six Hundred Ninety Five"]
[1696,"One Thousand Six Hundred Ninety Six"]
[1697,"One Thousand Six Hundred Ninety Seven"]
[1698,"One Thousand Six Hundred Ninety Eight"]
[1699,"One Thousand Six Hundred Ninety Nine"]
[1700,"One Thousand Seven Hundred "]
[1701,"One Thousand Seven Hundred One"]
[1702,"One Thousand Seven Hundred Two"]
[1703,"One Thousand Seven Hundred Three"]
[1704,"One Thousand Seven Hundred Four"]
[1705,"One Thousand Seven Hundred Five"]
[1706,"One Thousand Seven Hundred Six"]
[1707,"One Thousand Seven Hundred Seven"]
[1708,"One Thousand Seven Hundred Eight"]
[1709,"One Thousand Seven Hundred Nine"]
[1710,"One Thousand Seven Hundred Ten"]
[1711,"One Thousand Seven Hundred Eleven"]
[1712,{"$f":"spellnumber(A1714)","v":"One Thousand Seven Hundred Twelve"}]
[1713,"One Thousand Seven Hundred Thirteen"]
[1714,"One Thousand Seven Hundred Fourteen"]
[1715,"One Thousand Seven Hundred Fifteen"]
[1716,"One Thousand Seven Hundred Sixteen"]
[1717,"One Thousand Seven Hundred Seventeen"]
[1718,"One Thousand Seven Hundred Eighteen"]
[1719,"One Thousand Seven Hundred Nineteen"]
[1720,"One Thousand Seven Hundred Twenty "]
[1721,"One Thousand Seven Hundred Twenty One"]
[1722,"One Thousand Seven Hundred Twenty Two"]
[1723,"One Thousand Seven Hundred Twenty Three"]
[1724,"One Thousand Seven Hundred Twenty Four"]
[1725,"One Thousand Seven Hundred Twenty Five"]
[1726,"One Thousand Seven Hundred Twenty Six"]
[1727,"One Thousand Seven Hundred Twenty Seven"]
[1728,"One Thousand Seven Hundred Twenty Eight"]
[1729,"One Thousand Seven Hundred Twenty Nine"]
[1730,"One Thousand Seven Hundred Thirty "]
[1731,"One Thousand Seven Hundred Thirty One"]
[1732,"One Thousand Seven Hundred Thirty Two"]
[1733,"One Thousand Seven Hundred Thirty Three"]
[1734,"One Thousand Seven Hundred Thirty Four"]
[1735,"One Thousand Seven Hundred Thirty Five"]
[1736,"One Thousand Seven Hundred Thirty Six"]
[1737,"One Thousand Seven Hundred Thirty Seven"]
[1738,"One Thousand Seven Hundred Thirty Eight"]
[1739,"One Thousand Seven Hundred Thirty Nine"]
[1740,"One Thousand Seven Hundred Forty "]
[1741,"One Thousand Seven Hundred Forty One"]
[1742,"One Thousand Seven Hundred Forty Two"]
[1743,"One Thousand Seven Hundred Forty Three"]
[1744,"One Thousand Seven Hundred Forty Four"]
[1745,"One Thousand Seven Hundred Forty Five"]
[1746,"One Thousand Seven Hundred Forty Six"]
[1747,"One Thousand Seven Hundred Forty Seven"]
[1748,"One Thousand Seven Hundred Forty Eight"]
[1749,"One Thousand Seven Hundred Forty Nine"]
[1750,"One Thousand Seven Hundred Fifty "]
[1751,"One Thousand Seven Hundred Fifty One"]
[1752,"One Thousand Seven Hundred Fifty Two"]
[1753,"One Thousand Seven Hundred Fifty Three"]
[1754,"One Thousand Seven Hundred Fifty Four"]
[1755,"One Thousand Seven Hundred Fifty Five"]
[1756,"One Thousand Seven Hundred Fifty Six"]
[1757,"One Thousand Seven Hundred Fifty Seven"]
[1758,"One Thousand Seven Hundred Fifty Eight"]
[1759,"One Thousand Seven Hundred Fifty Nine"]
[1760,"One Thousand Seven Hundred Sixty "]
[1761,"One Thousand Seven Hundred Sixty One"]
[1762,"One Thousand Seven Hundred Sixty Two"]
[1763,"One Thousand Seven Hundred Sixty Three"]
[1764,"One Thousand Seven Hundred Sixty Four"]
[1765,"One Thousand Seven Hundred Sixty Five"]
[1766,"One Thousand Seven Hundred Sixty Six"]
[1767,"One Thousand Seven Hundred Sixty Seven"]
[1768,"One Thousand Seven Hundred Sixty Eight"]
[1769,"One Thousand Seven Hundred Sixty Nine"]
[1770,"One Thousand Seven Hundred Seventy "]
[1771,"One Thousand Seven Hundred Seventy One"]
[1772,"One Thousand Seven Hundred Seventy Two"]
[1773,"One Thousand Seven Hundred Seventy Three"]
[1774,"One Thousand Seven Hundred Seventy Four"]
[1775,"One Thousand Seven Hundred Seventy Five"]
[1776,{"$f":"spellnumber(A1778)","v":"One Thousand Seven Hundred Seventy Six"}]
[1777,"One Thousand Seven Hundred Seventy Seven"]
[1778,"One Thousand Seven Hundred Seventy Eight"]
[1779,"One Thousand Seven Hundred Seventy Nine"]
[1780,"One Thousand Seven Hundred Eighty "]
[1781,"One Thousand Seven Hundred Eighty One"]
[1782,"One Thousand Seven Hundred Eighty Two"]
[1783,"One Thousand Seven Hundred Eighty Three"]
[1784,"One Thousand Seven Hundred Eighty Four"]
[1785,"One Thousand Seven Hundred Eighty Five"]
[1786,"One Thousand Seven Hundred Eighty Six"]
[1787,"One Thousand Seven Hundred Eighty Seven"]
[1788,"One Thousand Seven Hundred Eighty Eight"]
[1789,"One Thousand Seven Hundred Eighty Nine"]
[1790,"One Thousand Seven Hundred Ninety "]
[1791,"One Thousand Seven Hundred Ninety One"]
[1792,"One Thousand Seven Hundred Ninety Two"]
[1793,"One Thousand Seven Hundred Ninety Three"]
[1794,"One Thousand Seven Hundred Ninety Four"]
[1795,"One Thousand Seven Hundred Ninety Five"]
[1796,"One Thousand Seven Hundred Ninety Six"]
[1797,"One Thousand Seven Hundred Ninety Seven"]
[1798,"One Thousand Seven Hundred Ninety Eight"]
[1799,"One Thousand Seven Hundred Ninety Nine"]
[1800,"One Thousand Eight Hundred "]
[1801,"One Thousand Eight Hundred One"]
[1802,"One Thousand Eight Hundred Two"]
[1803,"One Thousand Eight Hundred Three"]
[1804,"One Thousand Eight Hundred Four"]
[1805,"One Thousand Eight Hundred Five"]
[1806,"One Thousand Eight Hundred Six"]
[1807,"One Thousand Eight Hundred Seven"]
[1808,"One Thousand Eight Hundred Eight"]
[1809,"One Thousand Eight Hundred Nine"]
[1810,"One Thousand Eight Hundred Ten"]
[1811,"One Thousand Eight Hundred Eleven"]
[1812,"One Thousand Eight Hundred Twelve"]
[1813,"One Thousand Eight Hundred Thirteen"]
[1814,"One Thousand Eight Hundred Fourteen"]
[1815,"One Thousand Eight Hundred Fifteen"]
[1816,"One Thousand Eight Hundred Sixteen"]
[1817,"One Thousand Eight Hundred Seventeen"]
[1818,"One Thousand Eight Hundred Eighteen"]
[1819,"One Thousand Eight Hundred Nineteen"]
[1820,"One Thousand Eight Hundred Twenty "]
[1821,"One Thousand Eight Hundred Twenty One"]
[1822,"One Thousand Eight Hundred Twenty Two"]
[1823,"One Thousand Eight Hundred Twenty Three"]
[1824,"One Thousand Eight Hundred Twenty Four"]
[1825,"One Thousand Eight Hundred Twenty Five"]
[1826,"One Thousand Eight Hundred Twenty Six"]
[1827,"One Thousand Eight Hundred Twenty Seven"]
[1828,"One Thousand Eight Hundred Twenty Eight"]
[1829,"One Thousand Eight Hundred Twenty Nine"]
[1830,"One Thousand Eight Hundred Thirty "]
[1831,"One Thousand Eight Hundred Thirty One"]
[1832,"One Thousand Eight Hundred Thirty Two"]
[1833,"One Thousand Eight Hundred Thirty Three"]
[1834,"One Thousand Eight Hundred Thirty Four"]
[1835,"One Thousand Eight Hundred Thirty Five"]
[1836,"One Thousand Eight Hundred Thirty Six"]
[1837,"One Thousand Eight Hundred Thirty Seven"]
[1838,"One Thousand Eight Hundred Thirty Eight"]
[1839,"One Thousand Eight Hundred Thirty Nine"]
[1840,{"$f":"spellnumber(A1842)","v":"One Thousand Eight Hundred Forty "}]
[1841,"One Thousand Eight Hundred Forty One"]
[1842,"One Thousand Eight Hundred Forty Two"]
[1843,"One Thousand Eight Hundred Forty Three"]
[1844,"One Thousand Eight Hundred Forty Four"]
[1845,"One Thousand Eight Hundred Forty Five"]
[1846,"One Thousand Eight Hundred Forty Six"]
[1847,"One Thousand Eight Hundred Forty Seven"]
[1848,"One Thousand Eight Hundred Forty Eight"]
[1849,"One Thousand Eight Hundred Forty Nine"]
[1850,"One Thousand Eight Hundred Fifty "]
[1851,"One Thousand Eight Hundred Fifty One"]
[1852,"One Thousand Eight Hundred Fifty Two"]
[1853,"One Thousand Eight Hundred Fifty Three"]
[1854,"One Thousand Eight Hundred Fifty Four"]
[1855,"One Thousand Eight Hundred Fifty Five"]
[1856,"One Thousand Eight Hundred Fifty Six"]
[1857,"One Thousand Eight Hundred Fifty Seven"]
[1858,"One Thousand Eight Hundred Fifty Eight"]
[1859,"One Thousand Eight Hundred Fifty Nine"]
[1860,"One Thousand Eight Hundred Sixty "]
[1861,"One Thousand Eight Hundred Sixty One"]
[1862,"One Thousand Eight Hundred Sixty Two"]
[1863,"One Thousand Eight Hundred Sixty Three"]
[1864,"One Thousand Eight Hundred Sixty Four"]
[1865,"One Thousand Eight Hundred Sixty Five"]
[1866,"One Thousand Eight Hundred Sixty Six"]
[1867,"One Thousand Eight Hundred Sixty Seven"]
[1868,"One Thousand Eight Hundred Sixty Eight"]
[1869,"One Thousand Eight Hundred Sixty Nine"]
[1870,"One Thousand Eight Hundred Seventy "]
[1871,"One Thousand Eight Hundred Seventy One"]
[1872,"One Thousand Eight Hundred Seventy Two"]
[1873,"One Thousand Eight Hundred Seventy Three"]
[1874,"One Thousand Eight Hundred Seventy Four"]
[1875,"One Thousand Eight Hundred Seventy Five"]
[1876,"One Thousand Eight Hundred Seventy Six"]
[1877,"One Thousand Eight Hundred Seventy Seven"]
[1878,"One Thousand Eight Hundred Seventy Eight"]
[1879,"One Thousand Eight Hundred Seventy Nine"]
[1880,"One Thousand Eight Hundred Eighty "]
[1881,"One Thousand Eight Hundred Eighty One"]
[1882,"One Thousand Eight Hundred Eighty Two"]
[1883,"One Thousand Eight Hundred Eighty Three"]
[1884,"One Thousand Eight Hundred Eighty Four"]
[1885,"One Thousand Eight Hundred Eighty Five"]
[1886,"One Thousand Eight Hundred Eighty Six"]
[1887,"One Thousand Eight Hundred Eighty Seven"]
[1888,"One Thousand Eight Hundred Eighty Eight"]
[1889,"One Thousand Eight Hundred Eighty Nine"]
[1890,"One Thousand Eight Hundred Ninety "]
[1891,"One Thousand Eight Hundred Ninety One"]
[1892,"One Thousand Eight Hundred Ninety Two"]
[1893,"One Thousand Eight Hundred Ninety Three"]
[1894,"One Thousand Eight Hundred Ninety Four"]
[1895,"One Thousand Eight Hundred Ninety Five"]
[1896,"One Thousand Eight Hundred Ninety Six"]
[1897,"One Thousand Eight Hundred Ninety Seven"]
[1898,"One Thousand Eight Hundred Ninety Eight"]
[1899,"One Thousand Eight Hundred Ninety Nine"]
[1900,"One Thousand Nine Hundred "]
[1901,"One Thousand Nine Hundred One"]
[1902,"One Thousand Nine Hundred Two"]
[1903,"One Thousand Nine Hundred Three"]
[1904,{"$f":"spellnumber(A1906)","v":"One Thousand Nine Hundred Four"}]
[1905,"One Thousand Nine Hundred Five"]
[1906,"One Thousand Nine Hundred Six"]
[1907,"One Thousand Nine Hundred Seven"]
[1908,"One Thousand Nine Hundred Eight"]
[1909,"One Thousand Nine Hundred Nine"]
[1910,"One Thousand Nine Hundred Ten"]
[1911,"One Thousand Nine Hundred Eleven"]
[1912,"One Thousand Nine Hundred Twelve"]
[1913,"One Thousand Nine Hundred Thirteen"]
[1914,"One Thousand Nine Hundred Fourteen"]
[1915,"One Thousand Nine Hundred Fifteen"]
[1916,"One Thousand Nine Hundred Sixteen"]
[1917,"One Thousand Nine Hundred Seventeen"]
[1918,"One Thousand Nine Hundred Eighteen"]
[1919,"One Thousand Nine Hundred Nineteen"]
[1920,"One Thousand Nine Hundred Twenty "]
[1921,"One Thousand Nine Hundred Twenty One"]
[1922,"One Thousand Nine Hundred Twenty Two"]
[1923,"One Thousand Nine Hundred Twenty Three"]
[1924,"One Thousand Nine Hundred Twenty Four"]
[1925,"One Thousand Nine Hundred Twenty Five"]
[1926,"One Thousand Nine Hundred Twenty Six"]
[1927,"One Thousand Nine Hundred Twenty Seven"]
[1928,"One Thousand Nine Hundred Twenty Eight"]
[1929,"One Thousand Nine Hundred Twenty Nine"]
[1930,"One Thousand Nine Hundred Thirty "]
[1931,"One Thousand Nine Hundred Thirty One"]
[1932,"One Thousand Nine Hundred Thirty Two"]
[1933,"One Thousand Nine Hundred Thirty Three"]
[1934,"One Thousand Nine Hundred Thirty Four"]
[1935,"One Thousand Nine Hundred Thirty Five"]
[1936,"One Thousand Nine Hundred Thirty Six"]
[1937,"One Thousand Nine Hundred Thirty Seven"]
[1938,"One Thousand Nine Hundred Thirty Eight"]
[1939,"One Thousand Nine Hundred Thirty Nine"]
[1940,"One Thousand Nine Hundred Forty "]
[1941,"One Thousand Nine Hundred Forty One"]
[1942,"One Thousand Nine Hundred Forty Two"]
[1943,"One Thousand Nine Hundred Forty Three"]
[1944,"One Thousand Nine Hundred Forty Four"]
[1945,"One Thousand Nine Hundred Forty Five"]
[1946,"One Thousand Nine Hundred Forty Six"]
[1947,"One Thousand Nine Hundred Forty Seven"]
[1948,"One Thousand Nine Hundred Forty Eight"]
[1949,"One Thousand Nine Hundred Forty Nine"]
[1950,"One Thousand Nine Hundred Fifty "]
[1951,"One Thousand Nine Hundred Fifty One"]
[1952,"One Thousand Nine Hundred Fifty Two"]
[1953,"One Thousand Nine Hundred Fifty Three"]
[1954,"One Thousand Nine Hundred Fifty Four"]
[1955,"One Thousand Nine Hundred Fifty Five"]
[1956,"One Thousand Nine Hundred Fifty Six"]
[1957,"One Thousand Nine Hundred Fifty Seven"]
[1958,"One Thousand Nine Hundred Fifty Eight"]
[1959,"One Thousand Nine Hundred Fifty Nine"]
[1960,"One Thousand Nine Hundred Sixty "]
[1961,"One Thousand Nine Hundred Sixty One"]
[1962,"One Thousand Nine Hundred Sixty Two"]
[1963,"One Thousand Nine Hundred Sixty Three"]
[1964,"One Thousand Nine Hundred Sixty Four"]
[1965,"One Thousand Nine Hundred Sixty Five"]
[1966,"One Thousand Nine Hundred Sixty Six"]
[1967,"One Thousand Nine Hundred Sixty Seven"]
[1968,{"$f":"spellnumber(A1970)","v":"One Thousand Nine Hundred Sixty Eight"}]
[1969,"One Thousand Nine Hundred Sixty Nine"]
[1970,"One Thousand Nine Hundred Seventy "]
[1971,"One Thousand Nine Hundred Seventy One"]
[1972,"One Thousand Nine Hundred Seventy Two"]
[1973,"One Thousand Nine Hundred Seventy Three"]
[1974,"One Thousand Nine Hundred Seventy Four"]
[1975,"One Thousand Nine Hundred Seventy Five"]
[1976,"One Thousand Nine Hundred Seventy Six"]
[1977,"One Thousand Nine Hundred Seventy Seven"]
[1978,"One Thousand Nine Hundred Seventy Eight"]
[1979,"One Thousand Nine Hundred Seventy Nine"]
[1980,"One Thousand Nine Hundred Eighty "]
[1981,"One Thousand Nine Hundred Eighty One"]
[1982,"One Thousand Nine Hundred Eighty Two"]
[1983,"One Thousand Nine Hundred Eighty Three"]
[1984,"One Thousand Nine Hundred Eighty Four"]
[1985,"One Thousand Nine Hundred Eighty Five"]
[1986,"One Thousand Nine Hundred Eighty Six"]
[1987,"One Thousand Nine Hundred Eighty Seven"]
[1988,"One Thousand Nine Hundred Eighty Eight"]
[1989,"One Thousand Nine Hundred Eighty Nine"]
[1990,"One Thousand Nine Hundred Ninety "]
[1991,"One Thousand Nine Hundred Ninety One"]
[1992,"One Thousand Nine Hundred Ninety Two"]
[1993,"One Thousand Nine Hundred Ninety Three"]
[1994,"One Thousand Nine Hundred Ninety Four"]
[1995,"One Thousand Nine Hundred Ninety Five"]
[1996,"One Thousand Nine Hundred Ninety Six"]
[1997,"One Thousand Nine Hundred Ninety Seven"]
[1998,"One Thousand Nine Hundred Ninety Eight"]
[1999,"One Thousand Nine Hundred Ninety Nine"]
[2000,"Two Thousand "]
[2001,"Two Thousand One"]
[2002,"Two Thousand Two"]
[2003,"Two Thousand Three"]
[2004,"Two Thousand Four"]
[2005,"Two Thousand Five"]
[2006,"Two Thousand Six"]
[2007,"Two Thousand Seven"]
[2008,"Two Thousand Eight"]
[2009,"Two Thousand Nine"]
[2010,"Two Thousand Ten"]
[2011,"Two Thousand Eleven"]
[2012,"Two Thousand Twelve"]
[2013,"Two Thousand Thirteen"]
[2014,"Two Thousand Fourteen"]
[2015,"Two Thousand Fifteen"]
[2016,"Two Thousand Sixteen"]
[2017,"Two Thousand Seventeen"]
[2018,"Two Thousand Eighteen"]
[2019,"Two Thousand Nineteen"]
[2020,"Two Thousand Twenty "]
[2021,"Two Thousand Twenty One"]
[2022,"Two Thousand Twenty Two"]
[2023,"Two Thousand Twenty Three"]
[2024,"Two Thousand Twenty Four"]
[2025,"Two Thousand Twenty Five"]
[2026,"Two Thousand Twenty Six"]
[2027,"Two Thousand Twenty Seven"]
[2028,"Two Thousand Twenty Eight"]
[2029,"Two Thousand Twenty Nine"]
[2030,"Two Thousand Thirty "]
[2031,"Two Thousand Thirty One"]
[2032,{"$f":"spellnumber(A2034)","v":"Two Thousand Thirty Two"}]
[2033,"Two Thousand Thirty Three"]
[2034,"Two Thousand Thirty Four"]
[2035,"Two Thousand Thirty Five"]
[2036,"Two Thousand Thirty Six"]
[2037,"Two Thousand Thirty Seven"]
[2038,"Two Thousand Thirty Eight"]
[2039,"Two Thousand Thirty Nine"]
[2040,"Two Thousand Forty "]
[2041,"Two Thousand Forty One"]
[2042,"Two Thousand Forty Two"]
[2043,"Two Thousand Forty Three"]
[2044,"Two Thousand Forty Four"]
[2045,"Two Thousand Forty Five"]
[2046,"Two Thousand Forty Six"]
[2047,"Two Thousand Forty Seven"]
[2048,"Two Thousand Forty Eight"]
[2049,"Two Thousand Forty Nine"]
[2050,"Two Thousand Fifty "]
[2051,"Two Thousand Fifty One"]
[2052,"Two Thousand Fifty Two"]
[2053,"Two Thousand Fifty Three"]
[2054,"Two Thousand Fifty Four"]
[2055,"Two Thousand Fifty Five"]
[2056,"Two Thousand Fifty Six"]
[2057,"Two Thousand Fifty Seven"]
[2058,"Two Thousand Fifty Eight"]
[2059,"Two Thousand Fifty Nine"]
[2060,"Two Thousand Sixty "]
[2061,"Two Thousand Sixty One"]
[2062,"Two Thousand Sixty Two"]
[2063,"Two Thousand Sixty Three"]
[2064,"Two Thousand Sixty Four"]
[2065,"Two Thousand Sixty Five"]
[2066,"Two Thousand Sixty Six"]
[2067,"Two Thousand Sixty Seven"]
[2068,"Two Thousand Sixty Eight"]
[2069,"Two Thousand Sixty Nine"]
[2070,"Two Thousand Seventy "]
[2071,"Two Thousand Seventy One"]
[2072,"Two Thousand Seventy Two"]
[2073,"Two Thousand Seventy Three"]
[2074,"Two Thousand Seventy Four"]
[2075,"Two Thousand Seventy Five"]
[2076,"Two Thousand Seventy Six"]
[2077,"Two Thousand Seventy Seven"]
[2078,"Two Thousand Seventy Eight"]
[2079,"Two Thousand Seventy Nine"]
[2080,"Two Thousand Eighty "]
[2081,"Two Thousand Eighty One"]
[2082,"Two Thousand Eighty Two"]
[2083,"Two Thousand Eighty Three"]
[2084,"Two Thousand Eighty Four"]
[2085,"Two Thousand Eighty Five"]
[2086,"Two Thousand Eighty Six"]
[2087,"Two Thousand Eighty Seven"]
[2088,"Two Thousand Eighty Eight"]
[2089,"Two Thousand Eighty Nine"]
[2090,"Two Thousand Ninety "]
[2091,"Two Thousand Ninety One"]
[2092,"Two Thousand Ninety Two"]
[2093,"Two Thousand Ninety Three"]
[2094,"Two Thousand Ninety Four"]
[2095,"Two Thousand Ninety Five"]
[2096,{"$f":"spellnumber(A2098)","v":"Two Thousand Ninety Six"}]
[2097,"Two Thousand Ninety Seven"]
[2098,"Two Thousand Ninety Eight"]
[2099,"Two Thousand Ninety Nine"]
[2100,"Two Thousand One Hundred "]
[2101,"Two Thousand One Hundred One"]
[2102,"Two Thousand One Hundred Two"]
[2103,"Two Thousand One Hundred Three"]
[2104,"Two Thousand One Hundred Four"]
[2105,"Two Thousand One Hundred Five"]
[2106,"Two Thousand One Hundred Six"]
[2107,"Two Thousand One Hundred Seven"]
[2108,"Two Thousand One Hundred Eight"]
[2109,"Two Thousand One Hundred Nine"]
[2110,"Two Thousand One Hundred Ten"]
[2111,"Two Thousand One Hundred Eleven"]
[2112,"Two Thousand One Hundred Twelve"]
[2113,"Two Thousand One Hundred Thirteen"]
[2114,"Two Thousand One Hundred Fourteen"]
[2115,"Two Thousand One Hundred Fifteen"]
[2116,"Two Thousand One Hundred Sixteen"]
[2117,"Two Thousand One Hundred Seventeen"]
[2118,"Two Thousand One Hundred Eighteen"]
[2119,"Two Thousand One Hundred Nineteen"]
[2120,"Two Thousand One Hundred Twenty "]
[2121,"Two Thousand One Hundred Twenty One"]
[2122,"Two Thousand One Hundred Twenty Two"]
[2123,"Two Thousand One Hundred Twenty Three"]
[2124,"Two Thousand One Hundred Twenty Four"]
[2125,"Two Thousand One Hundred Twenty Five"]
[2126,"Two Thousand One Hundred Twenty Six"]
[2127,"Two Thousand One Hundred Twenty Seven"]
[2128,"Two Thousand One Hundred Twenty Eight"]
[2129,"Two Thousand One Hundred Twenty Nine"]
[2130,"Two Thousand One Hundred Thirty "]
[2131,"Two Thousand One Hundred Thirty One"]
[2132,"Two Thousand One Hundred Thirty Two"]
[2133,"Two Thousand One Hundred Thirty Three"]
[2134,"Two Thousand One Hundred Thirty Four"]
[2135,"Two Thousand One Hundred Thirty Five"]
[2136,"Two Thousand One Hundred Thirty Six"]
[2137,"Two Thousand One Hundred Thirty Seven"]
[2138,"Two Thousand One Hundred Thirty Eight"]
[2139,"Two Thousand One Hundred Thirty Nine"]
[2140,"Two Thousand One Hundred Forty "]
[2141,"Two Thousand One Hundred Forty One"]
[2142,"Two Thousand One Hundred Forty Two"]
[2143,"Two Thousand One Hundred Forty Three"]
[2144,"Two Thousand One Hundred Forty Four"]
[2145,"Two Thousand One Hundred Forty Five"]
[2146,"Two Thousand One Hundred Forty Six"]
[2147,"Two Thousand One Hundred Forty Seven"]
[2148,"Two Thousand One Hundred Forty Eight"]
[2149,"Two Thousand One Hundred Forty Nine"]
[2150,"Two Thousand One Hundred Fifty "]
[2151,"Two Thousand One Hundred Fifty One"]
[2152,"Two Thousand One Hundred Fifty Two"]
[2153,"Two Thousand One Hundred Fifty Three"]
[2154,"Two Thousand One Hundred Fifty Four"]
[2155,"Two Thousand One Hundred Fifty Five"]
[2156,"Two Thousand One Hundred Fifty Six"]
[2157,"Two Thousand One Hundred Fifty Seven"]
[2158,"Two Thousand One Hundred Fifty Eight"]
[2159,"Two Thousand One Hundred Fifty Nine"]
[2160,{"$f":"spellnumber(A2162)","v":"Two Thousand One Hundred Sixty "}]
[2161,"Two Thousand One Hundred Sixty One"]
[2162,"Two Thousand One Hundred Sixty Two"]
[2163,"Two Thousand One Hundred Sixty Three"]
[2164,"Two Thousand One Hundred Sixty Four"]
[2165,"Two Thousand One Hundred Sixty Five"]
[2166,"Two Thousand One Hundred Sixty Six"]
[2167,"Two Thousand One Hundred Sixty Seven"]
[2168,"Two Thousand One Hundred Sixty Eight"]
[2169,"Two Thousand One Hundred Sixty Nine"]
[2170,"Two Thousand One Hundred Seventy "]
[2171,"Two Thousand One Hundred Seventy One"]
[2172,"Two Thousand One Hundred Seventy Two"]
[2173,"Two Thousand One Hundred Seventy Three"]
[2174,"Two Thousand One Hundred Seventy Four"]
[2175,"Two Thousand One Hundred Seventy Five"]
[2176,"Two Thousand One Hundred Seventy Six"]
[2177,"Two Thousand One Hundred Seventy Seven"]
[2178,"Two Thousand One Hundred Seventy Eight"]
[2179,"Two Thousand One Hundred Seventy Nine"]
[2180,"Two Thousand One Hundred Eighty "]
[2181,"Two Thousand One Hundred Eighty One"]
[2182,"Two Thousand One Hundred Eighty Two"]
[2183,"Two Thousand One Hundred Eighty Three"]
[2184,"Two Thousand One Hundred Eighty Four"]
[2185,"Two Thousand One Hundred Eighty Five"]
[2186,"Two Thousand One Hundred Eighty Six"]
[2187,"Two Thousand One Hundred Eighty Seven"]
[2188,"Two Thousand One Hundred Eighty Eight"]
[2189,"Two Thousand One Hundred Eighty Nine"]
[2190,"Two Thousand One Hundred Ninety "]
[2191,"Two Thousand One Hundred Ninety One"]
[2192,"Two Thousand One Hundred Ninety Two"]
[2193,"Two Thousand One Hundred Ninety Three"]
[2194,"Two Thousand One Hundred Ninety Four"]
[2195,"Two Thousand One Hundred Ninety Five"]
[2196,"Two Thousand One Hundred Ninety Six"]
[2197,"Two Thousand One Hundred Ninety Seven"]
[2198,"Two Thousand One Hundred Ninety Eight"]
[2199,"Two Thousand One Hundred Ninety Nine"]
[2200,"Two Thousand Two Hundred "]
[2201,"Two Thousand Two Hundred One"]
[2202,"Two Thousand Two Hundred Two"]
[2203,"Two Thousand Two Hundred Three"]
[2204,"Two Thousand Two Hundred Four"]
[2205,"Two Thousand Two Hundred Five"]
[2206,"Two Thousand Two Hundred Six"]
[2207,"Two Thousand Two Hundred Seven"]
[2208,"Two Thousand Two Hundred Eight"]
[2209,"Two Thousand Two Hundred Nine"]
[2210,"Two Thousand Two Hundred Ten"]
[2211,"Two Thousand Two Hundred Eleven"]
[2212,"Two Thousand Two Hundred Twelve"]
[2213,"Two Thousand Two Hundred Thirteen"]
[2214,"Two Thousand Two Hundred Fourteen"]
[2215,"Two Thousand Two Hundred Fifteen"]
[2216,"Two Thousand Two Hundred Sixteen"]
[2217,"Two Thousand Two Hundred Seventeen"]
[2218,"Two Thousand Two Hundred Eighteen"]
[2219,"Two Thousand Two Hundred Nineteen"]
[2220,"Two Thousand Two Hundred Twenty "]
[2221,"Two Thousand Two Hundred Twenty One"]
[2222,"Two Thousand Two Hundred Twenty Two"]
[2223,"Two Thousand Two Hundred Twenty Three"]
[2224,{"$f":"spellnumber(A2226)","v":"Two Thousand Two Hundred Twenty Four"}]
[2225,"Two Thousand Two Hundred Twenty Five"]
[2226,"Two Thousand Two Hundred Twenty Six"]
[2227,"Two Thousand Two Hundred Twenty Seven"]
[2228,"Two Thousand Two Hundred Twenty Eight"]
[2229,"Two Thousand Two Hundred Twenty Nine"]
[2230,"Two Thousand Two Hundred Thirty "]
[2231,"Two Thousand Two Hundred Thirty One"]
[2232,"Two Thousand Two Hundred Thirty Two"]
[2233,"Two Thousand Two Hundred Thirty Three"]
[2234,"Two Thousand Two Hundred Thirty Four"]
[2235,"Two Thousand Two Hundred Thirty Five"]
[2236,"Two Thousand Two Hundred Thirty Six"]
[2237,"Two Thousand Two Hundred Thirty Seven"]
[2238,"Two Thousand Two Hundred Thirty Eight"]
[2239,"Two Thousand Two Hundred Thirty Nine"]
[2240,"Two Thousand Two Hundred Forty "]
[2241,"Two Thousand Two Hundred Forty One"]
[2242,"Two Thousand Two Hundred Forty Two"]
[2243,"Two Thousand Two Hundred Forty Three"]
[2244,"Two Thousand Two Hundred Forty Four"]
[2245,"Two Thousand Two Hundred Forty Five"]
[2246,"Two Thousand Two Hundred Forty Six"]
[2247,"Two Thousand Two Hundred Forty Seven"]
[2248,"Two Thousand Two Hundred Forty Eight"]
[2249,"Two Thousand Two Hundred Forty Nine"]
[2250,"Two Thousand Two Hundred Fifty "]
[2251,"Two Thousand Two Hundred Fifty One"]
[2252,"Two Thousand Two Hundred Fifty Two"]
[2253,"Two Thousand Two Hundred Fifty Three"]
[2254,"Two Thousand Two Hundred Fifty Four"]
[2255,"Two Thousand Two Hundred Fifty Five"]
[2256,"Two Thousand Two Hundred Fifty Six"]
[2257,"Two Thousand Two Hundred Fifty Seven"]
[2258,"Two Thousand Two Hundred Fifty Eight"]
[2259,"Two Thousand Two Hundred Fifty Nine"]
[2260,"Two Thousand Two Hundred Sixty "]
[2261,"Two Thousand Two Hundred Sixty One"]
[2262,"Two Thousand Two Hundred Sixty Two"]
[2263,"Two Thousand Two Hundred Sixty Three"]
[2264,"Two Thousand Two Hundred Sixty Four"]
[2265,"Two Thousand Two Hundred Sixty Five"]
[2266,"Two Thousand Two Hundred Sixty Six"]
[2267,"Two Thousand Two Hundred Sixty Seven"]
[2268,"Two Thousand Two Hundred Sixty Eight"]
[2269,"Two Thousand Two Hundred Sixty Nine"]
[2270,"Two Thousand Two Hundred Seventy "]
[2271,"Two Thousand Two Hundred Seventy One"]
[2272,"Two Thousand Two Hundred Seventy Two"]
[2273,"Two Thousand Two Hundred Seventy Three"]
[2274,"Two Thousand Two Hundred Seventy Four"]
[2275,"Two Thousand Two Hundred Seventy Five"]
[2276,"Two Thousand Two Hundred Seventy Six"]
[2277,"Two Thousand Two Hundred Seventy Seven"]
[2278,"Two Thousand Two Hundred Seventy Eight"]
[2279,"Two Thousand Two Hundred Seventy Nine"]
[2280,"Two Thousand Two Hundred Eighty "]
[2281,"Two Thousand Two Hundred Eighty One"]
[2282,"Two Thousand Two Hundred Eighty Two"]
[2283,"Two Thousand Two Hundred Eighty Three"]
[2284,"Two Thousand Two Hundred Eighty Four"]
[2285,"Two Thousand Two Hundred Eighty Five"]
[2286,"Two Thousand Two Hundred Eighty Six"]
[2287,"Two Thousand Two Hundred Eighty Seven"]
[2288,{"$f":"spellnumber(A2290)","v":"Two Thousand Two Hundred Eighty Eight"}]
[2289,"Two Thousand Two Hundred Eighty Nine"]
[2290,"Two Thousand Two Hundred Ninety "]
[2291,"Two Thousand Two Hundred Ninety One"]
[2292,"Two Thousand Two Hundred Ninety Two"]
[2293,"Two Thousand Two Hundred Ninety Three"]
[2294,"Two Thousand Two Hundred Ninety Four"]
[2295,"Two Thousand Two Hundred Ninety Five"]
[2296,"Two Thousand Two Hundred Ninety Six"]
[2297,"Two Thousand Two Hundred Ninety Seven"]
[2298,"Two Thousand Two Hundred Ninety Eight"]
[2299,"Two Thousand Two Hundred Ninety Nine"]
[2300,"Two Thousand Three Hundred "]
[2301,"Two Thousand Three Hundred One"]
[2302,"Two Thousand Three Hundred Two"]
[2303,"Two Thousand Three Hundred Three"]
[2304,"Two Thousand Three Hundred Four"]
[2305,"Two Thousand Three Hundred Five"]
[2306,"Two Thousand Three Hundred Six"]
[2307,"Two Thousand Three Hundred Seven"]
[2308,"Two Thousand Three Hundred Eight"]
[2309,"Two Thousand Three Hundred Nine"]
[2310,"Two Thousand Three Hundred Ten"]
[2311,"Two Thousand Three Hundred Eleven"]
[2312,"Two Thousand Three Hundred Twelve"]
[2313,"Two Thousand Three Hundred Thirteen"]
[2314,"Two Thousand Three Hundred Fourteen"]
[2315,"Two Thousand Three Hundred Fifteen"]
[2316,"Two Thousand Three Hundred Sixteen"]
[2317,"Two Thousand Three Hundred Seventeen"]
[2318,"Two Thousand Three Hundred Eighteen"]
[2319,"Two Thousand Three Hundred Nineteen"]
[2320,"Two Thousand Three Hundred Twenty "]
[2321,"Two Thousand Three Hundred Twenty One"]
[2322,"Two Thousand Three Hundred Twenty Two"]
[2323,"Two Thousand Three Hundred Twenty Three"]
[2324,"Two Thousand Three Hundred Twenty Four"]
[2325,"Two Thousand Three Hundred Twenty Five"]
[2326,"Two Thousand Three Hundred Twenty Six"]
[2327,"Two Thousand Three Hundred Twenty Seven"]
[2328,"Two Thousand Three Hundred Twenty Eight"]
[2329,"Two Thousand Three Hundred Twenty Nine"]
[2330,"Two Thousand Three Hundred Thirty "]
[2331,"Two Thousand Three Hundred Thirty One"]
[2332,"Two Thousand Three Hundred Thirty Two"]
[2333,"Two Thousand Three Hundred Thirty Three"]
[2334,"Two Thousand Three Hundred Thirty Four"]
[2335,"Two Thousand Three Hundred Thirty Five"]
[2336,"Two Thousand Three Hundred Thirty Six"]
[2337,"Two Thousand Three Hundred Thirty Seven"]
[2338,"Two Thousand Three Hundred Thirty Eight"]
[2339,"Two Thousand Three Hundred Thirty Nine"]
[2340,"Two Thousand Three Hundred Forty "]
[2341,"Two Thousand Three Hundred Forty One"]
[2342,"Two Thousand Three Hundred Forty Two"]
[2343,"Two Thousand Three Hundred Forty Three"]
[2344,"Two Thousand Three Hundred Forty Four"]
[2345,"Two Thousand Three Hundred Forty Five"]
[2346,"Two Thousand Three Hundred Forty Six"]
[2347,"Two Thousand Three Hundred Forty Seven"]
[2348,"Two Thousand Three Hundred Forty Eight"]
[2349,"Two Thousand Three Hundred Forty Nine"]
[2350,"Two Thousand Three Hundred Fifty "]
[2351,"Two Thousand Three Hundred Fifty One"]
[2352,{"$f":"spellnumber(A2354)","v":"Two Thousand Three Hundred Fifty Two"}]
[2353,"Two Thousand Three Hundred Fifty Three"]
[2354,"Two Thousand Three Hundred Fifty Four"]
[2355,"Two Thousand Three Hundred Fifty Five"]
[2356,"Two Thousand Three Hundred Fifty Six"]
[2357,"Two Thousand Three Hundred Fifty Seven"]
[2358,"Two Thousand Three Hundred Fifty Eight"]
[2359,"Two Thousand Three Hundred Fifty Nine"]
[2360,"Two Thousand Three Hundred Sixty "]
[2361,"Two Thousand Three Hundred Sixty One"]
[2362,"Two Thousand Three Hundred Sixty Two"]
[2363,"Two Thousand Three Hundred Sixty Three"]
[2364,"Two Thousand Three Hundred Sixty Four"]
[2365,"Two Thousand Three Hundred Sixty Five"]
[2366,"Two Thousand Three Hundred Sixty Six"]
[2367,"Two Thousand Three Hundred Sixty Seven"]
[2368,"Two Thousand Three Hundred Sixty Eight"]
[2369,"Two Thousand Three Hundred Sixty Nine"]
[2370,"Two Thousand Three Hundred Seventy "]
[2371,"Two Thousand Three Hundred Seventy One"]
[2372,"Two Thousand Three Hundred Seventy Two"]
[2373,"Two Thousand Three Hundred Seventy Three"]
[2374,"Two Thousand Three Hundred Seventy Four"]
[2375,"Two Thousand Three Hundred Seventy Five"]
[2376,"Two Thousand Three Hundred Seventy Six"]
[2377,"Two Thousand Three Hundred Seventy Seven"]
[2378,"Two Thousand Three Hundred Seventy Eight"]
[2379,"Two Thousand Three Hundred Seventy Nine"]
[2380,"Two Thousand Three Hundred Eighty "]
[2381,"Two Thousand Three Hundred Eighty One"]
[2382,"Two Thousand Three Hundred Eighty Two"]
[2383,"Two Thousand Three Hundred Eighty Three"]
[2384,"Two Thousand Three Hundred Eighty Four"]
[2385,"Two Thousand Three Hundred Eighty Five"]
[2386,"Two Thousand Three Hundred Eighty Six"]
[2387,"Two Thousand Three Hundred Eighty Seven"]
[2388,"Two Thousand Three Hundred Eighty Eight"]
[2389,"Two Thousand Three Hundred Eighty Nine"]
[2390,"Two Thousand Three Hundred Ninety "]
[2391,"Two Thousand Three Hundred Ninety One"]
[2392,"Two Thousand Three Hundred Ninety Two"]
[2393,"Two Thousand Three Hundred Ninety Three"]
[2394,"Two Thousand Three Hundred Ninety Four"]
[2395,"Two Thousand Three Hundred Ninety Five"]
[2396,"Two Thousand Three Hundred Ninety Six"]
[2397,"Two Thousand Three Hundred Ninety Seven"]
[2398,"Two Thousand Three Hundred Ninety Eight"]
[2399,"Two Thousand Three Hundred Ninety Nine"]
[2400,"Two Thousand Four Hundred "]
[2401,"Two Thousand Four Hundred One"]
[2402,"Two Thousand Four Hundred Two"]
[2403,"Two Thousand Four Hundred Three"]
[2404,"Two Thousand Four Hundred Four"]
[2405,"Two Thousand Four Hundred Five"]
[2406,"Two Thousand Four Hundred Six"]
[2407,"Two Thousand Four Hundred Seven"]
[2408,"Two Thousand Four Hundred Eight"]
[2409,"Two Thousand Four Hundred Nine"]
[2410,"Two Thousand Four Hundred Ten"]
[2411,"Two Thousand Four Hundred Eleven"]
[2412,"Two Thousand Four Hundred Twelve"]
[2413,"Two Thousand Four Hundred Thirteen"]
[2414,"Two Thousand Four Hundred Fourteen"]
[2415,"Two Thousand Four Hundred Fifteen"]
[2416,{"$f":"spellnumber(A2418)","v":"Two Thousand Four Hundred Sixteen"}]
[2417,"Two Thousand Four Hundred Seventeen"]
[2418,"Two Thousand Four Hundred Eighteen"]
[2419,"Two Thousand Four Hundred Nineteen"]
[2420,"Two Thousand Four Hundred Twenty "]
[2421,"Two Thousand Four Hundred Twenty One"]
[2422,"Two Thousand Four Hundred Twenty Two"]
[2423,"Two Thousand Four Hundred Twenty Three"]
[2424,"Two Thousand Four Hundred Twenty Four"]
[2425,"Two Thousand Four Hundred Twenty Five"]
[2426,"Two Thousand Four Hundred Twenty Six"]
[2427,"Two Thousand Four Hundred Twenty Seven"]
[2428,"Two Thousand Four Hundred Twenty Eight"]
[2429,"Two Thousand Four Hundred Twenty Nine"]
[2430,"Two Thousand Four Hundred Thirty "]
[2431,"Two Thousand Four Hundred Thirty One"]
[2432,"Two Thousand Four Hundred Thirty Two"]
[2433,"Two Thousand Four Hundred Thirty Three"]
[2434,"Two Thousand Four Hundred Thirty Four"]
[2435,"Two Thousand Four Hundred Thirty Five"]
[2436,"Two Thousand Four Hundred Thirty Six"]
[2437,"Two Thousand Four Hundred Thirty Seven"]
[2438,"Two Thousand Four Hundred Thirty Eight"]
[2439,"Two Thousand Four Hundred Thirty Nine"]
[2440,"Two Thousand Four Hundred Forty "]
[2441,"Two Thousand Four Hundred Forty One"]
[2442,"Two Thousand Four Hundred Forty Two"]
[2443,"Two Thousand Four Hundred Forty Three"]
[2444,"Two Thousand Four Hundred Forty Four"]
[2445,"Two Thousand Four Hundred Forty Five"]
[2446,"Two Thousand Four Hundred Forty Six"]
[2447,"Two Thousand Four Hundred Forty Seven"]
[2448,"Two Thousand Four Hundred Forty Eight"]
[2449,"Two Thousand Four Hundred Forty Nine"]
[2450,"Two Thousand Four Hundred Fifty "]
[2451,"Two Thousand Four Hundred Fifty One"]
[2452,"Two Thousand Four Hundred Fifty Two"]
[2453,"Two Thousand Four Hundred Fifty Three"]
[2454,"Two Thousand Four Hundred Fifty Four"]
[2455,"Two Thousand Four Hundred Fifty Five"]
[2456,"Two Thousand Four Hundred Fifty Six"]
[2457,"Two Thousand Four Hundred Fifty Seven"]
[2458,"Two Thousand Four Hundred Fifty Eight"]
[2459,"Two Thousand Four Hundred Fifty Nine"]
[2460,"Two Thousand Four Hundred Sixty "]
[2461,"Two Thousand Four Hundred Sixty One"]
[2462,"Two Thousand Four Hundred Sixty Two"]
[2463,"Two Thousand Four Hundred Sixty Three"]
[2464,"Two Thousand Four Hundred Sixty Four"]
[2465,"Two Thousand Four Hundred Sixty Five"]
[2466,"Two Thousand Four Hundred Sixty Six"]
[2467,"Two Thousand Four Hundred Sixty Seven"]
[2468,"Two Thousand Four Hundred Sixty Eight"]
[2469,"Two Thousand Four Hundred Sixty Nine"]
[2470,"Two Thousand Four Hundred Seventy "]
[2471,"Two Thousand Four Hundred Seventy One"]
[2472,"Two Thousand Four Hundred Seventy Two"]
[2473,"Two Thousand Four Hundred Seventy Three"]
[2474,"Two Thousand Four Hundred Seventy Four"]
[2475,"Two Thousand Four Hundred Seventy Five"]
[2476,"Two Thousand Four Hundred Seventy Six"]
[2477,"Two Thousand Four Hundred Seventy Seven"]
[2478,"Two Thousand Four Hundred Seventy Eight"]
[2479,"Two Thousand Four Hundred Seventy Nine"]
[2480,{"$f":"spellnumber(A2482)","v":"Two Thousand Four Hundred Eighty "}]
[2481,"Two Thousand Four Hundred Eighty One"]
[2482,"Two Thousand Four Hundred Eighty Two"]
[2483,"Two Thousand Four Hundred Eighty Three"]
[2484,"Two Thousand Four Hundred Eighty Four"]
[2485,"Two Thousand Four Hundred Eighty Five"]
[2486,"Two Thousand Four Hundred Eighty Six"]
[2487,"Two Thousand Four Hundred Eighty Seven"]
[2488,"Two Thousand Four Hundred Eighty Eight"]
[2489,"Two Thousand Four Hundred Eighty Nine"]
[2490,"Two Thousand Four Hundred Ninety "]
[2491,"Two Thousand Four Hundred Ninety One"]
[2492,"Two Thousand Four Hundred Ninety Two"]
[2493,"Two Thousand Four Hundred Ninety Three"]
[2494,"Two Thousand Four Hundred Ninety Four"]
[2495,"Two Thousand Four Hundred Ninety Five"]
[2496,"Two Thousand Four Hundred Ninety Six"]
[2497,"Two Thousand Four Hundred Ninety Seven"]
[2498,"Two Thousand Four Hundred Ninety Eight"]
[2499,"Two Thousand Four Hundred Ninety Nine"]
[2500,"Two Thousand Five Hundred "]
[2501,"Two Thousand Five Hundred One"]
[2502,"Two Thousand Five Hundred Two"]
[2503,"Two Thousand Five Hundred Three"]
[2504,"Two Thousand Five Hundred Four"]
[2505,"Two Thousand Five Hundred Five"]
[2506,"Two Thousand Five Hundred Six"]
[2507,"Two Thousand Five Hundred Seven"]
[2508,"Two Thousand Five Hundred Eight"]
[2509,"Two Thousand Five Hundred Nine"]
[2510,"Two Thousand Five Hundred Ten"]
[2511,"Two Thousand Five Hundred Eleven"]
[2512,"Two Thousand Five Hundred Twelve"]
[2513,"Two Thousand Five Hundred Thirteen"]
[2514,"Two Thousand Five Hundred Fourteen"]
[2515,"Two Thousand Five Hundred Fifteen"]
[2516,"Two Thousand Five Hundred Sixteen"]
[2517,"Two Thousand Five Hundred Seventeen"]
[2518,"Two Thousand Five Hundred Eighteen"]
[2519,"Two Thousand Five Hundred Nineteen"]
[2520,"Two Thousand Five Hundred Twenty "]
[2521,"Two Thousand Five Hundred Twenty One"]
[2522,"Two Thousand Five Hundred Twenty Two"]
[2523,"Two Thousand Five Hundred Twenty Three"]
[2524,"Two Thousand Five Hundred Twenty Four"]
[2525,"Two Thousand Five Hundred Twenty Five"]
[2526,"Two Thousand Five Hundred Twenty Six"]
[2527,"Two Thousand Five Hundred Twenty Seven"]
[2528,"Two Thousand Five Hundred Twenty Eight"]
[2529,"Two Thousand Five Hundred Twenty Nine"]
[2530,"Two Thousand Five Hundred Thirty "]
[2531,"Two Thousand Five Hundred Thirty One"]
[2532,"Two Thousand Five Hundred Thirty Two"]
[2533,"Two Thousand Five Hundred Thirty Three"]
[2534,"Two Thousand Five Hundred Thirty Four"]
[2535,"Two Thousand Five Hundred Thirty Five"]
[2536,"Two Thousand Five Hundred Thirty Six"]
[2537,"Two Thousand Five Hundred Thirty Seven"]
[2538,"Two Thousand Five Hundred Thirty Eight"]
[2539,"Two Thousand Five Hundred Thirty Nine"]
[2540,"Two Thousand Five Hundred Forty "]
[2541,"Two Thousand Five Hundred Forty One"]
[2542,"Two Thousand Five Hundred Forty Two"]
[2543,"Two Thousand Five Hundred Forty Three"]
[2544,{"$f":"spellnumber(A2546)","v":"Two Thousand Five Hundred Forty Four"}]
[2545,"Two Thousand Five Hundred Forty Five"]
[2546,"Two Thousand Five Hundred Forty Six"]
[2547,"Two Thousand Five Hundred Forty Seven"]
[2548,"Two Thousand Five Hundred Forty Eight"]
[2549,"Two Thousand Five Hundred Forty Nine"]
[2550,"Two Thousand Five Hundred Fifty "]
[2551,"Two Thousand Five Hundred Fifty One"]
[2552,"Two Thousand Five Hundred Fifty Two"]
[2553,"Two Thousand Five Hundred Fifty Three"]
[2554,"Two Thousand Five Hundred Fifty Four"]
[2555,"Two Thousand Five Hundred Fifty Five"]
[2556,"Two Thousand Five Hundred Fifty Six"]
[2557,"Two Thousand Five Hundred Fifty Seven"]
[2558,"Two Thousand Five Hundred Fifty Eight"]
[2559,"Two Thousand Five Hundred Fifty Nine"]
[2560,"Two Thousand Five Hundred Sixty "]
[2561,"Two Thousand Five Hundred Sixty One"]
[2562,"Two Thousand Five Hundred Sixty Two"]
[2563,"Two Thousand Five Hundred Sixty Three"]
[2564,"Two Thousand Five Hundred Sixty Four"]
[2565,"Two Thousand Five Hundred Sixty Five"]
[2566,"Two Thousand Five Hundred Sixty Six"]
[2567,"Two Thousand Five Hundred Sixty Seven"]
[2568,"Two Thousand Five Hundred Sixty Eight"]
[2569,"Two Thousand Five Hundred Sixty Nine"]
[2570,"Two Thousand Five Hundred Seventy "]
[2571,"Two Thousand Five Hundred Seventy One"]
[2572,"Two Thousand Five Hundred Seventy Two"]
[2573,"Two Thousand Five Hundred Seventy Three"]
[2574,"Two Thousand Five Hundred Seventy Four"]
[2575,"Two Thousand Five Hundred Seventy Five"]
[2576,"Two Thousand Five Hundred Seventy Six"]
[2577,"Two Thousand Five Hundred Seventy Seven"]
[2578,"Two Thousand Five Hundred Seventy Eight"]
[2579,"Two Thousand Five Hundred Seventy Nine"]
[2580,"Two Thousand Five Hundred Eighty "]
[2581,"Two Thousand Five Hundred Eighty One"]
[2582,"Two Thousand Five Hundred Eighty Two"]
[2583,"Two Thousand Five Hundred Eighty Three"]
[2584,"Two Thousand Five Hundred Eighty Four"]
[2585,"Two Thousand Five Hundred Eighty Five"]
[2586,"Two Thousand Five Hundred Eighty Six"]
[2587,"Two Thousand Five Hundred Eighty Seven"]
[2588,"Two Thousand Five Hundred Eighty Eight"]
[2589,"Two Thousand Five Hundred Eighty Nine"]
[2590,"Two Thousand Five Hundred Ninety "]
[2591,"Two Thousand Five Hundred Ninety One"]
[2592,"Two Thousand Five Hundred Ninety Two"]
[2593,"Two Thousand Five Hundred Ninety Three"]
[2594,"Two Thousand Five Hundred Ninety Four"]
[2595,"Two Thousand Five Hundred Ninety Five"]
[2596,"Two Thousand Five Hundred Ninety Six"]
[2597,"Two Thousand Five Hundred Ninety Seven"]
[2598,"Two Thousand Five Hundred Ninety Eight"]
[2599,"Two Thousand Five Hundred Ninety Nine"]
[2600,"Two Thousand Six Hundred "]
[2601,"Two Thousand Six Hundred One"]
[2602,"Two Thousand Six Hundred Two"]
[2603,"Two Thousand Six Hundred Three"]
[2604,"Two Thousand Six Hundred Four"]
[2605,"Two Thousand Six Hundred Five"]
[2606,"Two Thousand Six Hundred Six"]
[2607,"Two Thousand Six Hundred Seven"]
[2608,{"$f":"spellnumber(A2610)","v":"Two Thousand Six Hundred Eight"}]
[2609,"Two Thousand Six Hundred Nine"]
[2610,"Two Thousand Six Hundred Ten"]
[2611,"Two Thousand Six Hundred Eleven"]
[2612,"Two Thousand Six Hundred Twelve"]
[2613,"Two Thousand Six Hundred Thirteen"]
[2614,"Two Thousand Six Hundred Fourteen"]
[2615,"Two Thousand Six Hundred Fifteen"]
[2616,"Two Thousand Six Hundred Sixteen"]
[2617,"Two Thousand Six Hundred Seventeen"]
[2618,"Two Thousand Six Hundred Eighteen"]
[2619,"Two Thousand Six Hundred Nineteen"]
[2620,"Two Thousand Six Hundred Twenty "]
[2621,"Two Thousand Six Hundred Twenty One"]
[2622,"Two Thousand Six Hundred Twenty Two"]
[2623,"Two Thousand Six Hundred Twenty Three"]
[2624,"Two Thousand Six Hundred Twenty Four"]
[2625,"Two Thousand Six Hundred Twenty Five"]
[2626,"Two Thousand Six Hundred Twenty Six"]
[2627,"Two Thousand Six Hundred Twenty Seven"]
[2628,"Two Thousand Six Hundred Twenty Eight"]
[2629,"Two Thousand Six Hundred Twenty Nine"]
[2630,"Two Thousand Six Hundred Thirty "]
[2631,"Two Thousand Six Hundred Thirty One"]
[2632,"Two Thousand Six Hundred Thirty Two"]
[2633,"Two Thousand Six Hundred Thirty Three"]
[2634,"Two Thousand Six Hundred Thirty Four"]
[2635,"Two Thousand Six Hundred Thirty Five"]
[2636,"Two Thousand Six Hundred Thirty Six"]
[2637,"Two Thousand Six Hundred Thirty Seven"]
[2638,"Two Thousand Six Hundred Thirty Eight"]
[2639,"Two Thousand Six Hundred Thirty Nine"]
[2640,"Two Thousand Six Hundred Forty "]
[2641,"Two Thousand Six Hundred Forty One"]
[2642,"Two Thousand Six Hundred Forty Two"]
[2643,"Two Thousand Six Hundred Forty Three"]
[2644,"Two Thousand Six Hundred Forty Four"]
[2645,"Two Thousand Six Hundred Forty Five"]
[2646,"Two Thousand Six Hundred Forty Six"]
[2647,"Two Thousand Six Hundred Forty Seven"]
[2648,"Two Thousand Six Hundred Forty Eight"]
[2649,"Two Thousand Six Hundred Forty Nine"]
[2650,"Two Thousand Six Hundred Fifty "]
[2651,"Two Thousand Six Hundred Fifty One"]
[2652,"Two Thousand Six Hundred Fifty Two"]
[2653,"Two Thousand Six Hundred Fifty Three"]
[2654,"Two Thousand Six Hundred Fifty Four"]
[2655,"Two Thousand Six Hundred Fifty Five"]
[2656,"Two Thousand Six Hundred Fifty Six"]
[2657,"Two Thousand Six Hundred Fifty Seven"]
[2658,"Two Thousand Six Hundred Fifty Eight"]
[2659,"Two Thousand Six Hundred Fifty Nine"]
[2660,"Two Thousand Six Hundred Sixty "]
[2661,"Two Thousand Six Hundred Sixty One"]
[2662,"Two Thousand Six Hundred Sixty Two"]
[2663,"Two Thousand Six Hundred Sixty Three"]
[2664,"Two Thousand Six Hundred Sixty Four"]
[2665,"Two Thousand Six Hundred Sixty Five"]
[2666,"Two Thousand Six Hundred Sixty Six"]
[2667,"Two Thousand Six Hundred Sixty Seven"]
[2668,"Two Thousand Six Hundred Sixty Eight"]
[2669,"Two Thousand Six Hundred Sixty Nine"]
[2670,"Two Thousand Six Hundred Seventy "]
[2671,"Two Thousand Six Hundred Seventy One"]
[2672,{"$f":"spellnumber(A2674)","v":"Two Thousand Six Hundred Seventy Two"}]
[2673,"Two Thousand Six Hundred Seventy Three"]
[2674,"Two Thousand Six Hundred Seventy Four"]
[2675,"Two Thousand Six Hundred Seventy Five"]
[2676,"Two Thousand Six Hundred Seventy Six"]
[2677,"Two Thousand Six Hundred Seventy Seven"]
[2678,"Two Thousand Six Hundred Seventy Eight"]
[2679,"Two Thousand Six Hundred Seventy Nine"]
[2680,"Two Thousand Six Hundred Eighty "]
[2681,"Two Thousand Six Hundred Eighty One"]
[2682,"Two Thousand Six Hundred Eighty Two"]
[2683,"Two Thousand Six Hundred Eighty Three"]
[2684,"Two Thousand Six Hundred Eighty Four"]
[2685,"Two Thousand Six Hundred Eighty Five"]
[2686,"Two Thousand Six Hundred Eighty Six"]
[2687,"Two Thousand Six Hundred Eighty Seven"]
[2688,"Two Thousand Six Hundred Eighty Eight"]
[2689,"Two Thousand Six Hundred Eighty Nine"]
[2690,"Two Thousand Six Hundred Ninety "]
[2691,"Two Thousand Six Hundred Ninety One"]
[2692,"Two Thousand Six Hundred Ninety Two"]
[2693,"Two Thousand Six Hundred Ninety Three"]
[2694,"Two Thousand Six Hundred Ninety Four"]
[2695,"Two Thousand Six Hundred Ninety Five"]
[2696,"Two Thousand Six Hundred Ninety Six"]
[2697,"Two Thousand Six Hundred Ninety Seven"]
[2698,"Two Thousand Six Hundred Ninety Eight"]
[2699,"Two Thousand Six Hundred Ninety Nine"]
[2700,"Two Thousand Seven Hundred "]
[2701,"Two Thousand Seven Hundred One"]
[2702,"Two Thousand Seven Hundred Two"]
[2703,"Two Thousand Seven Hundred Three"]
[2704,"Two Thousand Seven Hundred Four"]
[2705,"Two Thousand Seven Hundred Five"]
[2706,"Two Thousand Seven Hundred Six"]
[2707,"Two Thousand Seven Hundred Seven"]
[2708,"Two Thousand Seven Hundred Eight"]
[2709,"Two Thousand Seven Hundred Nine"]
[2710,"Two Thousand Seven Hundred Ten"]
[2711,"Two Thousand Seven Hundred Eleven"]
[2712,"Two Thousand Seven Hundred Twelve"]
[2713,"Two Thousand Seven Hundred Thirteen"]
[2714,"Two Thousand Seven Hundred Fourteen"]
[2715,"Two Thousand Seven Hundred Fifteen"]
[2716,"Two Thousand Seven Hundred Sixteen"]
[2717,"Two Thousand Seven Hundred Seventeen"]
[2718,"Two Thousand Seven Hundred Eighteen"]
[2719,"Two Thousand Seven Hundred Nineteen"]
[2720,"Two Thousand Seven Hundred Twenty "]
[2721,"Two Thousand Seven Hundred Twenty One"]
[2722,"Two Thousand Seven Hundred Twenty Two"]
[2723,"Two Thousand Seven Hundred Twenty Three"]
[2724,"Two Thousand Seven Hundred Twenty Four"]
[2725,"Two Thousand Seven Hundred Twenty Five"]
[2726,"Two Thousand Seven Hundred Twenty Six"]
[2727,"Two Thousand Seven Hundred Twenty Seven"]
[2728,"Two Thousand Seven Hundred Twenty Eight"]
[2729,"Two Thousand Seven Hundred Twenty Nine"]
[2730,"Two Thousand Seven Hundred Thirty "]
[2731,"Two Thousand Seven Hundred Thirty One"]
[2732,"Two Thousand Seven Hundred Thirty Two"]
[2733,"Two Thousand Seven Hundred Thirty Three"]
[2734,"Two Thousand Seven Hundred Thirty Four"]
[2735,"Two Thousand Seven Hundred Thirty Five"]
[2736,{"$f":"spellnumber(A2738)","v":"Two Thousand Seven Hundred Thirty Six"}]
[2737,"Two Thousand Seven Hundred Thirty Seven"]
[2738,"Two Thousand Seven Hundred Thirty Eight"]
[2739,"Two Thousand Seven Hundred Thirty Nine"]
[2740,"Two Thousand Seven Hundred Forty "]
[2741,"Two Thousand Seven Hundred Forty One"]
[2742,"Two Thousand Seven Hundred Forty Two"]
[2743,"Two Thousand Seven Hundred Forty Three"]
[2744,"Two Thousand Seven Hundred Forty Four"]
[2745,"Two Thousand Seven Hundred Forty Five"]
[2746,"Two Thousand Seven Hundred Forty Six"]
[2747,"Two Thousand Seven Hundred Forty Seven"]
[2748,"Two Thousand Seven Hundred Forty Eight"]
[2749,"Two Thousand Seven Hundred Forty Nine"]
[2750,"Two Thousand Seven Hundred Fifty "]
[2751,"Two Thousand Seven Hundred Fifty One"]
[2752,"Two Thousand Seven Hundred Fifty Two"]
[2753,"Two Thousand Seven Hundred Fifty Three"]
[2754,"Two Thousand Seven Hundred Fifty Four"]
[2755,"Two Thousand Seven Hundred Fifty Five"]
[2756,"Two Thousand Seven Hundred Fifty Six"]
[2757,"Two Thousand Seven Hundred Fifty Seven"]
[2758,"Two Thousand Seven Hundred Fifty Eight"]
[2759,"Two Thousand Seven Hundred Fifty Nine"]
[2760,"Two Thousand Seven Hundred Sixty "]
[2761,"Two Thousand Seven Hundred Sixty One"]
[2762,"Two Thousand Seven Hundred Sixty Two"]
[2763,"Two Thousand Seven Hundred Sixty Three"]
[2764,"Two Thousand Seven Hundred Sixty Four"]
[2765,"Two Thousand Seven Hundred Sixty Five"]
[2766,"Two Thousand Seven Hundred Sixty Six"]
[2767,"Two Thousand Seven Hundred Sixty Seven"]
[2768,"Two Thousand Seven Hundred Sixty Eight"]
[2769,"Two Thousand Seven Hundred Sixty Nine"]
[2770,"Two Thousand Seven Hundred Seventy "]
[2771,"Two Thousand Seven Hundred Seventy One"]
[2772,"Two Thousand Seven Hundred Seventy Two"]
[2773,"Two Thousand Seven Hundred Seventy Three"]
[2774,"Two Thousand Seven Hundred Seventy Four"]
[2775,"Two Thousand Seven Hundred Seventy Five"]
[2776,"Two Thousand Seven Hundred Seventy Six"]
[2777,"Two Thousand Seven Hundred Seventy Seven"]
[2778,"Two Thousand Seven Hundred Seventy Eight"]
[2779,"Two Thousand Seven Hundred Seventy Nine"]
[2780,"Two Thousand Seven Hundred Eighty "]
[2781,"Two Thousand Seven Hundred Eighty One"]
[2782,"Two Thousand Seven Hundred Eighty Two"]
[2783,"Two Thousand Seven Hundred Eighty Three"]
[2784,"Two Thousand Seven Hundred Eighty Four"]
[2785,"Two Thousand Seven Hundred Eighty Five"]
[2786,"Two Thousand Seven Hundred Eighty Six"]
[2787,"Two Thousand Seven Hundred Eighty Seven"]
[2788,"Two Thousand Seven Hundred Eighty Eight"]
[2789,"Two Thousand Seven Hundred Eighty Nine"]
[2790,"Two Thousand Seven Hundred Ninety "]
[2791,"Two Thousand Seven Hundred Ninety One"]
[2792,"Two Thousand Seven Hundred Ninety Two"]
[2793,"Two Thousand Seven Hundred Ninety Three"]
[2794,"Two Thousand Seven Hundred Ninety Four"]
[2795,"Two Thousand Seven Hundred Ninety Five"]
[2796,"Two Thousand Seven Hundred Ninety Six"]
[2797,"Two Thousand Seven Hundred Ninety Seven"]
[2798,"Two Thousand Seven Hundred Ninety Eight"]
[2799,"Two Thousand Seven Hundred Ninety Nine"]
[2800,{"$f":"spellnumber(A2802)","v":"Two Thousand Eight Hundred "}]
[2801,"Two Thousand Eight Hundred One"]
[2802,"Two Thousand Eight Hundred Two"]
[2803,"Two Thousand Eight Hundred Three"]
[2804,"Two Thousand Eight Hundred Four"]
[2805,"Two Thousand Eight Hundred Five"]
[2806,"Two Thousand Eight Hundred Six"]
[2807,"Two Thousand Eight Hundred Seven"]
[2808,"Two Thousand Eight Hundred Eight"]
[2809,"Two Thousand Eight Hundred Nine"]
[2810,"Two Thousand Eight Hundred Ten"]
[2811,"Two Thousand Eight Hundred Eleven"]
[2812,"Two Thousand Eight Hundred Twelve"]
[2813,"Two Thousand Eight Hundred Thirteen"]
[2814,"Two Thousand Eight Hundred Fourteen"]
[2815,"Two Thousand Eight Hundred Fifteen"]
[2816,"Two Thousand Eight Hundred Sixteen"]
[2817,"Two Thousand Eight Hundred Seventeen"]
[2818,"Two Thousand Eight Hundred Eighteen"]
[2819,"Two Thousand Eight Hundred Nineteen"]
[2820,"Two Thousand Eight Hundred Twenty "]
[2821,"Two Thousand Eight Hundred Twenty One"]
[2822,"Two Thousand Eight Hundred Twenty Two"]
[2823,"Two Thousand Eight Hundred Twenty Three"]
[2824,"Two Thousand Eight Hundred Twenty Four"]
[2825,"Two Thousand Eight Hundred Twenty Five"]
[2826,"Two Thousand Eight Hundred Twenty Six"]
[2827,"Two Thousand Eight Hundred Twenty Seven"]
[2828,"Two Thousand Eight Hundred Twenty Eight"]
[2829,"Two Thousand Eight Hundred Twenty Nine"]
[2830,"Two Thousand Eight Hundred Thirty "]
[2831,"Two Thousand Eight Hundred Thirty One"]
[2832,"Two Thousand Eight Hundred Thirty Two"]
[2833,"Two Thousand Eight Hundred Thirty Three"]
[2834,"Two Thousand Eight Hundred Thirty Four"]
[2835,"Two Thousand Eight Hundred Thirty Five"]
[2836,"Two Thousand Eight Hundred Thirty Six"]
[2837,"Two Thousand Eight Hundred Thirty Seven"]
[2838,"Two Thousand Eight Hundred Thirty Eight"]
[2839,"Two Thousand Eight Hundred Thirty Nine"]
[2840,"Two Thousand Eight Hundred Forty "]
[2841,"Two Thousand Eight Hundred Forty One"]
[2842,"Two Thousand Eight Hundred Forty Two"]
[2843,"Two Thousand Eight Hundred Forty Three"]
[2844,"Two Thousand Eight Hundred Forty Four"]
[2845,"Two Thousand Eight Hundred Forty Five"]
[2846,"Two Thousand Eight Hundred Forty Six"]
[2847,"Two Thousand Eight Hundred Forty Seven"]
[2848,"Two Thousand Eight Hundred Forty Eight"]
[2849,"Two Thousand Eight Hundred Forty Nine"]
[2850,"Two Thousand Eight Hundred Fifty "]
[2851,"Two Thousand Eight Hundred Fifty One"]
[2852,"Two Thousand Eight Hundred Fifty Two"]
[2853,"Two Thousand Eight Hundred Fifty Three"]
[2854,"Two Thousand Eight Hundred Fifty Four"]
[2855,"Two Thousand Eight Hundred Fifty Five"]
[2856,"Two Thousand Eight Hundred Fifty Six"]
[2857,"Two Thousand Eight Hundred Fifty Seven"]
[2858,"Two Thousand Eight Hundred Fifty Eight"]
[2859,"Two Thousand Eight Hundred Fifty Nine"]
[2860,"Two Thousand Eight Hundred Sixty "]
[2861,"Two Thousand Eight Hundred Sixty One"]
[2862,"Two Thousand Eight Hundred Sixty Two"]
[2863,"Two Thousand Eight Hundred Sixty Three"]
[2864,{"$f":"spellnumber(A2866)","v":"Two Thousand Eight Hundred Sixty Four"}]
[2865,"Two Thousand Eight Hundred Sixty Five"]
[2866,"Two Thousand Eight Hundred Sixty Six"]
[2867,"Two Thousand Eight Hundred Sixty Seven"]
[2868,"Two Thousand Eight Hundred Sixty Eight"]
[2869,"Two Thousand Eight Hundred Sixty Nine"]
[2870,"Two Thousand Eight Hundred Seventy "]
[2871,"Two Thousand Eight Hundred Seventy One"]
[2872,"Two Thousand Eight Hundred Seventy Two"]
[2873,"Two Thousand Eight Hundred Seventy Three"]
[2874,"Two Thousand Eight Hundred Seventy Four"]
[2875,"Two Thousand Eight Hundred Seventy Five"]
[2876,"Two Thousand Eight Hundred Seventy Six"]
[2877,"Two Thousand Eight Hundred Seventy Seven"]
[2878,"Two Thousand Eight Hundred Seventy Eight"]
[2879,"Two Thousand Eight Hundred Seventy Nine"]
[2880,"Two Thousand Eight Hundred Eighty "]
[2881,"Two Thousand Eight Hundred Eighty One"]
[2882,"Two Thousand Eight Hundred Eighty Two"]
[2883,"Two Thousand Eight Hundred Eighty Three"]
[2884,"Two Thousand Eight Hundred Eighty Four"]
[2885,"Two Thousand Eight Hundred Eighty Five"]
[2886,"Two Thousand Eight Hundred Eighty Six"]
[2887,"Two Thousand Eight Hundred Eighty Seven"]
[2888,"Two Thousand Eight Hundred Eighty Eight"]
[2889,"Two Thousand Eight Hundred Eighty Nine"]
[2890,"Two Thousand Eight Hundred Ninety "]
[2891,"Two Thousand Eight Hundred Ninety One"]
[2892,"Two Thousand Eight Hundred Ninety Two"]
[2893,"Two Thousand Eight Hundred Ninety Three"]
[2894,"Two Thousand Eight Hundred Ninety Four"]
[2895,"Two Thousand Eight Hundred Ninety Five"]
[2896,"Two Thousand Eight Hundred Ninety Six"]
[2897,"Two Thousand Eight Hundred Ninety Seven"]
[2898,"Two Thousand Eight Hundred Ninety Eight"]
[2899,"Two Thousand Eight Hundred Ninety Nine"]
[2900,"Two Thousand Nine Hundred "]
[2901,"Two Thousand Nine Hundred One"]
[2902,"Two Thousand Nine Hundred Two"]
[2903,"Two Thousand Nine Hundred Three"]
[2904,"Two Thousand Nine Hundred Four"]
[2905,"Two Thousand Nine Hundred Five"]
[2906,"Two Thousand Nine Hundred Six"]
[2907,"Two Thousand Nine Hundred Seven"]
[2908,"Two Thousand Nine Hundred Eight"]
[2909,"Two Thousand Nine Hundred Nine"]
[2910,"Two Thousand Nine Hundred Ten"]
[2911,"Two Thousand Nine Hundred Eleven"]
[2912,"Two Thousand Nine Hundred Twelve"]
[2913,"Two Thousand Nine Hundred Thirteen"]
[2914,"Two Thousand Nine Hundred Fourteen"]
[2915,"Two Thousand Nine Hundred Fifteen"]
[2916,"Two Thousand Nine Hundred Sixteen"]
[2917,"Two Thousand Nine Hundred Seventeen"]
[2918,"Two Thousand Nine Hundred Eighteen"]
[2919,"Two Thousand Nine Hundred Nineteen"]
[2920,"Two Thousand Nine Hundred Twenty "]
[2921,"Two Thousand Nine Hundred Twenty One"]
[2922,"Two Thousand Nine Hundred Twenty Two"]
[2923,"Two Thousand Nine Hundred Twenty Three"]
[2924,"Two Thousand Nine Hundred Twenty Four"]
[2925,"Two Thousand Nine Hundred Twenty Five"]
[2926,"Two Thousand Nine Hundred Twenty Six"]
[2927,"Two Thousand Nine Hundred Twenty Seven"]
[2928,{"$f":"spellnumber(A2930)","v":"Two Thousand Nine Hundred Twenty Eight"}]
[2929,"Two Thousand Nine Hundred Twenty Nine"]
[2930,"Two Thousand Nine Hundred Thirty "]
[2931,"Two Thousand Nine Hundred Thirty One"]
[2932,"Two Thousand Nine Hundred Thirty Two"]
[2933,"Two Thousand Nine Hundred Thirty Three"]
[2934,"Two Thousand Nine Hundred Thirty Four"]
[2935,"Two Thousand Nine Hundred Thirty Five"]
[2936,"Two Thousand Nine Hundred Thirty Six"]
[2937,"Two Thousand Nine Hundred Thirty Seven"]
[2938,"Two Thousand Nine Hundred Thirty Eight"]
[2939,"Two Thousand Nine Hundred Thirty Nine"]
[2940,"Two Thousand Nine Hundred Forty "]
[2941,"Two Thousand Nine Hundred Forty One"]
[2942,"Two Thousand Nine Hundred Forty Two"]
[2943,"Two Thousand Nine Hundred Forty Three"]
[2944,"Two Thousand Nine Hundred Forty Four"]
[2945,"Two Thousand Nine Hundred Forty Five"]
[2946,"Two Thousand Nine Hundred Forty Six"]
[2947,"Two Thousand Nine Hundred Forty Seven"]
[2948,"Two Thousand Nine Hundred Forty Eight"]
[2949,"Two Thousand Nine Hundred Forty Nine"]
[2950,"Two Thousand Nine Hundred Fifty "]
[2951,"Two Thousand Nine Hundred Fifty One"]
[2952,"Two Thousand Nine Hundred Fifty Two"]
[2953,"Two Thousand Nine Hundred Fifty Three"]
[2954,"Two Thousand Nine Hundred Fifty Four"]
[2955,"Two Thousand Nine Hundred Fifty Five"]
[2956,"Two Thousand Nine Hundred Fifty Six"]
[2957,"Two Thousand Nine Hundred Fifty Seven"]
[2958,"Two Thousand Nine Hundred Fifty Eight"]
[2959,"Two Thousand Nine Hundred Fifty Nine"]
[2960,"Two Thousand Nine Hundred Sixty "]
[2961,"Two Thousand Nine Hundred Sixty One"]
[2962,"Two Thousand Nine Hundred Sixty Two"]
[2963,"Two Thousand Nine Hundred Sixty Three"]
[2964,"Two Thousand Nine Hundred Sixty Four"]
[2965,"Two Thousand Nine Hundred Sixty Five"]
[2966,"Two Thousand Nine Hundred Sixty Six"]
[2967,"Two Thousand Nine Hundred Sixty Seven"]
[2968,"Two Thousand Nine Hundred Sixty Eight"]
[2969,"Two Thousand Nine Hundred Sixty Nine"]
[2970,"Two Thousand Nine Hundred Seventy "]
[2971,"Two Thousand Nine Hundred Seventy One"]
[2972,"Two Thousand Nine Hundred Seventy Two"]
[2973,"Two Thousand Nine Hundred Seventy Three"]
[2974,"Two Thousand Nine Hundred Seventy Four"]
[2975,"Two Thousand Nine Hundred Seventy Five"]
[2976,"Two Thousand Nine Hundred Seventy Six"]
[2977,"Two Thousand Nine Hundred Seventy Seven"]
[2978,"Two Thousand Nine Hundred Seventy Eight"]
[2979,"Two Thousand Nine Hundred Seventy Nine"]
[2980,"Two Thousand Nine Hundred Eighty "]
[2981,"Two Thousand Nine Hundred Eighty One"]
[2982,"Two Thousand Nine Hundred Eighty Two"]
[2983,"Two Thousand Nine Hundred Eighty Three"]
[2984,"Two Thousand Nine Hundred Eighty Four"]
[2985,"Two Thousand Nine Hundred Eighty Five"]
[2986,"Two Thousand Nine Hundred Eighty Six"]
[2987,"Two Thousand Nine Hundred Eighty Seven"]
[2988,"Two Thousand Nine Hundred Eighty Eight"]
[2989,"Two Thousand Nine Hundred Eighty Nine"]
[2990,"Two Thousand Nine Hundred Ninety "]
[2991,"Two Thousand Nine Hundred Ninety One"]
[2992,{"$f":"spellnumber(A2994)","v":"Two Thousand Nine Hundred Ninety Two"}]
[2993,"Two Thousand Nine Hundred Ninety Three"]
[2994,"Two Thousand Nine Hundred Ninety Four"]
[2995,"Two Thousand Nine Hundred Ninety Five"]
[2996,"Two Thousand Nine Hundred Ninety Six"]
[2997,"Two Thousand Nine Hundred Ninety Seven"]
[2998,"Two Thousand Nine Hundred Ninety Eight"]
[2999,"Two Thousand Nine Hundred Ninety Nine"]
[3000,"Three Thousand "]
[3001,"Three Thousand One"]
[3002,"Three Thousand Two"]
[3003,"Three Thousand Three"]
[3004,"Three Thousand Four"]
[3005,"Three Thousand Five"]
[3006,"Three Thousand Six"]
[3007,"Three Thousand Seven"]
[3008,"Three Thousand Eight"]
[3009,"Three Thousand Nine"]
[3010,"Three Thousand Ten"]
[3011,"Three Thousand Eleven"]
[3012,"Three Thousand Twelve"]
[3013,"Three Thousand Thirteen"]
[3014,"Three Thousand Fourteen"]
[3015,"Three Thousand Fifteen"]
[3016,"Three Thousand Sixteen"]
[3017,"Three Thousand Seventeen"]
[3018,"Three Thousand Eighteen"]
[3019,"Three Thousand Nineteen"]
[3020,"Three Thousand Twenty "]
[3021,"Three Thousand Twenty One"]
[3022,"Three Thousand Twenty Two"]
[3023,"Three Thousand Twenty Three"]
[3024,"Three Thousand Twenty Four"]
[3025,"Three Thousand Twenty Five"]
[3026,"Three Thousand Twenty Six"]
[3027,"Three Thousand Twenty Seven"]
[3028,"Three Thousand Twenty Eight"]
[3029,"Three Thousand Twenty Nine"]
[3030,"Three Thousand Thirty "]
[3031,"Three Thousand Thirty One"]
[3032,"Three Thousand Thirty Two"]
[3033,"Three Thousand Thirty Three"]
[3034,"Three Thousand Thirty Four"]
[3035,"Three Thousand Thirty Five"]
[3036,"Three Thousand Thirty Six"]
[3037,"Three Thousand Thirty Seven"]
[3038,"Three Thousand Thirty Eight"]
[3039,"Three Thousand Thirty Nine"]
[3040,"Three Thousand Forty "]
[3041,"Three Thousand Forty One"]
[3042,"Three Thousand Forty Two"]
[3043,"Three Thousand Forty Three"]
[3044,"Three Thousand Forty Four"]
[3045,"Three Thousand Forty Five"]
[3046,"Three Thousand Forty Six"]
[3047,"Three Thousand Forty Seven"]
[3048,"Three Thousand Forty Eight"]
[3049,"Three Thousand Forty Nine"]
[3050,"Three Thousand Fifty "]
[3051,"Three Thousand Fifty One"]
[3052,"Three Thousand Fifty Two"]
[3053,"Three Thousand Fifty Three"]
[3054,"Three Thousand Fifty Four"]
[3055,"Three Thousand Fifty Five"]
[3056,{"$f":"spellnumber(A3058)","v":"Three Thousand Fifty Six"}]
[3057,"Three Thousand Fifty Seven"]
[3058,"Three Thousand Fifty Eight"]
[3059,"Three Thousand Fifty Nine"]
[3060,"Three Thousand Sixty "]
[3061,"Three Thousand Sixty One"]
[3062,"Three Thousand Sixty Two"]
[3063,"Three Thousand Sixty Three"]
[3064,"Three Thousand Sixty Four"]
[3065,"Three Thousand Sixty Five"]
[3066,"Three Thousand Sixty Six"]
[3067,"Three Thousand Sixty Seven"]
[3068,"Three Thousand Sixty Eight"]
[3069,"Three Thousand Sixty Nine"]
[3070,"Three Thousand Seventy "]
[3071,"Three Thousand Seventy One"]
[3072,"Three Thousand Seventy Two"]
[3073,"Three Thousand Seventy Three"]
[3074,"Three Thousand Seventy Four"]
[3075,"Three Thousand Seventy Five"]
[3076,"Three Thousand Seventy Six"]
[3077,"Three Thousand Seventy Seven"]
[3078,"Three Thousand Seventy Eight"]
[3079,"Three Thousand Seventy Nine"]
[3080,"Three Thousand Eighty "]
[3081,"Three Thousand Eighty One"]
[3082,"Three Thousand Eighty Two"]
[3083,"Three Thousand Eighty Three"]
[3084,"Three Thousand Eighty Four"]
[3085,"Three Thousand Eighty Five"]
[3086,"Three Thousand Eighty Six"]
[3087,"Three Thousand Eighty Seven"]
[3088,"Three Thousand Eighty Eight"]
[3089,"Three Thousand Eighty Nine"]
[3090,"Three Thousand Ninety "]
[3091,"Three Thousand Ninety One"]
[3092,"Three Thousand Ninety Two"]
[3093,"Three Thousand Ninety Three"]
[3094,"Three Thousand Ninety Four"]
[3095,"Three Thousand Ninety Five"]
[3096,"Three Thousand Ninety Six"]
[3097,"Three Thousand Ninety Seven"]
[3098,"Three Thousand Ninety Eight"]
[3099,"Three Thousand Ninety Nine"]
[3100,"Three Thousand One Hundred "]
[3101,"Three Thousand One Hundred One"]
[3102,"Three Thousand One Hundred Two"]
[3103,"Three Thousand One Hundred Three"]
[3104,"Three Thousand One Hundred Four"]
[3105,"Three Thousand One Hundred Five"]
[3106,"Three Thousand One Hundred Six"]
[3107,"Three Thousand One Hundred Seven"]
[3108,"Three Thousand One Hundred Eight"]
[3109,"Three Thousand One Hundred Nine"]
[3110,"Three Thousand One Hundred Ten"]
[3111,"Three Thousand One Hundred Eleven"]
[3112,"Three Thousand One Hundred Twelve"]
[3113,"Three Thousand One Hundred Thirteen"]
[3114,"Three Thousand One Hundred Fourteen"]
[3115,"Three Thousand One Hundred Fifteen"]
[3116,"Three Thousand One Hundred Sixteen"]
[3117,"Three Thousand One Hundred Seventeen"]
[3118,"Three Thousand One Hundred Eighteen"]
[3119,"Three Thousand One Hundred Nineteen"]
[3120,{"$f":"spellnumber(A3122)","v":"Three Thousand One Hundred Twenty "}]
[3121,"Three Thousand One Hundred Twenty One"]
[3122,"Three Thousand One Hundred Twenty Two"]
[3123,"Three Thousand One Hundred Twenty Three"]
[3124,"Three Thousand One Hundred Twenty Four"]
[3125,"Three Thousand One Hundred Twenty Five"]
[3126,"Three Thousand One Hundred Twenty Six"]
[3127,"Three Thousand One Hundred Twenty Seven"]
[3128,"Three Thousand One Hundred Twenty Eight"]
[3129,"Three Thousand One Hundred Twenty Nine"]
[3130,"Three Thousand One Hundred Thirty "]
[3131,"Three Thousand One Hundred Thirty One"]
[3132,"Three Thousand One Hundred Thirty Two"]
[3133,"Three Thousand One Hundred Thirty Three"]
[3134,"Three Thousand One Hundred Thirty Four"]
[3135,"Three Thousand One Hundred Thirty Five"]
[3136,"Three Thousand One Hundred Thirty Six"]
[3137,"Three Thousand One Hundred Thirty Seven"]
[3138,"Three Thousand One Hundred Thirty Eight"]
[3139,"Three Thousand One Hundred Thirty Nine"]
[3140,"Three Thousand One Hundred Forty "]
[3141,"Three Thousand One Hundred Forty One"]
[3142,"Three Thousand One Hundred Forty Two"]
[3143,"Three Thousand One Hundred Forty Three"]
[3144,"Three Thousand One Hundred Forty Four"]
[3145,"Three Thousand One Hundred Forty Five"]
[3146,"Three Thousand One Hundred Forty Six"]
[3147,"Three Thousand One Hundred Forty Seven"]
[3148,"Three Thousand One Hundred Forty Eight"]
[3149,"Three Thousand One Hundred Forty Nine"]
[3150,"Three Thousand One Hundred Fifty "]
[3151,"Three Thousand One Hundred Fifty One"]
[3152,"Three Thousand One Hundred Fifty Two"]
[3153,"Three Thousand One Hundred Fifty Three"]
[3154,"Three Thousand One Hundred Fifty Four"]
[3155,"Three Thousand One Hundred Fifty Five"]
[3156,"Three Thousand One Hundred Fifty Six"]
[3157,"Three Thousand One Hundred Fifty Seven"]
[3158,"Three Thousand One Hundred Fifty Eight"]
[3159,"Three Thousand One Hundred Fifty Nine"]
[3160,"Three Thousand One Hundred Sixty "]
[3161,"Three Thousand One Hundred Sixty One"]
[3162,"Three Thousand One Hundred Sixty Two"]
[3163,"Three Thousand One Hundred Sixty Three"]
[3164,"Three Thousand One Hundred Sixty Four"]
[3165,"Three Thousand One Hundred Sixty Five"]
[3166,"Three Thousand One Hundred Sixty Six"]
[3167,"Three Thousand One Hundred Sixty Seven"]
[3168,"Three Thousand One Hundred Sixty Eight"]
[3169,"Three Thousand One Hundred Sixty Nine"]
[3170,"Three Thousand One Hundred Seventy "]
[3171,"Three Thousand One Hundred Seventy One"]
[3172,"Three Thousand One Hundred Seventy Two"]
[3173,"Three Thousand One Hundred Seventy Three"]
[3174,"Three Thousand One Hundred Seventy Four"]
[3175,"Three Thousand One Hundred Seventy Five"]
[3176,"Three Thousand One Hundred Seventy Six"]
[3177,"Three Thousand One Hundred Seventy Seven"]
[3178,"Three Thousand One Hundred Seventy Eight"]
[3179,"Three Thousand One Hundred Seventy Nine"]
[3180,"Three Thousand One Hundred Eighty "]
[3181,"Three Thousand One Hundred Eighty One"]
[3182,"Three Thousand One Hundred Eighty Two"]
[3183,"Three Thousand One Hundred Eighty Three"]
[3184,{"$f":"spellnumber(A3186)","v":"Three Thousand One Hundred Eighty Four"}]
[3185,"Three Thousand One Hundred Eighty Five"]
[3186,"Three Thousand One Hundred Eighty Six"]
[3187,"Three Thousand One Hundred Eighty Seven"]
[3188,"Three Thousand One Hundred Eighty Eight"]
[3189,"Three Thousand One Hundred Eighty Nine"]
[3190,"Three Thousand One Hundred Ninety "]
[3191,"Three Thousand One Hundred Ninety One"]
[3192,"Three Thousand One Hundred Ninety Two"]
[3193,"Three Thousand One Hundred Ninety Three"]
[3194,"Three Thousand One Hundred Ninety Four"]
[3195,"Three Thousand One Hundred Ninety Five"]
[3196,"Three Thousand One Hundred Ninety Six"]
[3197,"Three Thousand One Hundred Ninety Seven"]
[3198,"Three Thousand One Hundred Ninety Eight"]
[3199,"Three Thousand One Hundred Ninety Nine"]
[3200,"Three Thousand Two Hundred "]
[3201,"Three Thousand Two Hundred One"]
[3202,"Three Thousand Two Hundred Two"]
[3203,"Three Thousand Two Hundred Three"]
[3204,"Three Thousand Two Hundred Four"]
[3205,"Three Thousand Two Hundred Five"]
[3206,"Three Thousand Two Hundred Six"]
[3207,"Three Thousand Two Hundred Seven"]
[3208,"Three Thousand Two Hundred Eight"]
[3209,"Three Thousand Two Hundred Nine"]
[3210,"Three Thousand Two Hundred Ten"]
[3211,"Three Thousand Two Hundred Eleven"]
[3212,"Three Thousand Two Hundred Twelve"]
[3213,"Three Thousand Two Hundred Thirteen"]
[3214,"Three Thousand Two Hundred Fourteen"]
[3215,"Three Thousand Two Hundred Fifteen"]
[3216,"Three Thousand Two Hundred Sixteen"]
[3217,"Three Thousand Two Hundred Seventeen"]
[3218,"Three Thousand Two Hundred Eighteen"]
[3219,"Three Thousand Two Hundred Nineteen"]
[3220,"Three Thousand Two Hundred Twenty "]
[3221,"Three Thousand Two Hundred Twenty One"]
[3222,"Three Thousand Two Hundred Twenty Two"]
[3223,"Three Thousand Two Hundred Twenty Three"]
[3224,"Three Thousand Two Hundred Twenty Four"]
[3225,"Three Thousand Two Hundred Twenty Five"]
[3226,"Three Thousand Two Hundred Twenty Six"]
[3227,"Three Thousand Two Hundred Twenty Seven"]
[3228,"Three Thousand Two Hundred Twenty Eight"]
[3229,"Three Thousand Two Hundred Twenty Nine"]
[3230,"Three Thousand Two Hundred Thirty "]
[3231,"Three Thousand Two Hundred Thirty One"]
[3232,"Three Thousand Two Hundred Thirty Two"]
[3233,"Three Thousand Two Hundred Thirty Three"]
[3234,"Three Thousand Two Hundred Thirty Four"]
[3235,"Three Thousand Two Hundred Thirty Five"]
[3236,"Three Thousand Two Hundred Thirty Six"]
[3237,"Three Thousand Two Hundred Thirty Seven"]
[3238,"Three Thousand Two Hundred Thirty Eight"]
[3239,"Three Thousand Two Hundred Thirty Nine"]
[3240,"Three Thousand Two Hundred Forty "]
[3241,"Three Thousand Two Hundred Forty One"]
[3242,"Three Thousand Two Hundred Forty Two"]
[3243,"Three Thousand Two Hundred Forty Three"]
[3244,"Three Thousand Two Hundred Forty Four"]
[3245,"Three Thousand Two Hundred Forty Five"]
[3246,"Three Thousand Two Hundred Forty Six"]
[3247,"Three Thousand Two Hundred Forty Seven"]
[3248,{"$f":"spellnumber(A3250)","v":"Three Thousand Two Hundred Forty Eight"}]
[3249,"Three Thousand Two Hundred Forty Nine"]
[3250,"Three Thousand Two Hundred Fifty "]
[3251,"Three Thousand Two Hundred Fifty One"]
[3252,"Three Thousand Two Hundred Fifty Two"]
[3253,"Three Thousand Two Hundred Fifty Three"]
[3254,"Three Thousand Two Hundred Fifty Four"]
[3255,"Three Thousand Two Hundred Fifty Five"]
[3256,"Three Thousand Two Hundred Fifty Six"]
[3257,"Three Thousand Two Hundred Fifty Seven"]
[3258,"Three Thousand Two Hundred Fifty Eight"]
[3259,"Three Thousand Two Hundred Fifty Nine"]
[3260,"Three Thousand Two Hundred Sixty "]
[3261,"Three Thousand Two Hundred Sixty One"]
[3262,"Three Thousand Two Hundred Sixty Two"]
[3263,"Three Thousand Two Hundred Sixty Three"]
[3264,"Three Thousand Two Hundred Sixty Four"]
[3265,"Three Thousand Two Hundred Sixty Five"]
[3266,"Three Thousand Two Hundred Sixty Six"]
[3267,"Three Thousand Two Hundred Sixty Seven"]
[3268,"Three Thousand Two Hundred Sixty Eight"]
[3269,"Three Thousand Two Hundred Sixty Nine"]
[3270,"Three Thousand Two Hundred Seventy "]
[3271,"Three Thousand Two Hundred Seventy One"]
[3272,"Three Thousand Two Hundred Seventy Two"]
[3273,"Three Thousand Two Hundred Seventy Three"]
[3274,"Three Thousand Two Hundred Seventy Four"]
[3275,"Three Thousand Two Hundred Seventy Five"]
[3276,"Three Thousand Two Hundred Seventy Six"]
[3277,"Three Thousand Two Hundred Seventy Seven"]
[3278,"Three Thousand Two Hundred Seventy Eight"]
[3279,"Three Thousand Two Hundred Seventy Nine"]
[3280,"Three Thousand Two Hundred Eighty "]
[3281,"Three Thousand Two Hundred Eighty One"]
[3282,"Three Thousand Two Hundred Eighty Two"]
[3283,"Three Thousand Two Hundred Eighty Three"]
[3284,"Three Thousand Two Hundred Eighty Four"]
[3285,"Three Thousand Two Hundred Eighty Five"]
[3286,"Three Thousand Two Hundred Eighty Six"]
[3287,"Three Thousand Two Hundred Eighty Seven"]
[3288,"Three Thousand Two Hundred Eighty Eight"]
[3289,"Three Thousand Two Hundred Eighty Nine"]
[3290,"Three Thousand Two Hundred Ninety "]
[3291,"Three Thousand Two Hundred Ninety One"]
[3292,"Three Thousand Two Hundred Ninety Two"]
[3293,"Three Thousand Two Hundred Ninety Three"]
[3294,"Three Thousand Two Hundred Ninety Four"]
[3295,"Three Thousand Two Hundred Ninety Five"]
[3296,"Three Thousand Two Hundred Ninety Six"]
[3297,"Three Thousand Two Hundred Ninety Seven"]
[3298,"Three Thousand Two Hundred Ninety Eight"]
[3299,"Three Thousand Two Hundred Ninety Nine"]
[3300,"Three Thousand Three Hundred "]
[3301,"Three Thousand Three Hundred One"]
[3302,"Three Thousand Three Hundred Two"]
[3303,"Three Thousand Three Hundred Three"]
[3304,"Three Thousand Three Hundred Four"]
[3305,"Three Thousand Three Hundred Five"]
[3306,"Three Thousand Three Hundred Six"]
[3307,"Three Thousand Three Hundred Seven"]
[3308,"Three Thousand Three Hundred Eight"]
[3309,"Three Thousand Three Hundred Nine"]
[3310,"Three Thousand Three Hundred Ten"]
[3311,"Three Thousand Three Hundred Eleven"]
[3312,{"$f":"spellnumber(A3314)","v":"Three Thousand Three Hundred Twelve"}]
[3313,"Three Thousand Three Hundred Thirteen"]
[3314,"Three Thousand Three Hundred Fourteen"]
[3315,"Three Thousand Three Hundred Fifteen"]
[3316,"Three Thousand Three Hundred Sixteen"]
[3317,"Three Thousand Three Hundred Seventeen"]
[3318,"Three Thousand Three Hundred Eighteen"]
[3319,"Three Thousand Three Hundred Nineteen"]
[3320,"Three Thousand Three Hundred Twenty "]
[3321,"Three Thousand Three Hundred Twenty One"]
[3322,"Three Thousand Three Hundred Twenty Two"]
[3323,"Three Thousand Three Hundred Twenty Three"]
[3324,"Three Thousand Three Hundred Twenty Four"]
[3325,"Three Thousand Three Hundred Twenty Five"]
[3326,"Three Thousand Three Hundred Twenty Six"]
[3327,"Three Thousand Three Hundred Twenty Seven"]
[3328,"Three Thousand Three Hundred Twenty Eight"]
[3329,"Three Thousand Three Hundred Twenty Nine"]
[3330,"Three Thousand Three Hundred Thirty "]
[3331,"Three Thousand Three Hundred Thirty One"]
[3332,"Three Thousand Three Hundred Thirty Two"]
[3333,"Three Thousand Three Hundred Thirty Three"]
[3334,"Three Thousand Three Hundred Thirty Four"]
[3335,"Three Thousand Three Hundred Thirty Five"]
[3336,"Three Thousand Three Hundred Thirty Six"]
[3337,"Three Thousand Three Hundred Thirty Seven"]
[3338,"Three Thousand Three Hundred Thirty Eight"]
[3339,"Three Thousand Three Hundred Thirty Nine"]
[3340,"Three Thousand Three Hundred Forty "]
[3341,"Three Thousand Three Hundred Forty One"]
[3342,"Three Thousand Three Hundred Forty Two"]
[3343,"Three Thousand Three Hundred Forty Three"]
[3344,"Three Thousand Three Hundred Forty Four"]
[3345,"Three Thousand Three Hundred Forty Five"]
[3346,"Three Thousand Three Hundred Forty Six"]
[3347,"Three Thousand Three Hundred Forty Seven"]
[3348,"Three Thousand Three Hundred Forty Eight"]
[3349,"Three Thousand Three Hundred Forty Nine"]
[3350,"Three Thousand Three Hundred Fifty "]
[3351,"Three Thousand Three Hundred Fifty One"]
[3352,"Three Thousand Three Hundred Fifty Two"]
[3353,"Three Thousand Three Hundred Fifty Three"]
[3354,"Three Thousand Three Hundred Fifty Four"]
[3355,"Three Thousand Three Hundred Fifty Five"]
[3356,"Three Thousand Three Hundred Fifty Six"]
[3357,"Three Thousand Three Hundred Fifty Seven"]
[3358,"Three Thousand Three Hundred Fifty Eight"]
[3359,"Three Thousand Three Hundred Fifty Nine"]
[3360,"Three Thousand Three Hundred Sixty "]
[3361,"Three Thousand Three Hundred Sixty One"]
[3362,"Three Thousand Three Hundred Sixty Two"]
[3363,"Three Thousand Three Hundred Sixty Three"]
[3364,"Three Thousand Three Hundred Sixty Four"]
[3365,"Three Thousand Three Hundred Sixty Five"]
[3366,"Three Thousand Three Hundred Sixty Six"]
[3367,"Three Thousand Three Hundred Sixty Seven"]
[3368,"Three Thousand Three Hundred Sixty Eight"]
[3369,"Three Thousand Three Hundred Sixty Nine"]
[3370,"Three Thousand Three Hundred Seventy "]
[3371,"Three Thousand Three Hundred Seventy One"]
[3372,"Three Thousand Three Hundred Seventy Two"]
[3373,"Three Thousand Three Hundred Seventy Three"]
[3374,"Three Thousand Three Hundred Seventy Four"]
[3375,"Three Thousand Three Hundred Seventy Five"]
[3376,{"$f":"spellnumber(A3378)","v":"Three Thousand Three Hundred Seventy Six"}]
[3377,"Three Thousand Three Hundred Seventy Seven"]
[3378,"Three Thousand Three Hundred Seventy Eight"]
[3379,"Three Thousand Three Hundred Seventy Nine"]
[3380,"Three Thousand Three Hundred Eighty "]
[3381,"Three Thousand Three Hundred Eighty One"]
[3382,"Three Thousand Three Hundred Eighty Two"]
[3383,"Three Thousand Three Hundred Eighty Three"]
[3384,"Three Thousand Three Hundred Eighty Four"]
[3385,"Three Thousand Three Hundred Eighty Five"]
[3386,"Three Thousand Three Hundred Eighty Six"]
[3387,"Three Thousand Three Hundred Eighty Seven"]
[3388,"Three Thousand Three Hundred Eighty Eight"]
[3389,"Three Thousand Three Hundred Eighty Nine"]
[3390,"Three Thousand Three Hundred Ninety "]
[3391,"Three Thousand Three Hundred Ninety One"]
[3392,"Three Thousand Three Hundred Ninety Two"]
[3393,"Three Thousand Three Hundred Ninety Three"]
[3394,"Three Thousand Three Hundred Ninety Four"]
[3395,"Three Thousand Three Hundred Ninety Five"]
[3396,"Three Thousand Three Hundred Ninety Six"]
[3397,"Three Thousand Three Hundred Ninety Seven"]
[3398,"Three Thousand Three Hundred Ninety Eight"]
[3399,"Three Thousand Three Hundred Ninety Nine"]
[3400,"Three Thousand Four Hundred "]
[3401,"Three Thousand Four Hundred One"]
[3402,"Three Thousand Four Hundred Two"]
[3403,"Three Thousand Four Hundred Three"]
[3404,"Three Thousand Four Hundred Four"]
[3405,"Three Thousand Four Hundred Five"]
[3406,"Three Thousand Four Hundred Six"]
[3407,"Three Thousand Four Hundred Seven"]
[3408,"Three Thousand Four Hundred Eight"]
[3409,"Three Thousand Four Hundred Nine"]
[3410,"Three Thousand Four Hundred Ten"]
[3411,"Three Thousand Four Hundred Eleven"]
[3412,"Three Thousand Four Hundred Twelve"]
[3413,"Three Thousand Four Hundred Thirteen"]
[3414,"Three Thousand Four Hundred Fourteen"]
[3415,"Three Thousand Four Hundred Fifteen"]
[3416,"Three Thousand Four Hundred Sixteen"]
[3417,"Three Thousand Four Hundred Seventeen"]
[3418,"Three Thousand Four Hundred Eighteen"]
[3419,"Three Thousand Four Hundred Nineteen"]
[3420,"Three Thousand Four Hundred Twenty "]
[3421,"Three Thousand Four Hundred Twenty One"]
[3422,"Three Thousand Four Hundred Twenty Two"]
[3423,"Three Thousand Four Hundred Twenty Three"]
[3424,"Three Thousand Four Hundred Twenty Four"]
[3425,"Three Thousand Four Hundred Twenty Five"]
[3426,"Three Thousand Four Hundred Twenty Six"]
[3427,"Three Thousand Four Hundred Twenty Seven"]
[3428,"Three Thousand Four Hundred Twenty Eight"]
[3429,"Three Thousand Four Hundred Twenty Nine"]
[3430,"Three Thousand Four Hundred Thirty "]
[3431,"Three Thousand Four Hundred Thirty One"]
[3432,"Three Thousand Four Hundred Thirty Two"]
[3433,"Three Thousand Four Hundred Thirty Three"]
[3434,"Three Thousand Four Hundred Thirty Four"]
[3435,"Three Thousand Four Hundred Thirty Five"]
[3436,"Three Thousand Four Hundred Thirty Six"]
[3437,"Three Thousand Four Hundred Thirty Seven"]
[3438,"Three Thousand Four Hundred Thirty Eight"]
[3439,"Three Thousand Four Hundred Thirty Nine"]
[3440,{"$f":"spellnumber(A3442)","v":"Three Thousand Four Hundred Forty "}]
[3441,"Three Thousand Four Hundred Forty One"]
[3442,"Three Thousand Four Hundred Forty Two"]
[3443,"Three Thousand Four Hundred Forty Three"]
[3444,"Three Thousand Four Hundred Forty Four"]
[3445,"Three Thousand Four Hundred Forty Five"]
[3446,"Three Thousand Four Hundred Forty Six"]
[3447,"Three Thousand Four Hundred Forty Seven"]
[3448,"Three Thousand Four Hundred Forty Eight"]
[3449,"Three Thousand Four Hundred Forty Nine"]
[3450,"Three Thousand Four Hundred Fifty "]
[3451,"Three Thousand Four Hundred Fifty One"]
[3452,"Three Thousand Four Hundred Fifty Two"]
[3453,"Three Thousand Four Hundred Fifty Three"]
[3454,"Three Thousand Four Hundred Fifty Four"]
[3455,"Three Thousand Four Hundred Fifty Five"]
[3456,"Three Thousand Four Hundred Fifty Six"]
[3457,"Three Thousand Four Hundred Fifty Seven"]
[3458,"Three Thousand Four Hundred Fifty Eight"]
[3459,"Three Thousand Four Hundred Fifty Nine"]
[3460,"Three Thousand Four Hundred Sixty "]
[3461,"Three Thousand Four Hundred Sixty One"]
[3462,"Three Thousand Four Hundred Sixty Two"]
[3463,"Three Thousand Four Hundred Sixty Three"]
[3464,"Three Thousand Four Hundred Sixty Four"]
[3465,"Three Thousand Four Hundred Sixty Five"]
[3466,"Three Thousand Four Hundred Sixty Six"]
[3467,"Three Thousand Four Hundred Sixty Seven"]
[3468,"Three Thousand Four Hundred Sixty Eight"]
[3469,"Three Thousand Four Hundred Sixty Nine"]
[3470,"Three Thousand Four Hundred Seventy "]
[3471,"Three Thousand Four Hundred Seventy One"]
[3472,"Three Thousand Four Hundred Seventy Two"]
[3473,"Three Thousand Four Hundred Seventy Three"]
[3474,"Three Thousand Four Hundred Seventy Four"]
[3475,"Three Thousand Four Hundred Seventy Five"]
[3476,"Three Thousand Four Hundred Seventy Six"]
[3477,"Three Thousand Four Hundred Seventy Seven"]
[3478,"Three Thousand Four Hundred Seventy Eight"]
[3479,"Three Thousand Four Hundred Seventy Nine"]
[3480,"Three Thousand Four Hundred Eighty "]
[3481,"Three Thousand Four Hundred Eighty One"]
[3482,"Three Thousand Four Hundred Eighty Two"]
[3483,"Three Thousand Four Hundred Eighty Three"]
[3484,"Three Thousand Four Hundred Eighty Four"]
[3485,"Three Thousand Four Hundred Eighty Five"]
[3486,"Three Thousand Four Hundred Eighty Six"]
[3487,"Three Thousand Four Hundred Eighty Seven"]
[3488,"Three Thousand Four Hundred Eighty Eight"]
[3489,"Three Thousand Four Hundred Eighty Nine"]
[3490,"Three Thousand Four Hundred Ninety "]
[3491,"Three Thousand Four Hundred Ninety One"]
[3492,"Three Thousand Four Hundred Ninety Two"]
[3493,"Three Thousand Four Hundred Ninety Three"]
[3494,"Three Thousand Four Hundred Ninety Four"]
[3495,"Three Thousand Four Hundred Ninety Five"]
[3496,"Three Thousand Four Hundred Ninety Six"]
[3497,"Three Thousand Four Hundred Ninety Seven"]
[3498,"Three Thousand Four Hundred Ninety Eight"]
[3499,"Three Thousand Four Hundred Ninety Nine"]
[3500,"Three Thousand Five Hundred "]
[3501,"Three Thousand Five Hundred One"]
[3502,"Three Thousand Five Hundred Two"]
[3503,"Three Thousand Five Hundred Three"]
[3504,{"$f":"spellnumber(A3506)","v":"Three Thousand Five Hundred Four"}]
[3505,"Three Thousand Five Hundred Five"]
[3506,"Three Thousand Five Hundred Six"]
[3507,"Three Thousand Five Hundred Seven"]
[3508,"Three Thousand Five Hundred Eight"]
[3509,"Three Thousand Five Hundred Nine"]
[3510,"Three Thousand Five Hundred Ten"]
[3511,"Three Thousand Five Hundred Eleven"]
[3512,"Three Thousand Five Hundred Twelve"]
[3513,"Three Thousand Five Hundred Thirteen"]
[3514,"Three Thousand Five Hundred Fourteen"]
[3515,"Three Thousand Five Hundred Fifteen"]
[3516,"Three Thousand Five Hundred Sixteen"]
[3517,"Three Thousand Five Hundred Seventeen"]
[3518,"Three Thousand Five Hundred Eighteen"]
[3519,"Three Thousand Five Hundred Nineteen"]
[3520,"Three Thousand Five Hundred Twenty "]
[3521,"Three Thousand Five Hundred Twenty One"]
[3522,"Three Thousand Five Hundred Twenty Two"]
[3523,"Three Thousand Five Hundred Twenty Three"]
[3524,"Three Thousand Five Hundred Twenty Four"]
[3525,"Three Thousand Five Hundred Twenty Five"]
[3526,"Three Thousand Five Hundred Twenty Six"]
[3527,"Three Thousand Five Hundred Twenty Seven"]
[3528,"Three Thousand Five Hundred Twenty Eight"]
[3529,"Three Thousand Five Hundred Twenty Nine"]
[3530,"Three Thousand Five Hundred Thirty "]
[3531,"Three Thousand Five Hundred Thirty One"]
[3532,"Three Thousand Five Hundred Thirty Two"]
[3533,"Three Thousand Five Hundred Thirty Three"]
[3534,"Three Thousand Five Hundred Thirty Four"]
[3535,"Three Thousand Five Hundred Thirty Five"]
[3536,"Three Thousand Five Hundred Thirty Six"]
[3537,"Three Thousand Five Hundred Thirty Seven"]
[3538,"Three Thousand Five Hundred Thirty Eight"]
[3539,"Three Thousand Five Hundred Thirty Nine"]
[3540,"Three Thousand Five Hundred Forty "]
[3541,"Three Thousand Five Hundred Forty One"]
[3542,"Three Thousand Five Hundred Forty Two"]
[3543,"Three Thousand Five Hundred Forty Three"]
[3544,"Three Thousand Five Hundred Forty Four"]
[3545,"Three Thousand Five Hundred Forty Five"]
[3546,"Three Thousand Five Hundred Forty Six"]
[3547,"Three Thousand Five Hundred Forty Seven"]
[3548,"Three Thousand Five Hundred Forty Eight"]
[3549,"Three Thousand Five Hundred Forty Nine"]
[3550,"Three Thousand Five Hundred Fifty "]
[3551,"Three Thousand Five Hundred Fifty One"]
[3552,"Three Thousand Five Hundred Fifty Two"]
[3553,"Three Thousand Five Hundred Fifty Three"]
[3554,"Three Thousand Five Hundred Fifty Four"]
[3555,"Three Thousand Five Hundred Fifty Five"]
[3556,"Three Thousand Five Hundred Fifty Six"]
[3557,"Three Thousand Five Hundred Fifty Seven"]
[3558,"Three Thousand Five Hundred Fifty Eight"]
[3559,"Three Thousand Five Hundred Fifty Nine"]
[3560,"Three Thousand Five Hundred Sixty "]
[3561,"Three Thousand Five Hundred Sixty One"]
[3562,"Three Thousand Five Hundred Sixty Two"]
[3563,"Three Thousand Five Hundred Sixty Three"]
[3564,"Three Thousand Five Hundred Sixty Four"]
[3565,"Three Thousand Five Hundred Sixty Five"]
[3566,"Three Thousand Five Hundred Sixty Six"]
[3567,"Three Thousand Five Hundred Sixty Seven"]
[3568,{"$f":"spellnumber(A3570)","v":"Three Thousand Five Hundred Sixty Eight"}]
[3569,"Three Thousand Five Hundred Sixty Nine"]
[3570,"Three Thousand Five Hundred Seventy "]
[3571,"Three Thousand Five Hundred Seventy One"]
[3572,"Three Thousand Five Hundred Seventy Two"]
[3573,"Three Thousand Five Hundred Seventy Three"]
[3574,"Three Thousand Five Hundred Seventy Four"]
[3575,"Three Thousand Five Hundred Seventy Five"]
[3576,"Three Thousand Five Hundred Seventy Six"]
[3577,"Three Thousand Five Hundred Seventy Seven"]
[3578,"Three Thousand Five Hundred Seventy Eight"]
[3579,"Three Thousand Five Hundred Seventy Nine"]
[3580,"Three Thousand Five Hundred Eighty "]
[3581,"Three Thousand Five Hundred Eighty One"]
[3582,"Three Thousand Five Hundred Eighty Two"]
[3583,"Three Thousand Five Hundred Eighty Three"]
[3584,"Three Thousand Five Hundred Eighty Four"]
[3585,"Three Thousand Five Hundred Eighty Five"]
[3586,"Three Thousand Five Hundred Eighty Six"]
[3587,"Three Thousand Five Hundred Eighty Seven"]
[3588,"Three Thousand Five Hundred Eighty Eight"]
[3589,"Three Thousand Five Hundred Eighty Nine"]
[3590,"Three Thousand Five Hundred Ninety "]
[3591,"Three Thousand Five Hundred Ninety One"]
[3592,"Three Thousand Five Hundred Ninety Two"]
[3593,"Three Thousand Five Hundred Ninety Three"]
[3594,"Three Thousand Five Hundred Ninety Four"]
[3595,"Three Thousand Five Hundred Ninety Five"]
[3596,"Three Thousand Five Hundred Ninety Six"]
[3597,"Three Thousand Five Hundred Ninety Seven"]
[3598,"Three Thousand Five Hundred Ninety Eight"]
[3599,"Three Thousand Five Hundred Ninety Nine"]
[3600,"Three Thousand Six Hundred "]
[3601,"Three Thousand Six Hundred One"]
[3602,"Three Thousand Six Hundred Two"]
[3603,"Three Thousand Six Hundred Three"]
[3604,"Three Thousand Six Hundred Four"]
[3605,"Three Thousand Six Hundred Five"]
[3606,"Three Thousand Six Hundred Six"]
[3607,"Three Thousand Six Hundred Seven"]
[3608,"Three Thousand Six Hundred Eight"]
[3609,"Three Thousand Six Hundred Nine"]
[3610,"Three Thousand Six Hundred Ten"]
[3611,"Three Thousand Six Hundred Eleven"]
[3612,"Three Thousand Six Hundred Twelve"]
[3613,"Three Thousand Six Hundred Thirteen"]
[3614,"Three Thousand Six Hundred Fourteen"]
[3615,"Three Thousand Six Hundred Fifteen"]
[3616,"Three Thousand Six Hundred Sixteen"]
[3617,"Three Thousand Six Hundred Seventeen"]
[3618,"Three Thousand Six Hundred Eighteen"]
[3619,"Three Thousand Six Hundred Nineteen"]
[3620,"Three Thousand Six Hundred Twenty "]
[3621,"Three Thousand Six Hundred Twenty One"]
[3622,"Three Thousand Six Hundred Twenty Two"]
[3623,"Three Thousand Six Hundred Twenty Three"]
[3624,"Three Thousand Six Hundred Twenty Four"]
[3625,"Three Thousand Six Hundred Twenty Five"]
[3626,"Three Thousand Six Hundred Twenty Six"]
[3627,"Three Thousand Six Hundred Twenty Seven"]
[3628,"Three Thousand Six Hundred Twenty Eight"]
[3629,"Three Thousand Six Hundred Twenty Nine"]
[3630,"Three Thousand Six Hundred Thirty "]
[3631,"Three Thousand Six Hundred Thirty One"]
[3632,{"$f":"spellnumber(A3634)","v":"Three Thousand Six Hundred Thirty Two"}]
[3633,"Three Thousand Six Hundred Thirty Three"]
[3634,"Three Thousand Six Hundred Thirty Four"]
[3635,"Three Thousand Six Hundred Thirty Five"]
[3636,"Three Thousand Six Hundred Thirty Six"]
[3637,"Three Thousand Six Hundred Thirty Seven"]
[3638,"Three Thousand Six Hundred Thirty Eight"]
[3639,"Three Thousand Six Hundred Thirty Nine"]
[3640,"Three Thousand Six Hundred Forty "]
[3641,"Three Thousand Six Hundred Forty One"]
[3642,"Three Thousand Six Hundred Forty Two"]
[3643,"Three Thousand Six Hundred Forty Three"]
[3644,"Three Thousand Six Hundred Forty Four"]
[3645,"Three Thousand Six Hundred Forty Five"]
[3646,"Three Thousand Six Hundred Forty Six"]
[3647,"Three Thousand Six Hundred Forty Seven"]
[3648,"Three Thousand Six Hundred Forty Eight"]
[3649,"Three Thousand Six Hundred Forty Nine"]
[3650,"Three Thousand Six Hundred Fifty "]
[3651,"Three Thousand Six Hundred Fifty One"]
[3652,"Three Thousand Six Hundred Fifty Two"]
[3653,"Three Thousand Six Hundred Fifty Three"]
[3654,"Three Thousand Six Hundred Fifty Four"]
[3655,"Three Thousand Six Hundred Fifty Five"]
[3656,"Three Thousand Six Hundred Fifty Six"]
[3657,"Three Thousand Six Hundred Fifty Seven"]
[3658,"Three Thousand Six Hundred Fifty Eight"]
[3659,"Three Thousand Six Hundred Fifty Nine"]
[3660,"Three Thousand Six Hundred Sixty "]
[3661,"Three Thousand Six Hundred Sixty One"]
[3662,"Three Thousand Six Hundred Sixty Two"]
[3663,"Three Thousand Six Hundred Sixty Three"]
[3664,"Three Thousand Six Hundred Sixty Four"]
[3665,"Three Thousand Six Hundred Sixty Five"]
[3666,"Three Thousand Six Hundred Sixty Six"]
[3667,"Three Thousand Six Hundred Sixty Seven"]
[3668,"Three Thousand Six Hundred Sixty Eight"]
[3669,"Three Thousand Six Hundred Sixty Nine"]
[3670,"Three Thousand Six Hundred Seventy "]
[3671,"Three Thousand Six Hundred Seventy One"]
[3672,"Three Thousand Six Hundred Seventy Two"]
[3673,"Three Thousand Six Hundred Seventy Three"]
[3674,"Three Thousand Six Hundred Seventy Four"]
[3675,"Three Thousand Six Hundred Seventy Five"]
[3676,"Three Thousand Six Hundred Seventy Six"]
[3677,"Three Thousand Six Hundred Seventy Seven"]
[3678,"Three Thousand Six Hundred Seventy Eight"]
[3679,"Three Thousand Six Hundred Seventy Nine"]
[3680,"Three Thousand Six Hundred Eighty "]
[3681,"Three Thousand Six Hundred Eighty One"]
[3682,"Three Thousand Six Hundred Eighty Two"]
[3683,"Three Thousand Six Hundred Eighty Three"]
[3684,"Three Thousand Six Hundred Eighty Four"]
[3685,"Three Thousand Six Hundred Eighty Five"]
[3686,"Three Thousand Six Hundred Eighty Six"]
[3687,"Three Thousand Six Hundred Eighty Seven"]
[3688,"Three Thousand Six Hundred Eighty Eight"]
[3689,"Three Thousand Six Hundred Eighty Nine"]
[3690,"Three Thousand Six Hundred Ninety "]
[3691,"Three Thousand Six Hundred Ninety One"]
[3692,"Three Thousand Six Hundred Ninety Two"]
[3693,"Three Thousand Six Hundred Ninety Three"]
[3694,"Three Thousand Six Hundred Ninety Four"]
[3695,"Three Thousand Six Hundred Ninety Five"]
[3696,{"$f":"spellnumber(A3698)","v":"Three Thousand Six Hundred Ninety Six"}]
[3697,"Three Thousand Six Hundred Ninety Seven"]
[3698,"Three Thousand Six Hundred Ninety Eight"]
[3699,"Three Thousand Six Hundred Ninety Nine"]
[3700,"Three Thousand Seven Hundred "]
[3701,"Three Thousand Seven Hundred One"]
[3702,"Three Thousand Seven Hundred Two"]
[3703,"Three Thousand Seven Hundred Three"]
[3704,"Three Thousand Seven Hundred Four"]
[3705,"Three Thousand Seven Hundred Five"]
[3706,"Three Thousand Seven Hundred Six"]
[3707,"Three Thousand Seven Hundred Seven"]
[3708,"Three Thousand Seven Hundred Eight"]
[3709,"Three Thousand Seven Hundred Nine"]
[3710,"Three Thousand Seven Hundred Ten"]
[3711,"Three Thousand Seven Hundred Eleven"]
[3712,"Three Thousand Seven Hundred Twelve"]
[3713,"Three Thousand Seven Hundred Thirteen"]
[3714,"Three Thousand Seven Hundred Fourteen"]
[3715,"Three Thousand Seven Hundred Fifteen"]
[3716,"Three Thousand Seven Hundred Sixteen"]
[3717,"Three Thousand Seven Hundred Seventeen"]
[3718,"Three Thousand Seven Hundred Eighteen"]
[3719,"Three Thousand Seven Hundred Nineteen"]
[3720,"Three Thousand Seven Hundred Twenty "]
[3721,"Three Thousand Seven Hundred Twenty One"]
[3722,"Three Thousand Seven Hundred Twenty Two"]
[3723,"Three Thousand Seven Hundred Twenty Three"]
[3724,"Three Thousand Seven Hundred Twenty Four"]
[3725,"Three Thousand Seven Hundred Twenty Five"]
[3726,"Three Thousand Seven Hundred Twenty Six"]
[3727,"Three Thousand Seven Hundred Twenty Seven"]
[3728,"Three Thousand Seven Hundred Twenty Eight"]
[3729,"Three Thousand Seven Hundred Twenty Nine"]
[3730,"Three Thousand Seven Hundred Thirty "]
[3731,"Three Thousand Seven Hundred Thirty One"]
[3732,"Three Thousand Seven Hundred Thirty Two"]
[3733,"Three Thousand Seven Hundred Thirty Three"]
[3734,"Three Thousand Seven Hundred Thirty Four"]
[3735,"Three Thousand Seven Hundred Thirty Five"]
[3736,"Three Thousand Seven Hundred Thirty Six"]
[3737,"Three Thousand Seven Hundred Thirty Seven"]
[3738,"Three Thousand Seven Hundred Thirty Eight"]
[3739,"Three Thousand Seven Hundred Thirty Nine"]
[3740,"Three Thousand Seven Hundred Forty "]
[3741,"Three Thousand Seven Hundred Forty One"]
[3742,"Three Thousand Seven Hundred Forty Two"]
[3743,"Three Thousand Seven Hundred Forty Three"]
[3744,"Three Thousand Seven Hundred Forty Four"]
[3745,"Three Thousand Seven Hundred Forty Five"]
[3746,"Three Thousand Seven Hundred Forty Six"]
[3747,"Three Thousand Seven Hundred Forty Seven"]
[3748,"Three Thousand Seven Hundred Forty Eight"]
[3749,"Three Thousand Seven Hundred Forty Nine"]
[3750,"Three Thousand Seven Hundred Fifty "]
[3751,"Three Thousand Seven Hundred Fifty One"]
[3752,"Three Thousand Seven Hundred Fifty Two"]
[3753,"Three Thousand Seven Hundred Fifty Three"]
[3754,"Three Thousand Seven Hundred Fifty Four"]
[3755,"Three Thousand Seven Hundred Fifty Five"]
[3756,"Three Thousand Seven Hundred Fifty Six"]
[3757,"Three Thousand Seven Hundred Fifty Seven"]
[3758,"Three Thousand Seven Hundred Fifty Eight"]
[3759,"Three Thousand Seven Hundred Fifty Nine"]
[3760,{"$f":"spellnumber(A3762)","v":"Three Thousand Seven Hundred Sixty "}]
[3761,"Three Thousand Seven Hundred Sixty One"]
[3762,"Three Thousand Seven Hundred Sixty Two"]
[3763,"Three Thousand Seven Hundred Sixty Three"]
[3764,"Three Thousand Seven Hundred Sixty Four"]
[3765,"Three Thousand Seven Hundred Sixty Five"]
[3766,"Three Thousand Seven Hundred Sixty Six"]
[3767,"Three Thousand Seven Hundred Sixty Seven"]
[3768,"Three Thousand Seven Hundred Sixty Eight"]
[3769,"Three Thousand Seven Hundred Sixty Nine"]
[3770,"Three Thousand Seven Hundred Seventy "]
[3771,"Three Thousand Seven Hundred Seventy One"]
[3772,"Three Thousand Seven Hundred Seventy Two"]
[3773,"Three Thousand Seven Hundred Seventy Three"]
[3774,"Three Thousand Seven Hundred Seventy Four"]
[3775,"Three Thousand Seven Hundred Seventy Five"]
[3776,"Three Thousand Seven Hundred Seventy Six"]
[3777,"Three Thousand Seven Hundred Seventy Seven"]
[3778,"Three Thousand Seven Hundred Seventy Eight"]
[3779,"Three Thousand Seven Hundred Seventy Nine"]
[3780,"Three Thousand Seven Hundred Eighty "]
[3781,"Three Thousand Seven Hundred Eighty One"]
[3782,"Three Thousand Seven Hundred Eighty Two"]
[3783,"Three Thousand Seven Hundred Eighty Three"]
[3784,"Three Thousand Seven Hundred Eighty Four"]
[3785,"Three Thousand Seven Hundred Eighty Five"]
[3786,"Three Thousand Seven Hundred Eighty Six"]
[3787,"Three Thousand Seven Hundred Eighty Seven"]
[3788,"Three Thousand Seven Hundred Eighty Eight"]
[3789,"Three Thousand Seven Hundred Eighty Nine"]
[3790,"Three Thousand Seven Hundred Ninety "]
[3791,"Three Thousand Seven Hundred Ninety One"]
[3792,"Three Thousand Seven Hundred Ninety Two"]
[3793,"Three Thousand Seven Hundred Ninety Three"]
[3794,"Three Thousand Seven Hundred Ninety Four"]
[3795,"Three Thousand Seven Hundred Ninety Five"]
[3796,"Three Thousand Seven Hundred Ninety Six"]
[3797,"Three Thousand Seven Hundred Ninety Seven"]
[3798,"Three Thousand Seven Hundred Ninety Eight"]
[3799,"Three Thousand Seven Hundred Ninety Nine"]
[3800,"Three Thousand Eight Hundred "]
[3801,"Three Thousand Eight Hundred One"]
[3802,"Three Thousand Eight Hundred Two"]
[3803,"Three Thousand Eight Hundred Three"]
[3804,"Three Thousand Eight Hundred Four"]
[3805,"Three Thousand Eight Hundred Five"]
[3806,"Three Thousand Eight Hundred Six"]
[3807,"Three Thousand Eight Hundred Seven"]
[3808,"Three Thousand Eight Hundred Eight"]
[3809,"Three Thousand Eight Hundred Nine"]
[3810,"Three Thousand Eight Hundred Ten"]
[3811,"Three Thousand Eight Hundred Eleven"]
[3812,"Three Thousand Eight Hundred Twelve"]
[3813,"Three Thousand Eight Hundred Thirteen"]
[3814,"Three Thousand Eight Hundred Fourteen"]
[3815,"Three Thousand Eight Hundred Fifteen"]
[3816,"Three Thousand Eight Hundred Sixteen"]
[3817,"Three Thousand Eight Hundred Seventeen"]
[3818,"Three Thousand Eight Hundred Eighteen"]
[3819,"Three Thousand Eight Hundred Nineteen"]
[3820,"Three Thousand Eight Hundred Twenty "]
[3821,"Three Thousand Eight Hundred Twenty One"]
[3822,"Three Thousand Eight Hundred Twenty Two"]
[3823,"Three Thousand Eight Hundred Twenty Three"]
[3824,{"$f":"spellnumber(A3826)","v":"Three Thousand Eight Hundred Twenty Four"}]
[3825,"Three Thousand Eight Hundred Twenty Five"]
[3826,"Three Thousand Eight Hundred Twenty Six"]
[3827,"Three Thousand Eight Hundred Twenty Seven"]
[3828,"Three Thousand Eight Hundred Twenty Eight"]
[3829,"Three Thousand Eight Hundred Twenty Nine"]
[3830,"Three Thousand Eight Hundred Thirty "]
[3831,"Three Thousand Eight Hundred Thirty One"]
[3832,"Three Thousand Eight Hundred Thirty Two"]
[3833,"Three Thousand Eight Hundred Thirty Three"]
[3834,"Three Thousand Eight Hundred Thirty Four"]
[3835,"Three Thousand Eight Hundred Thirty Five"]
[3836,"Three Thousand Eight Hundred Thirty Six"]
[3837,"Three Thousand Eight Hundred Thirty Seven"]
[3838,"Three Thousand Eight Hundred Thirty Eight"]
[3839,"Three Thousand Eight Hundred Thirty Nine"]
[3840,"Three Thousand Eight Hundred Forty "]
[3841,"Three Thousand Eight Hundred Forty One"]
[3842,"Three Thousand Eight Hundred Forty Two"]
[3843,"Three Thousand Eight Hundred Forty Three"]
[3844,"Three Thousand Eight Hundred Forty Four"]
[3845,"Three Thousand Eight Hundred Forty Five"]
[3846,"Three Thousand Eight Hundred Forty Six"]
[3847,"Three Thousand Eight Hundred Forty Seven"]
[3848,"Three Thousand Eight Hundred Forty Eight"]
[3849,"Three Thousand Eight Hundred Forty Nine"]
[3850,"Three Thousand Eight Hundred Fifty "]
[3851,"Three Thousand Eight Hundred Fifty One"]
[3852,"Three Thousand Eight Hundred Fifty Two"]
[3853,"Three Thousand Eight Hundred Fifty Three"]
[3854,"Three Thousand Eight Hundred Fifty Four"]
[3855,"Three Thousand Eight Hundred Fifty Five"]
[3856,"Three Thousand Eight Hundred Fifty Six"]
[3857,"Three Thousand Eight Hundred Fifty Seven"]
[3858,"Three Thousand Eight Hundred Fifty Eight"]
[3859,"Three Thousand Eight Hundred Fifty Nine"]
[3860,"Three Thousand Eight Hundred Sixty "]
[3861,"Three Thousand Eight Hundred Sixty One"]
[3862,"Three Thousand Eight Hundred Sixty Two"]
[3863,"Three Thousand Eight Hundred Sixty Three"]
[3864,"Three Thousand Eight Hundred Sixty Four"]
[3865,"Three Thousand Eight Hundred Sixty Five"]
[3866,"Three Thousand Eight Hundred Sixty Six"]
[3867,"Three Thousand Eight Hundred Sixty Seven"]
[3868,"Three Thousand Eight Hundred Sixty Eight"]
[3869,"Three Thousand Eight Hundred Sixty Nine"]
[3870,"Three Thousand Eight Hundred Seventy "]
[3871,"Three Thousand Eight Hundred Seventy One"]
[3872,"Three Thousand Eight Hundred Seventy Two"]
[3873,"Three Thousand Eight Hundred Seventy Three"]
[3874,"Three Thousand Eight Hundred Seventy Four"]
[3875,"Three Thousand Eight Hundred Seventy Five"]
[3876,"Three Thousand Eight Hundred Seventy Six"]
[3877,"Three Thousand Eight Hundred Seventy Seven"]
[3878,"Three Thousand Eight Hundred Seventy Eight"]
[3879,"Three Thousand Eight Hundred Seventy Nine"]
[3880,"Three Thousand Eight Hundred Eighty "]
[3881,"Three Thousand Eight Hundred Eighty One"]
[3882,"Three Thousand Eight Hundred Eighty Two"]
[3883,"Three Thousand Eight Hundred Eighty Three"]
[3884,"Three Thousand Eight Hundred Eighty Four"]
[3885,"Three Thousand Eight Hundred Eighty Five"]
[3886,"Three Thousand Eight Hundred Eighty Six"]
[3887,"Three Thousand Eight Hundred Eighty Seven"]
[3888,{"$f":"spellnumber(A3890)","v":"Three Thousand Eight Hundred Eighty Eight"}]
[3889,"Three Thousand Eight Hundred Eighty Nine"]
[3890,"Three Thousand Eight Hundred Ninety "]
[3891,"Three Thousand Eight Hundred Ninety One"]
[3892,"Three Thousand Eight Hundred Ninety Two"]
[3893,"Three Thousand Eight Hundred Ninety Three"]
[3894,"Three Thousand Eight Hundred Ninety Four"]
[3895,"Three Thousand Eight Hundred Ninety Five"]
[3896,"Three Thousand Eight Hundred Ninety Six"]
[3897,"Three Thousand Eight Hundred Ninety Seven"]
[3898,"Three Thousand Eight Hundred Ninety Eight"]
[3899,"Three Thousand Eight Hundred Ninety Nine"]
[3900,"Three Thousand Nine Hundred "]
[3901,"Three Thousand Nine Hundred One"]
[3902,"Three Thousand Nine Hundred Two"]
[3903,"Three Thousand Nine Hundred Three"]
[3904,"Three Thousand Nine Hundred Four"]
[3905,"Three Thousand Nine Hundred Five"]
[3906,"Three Thousand Nine Hundred Six"]
[3907,"Three Thousand Nine Hundred Seven"]
[3908,"Three Thousand Nine Hundred Eight"]
[3909,"Three Thousand Nine Hundred Nine"]
[3910,"Three Thousand Nine Hundred Ten"]
[3911,"Three Thousand Nine Hundred Eleven"]
[3912,"Three Thousand Nine Hundred Twelve"]
[3913,"Three Thousand Nine Hundred Thirteen"]
[3914,"Three Thousand Nine Hundred Fourteen"]
[3915,"Three Thousand Nine Hundred Fifteen"]
[3916,"Three Thousand Nine Hundred Sixteen"]
[3917,"Three Thousand Nine Hundred Seventeen"]
[3918,"Three Thousand Nine Hundred Eighteen"]
[3919,"Three Thousand Nine Hundred Nineteen"]
[3920,"Three Thousand Nine Hundred Twenty "]
[3921,"Three Thousand Nine Hundred Twenty One"]
[3922,"Three Thousand Nine Hundred Twenty Two"]
[3923,"Three Thousand Nine Hundred Twenty Three"]
[3924,"Three Thousand Nine Hundred Twenty Four"]
[3925,"Three Thousand Nine Hundred Twenty Five"]
[3926,"Three Thousand Nine Hundred Twenty Six"]
[3927,"Three Thousand Nine Hundred Twenty Seven"]
[3928,"Three Thousand Nine Hundred Twenty Eight"]
[3929,"Three Thousand Nine Hundred Twenty Nine"]
[3930,"Three Thousand Nine Hundred Thirty "]
[3931,"Three Thousand Nine Hundred Thirty One"]
[3932,"Three Thousand Nine Hundred Thirty Two"]
[3933,"Three Thousand Nine Hundred Thirty Three"]
[3934,"Three Thousand Nine Hundred Thirty Four"]
[3935,"Three Thousand Nine Hundred Thirty Five"]
[3936,"Three Thousand Nine Hundred Thirty Six"]
[3937,"Three Thousand Nine Hundred Thirty Seven"]
[3938,"Three Thousand Nine Hundred Thirty Eight"]
[3939,"Three Thousand Nine Hundred Thirty Nine"]
[3940,"Three Thousand Nine Hundred Forty "]
[3941,"Three Thousand Nine Hundred Forty One"]
[3942,"Three Thousand Nine Hundred Forty Two"]
[3943,"Three Thousand Nine Hundred Forty Three"]
[3944,"Three Thousand Nine Hundred Forty Four"]
[3945,"Three Thousand Nine Hundred Forty Five"]
[3946,"Three Thousand Nine Hundred Forty Six"]
[3947,"Three Thousand Nine Hundred Forty Seven"]
[3948,"Three Thousand Nine Hundred Forty Eight"]
[3949,"Three Thousand Nine Hundred Forty Nine"]
[3950,"Three Thousand Nine Hundred Fifty "]
[3951,"Three Thousand Nine Hundred Fifty One"]
[3952,{"$f":"spellnumber(A3954)","v":"Three Thousand Nine Hundred Fifty Two"}]
[3953,"Three Thousand Nine Hundred Fifty Three"]
[3954,"Three Thousand Nine Hundred Fifty Four"]
[3955,"Three Thousand Nine Hundred Fifty Five"]
[3956,"Three Thousand Nine Hundred Fifty Six"]
[3957,"Three Thousand Nine Hundred Fifty Seven"]
[3958,"Three Thousand Nine Hundred Fifty Eight"]
[3959,"Three Thousand Nine Hundred Fifty Nine"]
[3960,"Three Thousand Nine Hundred Sixty "]
[3961,"Three Thousand Nine Hundred Sixty One"]
[3962,"Three Thousand Nine Hundred Sixty Two"]
[3963,"Three Thousand Nine Hundred Sixty Three"]
[3964,"Three Thousand Nine Hundred Sixty Four"]
[3965,"Three Thousand Nine Hundred Sixty Five"]
[3966,"Three Thousand Nine Hundred Sixty Six"]
[3967,"Three Thousand Nine Hundred Sixty Seven"]
[3968,"Three Thousand Nine Hundred Sixty Eight"]
[3969,"Three Thousand Nine Hundred Sixty Nine"]
[3970,"Three Thousand Nine Hundred Seventy "]
[3971,"Three Thousand Nine Hundred Seventy One"]
[3972,"Three Thousand Nine Hundred Seventy Two"]
[3973,"Three Thousand Nine Hundred Seventy Three"]
[3974,"Three Thousand Nine Hundred Seventy Four"]
[3975,"Three Thousand Nine Hundred Seventy Five"]
[3976,"Three Thousand Nine Hundred Seventy Six"]
[3977,"Three Thousand Nine Hundred Seventy Seven"]
[3978,"Three Thousand Nine Hundred Seventy Eight"]
[3979,"Three Thousand Nine Hundred Seventy Nine"]
[3980,"Three Thousand Nine Hundred Eighty "]
[3981,"Three Thousand Nine Hundred Eighty One"]
[3982,"Three Thousand Nine Hundred Eighty Two"]
[3983,"Three Thousand Nine Hundred Eighty Three"]
[3984,"Three Thousand Nine Hundred Eighty Four"]
[3985,"Three Thousand Nine Hundred Eighty Five"]
[3986,"Three Thousand Nine Hundred Eighty Six"]
[3987,"Three Thousand Nine Hundred Eighty Seven"]
[3988,"Three Thousand Nine Hundred Eighty Eight"]
[3989,"Three Thousand Nine Hundred Eighty Nine"]
[3990,"Three Thousand Nine Hundred Ninety "]
[3991,"Three Thousand Nine Hundred Ninety One"]
[3992,"Three Thousand Nine Hundred Ninety Two"]
[3993,"Three Thousand Nine Hundred Ninety Three"]
[3994,"Three Thousand Nine Hundred Ninety Four"]
[3995,"Three Thousand Nine Hundred Ninety Five"]
[3996,"Three Thousand Nine Hundred Ninety Six"]
[3997,"Three Thousand Nine Hundred Ninety Seven"]
[3998,"Three Thousand Nine Hundred Ninety Eight"]
[3999,"Three Thousand Nine Hundred Ninety Nine"]
[4000,"Four Thousand "]
[4001,"Four Thousand One"]
[4002,"Four Thousand Two"]
[4003,"Four Thousand Three"]
[4004,"Four Thousand Four"]
[4005,"Four Thousand Five"]
[4006,"Four Thousand Six"]
[4007,"Four Thousand Seven"]
[4008,"Four Thousand Eight"]
[4009,"Four Thousand Nine"]
[4010,"Four Thousand Ten"]
[4011,"Four Thousand Eleven"]
[4012,"Four Thousand Twelve"]
[4013,"Four Thousand Thirteen"]
[4014,"Four Thousand Fourteen"]
[4015,"Four Thousand Fifteen"]
[4016,{"$f":"spellnumber(A4018)","v":"Four Thousand Sixteen"}]
[4017,"Four Thousand Seventeen"]
[4018,"Four Thousand Eighteen"]
[4019,"Four Thousand Nineteen"]
[4020,"Four Thousand Twenty "]
[4021,"Four Thousand Twenty One"]
[4022,"Four Thousand Twenty Two"]
[4023,"Four Thousand Twenty Three"]
[4024,"Four Thousand Twenty Four"]
[4025,"Four Thousand Twenty Five"]
[4026,"Four Thousand Twenty Six"]
[4027,"Four Thousand Twenty Seven"]
[4028,"Four Thousand Twenty Eight"]
[4029,"Four Thousand Twenty Nine"]
[4030,"Four Thousand Thirty "]
[4031,"Four Thousand Thirty One"]
[4032,"Four Thousand Thirty Two"]
[4033,"Four Thousand Thirty Three"]
[4034,"Four Thousand Thirty Four"]
[4035,"Four Thousand Thirty Five"]
[4036,"Four Thousand Thirty Six"]
[4037,"Four Thousand Thirty Seven"]
[4038,"Four Thousand Thirty Eight"]
[4039,"Four Thousand Thirty Nine"]
[4040,"Four Thousand Forty "]
[4041,"Four Thousand Forty One"]
[4042,"Four Thousand Forty Two"]
[4043,"Four Thousand Forty Three"]
[4044,"Four Thousand Forty Four"]
[4045,"Four Thousand Forty Five"]
[4046,"Four Thousand Forty Six"]
[4047,"Four Thousand Forty Seven"]
[4048,"Four Thousand Forty Eight"]
[4049,"Four Thousand Forty Nine"]
[4050,"Four Thousand Fifty "]
[4051,"Four Thousand Fifty One"]
[4052,"Four Thousand Fifty Two"]
[4053,"Four Thousand Fifty Three"]
[4054,"Four Thousand Fifty Four"]
[4055,"Four Thousand Fifty Five"]
[4056,"Four Thousand Fifty Six"]
[4057,"Four Thousand Fifty Seven"]
[4058,"Four Thousand Fifty Eight"]
[4059,"Four Thousand Fifty Nine"]
[4060,"Four Thousand Sixty "]
[4061,"Four Thousand Sixty One"]
[4062,"Four Thousand Sixty Two"]
[4063,"Four Thousand Sixty Three"]
[4064,"Four Thousand Sixty Four"]
[4065,"Four Thousand Sixty Five"]
[4066,"Four Thousand Sixty Six"]
[4067,"Four Thousand Sixty Seven"]
[4068,"Four Thousand Sixty Eight"]
[4069,"Four Thousand Sixty Nine"]
[4070,"Four Thousand Seventy "]
[4071,"Four Thousand Seventy One"]
[4072,"Four Thousand Seventy Two"]
[4073,"Four Thousand Seventy Three"]
[4074,"Four Thousand Seventy Four"]
[4075,"Four Thousand Seventy Five"]
[4076,"Four Thousand Seventy Six"]
[4077,"Four Thousand Seventy Seven"]
[4078,"Four Thousand Seventy Eight"]
[4079,"Four Thousand Seventy Nine"]
[4080,{"$f":"spellnumber(A4082)","v":"Four Thousand Eighty "}]
[4081,"Four Thousand Eighty One"]
[4082,"Four Thousand Eighty Two"]
[4083,"Four Thousand Eighty Three"]
[4084,"Four Thousand Eighty Four"]
[4085,"Four Thousand Eighty Five"]
[4086,"Four Thousand Eighty Six"]
[4087,"Four Thousand Eighty Seven"]
[4088,"Four Thousand Eighty Eight"]
[4089,"Four Thousand Eighty Nine"]
[4090,"Four Thousand Ninety "]
[4091,"Four Thousand Ninety One"]
[4092,"Four Thousand Ninety Two"]
[4093,"Four Thousand Ninety Three"]
[4094,"Four Thousand Ninety Four"]
[4095,"Four Thousand Ninety Five"]
[4096,"Four Thousand Ninety Six"]
[4097,"Four Thousand Ninety Seven"]
[4098,"Four Thousand Ninety Eight"]
[4099,"Four Thousand Ninety Nine"]
[4100,"Four Thousand One Hundred "]
[4101,"Four Thousand One Hundred One"]
[4102,"Four Thousand One Hundred Two"]
[4103,"Four Thousand One Hundred Three"]
[4104,"Four Thousand One Hundred Four"]
[4105,"Four Thousand One Hundred Five"]
[4106,"Four Thousand One Hundred Six"]
[4107,"Four Thousand One Hundred Seven"]
[4108,"Four Thousand One Hundred Eight"]
[4109,"Four Thousand One Hundred Nine"]
[4110,"Four Thousand One Hundred Ten"]
[4111,"Four Thousand One Hundred Eleven"]
[4112,"Four Thousand One Hundred Twelve"]
[4113,"Four Thousand One Hundred Thirteen"]
[4114,"Four Thousand One Hundred Fourteen"]
[4115,"Four Thousand One Hundred Fifteen"]
[4116,"Four Thousand One Hundred Sixteen"]
[4117,"Four Thousand One Hundred Seventeen"]
[4118,"Four Thousand One Hundred Eighteen"]
[4119,"Four Thousand One Hundred Nineteen"]
[4120,"Four Thousand One Hundred Twenty "]
[4121,"Four Thousand One Hundred Twenty One"]
[4122,"Four Thousand One Hundred Twenty Two"]
[4123,"Four Thousand One Hundred Twenty Three"]
[4124,"Four Thousand One Hundred Twenty Four"]
[4125,"Four Thousand One Hundred Twenty Five"]
[4126,"Four Thousand One Hundred Twenty Six"]
[4127,"Four Thousand One Hundred Twenty Seven"]
[4128,"Four Thousand One Hundred Twenty Eight"]
[4129,"Four Thousand One Hundred Twenty Nine"]
[4130,"Four Thousand One Hundred Thirty "]
[4131,"Four Thousand One Hundred Thirty One"]
[4132,"Four Thousand One Hundred Thirty Two"]
[4133,"Four Thousand One Hundred Thirty Three"]
[4134,"Four Thousand One Hundred Thirty Four"]
[4135,"Four Thousand One Hundred Thirty Five"]
[4136,"Four Thousand One Hundred Thirty Six"]
[4137,"Four Thousand One Hundred Thirty Seven"]
[4138,"Four Thousand One Hundred Thirty Eight"]
[4139,"Four Thousand One Hundred Thirty Nine"]
[4140,"Four Thousand One Hundred Forty "]
[4141,"Four Thousand One Hundred Forty One"]
[4142,"Four Thousand One Hundred Forty Two"]
[4143,"Four Thousand One Hundred Forty Three"]
[4144,{"$f":"spellnumber(A4146)","v":"Four Thousand One Hundred Forty Four"}]
[4145,"Four Thousand One Hundred Forty Five"]
[4146,"Four Thousand One Hundred Forty Six"]
[4147,"Four Thousand One Hundred Forty Seven"]
[4148,"Four Thousand One Hundred Forty Eight"]
[4149,"Four Thousand One Hundred Forty Nine"]
[4150,"Four Thousand One Hundred Fifty "]
[4151,"Four Thousand One Hundred Fifty One"]
[4152,"Four Thousand One Hundred Fifty Two"]
[4153,"Four Thousand One Hundred Fifty Three"]
[4154,"Four Thousand One Hundred Fifty Four"]
[4155,"Four Thousand One Hundred Fifty Five"]
[4156,"Four Thousand One Hundred Fifty Six"]
[4157,"Four Thousand One Hundred Fifty Seven"]
[4158,"Four Thousand One Hundred Fifty Eight"]
[4159,"Four Thousand One Hundred Fifty Nine"]
[4160,"Four Thousand One Hundred Sixty "]
[4161,"Four Thousand One Hundred Sixty One"]
[4162,"Four Thousand One Hundred Sixty Two"]
[4163,"Four Thousand One Hundred Sixty Three"]
[4164,"Four Thousand One Hundred Sixty Four"]
[4165,"Four Thousand One Hundred Sixty Five"]
[4166,"Four Thousand One Hundred Sixty Six"]
[4167,"Four Thousand One Hundred Sixty Seven"]
[4168,"Four Thousand One Hundred Sixty Eight"]
[4169,"Four Thousand One Hundred Sixty Nine"]
[4170,"Four Thousand One Hundred Seventy "]
[4171,"Four Thousand One Hundred Seventy One"]
[4172,"Four Thousand One Hundred Seventy Two"]
[4173,"Four Thousand One Hundred Seventy Three"]
[4174,"Four Thousand One Hundred Seventy Four"]
[4175,"Four Thousand One Hundred Seventy Five"]
[4176,"Four Thousand One Hundred Seventy Six"]
[4177,"Four Thousand One Hundred Seventy Seven"]
[4178,"Four Thousand One Hundred Seventy Eight"]
[4179,"Four Thousand One Hundred Seventy Nine"]
[4180,"Four Thousand One Hundred Eighty "]
[4181,"Four Thousand One Hundred Eighty One"]
[4182,"Four Thousand One Hundred Eighty Two"]
[4183,"Four Thousand One Hundred Eighty Three"]
[4184,"Four Thousand One Hundred Eighty Four"]
[4185,"Four Thousand One Hundred Eighty Five"]
[4186,"Four Thousand One Hundred Eighty Six"]
[4187,"Four Thousand One Hundred Eighty Seven"]
[4188,"Four Thousand One Hundred Eighty Eight"]
[4189,"Four Thousand One Hundred Eighty Nine"]
[4190,"Four Thousand One Hundred Ninety "]
[4191,"Four Thousand One Hundred Ninety One"]
[4192,"Four Thousand One Hundred Ninety Two"]
[4193,"Four Thousand One Hundred Ninety Three"]
[4194,"Four Thousand One Hundred Ninety Four"]
[4195,"Four Thousand One Hundred Ninety Five"]
[4196,"Four Thousand One Hundred Ninety Six"]
[4197,"Four Thousand One Hundred Ninety Seven"]
[4198,"Four Thousand One Hundred Ninety Eight"]
[4199,"Four Thousand One Hundred Ninety Nine"]
[4200,"Four Thousand Two Hundred "]
[4201,"Four Thousand Two Hundred One"]
[4202,"Four Thousand Two Hundred Two"]
[4203,"Four Thousand Two Hundred Three"]
[4204,"Four Thousand Two Hundred Four"]
[4205,"Four Thousand Two Hundred Five"]
[4206,"Four Thousand Two Hundred Six"]
[4207,"Four Thousand Two Hundred Seven"]
[4208,{"$f":"spellnumber(A4210)","v":"Four Thousand Two Hundred Eight"}]
[4209,"Four Thousand Two Hundred Nine"]
[4210,"Four Thousand Two Hundred Ten"]
[4211,"Four Thousand Two Hundred Eleven"]
[4212,"Four Thousand Two Hundred Twelve"]
[4213,"Four Thousand Two Hundred Thirteen"]
[4214,"Four Thousand Two Hundred Fourteen"]
[4215,"Four Thousand Two Hundred Fifteen"]
[4216,{"$f":"spellnumber(A4218)","v":"Four Thousand Two Hundred Sixteen"}]
[4217,"Four Thousand Two Hundred Seventeen"]
[4218,"Four Thousand Two Hundred Eighteen"]
[4219,"Four Thousand Two Hundred Nineteen"]
[4220,{"$f":"spellnumber(A4222)","v":"Four Thousand Two Hundred Twenty "}]
[4221,"Four Thousand Two Hundred Twenty One"]
[4222,"Four Thousand Two Hundred Twenty Two"]
[4223,"Four Thousand Two Hundred Twenty Three"]
[4224,"Four Thousand Two Hundred Twenty Four"]
[4225,"Four Thousand Two Hundred Twenty Five"]
[4226,"Four Thousand Two Hundred Twenty Six"]
[4227,"Four Thousand Two Hundred Twenty Seven"]
[4228,"Four Thousand Two Hundred Twenty Eight"]
[4229,"Four Thousand Two Hundred Twenty Nine"]
[4230,"Four Thousand Two Hundred Thirty "]
[4231,"Four Thousand Two Hundred Thirty One"]
[4232,"Four Thousand Two Hundred Thirty Two"]
[4233,"Four Thousand Two Hundred Thirty Three"]
[4234,"Four Thousand Two Hundred Thirty Four"]
[4235,"Four Thousand Two Hundred Thirty Five"]
[4236,"Four Thousand Two Hundred Thirty Six"]
[4237,"Four Thousand Two Hundred Thirty Seven"]
[4238,"Four Thousand Two Hundred Thirty Eight"]
[4239,"Four Thousand Two Hundred Thirty Nine"]
[4240,"Four Thousand Two Hundred Forty "]
[4241,"Four Thousand Two Hundred Forty One"]
[4242,"Four Thousand Two Hundred Forty Two"]
[4243,"Four Thousand Two Hundred Forty Three"]
[4244,"Four Thousand Two Hundred Forty Four"]
[4245,"Four Thousand Two Hundred Forty Five"]
[4246,"Four Thousand Two Hundred Forty Six"]
[4247,"Four Thousand Two Hundred Forty Seven"]
[4248,"Four Thousand Two Hundred Forty Eight"]
[4249,"Four Thousand Two Hundred Forty Nine"]
[4250,"Four Thousand Two Hundred Fifty "]
[4251,"Four Thousand Two Hundred Fifty One"]
[4252,"Four Thousand Two Hundred Fifty Two"]
[4253,"Four Thousand Two Hundred Fifty Three"]
[4254,"Four Thousand Two Hundred Fifty Four"]
[4255,"Four Thousand Two Hundred Fifty Five"]
[4256,"Four Thousand Two Hundred Fifty Six"]
[4257,"Four Thousand Two Hundred Fifty Seven"]
[4258,"Four Thousand Two Hundred Fifty Eight"]
[4259,"Four Thousand Two Hundred Fifty Nine"]
[4260,"Four Thousand Two Hundred Sixty "]
[4261,"Four Thousand Two Hundred Sixty One"]
[4262,"Four Thousand Two Hundred Sixty Two"]
[4263,"Four Thousand Two Hundred Sixty Three"]
[4264,"Four Thousand Two Hundred Sixty Four"]
[4265,"Four Thousand Two Hundred Sixty Five"]
[4266,"Four Thousand Two Hundred Sixty Six"]
[4267,"Four Thousand Two Hundred Sixty Seven"]
[4268,"Four Thousand Two Hundred Sixty Eight"]
[4269,"Four Thousand Two Hundred Sixty Nine"]
[4270,"Four Thousand Two Hundred Seventy "]
[4271,"Four Thousand Two Hundred Seventy One"]
[4272,"Four Thousand Two Hundred Seventy Two"]
[4273,"Four Thousand Two Hundred Seventy Three"]
[4274,"Four Thousand Two Hundred Seventy Four"]
[4275,"Four Thousand Two Hundred Seventy Five"]
[4276,"Four Thousand Two Hundred Seventy Six"]
[4277,"Four Thousand Two Hundred Seventy Seven"]
[4278,"Four Thousand Two Hundred Seventy Eight"]
[4279,"Four Thousand Two Hundred Seventy Nine"]
[4280,"Four Thousand Two Hundred Eighty "]
[4281,"Four Thousand Two Hundred Eighty One"]
[4282,"Four Thousand Two Hundred Eighty Two"]
[4283,"Four Thousand Two Hundred Eighty Three"]
[4284,{"$f":"spellnumber(A4286)","v":"Four Thousand Two Hundred Eighty Four"}]
[4285,"Four Thousand Two Hundred Eighty Five"]
[4286,"Four Thousand Two Hundred Eighty Six"]
[4287,"Four Thousand Two Hundred Eighty Seven"]
[4288,"Four Thousand Two Hundred Eighty Eight"]
[4289,"Four Thousand Two Hundred Eighty Nine"]
[4290,"Four Thousand Two Hundred Ninety "]
[4291,"Four Thousand Two Hundred Ninety One"]
[4292,"Four Thousand Two Hundred Ninety Two"]
[4293,"Four Thousand Two Hundred Ninety Three"]
[4294,"Four Thousand Two Hundred Ninety Four"]
[4295,"Four Thousand Two Hundred Ninety Five"]
[4296,"Four Thousand Two Hundred Ninety Six"]
[4297,"Four Thousand Two Hundred Ninety Seven"]
[4298,"Four Thousand Two Hundred Ninety Eight"]
[4299,"Four Thousand Two Hundred Ninety Nine"]
[4300,"Four Thousand Three Hundred "]
[4301,"Four Thousand Three Hundred One"]
[4302,"Four Thousand Three Hundred Two"]
[4303,"Four Thousand Three Hundred Three"]
[4304,"Four Thousand Three Hundred Four"]
[4305,"Four Thousand Three Hundred Five"]
[4306,"Four Thousand Three Hundred Six"]
[4307,"Four Thousand Three Hundred Seven"]
[4308,"Four Thousand Three Hundred Eight"]
[4309,"Four Thousand Three Hundred Nine"]
[4310,"Four Thousand Three Hundred Ten"]
[4311,"Four Thousand Three Hundred Eleven"]
[4312,"Four Thousand Three Hundred Twelve"]
[4313,"Four Thousand Three Hundred Thirteen"]
[4314,"Four Thousand Three Hundred Fourteen"]
[4315,"Four Thousand Three Hundred Fifteen"]
[4316,"Four Thousand Three Hundred Sixteen"]
[4317,"Four Thousand Three Hundred Seventeen"]
[4318,"Four Thousand Three Hundred Eighteen"]
[4319,"Four Thousand Three Hundred Nineteen"]
[4320,"Four Thousand Three Hundred Twenty "]
[4321,"Four Thousand Three Hundred Twenty One"]
[4322,"Four Thousand Three Hundred Twenty Two"]
[4323,"Four Thousand Three Hundred Twenty Three"]
[4324,"Four Thousand Three Hundred Twenty Four"]
[4325,"Four Thousand Three Hundred Twenty Five"]
[4326,"Four Thousand Three Hundred Twenty Six"]
[4327,"Four Thousand Three Hundred Twenty Seven"]
[4328,"Four Thousand Three Hundred Twenty Eight"]
[4329,"Four Thousand Three Hundred Twenty Nine"]
[4330,"Four Thousand Three Hundred Thirty "]
[4331,"Four Thousand Three Hundred Thirty One"]
[4332,"Four Thousand Three Hundred Thirty Two"]
[4333,"Four Thousand Three Hundred Thirty Three"]
[4334,"Four Thousand Three Hundred Thirty Four"]
[4335,"Four Thousand Three Hundred Thirty Five"]
[4336,"Four Thousand Three Hundred Thirty Six"]
[4337,"Four Thousand Three Hundred Thirty Seven"]
[4338,"Four Thousand Three Hundred Thirty Eight"]
[4339,"Four Thousand Three Hundred Thirty Nine"]
[4340,"Four Thousand Three Hundred Forty "]
[4341,"Four Thousand Three Hundred Forty One"]
[4342,"Four Thousand Three Hundred Forty Two"]
[4343,"Four Thousand Three Hundred Forty Three"]
[4344,"Four Thousand Three Hundred Forty Four"]
[4345,"Four Thousand Three Hundred Forty Five"]
[4346,"Four Thousand Three Hundred Forty Six"]
[4347,"Four Thousand Three Hundred Forty Seven"]
[4348,{"$f":"spellnumber(A4350)","v":"Four Thousand Three Hundred Forty Eight"}]
[4349,"Four Thousand Three Hundred Forty Nine"]
[4350,"Four Thousand Three Hundred Fifty "]
[4351,"Four Thousand Three Hundred Fifty One"]
[4352,"Four Thousand Three Hundred Fifty Two"]
[4353,"Four Thousand Three Hundred Fifty Three"]
[4354,"Four Thousand Three Hundred Fifty Four"]
[4355,"Four Thousand Three Hundred Fifty Five"]
[4356,"Four Thousand Three Hundred Fifty Six"]
[4357,"Four Thousand Three Hundred Fifty Seven"]
[4358,"Four Thousand Three Hundred Fifty Eight"]
[4359,"Four Thousand Three Hundred Fifty Nine"]
[4360,"Four Thousand Three Hundred Sixty "]
[4361,"Four Thousand Three Hundred Sixty One"]
[4362,"Four Thousand Three Hundred Sixty Two"]
[4363,"Four Thousand Three Hundred Sixty Three"]
[4364,"Four Thousand Three Hundred Sixty Four"]
[4365,"Four Thousand Three Hundred Sixty Five"]
[4366,"Four Thousand Three Hundred Sixty Six"]
[4367,"Four Thousand Three Hundred Sixty Seven"]
[4368,"Four Thousand Three Hundred Sixty Eight"]
[4369,"Four Thousand Three Hundred Sixty Nine"]
[4370,"Four Thousand Three Hundred Seventy "]
[4371,"Four Thousand Three Hundred Seventy One"]
[4372,"Four Thousand Three Hundred Seventy Two"]
[4373,"Four Thousand Three Hundred Seventy Three"]
[4374,"Four Thousand Three Hundred Seventy Four"]
[4375,"Four Thousand Three Hundred Seventy Five"]
[4376,"Four Thousand Three Hundred Seventy Six"]
[4377,"Four Thousand Three Hundred Seventy Seven"]
[4378,"Four Thousand Three Hundred Seventy Eight"]
[4379,"Four Thousand Three Hundred Seventy Nine"]
[4380,"Four Thousand Three Hundred Eighty "]
[4381,"Four Thousand Three Hundred Eighty One"]
[4382,"Four Thousand Three Hundred Eighty Two"]
[4383,"Four Thousand Three Hundred Eighty Three"]
[4384,"Four Thousand Three Hundred Eighty Four"]
[4385,"Four Thousand Three Hundred Eighty Five"]
[4386,"Four Thousand Three Hundred Eighty Six"]
[4387,"Four Thousand Three Hundred Eighty Seven"]
[4388,"Four Thousand Three Hundred Eighty Eight"]
[4389,"Four Thousand Three Hundred Eighty Nine"]
[4390,"Four Thousand Three Hundred Ninety "]
[4391,"Four Thousand Three Hundred Ninety One"]
[4392,"Four Thousand Three Hundred Ninety Two"]
[4393,"Four Thousand Three Hundred Ninety Three"]
[4394,"Four Thousand Three Hundred Ninety Four"]
[4395,"Four Thousand Three Hundred Ninety Five"]
[4396,"Four Thousand Three Hundred Ninety Six"]
[4397,"Four Thousand Three Hundred Ninety Seven"]
[4398,"Four Thousand Three Hundred Ninety Eight"]
[4399,"Four Thousand Three Hundred Ninety Nine"]
[4400,"Four Thousand Four Hundred "]
[4401,"Four Thousand Four Hundred One"]
[4402,"Four Thousand Four Hundred Two"]
[4403,"Four Thousand Four Hundred Three"]
[4404,"Four Thousand Four Hundred Four"]
[4405,"Four Thousand Four Hundred Five"]
[4406,"Four Thousand Four Hundred Six"]
[4407,"Four Thousand Four Hundred Seven"]
[4408,"Four Thousand Four Hundred Eight"]
[4409,"Four Thousand Four Hundred Nine"]
[4410,"Four Thousand Four Hundred Ten"]
[4411,"Four Thousand Four Hundred Eleven"]
[4412,{"$f":"spellnumber(A4414)","v":"Four Thousand Four Hundred Twelve"}]
[4413,"Four Thousand Four Hundred Thirteen"]
[4414,"Four Thousand Four Hundred Fourteen"]
[4415,"Four Thousand Four Hundred Fifteen"]
[4416,"Four Thousand Four Hundred Sixteen"]
[4417,"Four Thousand Four Hundred Seventeen"]
[4418,"Four Thousand Four Hundred Eighteen"]
[4419,"Four Thousand Four Hundred Nineteen"]
[4420,"Four Thousand Four Hundred Twenty "]
[4421,"Four Thousand Four Hundred Twenty One"]
[4422,"Four Thousand Four Hundred Twenty Two"]
[4423,"Four Thousand Four Hundred Twenty Three"]
[4424,"Four Thousand Four Hundred Twenty Four"]
[4425,"Four Thousand Four Hundred Twenty Five"]
[4426,"Four Thousand Four Hundred Twenty Six"]
[4427,"Four Thousand Four Hundred Twenty Seven"]
[4428,"Four Thousand Four Hundred Twenty Eight"]
[4429,"Four Thousand Four Hundred Twenty Nine"]
[4430,"Four Thousand Four Hundred Thirty "]
[4431,"Four Thousand Four Hundred Thirty One"]
[4432,"Four Thousand Four Hundred Thirty Two"]
[4433,"Four Thousand Four Hundred Thirty Three"]
[4434,"Four Thousand Four Hundred Thirty Four"]
[4435,"Four Thousand Four Hundred Thirty Five"]
[4436,"Four Thousand Four Hundred Thirty Six"]
[4437,"Four Thousand Four Hundred Thirty Seven"]
[4438,"Four Thousand Four Hundred Thirty Eight"]
[4439,"Four Thousand Four Hundred Thirty Nine"]
[4440,"Four Thousand Four Hundred Forty "]
[4441,"Four Thousand Four Hundred Forty One"]
[4442,"Four Thousand Four Hundred Forty Two"]
[4443,"Four Thousand Four Hundred Forty Three"]
[4444,"Four Thousand Four Hundred Forty Four"]
[4445,"Four Thousand Four Hundred Forty Five"]
[4446,"Four Thousand Four Hundred Forty Six"]
[4447,"Four Thousand Four Hundred Forty Seven"]
[4448,"Four Thousand Four Hundred Forty Eight"]
[4449,"Four Thousand Four Hundred Forty Nine"]
[4450,"Four Thousand Four Hundred Fifty "]
[4451,"Four Thousand Four Hundred Fifty One"]
[4452,"Four Thousand Four Hundred Fifty Two"]
[4453,"Four Thousand Four Hundred Fifty Three"]
[4454,"Four Thousand Four Hundred Fifty Four"]
[4455,"Four Thousand Four Hundred Fifty Five"]
[4456,"Four Thousand Four Hundred Fifty Six"]
[4457,"Four Thousand Four Hundred Fifty Seven"]
[4458,"Four Thousand Four Hundred Fifty Eight"]
[4459,"Four Thousand Four Hundred Fifty Nine"]
[4460,"Four Thousand Four Hundred Sixty "]
[4461,"Four Thousand Four Hundred Sixty One"]
[4462,"Four Thousand Four Hundred Sixty Two"]
[4463,"Four Thousand Four Hundred Sixty Three"]
[4464,"Four Thousand Four Hundred Sixty Four"]
[4465,"Four Thousand Four Hundred Sixty Five"]
[4466,"Four Thousand Four Hundred Sixty Six"]
[4467,"Four Thousand Four Hundred Sixty Seven"]
[4468,"Four Thousand Four Hundred Sixty Eight"]
[4469,"Four Thousand Four Hundred Sixty Nine"]
[4470,"Four Thousand Four Hundred Seventy "]
[4471,"Four Thousand Four Hundred Seventy One"]
[4472,"Four Thousand Four Hundred Seventy Two"]
[4473,"Four Thousand Four Hundred Seventy Three"]
[4474,"Four Thousand Four Hundred Seventy Four"]
[4475,"Four Thousand Four Hundred Seventy Five"]
[4476,{"$f":"spellnumber(A4478)","v":"Four Thousand Four Hundred Seventy Six"}]
[4477,"Four Thousand Four Hundred Seventy Seven"]
[4478,"Four Thousand Four Hundred Seventy Eight"]
[4479,"Four Thousand Four Hundred Seventy Nine"]
[4480,"Four Thousand Four Hundred Eighty "]
[4481,"Four Thousand Four Hundred Eighty One"]
[4482,"Four Thousand Four Hundred Eighty Two"]
[4483,"Four Thousand Four Hundred Eighty Three"]
[4484,"Four Thousand Four Hundred Eighty Four"]
[4485,"Four Thousand Four Hundred Eighty Five"]
[4486,"Four Thousand Four Hundred Eighty Six"]
[4487,"Four Thousand Four Hundred Eighty Seven"]
[4488,"Four Thousand Four Hundred Eighty Eight"]
[4489,"Four Thousand Four Hundred Eighty Nine"]
[4490,"Four Thousand Four Hundred Ninety "]
[4491,"Four Thousand Four Hundred Ninety One"]
[4492,"Four Thousand Four Hundred Ninety Two"]
[4493,"Four Thousand Four Hundred Ninety Three"]
[4494,"Four Thousand Four Hundred Ninety Four"]
[4495,"Four Thousand Four Hundred Ninety Five"]
[4496,"Four Thousand Four Hundred Ninety Six"]
[4497,"Four Thousand Four Hundred Ninety Seven"]
[4498,"Four Thousand Four Hundred Ninety Eight"]
[4499,"Four Thousand Four Hundred Ninety Nine"]
[4500,"Four Thousand Five Hundred "]
[4501,"Four Thousand Five Hundred One"]
[4502,"Four Thousand Five Hundred Two"]
[4503,"Four Thousand Five Hundred Three"]
[4504,"Four Thousand Five Hundred Four"]
[4505,"Four Thousand Five Hundred Five"]
[4506,"Four Thousand Five Hundred Six"]
[4507,"Four Thousand Five Hundred Seven"]
[4508,"Four Thousand Five Hundred Eight"]
[4509,"Four Thousand Five Hundred Nine"]
[4510,"Four Thousand Five Hundred Ten"]
[4511,"Four Thousand Five Hundred Eleven"]
[4512,"Four Thousand Five Hundred Twelve"]
[4513,"Four Thousand Five Hundred Thirteen"]
[4514,"Four Thousand Five Hundred Fourteen"]
[4515,"Four Thousand Five Hundred Fifteen"]
[4516,"Four Thousand Five Hundred Sixteen"]
[4517,"Four Thousand Five Hundred Seventeen"]
[4518,"Four Thousand Five Hundred Eighteen"]
[4519,"Four Thousand Five Hundred Nineteen"]
[4520,"Four Thousand Five Hundred Twenty "]
[4521,"Four Thousand Five Hundred Twenty One"]
[4522,"Four Thousand Five Hundred Twenty Two"]
[4523,"Four Thousand Five Hundred Twenty Three"]
[4524,"Four Thousand Five Hundred Twenty Four"]
[4525,"Four Thousand Five Hundred Twenty Five"]
[4526,"Four Thousand Five Hundred Twenty Six"]
[4527,"Four Thousand Five Hundred Twenty Seven"]
[4528,"Four Thousand Five Hundred Twenty Eight"]
[4529,"Four Thousand Five Hundred Twenty Nine"]
[4530,"Four Thousand Five Hundred Thirty "]
[4531,"Four Thousand Five Hundred Thirty One"]
[4532,"Four Thousand Five Hundred Thirty Two"]
[4533,"Four Thousand Five Hundred Thirty Three"]
[4534,"Four Thousand Five Hundred Thirty Four"]
[4535,"Four Thousand Five Hundred Thirty Five"]
[4536,"Four Thousand Five Hundred Thirty Six"]
[4537,"Four Thousand Five Hundred Thirty Seven"]
[4538,"Four Thousand Five Hundred Thirty Eight"]
[4539,"Four Thousand Five Hundred Thirty Nine"]
[4540,{"$f":"spellnumber(A4542)","v":"Four Thousand Five Hundred Forty "}]
[4541,"Four Thousand Five Hundred Forty One"]
[4542,"Four Thousand Five Hundred Forty Two"]
[4543,"Four Thousand Five Hundred Forty Three"]
[4544,"Four Thousand Five Hundred Forty Four"]
[4545,"Four Thousand Five Hundred Forty Five"]
[4546,"Four Thousand Five Hundred Forty Six"]
[4547,"Four Thousand Five Hundred Forty Seven"]
[4548,"Four Thousand Five Hundred Forty Eight"]
[4549,"Four Thousand Five Hundred Forty Nine"]
[4550,"Four Thousand Five Hundred Fifty "]
[4551,"Four Thousand Five Hundred Fifty One"]
[4552,"Four Thousand Five Hundred Fifty Two"]
[4553,"Four Thousand Five Hundred Fifty Three"]
[4554,"Four Thousand Five Hundred Fifty Four"]
[4555,"Four Thousand Five Hundred Fifty Five"]
[4556,"Four Thousand Five Hundred Fifty Six"]
[4557,"Four Thousand Five Hundred Fifty Seven"]
[4558,"Four Thousand Five Hundred Fifty Eight"]
[4559,"Four Thousand Five Hundred Fifty Nine"]
[4560,"Four Thousand Five Hundred Sixty "]
[4561,"Four Thousand Five Hundred Sixty One"]
[4562,"Four Thousand Five Hundred Sixty Two"]
[4563,"Four Thousand Five Hundred Sixty Three"]
[4564,"Four Thousand Five Hundred Sixty Four"]
[4565,"Four Thousand Five Hundred Sixty Five"]
[4566,"Four Thousand Five Hundred Sixty Six"]
[4567,"Four Thousand Five Hundred Sixty Seven"]
[4568,"Four Thousand Five Hundred Sixty Eight"]
[4569,"Four Thousand Five Hundred Sixty Nine"]
[4570,"Four Thousand Five Hundred Seventy "]
[4571,"Four Thousand Five Hundred Seventy One"]
[4572,"Four Thousand Five Hundred Seventy Two"]
[4573,"Four Thousand Five Hundred Seventy Three"]
[4574,"Four Thousand Five Hundred Seventy Four"]
[4575,"Four Thousand Five Hundred Seventy Five"]
[4576,"Four Thousand Five Hundred Seventy Six"]
[4577,"Four Thousand Five Hundred Seventy Seven"]
[4578,"Four Thousand Five Hundred Seventy Eight"]
[4579,"Four Thousand Five Hundred Seventy Nine"]
[4580,"Four Thousand Five Hundred Eighty "]
[4581,"Four Thousand Five Hundred Eighty One"]
[4582,"Four Thousand Five Hundred Eighty Two"]
[4583,"Four Thousand Five Hundred Eighty Three"]
[4584,"Four Thousand Five Hundred Eighty Four"]
[4585,"Four Thousand Five Hundred Eighty Five"]
[4586,"Four Thousand Five Hundred Eighty Six"]
[4587,"Four Thousand Five Hundred Eighty Seven"]
[4588,"Four Thousand Five Hundred Eighty Eight"]
[4589,"Four Thousand Five Hundred Eighty Nine"]
[4590,"Four Thousand Five Hundred Ninety "]
[4591,"Four Thousand Five Hundred Ninety One"]
[4592,"Four Thousand Five Hundred Ninety Two"]
[4593,"Four Thousand Five Hundred Ninety Three"]
[4594,"Four Thousand Five Hundred Ninety Four"]
[4595,"Four Thousand Five Hundred Ninety Five"]
[4596,"Four Thousand Five Hundred Ninety Six"]
[4597,"Four Thousand Five Hundred Ninety Seven"]
[4598,"Four Thousand Five Hundred Ninety Eight"]
[4599,"Four Thousand Five Hundred Ninety Nine"]
[4600,"Four Thousand Six Hundred "]
[4601,"Four Thousand Six Hundred One"]
[4602,"Four Thousand Six Hundred Two"]
[4603,"Four Thousand Six Hundred Three"]
[4604,{"$f":"spellnumber(A4606)","v":"Four Thousand Six Hundred Four"}]
[4605,"Four Thousand Six Hundred Five"]
[4606,"Four Thousand Six Hundred Six"]
[4607,"Four Thousand Six Hundred Seven"]
[4608,"Four Thousand Six Hundred Eight"]
[4609,"Four Thousand Six Hundred Nine"]
[4610,"Four Thousand Six Hundred Ten"]
[4611,"Four Thousand Six Hundred Eleven"]
[4612,"Four Thousand Six Hundred Twelve"]
[4613,"Four Thousand Six Hundred Thirteen"]
[4614,"Four Thousand Six Hundred Fourteen"]
[4615,"Four Thousand Six Hundred Fifteen"]
[4616,"Four Thousand Six Hundred Sixteen"]
[4617,"Four Thousand Six Hundred Seventeen"]
[4618,"Four Thousand Six Hundred Eighteen"]
[4619,"Four Thousand Six Hundred Nineteen"]
[4620,"Four Thousand Six Hundred Twenty "]
[4621,"Four Thousand Six Hundred Twenty One"]
[4622,"Four Thousand Six Hundred Twenty Two"]
[4623,"Four Thousand Six Hundred Twenty Three"]
[4624,"Four Thousand Six Hundred Twenty Four"]
[4625,"Four Thousand Six Hundred Twenty Five"]
[4626,"Four Thousand Six Hundred Twenty Six"]
[4627,"Four Thousand Six Hundred Twenty Seven"]
[4628,"Four Thousand Six Hundred Twenty Eight"]
[4629,"Four Thousand Six Hundred Twenty Nine"]
[4630,"Four Thousand Six Hundred Thirty "]
[4631,"Four Thousand Six Hundred Thirty One"]
[4632,"Four Thousand Six Hundred Thirty Two"]
[4633,"Four Thousand Six Hundred Thirty Three"]
[4634,"Four Thousand Six Hundred Thirty Four"]
[4635,"Four Thousand Six Hundred Thirty Five"]
[4636,"Four Thousand Six Hundred Thirty Six"]
[4637,"Four Thousand Six Hundred Thirty Seven"]
[4638,"Four Thousand Six Hundred Thirty Eight"]
[4639,"Four Thousand Six Hundred Thirty Nine"]
[4640,"Four Thousand Six Hundred Forty "]
[4641,"Four Thousand Six Hundred Forty One"]
[4642,"Four Thousand Six Hundred Forty Two"]
[4643,"Four Thousand Six Hundred Forty Three"]
[4644,"Four Thousand Six Hundred Forty Four"]
[4645,"Four Thousand Six Hundred Forty Five"]
[4646,"Four Thousand Six Hundred Forty Six"]
[4647,"Four Thousand Six Hundred Forty Seven"]
[4648,"Four Thousand Six Hundred Forty Eight"]
[4649,"Four Thousand Six Hundred Forty Nine"]
[4650,"Four Thousand Six Hundred Fifty "]
[4651,"Four Thousand Six Hundred Fifty One"]
[4652,"Four Thousand Six Hundred Fifty Two"]
[4653,"Four Thousand Six Hundred Fifty Three"]
[4654,"Four Thousand Six Hundred Fifty Four"]
[4655,"Four Thousand Six Hundred Fifty Five"]
[4656,"Four Thousand Six Hundred Fifty Six"]
[4657,"Four Thousand Six Hundred Fifty Seven"]
[4658,"Four Thousand Six Hundred Fifty Eight"]
[4659,"Four Thousand Six Hundred Fifty Nine"]
[4660,"Four Thousand Six Hundred Sixty "]
[4661,"Four Thousand Six Hundred Sixty One"]
[4662,"Four Thousand Six Hundred Sixty Two"]
[4663,"Four Thousand Six Hundred Sixty Three"]
[4664,"Four Thousand Six Hundred Sixty Four"]
[4665,"Four Thousand Six Hundred Sixty Five"]
[4666,"Four Thousand Six Hundred Sixty Six"]
[4667,"Four Thousand Six Hundred Sixty Seven"]
[4668,{"$f":"spellnumber(A4670)","v":"Four Thousand Six Hundred Sixty Eight"}]
[4669,"Four Thousand Six Hundred Sixty Nine"]
[4670,"Four Thousand Six Hundred Seventy "]
[4671,"Four Thousand Six Hundred Seventy One"]
[4672,"Four Thousand Six Hundred Seventy Two"]
[4673,"Four Thousand Six Hundred Seventy Three"]
[4674,"Four Thousand Six Hundred Seventy Four"]
[4675,"Four Thousand Six Hundred Seventy Five"]
[4676,"Four Thousand Six Hundred Seventy Six"]
[4677,"Four Thousand Six Hundred Seventy Seven"]
[4678,"Four Thousand Six Hundred Seventy Eight"]
[4679,"Four Thousand Six Hundred Seventy Nine"]
[4680,"Four Thousand Six Hundred Eighty "]
[4681,"Four Thousand Six Hundred Eighty One"]
[4682,"Four Thousand Six Hundred Eighty Two"]
[4683,"Four Thousand Six Hundred Eighty Three"]
[4684,"Four Thousand Six Hundred Eighty Four"]
[4685,"Four Thousand Six Hundred Eighty Five"]
[4686,"Four Thousand Six Hundred Eighty Six"]
[4687,"Four Thousand Six Hundred Eighty Seven"]
[4688,"Four Thousand Six Hundred Eighty Eight"]
[4689,"Four Thousand Six Hundred Eighty Nine"]
[4690,"Four Thousand Six Hundred Ninety "]
[4691,"Four Thousand Six Hundred Ninety One"]
[4692,"Four Thousand Six Hundred Ninety Two"]
[4693,"Four Thousand Six Hundred Ninety Three"]
[4694,"Four Thousand Six Hundred Ninety Four"]
[4695,"Four Thousand Six Hundred Ninety Five"]
[4696,"Four Thousand Six Hundred Ninety Six"]
[4697,"Four Thousand Six Hundred Ninety Seven"]
[4698,"Four Thousand Six Hundred Ninety Eight"]
[4699,"Four Thousand Six Hundred Ninety Nine"]
[4700,"Four Thousand Seven Hundred "]
[4701,"Four Thousand Seven Hundred One"]
[4702,"Four Thousand Seven Hundred Two"]
[4703,"Four Thousand Seven Hundred Three"]
[4704,"Four Thousand Seven Hundred Four"]
[4705,"Four Thousand Seven Hundred Five"]
[4706,"Four Thousand Seven Hundred Six"]
[4707,"Four Thousand Seven Hundred Seven"]
[4708,"Four Thousand Seven Hundred Eight"]
[4709,"Four Thousand Seven Hundred Nine"]
[4710,"Four Thousand Seven Hundred Ten"]
[4711,"Four Thousand Seven Hundred Eleven"]
[4712,"Four Thousand Seven Hundred Twelve"]
[4713,"Four Thousand Seven Hundred Thirteen"]
[4714,"Four Thousand Seven Hundred Fourteen"]
[4715,"Four Thousand Seven Hundred Fifteen"]
[4716,"Four Thousand Seven Hundred Sixteen"]
[4717,"Four Thousand Seven Hundred Seventeen"]
[4718,"Four Thousand Seven Hundred Eighteen"]
[4719,"Four Thousand Seven Hundred Nineteen"]
[4720,"Four Thousand Seven Hundred Twenty "]
[4721,"Four Thousand Seven Hundred Twenty One"]
[4722,"Four Thousand Seven Hundred Twenty Two"]
[4723,"Four Thousand Seven Hundred Twenty Three"]
[4724,"Four Thousand Seven Hundred Twenty Four"]
[4725,"Four Thousand Seven Hundred Twenty Five"]
[4726,"Four Thousand Seven Hundred Twenty Six"]
[4727,"Four Thousand Seven Hundred Twenty Seven"]
[4728,"Four Thousand Seven Hundred Twenty Eight"]
[4729,"Four Thousand Seven Hundred Twenty Nine"]
[4730,"Four Thousand Seven Hundred Thirty "]
[4731,"Four Thousand Seven Hundred Thirty One"]
[4732,{"$f":"spellnumber(A4734)","v":"Four Thousand Seven Hundred Thirty Two"}]
[4733,"Four Thousand Seven Hundred Thirty Three"]
[4734,"Four Thousand Seven Hundred Thirty Four"]
[4735,"Four Thousand Seven Hundred Thirty Five"]
[4736,"Four Thousand Seven Hundred Thirty Six"]
[4737,"Four Thousand Seven Hundred Thirty Seven"]
[4738,"Four Thousand Seven Hundred Thirty Eight"]
[4739,"Four Thousand Seven Hundred Thirty Nine"]
[4740,"Four Thousand Seven Hundred Forty "]
[4741,"Four Thousand Seven Hundred Forty One"]
[4742,"Four Thousand Seven Hundred Forty Two"]
[4743,"Four Thousand Seven Hundred Forty Three"]
[4744,"Four Thousand Seven Hundred Forty Four"]
[4745,"Four Thousand Seven Hundred Forty Five"]
[4746,"Four Thousand Seven Hundred Forty Six"]
[4747,"Four Thousand Seven Hundred Forty Seven"]
[4748,"Four Thousand Seven Hundred Forty Eight"]
[4749,"Four Thousand Seven Hundred Forty Nine"]
[4750,"Four Thousand Seven Hundred Fifty "]
[4751,"Four Thousand Seven Hundred Fifty One"]
[4752,"Four Thousand Seven Hundred Fifty Two"]
[4753,"Four Thousand Seven Hundred Fifty Three"]
[4754,"Four Thousand Seven Hundred Fifty Four"]
[4755,"Four Thousand Seven Hundred Fifty Five"]
[4756,"Four Thousand Seven Hundred Fifty Six"]
[4757,"Four Thousand Seven Hundred Fifty Seven"]
[4758,"Four Thousand Seven Hundred Fifty Eight"]
[4759,"Four Thousand Seven Hundred Fifty Nine"]
[4760,"Four Thousand Seven Hundred Sixty "]
[4761,"Four Thousand Seven Hundred Sixty One"]
[4762,"Four Thousand Seven Hundred Sixty Two"]
[4763,"Four Thousand Seven Hundred Sixty Three"]
[4764,"Four Thousand Seven Hundred Sixty Four"]
[4765,"Four Thousand Seven Hundred Sixty Five"]
[4766,"Four Thousand Seven Hundred Sixty Six"]
[4767,"Four Thousand Seven Hundred Sixty Seven"]
[4768,"Four Thousand Seven Hundred Sixty Eight"]
[4769,"Four Thousand Seven Hundred Sixty Nine"]
[4770,"Four Thousand Seven Hundred Seventy "]
[4771,"Four Thousand Seven Hundred Seventy One"]
[4772,"Four Thousand Seven Hundred Seventy Two"]
[4773,"Four Thousand Seven Hundred Seventy Three"]
[4774,"Four Thousand Seven Hundred Seventy Four"]
[4775,"Four Thousand Seven Hundred Seventy Five"]
[4776,"Four Thousand Seven Hundred Seventy Six"]
[4777,"Four Thousand Seven Hundred Seventy Seven"]
[4778,"Four Thousand Seven Hundred Seventy Eight"]
[4779,"Four Thousand Seven Hundred Seventy Nine"]
[4780,"Four Thousand Seven Hundred Eighty "]
[4781,"Four Thousand Seven Hundred Eighty One"]
[4782,"Four Thousand Seven Hundred Eighty Two"]
[4783,"Four Thousand Seven Hundred Eighty Three"]
[4784,"Four Thousand Seven Hundred Eighty Four"]
[4785,"Four Thousand Seven Hundred Eighty Five"]
[4786,"Four Thousand Seven Hundred Eighty Six"]
[4787,"Four Thousand Seven Hundred Eighty Seven"]
[4788,"Four Thousand Seven Hundred Eighty Eight"]
[4789,"Four Thousand Seven Hundred Eighty Nine"]
[4790,"Four Thousand Seven Hundred Ninety "]
[4791,"Four Thousand Seven Hundred Ninety One"]
[4792,"Four Thousand Seven Hundred Ninety Two"]
[4793,"Four Thousand Seven Hundred Ninety Three"]
[4794,"Four Thousand Seven Hundred Ninety Four"]
[4795,"Four Thousand Seven Hundred Ninety Five"]
[4796,{"$f":"spellnumber(A4798)","v":"Four Thousand Seven Hundred Ninety Six"}]
[4797,"Four Thousand Seven Hundred Ninety Seven"]
[4798,"Four Thousand Seven Hundred Ninety Eight"]
[4799,"Four Thousand Seven Hundred Ninety Nine"]
[4800,"Four Thousand Eight Hundred "]
[4801,"Four Thousand Eight Hundred One"]
[4802,"Four Thousand Eight Hundred Two"]
[4803,"Four Thousand Eight Hundred Three"]
[4804,"Four Thousand Eight Hundred Four"]
[4805,"Four Thousand Eight Hundred Five"]
[4806,"Four Thousand Eight Hundred Six"]
[4807,"Four Thousand Eight Hundred Seven"]
[4808,"Four Thousand Eight Hundred Eight"]
[4809,"Four Thousand Eight Hundred Nine"]
[4810,"Four Thousand Eight Hundred Ten"]
[4811,"Four Thousand Eight Hundred Eleven"]
[4812,"Four Thousand Eight Hundred Twelve"]
[4813,"Four Thousand Eight Hundred Thirteen"]
[4814,"Four Thousand Eight Hundred Fourteen"]
[4815,"Four Thousand Eight Hundred Fifteen"]
[4816,"Four Thousand Eight Hundred Sixteen"]
[4817,"Four Thousand Eight Hundred Seventeen"]
[4818,"Four Thousand Eight Hundred Eighteen"]
[4819,"Four Thousand Eight Hundred Nineteen"]
[4820,"Four Thousand Eight Hundred Twenty "]
[4821,"Four Thousand Eight Hundred Twenty One"]
[4822,"Four Thousand Eight Hundred Twenty Two"]
[4823,"Four Thousand Eight Hundred Twenty Three"]
[4824,"Four Thousand Eight Hundred Twenty Four"]
[4825,"Four Thousand Eight Hundred Twenty Five"]
[4826,"Four Thousand Eight Hundred Twenty Six"]
[4827,"Four Thousand Eight Hundred Twenty Seven"]
[4828,"Four Thousand Eight Hundred Twenty Eight"]
[4829,"Four Thousand Eight Hundred Twenty Nine"]
[4830,"Four Thousand Eight Hundred Thirty "]
[4831,"Four Thousand Eight Hundred Thirty One"]
[4832,"Four Thousand Eight Hundred Thirty Two"]
[4833,"Four Thousand Eight Hundred Thirty Three"]
[4834,"Four Thousand Eight Hundred Thirty Four"]
[4835,"Four Thousand Eight Hundred Thirty Five"]
[4836,"Four Thousand Eight Hundred Thirty Six"]
[4837,"Four Thousand Eight Hundred Thirty Seven"]
[4838,"Four Thousand Eight Hundred Thirty Eight"]
[4839,"Four Thousand Eight Hundred Thirty Nine"]
[4840,"Four Thousand Eight Hundred Forty "]
[4841,"Four Thousand Eight Hundred Forty One"]
[4842,"Four Thousand Eight Hundred Forty Two"]
[4843,"Four Thousand Eight Hundred Forty Three"]
[4844,"Four Thousand Eight Hundred Forty Four"]
[4845,"Four Thousand Eight Hundred Forty Five"]
[4846,"Four Thousand Eight Hundred Forty Six"]
[4847,"Four Thousand Eight Hundred Forty Seven"]
[4848,"Four Thousand Eight Hundred Forty Eight"]
[4849,"Four Thousand Eight Hundred Forty Nine"]
[4850,"Four Thousand Eight Hundred Fifty "]
[4851,"Four Thousand Eight Hundred Fifty One"]
[4852,"Four Thousand Eight Hundred Fifty Two"]
[4853,"Four Thousand Eight Hundred Fifty Three"]
[4854,"Four Thousand Eight Hundred Fifty Four"]
[4855,"Four Thousand Eight Hundred Fifty Five"]
[4856,"Four Thousand Eight Hundred Fifty Six"]
[4857,"Four Thousand Eight Hundred Fifty Seven"]
[4858,"Four Thousand Eight Hundred Fifty Eight"]
[4859,"Four Thousand Eight Hundred Fifty Nine"]
[4860,{"$f":"spellnumber(A4862)","v":"Four Thousand Eight Hundred Sixty "}]
[4861,"Four Thousand Eight Hundred Sixty One"]
[4862,"Four Thousand Eight Hundred Sixty Two"]
[4863,"Four Thousand Eight Hundred Sixty Three"]
[4864,"Four Thousand Eight Hundred Sixty Four"]
[4865,"Four Thousand Eight Hundred Sixty Five"]
[4866,"Four Thousand Eight Hundred Sixty Six"]
[4867,"Four Thousand Eight Hundred Sixty Seven"]
[4868,"Four Thousand Eight Hundred Sixty Eight"]
[4869,"Four Thousand Eight Hundred Sixty Nine"]
[4870,"Four Thousand Eight Hundred Seventy "]
[4871,"Four Thousand Eight Hundred Seventy One"]
[4872,"Four Thousand Eight Hundred Seventy Two"]
[4873,"Four Thousand Eight Hundred Seventy Three"]
[4874,"Four Thousand Eight Hundred Seventy Four"]
[4875,"Four Thousand Eight Hundred Seventy Five"]
[4876,"Four Thousand Eight Hundred Seventy Six"]
[4877,"Four Thousand Eight Hundred Seventy Seven"]
[4878,"Four Thousand Eight Hundred Seventy Eight"]
[4879,"Four Thousand Eight Hundred Seventy Nine"]
[4880,"Four Thousand Eight Hundred Eighty "]
[4881,"Four Thousand Eight Hundred Eighty One"]
[4882,"Four Thousand Eight Hundred Eighty Two"]
[4883,"Four Thousand Eight Hundred Eighty Three"]
[4884,"Four Thousand Eight Hundred Eighty Four"]
[4885,"Four Thousand Eight Hundred Eighty Five"]
[4886,"Four Thousand Eight Hundred Eighty Six"]
[4887,"Four Thousand Eight Hundred Eighty Seven"]
[4888,"Four Thousand Eight Hundred Eighty Eight"]
[4889,"Four Thousand Eight Hundred Eighty Nine"]
[4890,"Four Thousand Eight Hundred Ninety "]
[4891,"Four Thousand Eight Hundred Ninety One"]
[4892,"Four Thousand Eight Hundred Ninety Two"]
[4893,"Four Thousand Eight Hundred Ninety Three"]
[4894,"Four Thousand Eight Hundred Ninety Four"]
[4895,"Four Thousand Eight Hundred Ninety Five"]
[4896,"Four Thousand Eight Hundred Ninety Six"]
[4897,"Four Thousand Eight Hundred Ninety Seven"]
[4898,"Four Thousand Eight Hundred Ninety Eight"]
[4899,"Four Thousand Eight Hundred Ninety Nine"]
[4900,"Four Thousand Nine Hundred "]
[4901,"Four Thousand Nine Hundred One"]
[4902,"Four Thousand Nine Hundred Two"]
[4903,"Four Thousand Nine Hundred Three"]
[4904,"Four Thousand Nine Hundred Four"]
[4905,"Four Thousand Nine Hundred Five"]
[4906,"Four Thousand Nine Hundred Six"]
[4907,"Four Thousand Nine Hundred Seven"]
[4908,"Four Thousand Nine Hundred Eight"]
[4909,"Four Thousand Nine Hundred Nine"]
[4910,"Four Thousand Nine Hundred Ten"]
[4911,"Four Thousand Nine Hundred Eleven"]
[4912,"Four Thousand Nine Hundred Twelve"]
[4913,"Four Thousand Nine Hundred Thirteen"]
[4914,"Four Thousand Nine Hundred Fourteen"]
[4915,"Four Thousand Nine Hundred Fifteen"]
[4916,"Four Thousand Nine Hundred Sixteen"]
[4917,"Four Thousand Nine Hundred Seventeen"]
[4918,"Four Thousand Nine Hundred Eighteen"]
[4919,"Four Thousand Nine Hundred Nineteen"]
[4920,"Four Thousand Nine Hundred Twenty "]
[4921,"Four Thousand Nine Hundred Twenty One"]
[4922,"Four Thousand Nine Hundred Twenty Two"]
[4923,"Four Thousand Nine Hundred Twenty Three"]
[4924,{"$f":"spellnumber(A4926)","v":"Four Thousand Nine Hundred Twenty Four"}]
[4925,"Four Thousand Nine Hundred Twenty Five"]
[4926,"Four Thousand Nine Hundred Twenty Six"]
[4927,"Four Thousand Nine Hundred Twenty Seven"]
[4928,"Four Thousand Nine Hundred Twenty Eight"]
[4929,"Four Thousand Nine Hundred Twenty Nine"]
[4930,"Four Thousand Nine Hundred Thirty "]
[4931,"Four Thousand Nine Hundred Thirty One"]
[4932,"Four Thousand Nine Hundred Thirty Two"]
[4933,"Four Thousand Nine Hundred Thirty Three"]
[4934,"Four Thousand Nine Hundred Thirty Four"]
[4935,"Four Thousand Nine Hundred Thirty Five"]
[4936,"Four Thousand Nine Hundred Thirty Six"]
[4937,"Four Thousand Nine Hundred Thirty Seven"]
[4938,"Four Thousand Nine Hundred Thirty Eight"]
[4939,"Four Thousand Nine Hundred Thirty Nine"]
[4940,"Four Thousand Nine Hundred Forty "]
[4941,"Four Thousand Nine Hundred Forty One"]
[4942,"Four Thousand Nine Hundred Forty Two"]
[4943,"Four Thousand Nine Hundred Forty Three"]
[4944,"Four Thousand Nine Hundred Forty Four"]
[4945,"Four Thousand Nine Hundred Forty Five"]
[4946,"Four Thousand Nine Hundred Forty Six"]
[4947,"Four Thousand Nine Hundred Forty Seven"]
[4948,"Four Thousand Nine Hundred Forty Eight"]
[4949,"Four Thousand Nine Hundred Forty Nine"]
[4950,"Four Thousand Nine Hundred Fifty "]
[4951,"Four Thousand Nine Hundred Fifty One"]
[4952,"Four Thousand Nine Hundred Fifty Two"]
[4953,"Four Thousand Nine Hundred Fifty Three"]
[4954,"Four Thousand Nine Hundred Fifty Four"]
[4955,"Four Thousand Nine Hundred Fifty Five"]
[4956,"Four Thousand Nine Hundred Fifty Six"]
[4957,"Four Thousand Nine Hundred Fifty Seven"]
[4958,"Four Thousand Nine Hundred Fifty Eight"]
[4959,"Four Thousand Nine Hundred Fifty Nine"]
[4960,"Four Thousand Nine Hundred Sixty "]
[4961,"Four Thousand Nine Hundred Sixty One"]
[4962,"Four Thousand Nine Hundred Sixty Two"]
[4963,"Four Thousand Nine Hundred Sixty Three"]
[4964,"Four Thousand Nine Hundred Sixty Four"]
[4965,"Four Thousand Nine Hundred Sixty Five"]
[4966,"Four Thousand Nine Hundred Sixty Six"]
[4967,"Four Thousand Nine Hundred Sixty Seven"]
[4968,"Four Thousand Nine Hundred Sixty Eight"]
[4969,"Four Thousand Nine Hundred Sixty Nine"]
[4970,"Four Thousand Nine Hundred Seventy "]
[4971,"Four Thousand Nine Hundred Seventy One"]
[4972,"Four Thousand Nine Hundred Seventy Two"]
[4973,"Four Thousand Nine Hundred Seventy Three"]
[4974,"Four Thousand Nine Hundred Seventy Four"]
[4975,"Four Thousand Nine Hundred Seventy Five"]
[4976,"Four Thousand Nine Hundred Seventy Six"]
[4977,"Four Thousand Nine Hundred Seventy Seven"]
[4978,"Four Thousand Nine Hundred Seventy Eight"]
[4979,"Four Thousand Nine Hundred Seventy Nine"]
[4980,"Four Thousand Nine Hundred Eighty "]
[4981,"Four Thousand Nine Hundred Eighty One"]
[4982,"Four Thousand Nine Hundred Eighty Two"]
[4983,"Four Thousand Nine Hundred Eighty Three"]
[4984,"Four Thousand Nine Hundred Eighty Four"]
[4985,"Four Thousand Nine Hundred Eighty Five"]
[4986,"Four Thousand Nine Hundred Eighty Six"]
[4987,"Four Thousand Nine Hundred Eighty Seven"]
[4988,{"$f":"spellnumber(A4990)","v":"Four Thousand Nine Hundred Eighty Eight"}]
[4989,"Four Thousand Nine Hundred Eighty Nine"]
[4990,"Four Thousand Nine Hundred Ninety "]
[4991,"Four Thousand Nine Hundred Ninety One"]
[4992,"Four Thousand Nine Hundred Ninety Two"]
[4993,"Four Thousand Nine Hundred Ninety Three"]
[4994,"Four Thousand Nine Hundred Ninety Four"]
[4995,"Four Thousand Nine Hundred Ninety Five"]
[4996,"Four Thousand Nine Hundred Ninety Six"]
[4997,"Four Thousand Nine Hundred Ninety Seven"]
[4998,"Four Thousand Nine Hundred Ninety Eight"]
[4999,"Four Thousand Nine Hundred Ninety Nine"]
[5000,"Five Thousand "]
[5001,"Five Thousand One"]
[5002,"Five Thousand Two"]
[5003,"Five Thousand Three"]
[5004,"Five Thousand Four"]
[5005,"Five Thousand Five"]
[5006,"Five Thousand Six"]
[5007,"Five Thousand Seven"]
[5008,"Five Thousand Eight"]
[5009,"Five Thousand Nine"]
[5010,"Five Thousand Ten"]
[5011,"Five Thousand Eleven"]
[5012,"Five Thousand Twelve"]
[5013,"Five Thousand Thirteen"]
[5014,"Five Thousand Fourteen"]
[5015,"Five Thousand Fifteen"]
[5016,"Five Thousand Sixteen"]
[5017,"Five Thousand Seventeen"]
[5018,"Five Thousand Eighteen"]
[5019,"Five Thousand Nineteen"]
[5020,"Five Thousand Twenty "]
[5021,"Five Thousand Twenty One"]
[5022,"Five Thousand Twenty Two"]
[5023,"Five Thousand Twenty Three"]
[5024,"Five Thousand Twenty Four"]
[5025,"Five Thousand Twenty Five"]
[5026,"Five Thousand Twenty Six"]
[5027,"Five Thousand Twenty Seven"]
[5028,"Five Thousand Twenty Eight"]
[5029,"Five Thousand Twenty Nine"]
[5030,"Five Thousand Thirty "]
[5031,"Five Thousand Thirty One"]
[5032,"Five Thousand Thirty Two"]
[5033,"Five Thousand Thirty Three"]
[5034,"Five Thousand Thirty Four"]
[5035,"Five Thousand Thirty Five"]
[5036,"Five Thousand Thirty Six"]
[5037,"Five Thousand Thirty Seven"]
[5038,"Five Thousand Thirty Eight"]
[5039,"Five Thousand Thirty Nine"]
[5040,"Five Thousand Forty "]
[5041,"Five Thousand Forty One"]
[5042,"Five Thousand Forty Two"]
[5043,"Five Thousand Forty Three"]
[5044,"Five Thousand Forty Four"]
[5045,"Five Thousand Forty Five"]
[5046,"Five Thousand Forty Six"]
[5047,"Five Thousand Forty Seven"]
[5048,"Five Thousand Forty Eight"]
[5049,"Five Thousand Forty Nine"]
[5050,"Five Thousand Fifty "]
[5051,"Five Thousand Fifty One"]
[5052,{"$f":"spellnumber(A5054)","v":"Five Thousand Fifty Two"}]
[5053,"Five Thousand Fifty Three"]
[5054,"Five Thousand Fifty Four"]
[5055,"Five Thousand Fifty Five"]
[5056,"Five Thousand Fifty Six"]
[5057,"Five Thousand Fifty Seven"]
[5058,"Five Thousand Fifty Eight"]
[5059,"Five Thousand Fifty Nine"]
[5060,"Five Thousand Sixty "]
[5061,"Five Thousand Sixty One"]
[5062,"Five Thousand Sixty Two"]
[5063,"Five Thousand Sixty Three"]
[5064,"Five Thousand Sixty Four"]
[5065,"Five Thousand Sixty Five"]
[5066,"Five Thousand Sixty Six"]
[5067,"Five Thousand Sixty Seven"]
[5068,"Five Thousand Sixty Eight"]
[5069,"Five Thousand Sixty Nine"]
[5070,"Five Thousand Seventy "]
[5071,"Five Thousand Seventy One"]
[5072,"Five Thousand Seventy Two"]
[5073,"Five Thousand Seventy Three"]
[5074,"Five Thousand Seventy Four"]
[5075,"Five Thousand Seventy Five"]
[5076,"Five Thousand Seventy Six"]
[5077,"Five Thousand Seventy Seven"]
[5078,"Five Thousand Seventy Eight"]
[5079,"Five Thousand Seventy Nine"]
[5080,"Five Thousand Eighty "]
[5081,"Five Thousand Eighty One"]
[5082,"Five Thousand Eighty Two"]
[5083,"Five Thousand Eighty Three"]
[5084,"Five Thousand Eighty Four"]
[5085,"Five Thousand Eighty Five"]
[5086,"Five Thousand Eighty Six"]
[5087,"Five Thousand Eighty Seven"]
[5088,"Five Thousand Eighty Eight"]
[5089,"Five Thousand Eighty Nine"]
[5090,"Five Thousand Ninety "]
[5091,"Five Thousand Ninety One"]
[5092,"Five Thousand Ninety Two"]
[5093,"Five Thousand Ninety Three"]
[5094,"Five Thousand Ninety Four"]
[5095,"Five Thousand Ninety Five"]
[5096,"Five Thousand Ninety Six"]
[5097,"Five Thousand Ninety Seven"]
[5098,"Five Thousand Ninety Eight"]
[5099,"Five Thousand Ninety Nine"]
[5100,"Five Thousand One Hundred "]
[5101,"Five Thousand One Hundred One"]
[5102,"Five Thousand One Hundred Two"]
[5103,"Five Thousand One Hundred Three"]
[5104,"Five Thousand One Hundred Four"]
[5105,"Five Thousand One Hundred Five"]
[5106,"Five Thousand One Hundred Six"]
[5107,"Five Thousand One Hundred Seven"]
[5108,"Five Thousand One Hundred Eight"]
[5109,"Five Thousand One Hundred Nine"]
[5110,"Five Thousand One Hundred Ten"]
[5111,"Five Thousand One Hundred Eleven"]
[5112,"Five Thousand One Hundred Twelve"]
[5113,"Five Thousand One Hundred Thirteen"]
[5114,"Five Thousand One Hundred Fourteen"]
[5115,"Five Thousand One Hundred Fifteen"]
[5116,{"$f":"spellnumber(A5118)","v":"Five Thousand One Hundred Sixteen"}]
[5117,"Five Thousand One Hundred Seventeen"]
[5118,"Five Thousand One Hundred Eighteen"]
[5119,"Five Thousand One Hundred Nineteen"]
[5120,"Five Thousand One Hundred Twenty "]
[5121,"Five Thousand One Hundred Twenty One"]
[5122,"Five Thousand One Hundred Twenty Two"]
[5123,"Five Thousand One Hundred Twenty Three"]
[5124,"Five Thousand One Hundred Twenty Four"]
[5125,"Five Thousand One Hundred Twenty Five"]
[5126,"Five Thousand One Hundred Twenty Six"]
[5127,"Five Thousand One Hundred Twenty Seven"]
[5128,"Five Thousand One Hundred Twenty Eight"]
[5129,"Five Thousand One Hundred Twenty Nine"]
[5130,"Five Thousand One Hundred Thirty "]
[5131,"Five Thousand One Hundred Thirty One"]
[5132,"Five Thousand One Hundred Thirty Two"]
[5133,"Five Thousand One Hundred Thirty Three"]
[5134,"Five Thousand One Hundred Thirty Four"]
[5135,"Five Thousand One Hundred Thirty Five"]
[5136,"Five Thousand One Hundred Thirty Six"]
[5137,"Five Thousand One Hundred Thirty Seven"]
[5138,"Five Thousand One Hundred Thirty Eight"]
[5139,"Five Thousand One Hundred Thirty Nine"]
[5140,"Five Thousand One Hundred Forty "]
[5141,"Five Thousand One Hundred Forty One"]
[5142,"Five Thousand One Hundred Forty Two"]
[5143,"Five Thousand One Hundred Forty Three"]
[5144,"Five Thousand One Hundred Forty Four"]
[5145,"Five Thousand One Hundred Forty Five"]
[5146,"Five Thousand One Hundred Forty Six"]
[5147,"Five Thousand One Hundred Forty Seven"]
[5148,"Five Thousand One Hundred Forty Eight"]
[5149,"Five Thousand One Hundred Forty Nine"]
[5150,"Five Thousand One Hundred Fifty "]
[5151,"Five Thousand One Hundred Fifty One"]
[5152,"Five Thousand One Hundred Fifty Two"]
[5153,"Five Thousand One Hundred Fifty Three"]
[5154,"Five Thousand One Hundred Fifty Four"]
[5155,"Five Thousand One Hundred Fifty Five"]
[5156,"Five Thousand One Hundred Fifty Six"]
[5157,"Five Thousand One Hundred Fifty Seven"]
[5158,"Five Thousand One Hundred Fifty Eight"]
[5159,"Five Thousand One Hundred Fifty Nine"]
[5160,"Five Thousand One Hundred Sixty "]
[5161,"Five Thousand One Hundred Sixty One"]
[5162,"Five Thousand One Hundred Sixty Two"]
[5163,"Five Thousand One Hundred Sixty Three"]
[5164,"Five Thousand One Hundred Sixty Four"]
[5165,"Five Thousand One Hundred Sixty Five"]
[5166,"Five Thousand One Hundred Sixty Six"]
[5167,"Five Thousand One Hundred Sixty Seven"]
[5168,"Five Thousand One Hundred Sixty Eight"]
[5169,"Five Thousand One Hundred Sixty Nine"]
[5170,"Five Thousand One Hundred Seventy "]
[5171,"Five Thousand One Hundred Seventy One"]
[5172,"Five Thousand One Hundred Seventy Two"]
[5173,"Five Thousand One Hundred Seventy Three"]
[5174,"Five Thousand One Hundred Seventy Four"]
[5175,"Five Thousand One Hundred Seventy Five"]
[5176,"Five Thousand One Hundred Seventy Six"]
[5177,"Five Thousand One Hundred Seventy Seven"]
[5178,"Five Thousand One Hundred Seventy Eight"]
[5179,"Five Thousand One Hundred Seventy Nine"]
[5180,{"$f":"spellnumber(A5182)","v":"Five Thousand One Hundred Eighty "}]
[5181,"Five Thousand One Hundred Eighty One"]
[5182,"Five Thousand One Hundred Eighty Two"]
[5183,"Five Thousand One Hundred Eighty Three"]
[5184,"Five Thousand One Hundred Eighty Four"]
[5185,"Five Thousand One Hundred Eighty Five"]
[5186,"Five Thousand One Hundred Eighty Six"]
[5187,"Five Thousand One Hundred Eighty Seven"]
[5188,"Five Thousand One Hundred Eighty Eight"]
[5189,"Five Thousand One Hundred Eighty Nine"]
[5190,"Five Thousand One Hundred Ninety "]
[5191,"Five Thousand One Hundred Ninety One"]
[5192,"Five Thousand One Hundred Ninety Two"]
[5193,"Five Thousand One Hundred Ninety Three"]
[5194,"Five Thousand One Hundred Ninety Four"]
[5195,"Five Thousand One Hundred Ninety Five"]
[5196,"Five Thousand One Hundred Ninety Six"]
[5197,"Five Thousand One Hundred Ninety Seven"]
[5198,"Five Thousand One Hundred Ninety Eight"]
[5199,"Five Thousand One Hundred Ninety Nine"]
[5200,"Five Thousand Two Hundred "]
[5201,"Five Thousand Two Hundred One"]
[5202,"Five Thousand Two Hundred Two"]
[5203,"Five Thousand Two Hundred Three"]
[5204,"Five Thousand Two Hundred Four"]
[5205,"Five Thousand Two Hundred Five"]
[5206,"Five Thousand Two Hundred Six"]
[5207,"Five Thousand Two Hundred Seven"]
[5208,"Five Thousand Two Hundred Eight"]
[5209,"Five Thousand Two Hundred Nine"]
[5210,"Five Thousand Two Hundred Ten"]
[5211,"Five Thousand Two Hundred Eleven"]
[5212,"Five Thousand Two Hundred Twelve"]
[5213,"Five Thousand Two Hundred Thirteen"]
[5214,"Five Thousand Two Hundred Fourteen"]
[5215,"Five Thousand Two Hundred Fifteen"]
[5216,"Five Thousand Two Hundred Sixteen"]
[5217,"Five Thousand Two Hundred Seventeen"]
[5218,"Five Thousand Two Hundred Eighteen"]
[5219,"Five Thousand Two Hundred Nineteen"]
[5220,"Five Thousand Two Hundred Twenty "]
[5221,"Five Thousand Two Hundred Twenty One"]
[5222,"Five Thousand Two Hundred Twenty Two"]
[5223,"Five Thousand Two Hundred Twenty Three"]
[5224,"Five Thousand Two Hundred Twenty Four"]
[5225,"Five Thousand Two Hundred Twenty Five"]
[5226,"Five Thousand Two Hundred Twenty Six"]
[5227,"Five Thousand Two Hundred Twenty Seven"]
[5228,"Five Thousand Two Hundred Twenty Eight"]
[5229,"Five Thousand Two Hundred Twenty Nine"]
[5230,"Five Thousand Two Hundred Thirty "]
[5231,"Five Thousand Two Hundred Thirty One"]
[5232,"Five Thousand Two Hundred Thirty Two"]
[5233,"Five Thousand Two Hundred Thirty Three"]
[5234,"Five Thousand Two Hundred Thirty Four"]
[5235,"Five Thousand Two Hundred Thirty Five"]
[5236,"Five Thousand Two Hundred Thirty Six"]
[5237,"Five Thousand Two Hundred Thirty Seven"]
[5238,"Five Thousand Two Hundred Thirty Eight"]
[5239,"Five Thousand Two Hundred Thirty Nine"]
[5240,"Five Thousand Two Hundred Forty "]
[5241,"Five Thousand Two Hundred Forty One"]
[5242,"Five Thousand Two Hundred Forty Two"]
[5243,"Five Thousand Two Hundred Forty Three"]
[5244,{"$f":"spellnumber(A5246)","v":"Five Thousand Two Hundred Forty Four"}]
[5245,"Five Thousand Two Hundred Forty Five"]
[5246,"Five Thousand Two Hundred Forty Six"]
[5247,"Five Thousand Two Hundred Forty Seven"]
[5248,"Five Thousand Two Hundred Forty Eight"]
[5249,"Five Thousand Two Hundred Forty Nine"]
[5250,"Five Thousand Two Hundred Fifty "]
[5251,"Five Thousand Two Hundred Fifty One"]
[5252,"Five Thousand Two Hundred Fifty Two"]
[5253,"Five Thousand Two Hundred Fifty Three"]
[5254,"Five Thousand Two Hundred Fifty Four"]
[5255,"Five Thousand Two Hundred Fifty Five"]
[5256,"Five Thousand Two Hundred Fifty Six"]
[5257,"Five Thousand Two Hundred Fifty Seven"]
[5258,"Five Thousand Two Hundred Fifty Eight"]
[5259,"Five Thousand Two Hundred Fifty Nine"]
[5260,"Five Thousand Two Hundred Sixty "]
[5261,"Five Thousand Two Hundred Sixty One"]
[5262,"Five Thousand Two Hundred Sixty Two"]
[5263,"Five Thousand Two Hundred Sixty Three"]
[5264,"Five Thousand Two Hundred Sixty Four"]
[5265,"Five Thousand Two Hundred Sixty Five"]
[5266,"Five Thousand Two Hundred Sixty Six"]
[5267,"Five Thousand Two Hundred Sixty Seven"]
[5268,"Five Thousand Two Hundred Sixty Eight"]
[5269,"Five Thousand Two Hundred Sixty Nine"]
[5270,"Five Thousand Two Hundred Seventy "]
[5271,"Five Thousand Two Hundred Seventy One"]
[5272,"Five Thousand Two Hundred Seventy Two"]
[5273,"Five Thousand Two Hundred Seventy Three"]
[5274,"Five Thousand Two Hundred Seventy Four"]
[5275,"Five Thousand Two Hundred Seventy Five"]
[5276,"Five Thousand Two Hundred Seventy Six"]
[5277,"Five Thousand Two Hundred Seventy Seven"]
[5278,"Five Thousand Two Hundred Seventy Eight"]
[5279,"Five Thousand Two Hundred Seventy Nine"]
[5280,"Five Thousand Two Hundred Eighty "]
[5281,"Five Thousand Two Hundred Eighty One"]
[5282,"Five Thousand Two Hundred Eighty Two"]
[5283,"Five Thousand Two Hundred Eighty Three"]
[5284,"Five Thousand Two Hundred Eighty Four"]
[5285,"Five Thousand Two Hundred Eighty Five"]
[5286,"Five Thousand Two Hundred Eighty Six"]
[5287,"Five Thousand Two Hundred Eighty Seven"]
[5288,"Five Thousand Two Hundred Eighty Eight"]
[5289,"Five Thousand Two Hundred Eighty Nine"]
[5290,"Five Thousand Two Hundred Ninety "]
[5291,"Five Thousand Two Hundred Ninety One"]
[5292,"Five Thousand Two Hundred Ninety Two"]
[5293,"Five Thousand Two Hundred Ninety Three"]
[5294,"Five Thousand Two Hundred Ninety Four"]
[5295,"Five Thousand Two Hundred Ninety Five"]
[5296,"Five Thousand Two Hundred Ninety Six"]
[5297,"Five Thousand Two Hundred Ninety Seven"]
[5298,"Five Thousand Two Hundred Ninety Eight"]
[5299,"Five Thousand Two Hundred Ninety Nine"]
[5300,"Five Thousand Three Hundred "]
[5301,"Five Thousand Three Hundred One"]
[5302,"Five Thousand Three Hundred Two"]
[5303,"Five Thousand Three Hundred Three"]
[5304,"Five Thousand Three Hundred Four"]
[5305,"Five Thousand Three Hundred Five"]
[5306,"Five Thousand Three Hundred Six"]
[5307,"Five Thousand Three Hundred Seven"]
[5308,{"$f":"spellnumber(A5310)","v":"Five Thousand Three Hundred Eight"}]
[5309,"Five Thousand Three Hundred Nine"]
[5310,"Five Thousand Three Hundred Ten"]
[5311,"Five Thousand Three Hundred Eleven"]
[5312,"Five Thousand Three Hundred Twelve"]
[5313,"Five Thousand Three Hundred Thirteen"]
[5314,"Five Thousand Three Hundred Fourteen"]
[5315,"Five Thousand Three Hundred Fifteen"]
[5316,"Five Thousand Three Hundred Sixteen"]
[5317,"Five Thousand Three Hundred Seventeen"]
[5318,"Five Thousand Three Hundred Eighteen"]
[5319,"Five Thousand Three Hundred Nineteen"]
[5320,"Five Thousand Three Hundred Twenty "]
[5321,"Five Thousand Three Hundred Twenty One"]
[5322,"Five Thousand Three Hundred Twenty Two"]
[5323,"Five Thousand Three Hundred Twenty Three"]
[5324,"Five Thousand Three Hundred Twenty Four"]
[5325,"Five Thousand Three Hundred Twenty Five"]
[5326,"Five Thousand Three Hundred Twenty Six"]
[5327,"Five Thousand Three Hundred Twenty Seven"]
[5328,"Five Thousand Three Hundred Twenty Eight"]
[5329,"Five Thousand Three Hundred Twenty Nine"]
[5330,"Five Thousand Three Hundred Thirty "]
[5331,"Five Thousand Three Hundred Thirty One"]
[5332,"Five Thousand Three Hundred Thirty Two"]
[5333,"Five Thousand Three Hundred Thirty Three"]
[5334,"Five Thousand Three Hundred Thirty Four"]
[5335,"Five Thousand Three Hundred Thirty Five"]
[5336,"Five Thousand Three Hundred Thirty Six"]
[5337,"Five Thousand Three Hundred Thirty Seven"]
[5338,"Five Thousand Three Hundred Thirty Eight"]
[5339,"Five Thousand Three Hundred Thirty Nine"]
[5340,"Five Thousand Three Hundred Forty "]
[5341,"Five Thousand Three Hundred Forty One"]
[5342,"Five Thousand Three Hundred Forty Two"]
[5343,"Five Thousand Three Hundred Forty Three"]
[5344,"Five Thousand Three Hundred Forty Four"]
[5345,"Five Thousand Three Hundred Forty Five"]
[5346,"Five Thousand Three Hundred Forty Six"]
[5347,"Five Thousand Three Hundred Forty Seven"]
[5348,"Five Thousand Three Hundred Forty Eight"]
[5349,"Five Thousand Three Hundred Forty Nine"]
[5350,"Five Thousand Three Hundred Fifty "]
[5351,"Five Thousand Three Hundred Fifty One"]
[5352,"Five Thousand Three Hundred Fifty Two"]
[5353,"Five Thousand Three Hundred Fifty Three"]
[5354,"Five Thousand Three Hundred Fifty Four"]
[5355,"Five Thousand Three Hundred Fifty Five"]
[5356,"Five Thousand Three Hundred Fifty Six"]
[5357,"Five Thousand Three Hundred Fifty Seven"]
[5358,"Five Thousand Three Hundred Fifty Eight"]
[5359,"Five Thousand Three Hundred Fifty Nine"]
[5360,"Five Thousand Three Hundred Sixty "]
[5361,"Five Thousand Three Hundred Sixty One"]
[5362,"Five Thousand Three Hundred Sixty Two"]
[5363,"Five Thousand Three Hundred Sixty Three"]
[5364,"Five Thousand Three Hundred Sixty Four"]
[5365,"Five Thousand Three Hundred Sixty Five"]
[5366,"Five Thousand Three Hundred Sixty Six"]
[5367,"Five Thousand Three Hundred Sixty Seven"]
[5368,"Five Thousand Three Hundred Sixty Eight"]
[5369,"Five Thousand Three Hundred Sixty Nine"]
[5370,"Five Thousand Three Hundred Seventy "]
[5371,"Five Thousand Three Hundred Seventy One"]
[5372,{"$f":"spellnumber(A5374)","v":"Five Thousand Three Hundred Seventy Two"}]
[5373,"Five Thousand Three Hundred Seventy Three"]
[5374,"Five Thousand Three Hundred Seventy Four"]
[5375,"Five Thousand Three Hundred Seventy Five"]
[5376,"Five Thousand Three Hundred Seventy Six"]
[5377,"Five Thousand Three Hundred Seventy Seven"]
[5378,"Five Thousand Three Hundred Seventy Eight"]
[5379,"Five Thousand Three Hundred Seventy Nine"]
[5380,"Five Thousand Three Hundred Eighty "]
[5381,"Five Thousand Three Hundred Eighty One"]
[5382,"Five Thousand Three Hundred Eighty Two"]
[5383,"Five Thousand Three Hundred Eighty Three"]
[5384,"Five Thousand Three Hundred Eighty Four"]
[5385,"Five Thousand Three Hundred Eighty Five"]
[5386,"Five Thousand Three Hundred Eighty Six"]
[5387,"Five Thousand Three Hundred Eighty Seven"]
[5388,"Five Thousand Three Hundred Eighty Eight"]
[5389,"Five Thousand Three Hundred Eighty Nine"]
[5390,"Five Thousand Three Hundred Ninety "]
[5391,"Five Thousand Three Hundred Ninety One"]
[5392,"Five Thousand Three Hundred Ninety Two"]
[5393,"Five Thousand Three Hundred Ninety Three"]
[5394,"Five Thousand Three Hundred Ninety Four"]
[5395,"Five Thousand Three Hundred Ninety Five"]
[5396,"Five Thousand Three Hundred Ninety Six"]
[5397,"Five Thousand Three Hundred Ninety Seven"]
[5398,"Five Thousand Three Hundred Ninety Eight"]
[5399,"Five Thousand Three Hundred Ninety Nine"]
[5400,"Five Thousand Four Hundred "]
[5401,"Five Thousand Four Hundred One"]
[5402,"Five Thousand Four Hundred Two"]
[5403,"Five Thousand Four Hundred Three"]
[5404,"Five Thousand Four Hundred Four"]
[5405,"Five Thousand Four Hundred Five"]
[5406,"Five Thousand Four Hundred Six"]
[5407,"Five Thousand Four Hundred Seven"]
[5408,"Five Thousand Four Hundred Eight"]
[5409,"Five Thousand Four Hundred Nine"]
[5410,"Five Thousand Four Hundred Ten"]
[5411,"Five Thousand Four Hundred Eleven"]
[5412,"Five Thousand Four Hundred Twelve"]
[5413,"Five Thousand Four Hundred Thirteen"]
[5414,"Five Thousand Four Hundred Fourteen"]
[5415,"Five Thousand Four Hundred Fifteen"]
[5416,"Five Thousand Four Hundred Sixteen"]
[5417,"Five Thousand Four Hundred Seventeen"]
[5418,"Five Thousand Four Hundred Eighteen"]
[5419,"Five Thousand Four Hundred Nineteen"]
[5420,"Five Thousand Four Hundred Twenty "]
[5421,"Five Thousand Four Hundred Twenty One"]
[5422,"Five Thousand Four Hundred Twenty Two"]
[5423,"Five Thousand Four Hundred Twenty Three"]
[5424,"Five Thousand Four Hundred Twenty Four"]
[5425,"Five Thousand Four Hundred Twenty Five"]
[5426,"Five Thousand Four Hundred Twenty Six"]
[5427,"Five Thousand Four Hundred Twenty Seven"]
[5428,"Five Thousand Four Hundred Twenty Eight"]
[5429,"Five Thousand Four Hundred Twenty Nine"]
[5430,"Five Thousand Four Hundred Thirty "]
[5431,"Five Thousand Four Hundred Thirty One"]
[5432,"Five Thousand Four Hundred Thirty Two"]
[5433,"Five Thousand Four Hundred Thirty Three"]
[5434,"Five Thousand Four Hundred Thirty Four"]
[5435,"Five Thousand Four Hundred Thirty Five"]
[5436,{"$f":"spellnumber(A5438)","v":"Five Thousand Four Hundred Thirty Six"}]
[5437,"Five Thousand Four Hundred Thirty Seven"]
[5438,"Five Thousand Four Hundred Thirty Eight"]
[5439,"Five Thousand Four Hundred Thirty Nine"]
[5440,"Five Thousand Four Hundred Forty "]
[5441,"Five Thousand Four Hundred Forty One"]
[5442,"Five Thousand Four Hundred Forty Two"]
[5443,"Five Thousand Four Hundred Forty Three"]
[5444,"Five Thousand Four Hundred Forty Four"]
[5445,"Five Thousand Four Hundred Forty Five"]
[5446,"Five Thousand Four Hundred Forty Six"]
[5447,"Five Thousand Four Hundred Forty Seven"]
[5448,"Five Thousand Four Hundred Forty Eight"]
[5449,"Five Thousand Four Hundred Forty Nine"]
[5450,"Five Thousand Four Hundred Fifty "]
[5451,"Five Thousand Four Hundred Fifty One"]
[5452,"Five Thousand Four Hundred Fifty Two"]
[5453,"Five Thousand Four Hundred Fifty Three"]
[5454,"Five Thousand Four Hundred Fifty Four"]
[5455,"Five Thousand Four Hundred Fifty Five"]
[5456,"Five Thousand Four Hundred Fifty Six"]
[5457,"Five Thousand Four Hundred Fifty Seven"]
[5458,"Five Thousand Four Hundred Fifty Eight"]
[5459,"Five Thousand Four Hundred Fifty Nine"]
[5460,"Five Thousand Four Hundred Sixty "]
[5461,"Five Thousand Four Hundred Sixty One"]
[5462,"Five Thousand Four Hundred Sixty Two"]
[5463,"Five Thousand Four Hundred Sixty Three"]
[5464,"Five Thousand Four Hundred Sixty Four"]
[5465,"Five Thousand Four Hundred Sixty Five"]
[5466,"Five Thousand Four Hundred Sixty Six"]
[5467,"Five Thousand Four Hundred Sixty Seven"]
[5468,"Five Thousand Four Hundred Sixty Eight"]
[5469,"Five Thousand Four Hundred Sixty Nine"]
[5470,"Five Thousand Four Hundred Seventy "]
[5471,"Five Thousand Four Hundred Seventy One"]
[5472,"Five Thousand Four Hundred Seventy Two"]
[5473,"Five Thousand Four Hundred Seventy Three"]
[5474,"Five Thousand Four Hundred Seventy Four"]
[5475,"Five Thousand Four Hundred Seventy Five"]
[5476,"Five Thousand Four Hundred Seventy Six"]
[5477,"Five Thousand Four Hundred Seventy Seven"]
[5478,"Five Thousand Four Hundred Seventy Eight"]
[5479,"Five Thousand Four Hundred Seventy Nine"]
[5480,"Five Thousand Four Hundred Eighty "]
[5481,"Five Thousand Four Hundred Eighty One"]
[5482,"Five Thousand Four Hundred Eighty Two"]
[5483,"Five Thousand Four Hundred Eighty Three"]
[5484,"Five Thousand Four Hundred Eighty Four"]
[5485,"Five Thousand Four Hundred Eighty Five"]
[5486,"Five Thousand Four Hundred Eighty Six"]
[5487,"Five Thousand Four Hundred Eighty Seven"]
[5488,"Five Thousand Four Hundred Eighty Eight"]
[5489,"Five Thousand Four Hundred Eighty Nine"]
[5490,"Five Thousand Four Hundred Ninety "]
[5491,"Five Thousand Four Hundred Ninety One"]
[5492,"Five Thousand Four Hundred Ninety Two"]
[5493,"Five Thousand Four Hundred Ninety Three"]
[5494,"Five Thousand Four Hundred Ninety Four"]
[5495,"Five Thousand Four Hundred Ninety Five"]
[5496,"Five Thousand Four Hundred Ninety Six"]
[5497,"Five Thousand Four Hundred Ninety Seven"]
[5498,"Five Thousand Four Hundred Ninety Eight"]
[5499,"Five Thousand Four Hundred Ninety Nine"]
[5500,{"$f":"spellnumber(A5502)","v":"Five Thousand Five Hundred "}]
[5501,"Five Thousand Five Hundred One"]
[5502,"Five Thousand Five Hundred Two"]
[5503,"Five Thousand Five Hundred Three"]
[5504,"Five Thousand Five Hundred Four"]
[5505,"Five Thousand Five Hundred Five"]
[5506,"Five Thousand Five Hundred Six"]
[5507,"Five Thousand Five Hundred Seven"]
[5508,"Five Thousand Five Hundred Eight"]
[5509,"Five Thousand Five Hundred Nine"]
[5510,"Five Thousand Five Hundred Ten"]
[5511,"Five Thousand Five Hundred Eleven"]
[5512,"Five Thousand Five Hundred Twelve"]
[5513,"Five Thousand Five Hundred Thirteen"]
[5514,"Five Thousand Five Hundred Fourteen"]
[5515,"Five Thousand Five Hundred Fifteen"]
[5516,"Five Thousand Five Hundred Sixteen"]
[5517,"Five Thousand Five Hundred Seventeen"]
[5518,"Five Thousand Five Hundred Eighteen"]
[5519,"Five Thousand Five Hundred Nineteen"]
[5520,"Five Thousand Five Hundred Twenty "]
[5521,"Five Thousand Five Hundred Twenty One"]
[5522,"Five Thousand Five Hundred Twenty Two"]
[5523,"Five Thousand Five Hundred Twenty Three"]
[5524,"Five Thousand Five Hundred Twenty Four"]
[5525,"Five Thousand Five Hundred Twenty Five"]
[5526,"Five Thousand Five Hundred Twenty Six"]
[5527,"Five Thousand Five Hundred Twenty Seven"]
[5528,"Five Thousand Five Hundred Twenty Eight"]
[5529,"Five Thousand Five Hundred Twenty Nine"]
[5530,"Five Thousand Five Hundred Thirty "]
[5531,"Five Thousand Five Hundred Thirty One"]
[5532,"Five Thousand Five Hundred Thirty Two"]
[5533,"Five Thousand Five Hundred Thirty Three"]
[5534,"Five Thousand Five Hundred Thirty Four"]
[5535,"Five Thousand Five Hundred Thirty Five"]
[5536,"Five Thousand Five Hundred Thirty Six"]
[5537,"Five Thousand Five Hundred Thirty Seven"]
[5538,"Five Thousand Five Hundred Thirty Eight"]
[5539,"Five Thousand Five Hundred Thirty Nine"]
[5540,"Five Thousand Five Hundred Forty "]
[5541,"Five Thousand Five Hundred Forty One"]
[5542,"Five Thousand Five Hundred Forty Two"]
[5543,"Five Thousand Five Hundred Forty Three"]
[5544,"Five Thousand Five Hundred Forty Four"]
[5545,"Five Thousand Five Hundred Forty Five"]
[5546,"Five Thousand Five Hundred Forty Six"]
[5547,"Five Thousand Five Hundred Forty Seven"]
[5548,"Five Thousand Five Hundred Forty Eight"]
[5549,"Five Thousand Five Hundred Forty Nine"]
[5550,"Five Thousand Five Hundred Fifty "]
[5551,"Five Thousand Five Hundred Fifty One"]
[5552,"Five Thousand Five Hundred Fifty Two"]
[5553,"Five Thousand Five Hundred Fifty Three"]
[5554,"Five Thousand Five Hundred Fifty Four"]
[5555,"Five Thousand Five Hundred Fifty Five"]
[5556,"Five Thousand Five Hundred Fifty Six"]
[5557,"Five Thousand Five Hundred Fifty Seven"]
[5558,"Five Thousand Five Hundred Fifty Eight"]
[5559,"Five Thousand Five Hundred Fifty Nine"]
[5560,"Five Thousand Five Hundred Sixty "]
[5561,"Five Thousand Five Hundred Sixty One"]
[5562,"Five Thousand Five Hundred Sixty Two"]
[5563,"Five Thousand Five Hundred Sixty Three"]
[5564,{"$f":"spellnumber(A5566)","v":"Five Thousand Five Hundred Sixty Four"}]
[5565,"Five Thousand Five Hundred Sixty Five"]
[5566,"Five Thousand Five Hundred Sixty Six"]
[5567,"Five Thousand Five Hundred Sixty Seven"]
[5568,"Five Thousand Five Hundred Sixty Eight"]
[5569,"Five Thousand Five Hundred Sixty Nine"]
[5570,"Five Thousand Five Hundred Seventy "]
[5571,"Five Thousand Five Hundred Seventy One"]
[5572,"Five Thousand Five Hundred Seventy Two"]
[5573,"Five Thousand Five Hundred Seventy Three"]
[5574,"Five Thousand Five Hundred Seventy Four"]
[5575,"Five Thousand Five Hundred Seventy Five"]
[5576,"Five Thousand Five Hundred Seventy Six"]
[5577,"Five Thousand Five Hundred Seventy Seven"]
[5578,"Five Thousand Five Hundred Seventy Eight"]
[5579,"Five Thousand Five Hundred Seventy Nine"]
[5580,"Five Thousand Five Hundred Eighty "]
[5581,"Five Thousand Five Hundred Eighty One"]
[5582,"Five Thousand Five Hundred Eighty Two"]
[5583,"Five Thousand Five Hundred Eighty Three"]
[5584,"Five Thousand Five Hundred Eighty Four"]
[5585,"Five Thousand Five Hundred Eighty Five"]
[5586,"Five Thousand Five Hundred Eighty Six"]
[5587,"Five Thousand Five Hundred Eighty Seven"]
[5588,"Five Thousand Five Hundred Eighty Eight"]
[5589,"Five Thousand Five Hundred Eighty Nine"]
[5590,"Five Thousand Five Hundred Ninety "]
[5591,"Five Thousand Five Hundred Ninety One"]
[5592,"Five Thousand Five Hundred Ninety Two"]
[5593,"Five Thousand Five Hundred Ninety Three"]
[5594,"Five Thousand Five Hundred Ninety Four"]
[5595,"Five Thousand Five Hundred Ninety Five"]
[5596,"Five Thousand Five Hundred Ninety Six"]
[5597,"Five Thousand Five Hundred Ninety Seven"]
[5598,"Five Thousand Five Hundred Ninety Eight"]
[5599,"Five Thousand Five Hundred Ninety Nine"]
[5600,"Five Thousand Six Hundred "]
[5601,"Five Thousand Six Hundred One"]
[5602,"Five Thousand Six Hundred Two"]
[5603,"Five Thousand Six Hundred Three"]
[5604,"Five Thousand Six Hundred Four"]
[5605,"Five Thousand Six Hundred Five"]
[5606,"Five Thousand Six Hundred Six"]
[5607,"Five Thousand Six Hundred Seven"]
[5608,"Five Thousand Six Hundred Eight"]
[5609,"Five Thousand Six Hundred Nine"]
[5610,"Five Thousand Six Hundred Ten"]
[5611,"Five Thousand Six Hundred Eleven"]
[5612,"Five Thousand Six Hundred Twelve"]
[5613,"Five Thousand Six Hundred Thirteen"]
[5614,"Five Thousand Six Hundred Fourteen"]
[5615,"Five Thousand Six Hundred Fifteen"]
[5616,"Five Thousand Six Hundred Sixteen"]
[5617,"Five Thousand Six Hundred Seventeen"]
[5618,"Five Thousand Six Hundred Eighteen"]
[5619,"Five Thousand Six Hundred Nineteen"]
[5620,"Five Thousand Six Hundred Twenty "]
[5621,"Five Thousand Six Hundred Twenty One"]
[5622,"Five Thousand Six Hundred Twenty Two"]
[5623,"Five Thousand Six Hundred Twenty Three"]
[5624,"Five Thousand Six Hundred Twenty Four"]
[5625,"Five Thousand Six Hundred Twenty Five"]
[5626,"Five Thousand Six Hundred Twenty Six"]
[5627,"Five Thousand Six Hundred Twenty Seven"]
[5628,{"$f":"spellnumber(A5630)","v":"Five Thousand Six Hundred Twenty Eight"}]
[5629,"Five Thousand Six Hundred Twenty Nine"]
[5630,"Five Thousand Six Hundred Thirty "]
[5631,"Five Thousand Six Hundred Thirty One"]
[5632,"Five Thousand Six Hundred Thirty Two"]
[5633,"Five Thousand Six Hundred Thirty Three"]
[5634,"Five Thousand Six Hundred Thirty Four"]
[5635,"Five Thousand Six Hundred Thirty Five"]
[5636,"Five Thousand Six Hundred Thirty Six"]
[5637,"Five Thousand Six Hundred Thirty Seven"]
[5638,"Five Thousand Six Hundred Thirty Eight"]
[5639,"Five Thousand Six Hundred Thirty Nine"]
[5640,"Five Thousand Six Hundred Forty "]
[5641,"Five Thousand Six Hundred Forty One"]
[5642,"Five Thousand Six Hundred Forty Two"]
[5643,"Five Thousand Six Hundred Forty Three"]
[5644,"Five Thousand Six Hundred Forty Four"]
[5645,"Five Thousand Six Hundred Forty Five"]
[5646,"Five Thousand Six Hundred Forty Six"]
[5647,"Five Thousand Six Hundred Forty Seven"]
[5648,"Five Thousand Six Hundred Forty Eight"]
[5649,"Five Thousand Six Hundred Forty Nine"]
[5650,"Five Thousand Six Hundred Fifty "]
[5651,"Five Thousand Six Hundred Fifty One"]
[5652,"Five Thousand Six Hundred Fifty Two"]
[5653,"Five Thousand Six Hundred Fifty Three"]
[5654,"Five Thousand Six Hundred Fifty Four"]
[5655,"Five Thousand Six Hundred Fifty Five"]
[5656,"Five Thousand Six Hundred Fifty Six"]
[5657,"Five Thousand Six Hundred Fifty Seven"]
[5658,"Five Thousand Six Hundred Fifty Eight"]
[5659,"Five Thousand Six Hundred Fifty Nine"]
[5660,"Five Thousand Six Hundred Sixty "]
[5661,"Five Thousand Six Hundred Sixty One"]
[5662,"Five Thousand Six Hundred Sixty Two"]
[5663,"Five Thousand Six Hundred Sixty Three"]
[5664,"Five Thousand Six Hundred Sixty Four"]
[5665,"Five Thousand Six Hundred Sixty Five"]
[5666,"Five Thousand Six Hundred Sixty Six"]
[5667,"Five Thousand Six Hundred Sixty Seven"]
[5668,"Five Thousand Six Hundred Sixty Eight"]
[5669,"Five Thousand Six Hundred Sixty Nine"]
[5670,"Five Thousand Six Hundred Seventy "]
[5671,"Five Thousand Six Hundred Seventy One"]
[5672,"Five Thousand Six Hundred Seventy Two"]
[5673,"Five Thousand Six Hundred Seventy Three"]
[5674,"Five Thousand Six Hundred Seventy Four"]
[5675,"Five Thousand Six Hundred Seventy Five"]
[5676,"Five Thousand Six Hundred Seventy Six"]
[5677,"Five Thousand Six Hundred Seventy Seven"]
[5678,"Five Thousand Six Hundred Seventy Eight"]
[5679,"Five Thousand Six Hundred Seventy Nine"]
[5680,"Five Thousand Six Hundred Eighty "]
[5681,"Five Thousand Six Hundred Eighty One"]
[5682,"Five Thousand Six Hundred Eighty Two"]
[5683,"Five Thousand Six Hundred Eighty Three"]
[5684,"Five Thousand Six Hundred Eighty Four"]
[5685,"Five Thousand Six Hundred Eighty Five"]
[5686,"Five Thousand Six Hundred Eighty Six"]
[5687,"Five Thousand Six Hundred Eighty Seven"]
[5688,"Five Thousand Six Hundred Eighty Eight"]
[5689,"Five Thousand Six Hundred Eighty Nine"]
[5690,"Five Thousand Six Hundred Ninety "]
[5691,"Five Thousand Six Hundred Ninety One"]
[5692,{"$f":"spellnumber(A5694)","v":"Five Thousand Six Hundred Ninety Two"}]
[5693,"Five Thousand Six Hundred Ninety Three"]
[5694,"Five Thousand Six Hundred Ninety Four"]
[5695,"Five Thousand Six Hundred Ninety Five"]
[5696,"Five Thousand Six Hundred Ninety Six"]
[5697,"Five Thousand Six Hundred Ninety Seven"]
[5698,"Five Thousand Six Hundred Ninety Eight"]
[5699,"Five Thousand Six Hundred Ninety Nine"]
[5700,"Five Thousand Seven Hundred "]
[5701,"Five Thousand Seven Hundred One"]
[5702,"Five Thousand Seven Hundred Two"]
[5703,"Five Thousand Seven Hundred Three"]
[5704,"Five Thousand Seven Hundred Four"]
[5705,"Five Thousand Seven Hundred Five"]
[5706,"Five Thousand Seven Hundred Six"]
[5707,"Five Thousand Seven Hundred Seven"]
[5708,"Five Thousand Seven Hundred Eight"]
[5709,"Five Thousand Seven Hundred Nine"]
[5710,"Five Thousand Seven Hundred Ten"]
[5711,"Five Thousand Seven Hundred Eleven"]
[5712,"Five Thousand Seven Hundred Twelve"]
[5713,"Five Thousand Seven Hundred Thirteen"]
[5714,"Five Thousand Seven Hundred Fourteen"]
[5715,"Five Thousand Seven Hundred Fifteen"]
[5716,"Five Thousand Seven Hundred Sixteen"]
[5717,"Five Thousand Seven Hundred Seventeen"]
[5718,"Five Thousand Seven Hundred Eighteen"]
[5719,"Five Thousand Seven Hundred Nineteen"]
[5720,"Five Thousand Seven Hundred Twenty "]
[5721,"Five Thousand Seven Hundred Twenty One"]
[5722,"Five Thousand Seven Hundred Twenty Two"]
[5723,"Five Thousand Seven Hundred Twenty Three"]
[5724,"Five Thousand Seven Hundred Twenty Four"]
[5725,"Five Thousand Seven Hundred Twenty Five"]
[5726,"Five Thousand Seven Hundred Twenty Six"]
[5727,"Five Thousand Seven Hundred Twenty Seven"]
[5728,"Five Thousand Seven Hundred Twenty Eight"]
[5729,"Five Thousand Seven Hundred Twenty Nine"]
[5730,"Five Thousand Seven Hundred Thirty "]
[5731,"Five Thousand Seven Hundred Thirty One"]
[5732,"Five Thousand Seven Hundred Thirty Two"]
[5733,"Five Thousand Seven Hundred Thirty Three"]
[5734,"Five Thousand Seven Hundred Thirty Four"]
[5735,"Five Thousand Seven Hundred Thirty Five"]
[5736,"Five Thousand Seven Hundred Thirty Six"]
[5737,"Five Thousand Seven Hundred Thirty Seven"]
[5738,"Five Thousand Seven Hundred Thirty Eight"]
[5739,"Five Thousand Seven Hundred Thirty Nine"]
[5740,"Five Thousand Seven Hundred Forty "]
[5741,"Five Thousand Seven Hundred Forty One"]
[5742,"Five Thousand Seven Hundred Forty Two"]
[5743,"Five Thousand Seven Hundred Forty Three"]
[5744,"Five Thousand Seven Hundred Forty Four"]
[5745,"Five Thousand Seven Hundred Forty Five"]
[5746,"Five Thousand Seven Hundred Forty Six"]
[5747,"Five Thousand Seven Hundred Forty Seven"]
[5748,"Five Thousand Seven Hundred Forty Eight"]
[5749,"Five Thousand Seven Hundred Forty Nine"]
[5750,"Five Thousand Seven Hundred Fifty "]
[5751,"Five Thousand Seven Hundred Fifty One"]
[5752,"Five Thousand Seven Hundred Fifty Two"]
[5753,"Five Thousand Seven Hundred Fifty Three"]
[5754,"Five Thousand Seven Hundred Fifty Four"]
[5755,"Five Thousand Seven Hundred Fifty Five"]
[5756,{"$f":"spellnumber(A5758)","v":"Five Thousand Seven Hundred Fifty Six"}]
[5757,"Five Thousand Seven Hundred Fifty Seven"]
[5758,"Five Thousand Seven Hundred Fifty Eight"]
[5759,"Five Thousand Seven Hundred Fifty Nine"]
[5760,"Five Thousand Seven Hundred Sixty "]
[5761,"Five Thousand Seven Hundred Sixty One"]
[5762,"Five Thousand Seven Hundred Sixty Two"]
[5763,"Five Thousand Seven Hundred Sixty Three"]
[5764,"Five Thousand Seven Hundred Sixty Four"]
[5765,"Five Thousand Seven Hundred Sixty Five"]
[5766,"Five Thousand Seven Hundred Sixty Six"]
[5767,"Five Thousand Seven Hundred Sixty Seven"]
[5768,"Five Thousand Seven Hundred Sixty Eight"]
[5769,"Five Thousand Seven Hundred Sixty Nine"]
[5770,"Five Thousand Seven Hundred Seventy "]
[5771,"Five Thousand Seven Hundred Seventy One"]
[5772,"Five Thousand Seven Hundred Seventy Two"]
[5773,"Five Thousand Seven Hundred Seventy Three"]
[5774,"Five Thousand Seven Hundred Seventy Four"]
[5775,"Five Thousand Seven Hundred Seventy Five"]
[5776,"Five Thousand Seven Hundred Seventy Six"]
[5777,"Five Thousand Seven Hundred Seventy Seven"]
[5778,"Five Thousand Seven Hundred Seventy Eight"]
[5779,"Five Thousand Seven Hundred Seventy Nine"]
[5780,"Five Thousand Seven Hundred Eighty "]
[5781,"Five Thousand Seven Hundred Eighty One"]
[5782,"Five Thousand Seven Hundred Eighty Two"]
[5783,"Five Thousand Seven Hundred Eighty Three"]
[5784,"Five Thousand Seven Hundred Eighty Four"]
[5785,"Five Thousand Seven Hundred Eighty Five"]
[5786,"Five Thousand Seven Hundred Eighty Six"]
[5787,"Five Thousand Seven Hundred Eighty Seven"]
[5788,"Five Thousand Seven Hundred Eighty Eight"]
[5789,"Five Thousand Seven Hundred Eighty Nine"]
[5790,"Five Thousand Seven Hundred Ninety "]
[5791,"Five Thousand Seven Hundred Ninety One"]
[5792,"Five Thousand Seven Hundred Ninety Two"]
[5793,"Five Thousand Seven Hundred Ninety Three"]
[5794,"Five Thousand Seven Hundred Ninety Four"]
[5795,"Five Thousand Seven Hundred Ninety Five"]
[5796,"Five Thousand Seven Hundred Ninety Six"]
[5797,"Five Thousand Seven Hundred Ninety Seven"]
[5798,"Five Thousand Seven Hundred Ninety Eight"]
[5799,"Five Thousand Seven Hundred Ninety Nine"]
[5800,"Five Thousand Eight Hundred "]
[5801,"Five Thousand Eight Hundred One"]
[5802,"Five Thousand Eight Hundred Two"]
[5803,"Five Thousand Eight Hundred Three"]
[5804,"Five Thousand Eight Hundred Four"]
[5805,"Five Thousand Eight Hundred Five"]
[5806,"Five Thousand Eight Hundred Six"]
[5807,"Five Thousand Eight Hundred Seven"]
[5808,"Five Thousand Eight Hundred Eight"]
[5809,"Five Thousand Eight Hundred Nine"]
[5810,"Five Thousand Eight Hundred Ten"]
[5811,"Five Thousand Eight Hundred Eleven"]
[5812,"Five Thousand Eight Hundred Twelve"]
[5813,"Five Thousand Eight Hundred Thirteen"]
[5814,"Five Thousand Eight Hundred Fourteen"]
[5815,"Five Thousand Eight Hundred Fifteen"]
[5816,"Five Thousand Eight Hundred Sixteen"]
[5817,"Five Thousand Eight Hundred Seventeen"]
[5818,"Five Thousand Eight Hundred Eighteen"]
[5819,"Five Thousand Eight Hundred Nineteen"]
[5820,{"$f":"spellnumber(A5822)","v":"Five Thousand Eight Hundred Twenty "}]
[5821,"Five Thousand Eight Hundred Twenty One"]
[5822,"Five Thousand Eight Hundred Twenty Two"]
[5823,"Five Thousand Eight Hundred Twenty Three"]
[5824,"Five Thousand Eight Hundred Twenty Four"]
[5825,"Five Thousand Eight Hundred Twenty Five"]
[5826,"Five Thousand Eight Hundred Twenty Six"]
[5827,"Five Thousand Eight Hundred Twenty Seven"]
[5828,"Five Thousand Eight Hundred Twenty Eight"]
[5829,"Five Thousand Eight Hundred Twenty Nine"]
[5830,"Five Thousand Eight Hundred Thirty "]
[5831,"Five Thousand Eight Hundred Thirty One"]
[5832,"Five Thousand Eight Hundred Thirty Two"]
[5833,"Five Thousand Eight Hundred Thirty Three"]
[5834,"Five Thousand Eight Hundred Thirty Four"]
[5835,"Five Thousand Eight Hundred Thirty Five"]
[5836,"Five Thousand Eight Hundred Thirty Six"]
[5837,"Five Thousand Eight Hundred Thirty Seven"]
[5838,"Five Thousand Eight Hundred Thirty Eight"]
[5839,"Five Thousand Eight Hundred Thirty Nine"]
[5840,"Five Thousand Eight Hundred Forty "]
[5841,"Five Thousand Eight Hundred Forty One"]
[5842,"Five Thousand Eight Hundred Forty Two"]
[5843,"Five Thousand Eight Hundred Forty Three"]
[5844,"Five Thousand Eight Hundred Forty Four"]
[5845,"Five Thousand Eight Hundred Forty Five"]
[5846,"Five Thousand Eight Hundred Forty Six"]
[5847,"Five Thousand Eight Hundred Forty Seven"]
[5848,"Five Thousand Eight Hundred Forty Eight"]
[5849,"Five Thousand Eight Hundred Forty Nine"]
[5850,"Five Thousand Eight Hundred Fifty "]
[5851,"Five Thousand Eight Hundred Fifty One"]
[5852,"Five Thousand Eight Hundred Fifty Two"]
[5853,"Five Thousand Eight Hundred Fifty Three"]
[5854,"Five Thousand Eight Hundred Fifty Four"]
[5855,"Five Thousand Eight Hundred Fifty Five"]
[5856,"Five Thousand Eight Hundred Fifty Six"]
[5857,"Five Thousand Eight Hundred Fifty Seven"]
[5858,"Five Thousand Eight Hundred Fifty Eight"]
[5859,"Five Thousand Eight Hundred Fifty Nine"]
[5860,"Five Thousand Eight Hundred Sixty "]
[5861,"Five Thousand Eight Hundred Sixty One"]
[5862,"Five Thousand Eight Hundred Sixty Two"]
[5863,"Five Thousand Eight Hundred Sixty Three"]
[5864,"Five Thousand Eight Hundred Sixty Four"]
[5865,"Five Thousand Eight Hundred Sixty Five"]
[5866,"Five Thousand Eight Hundred Sixty Six"]
[5867,"Five Thousand Eight Hundred Sixty Seven"]
[5868,"Five Thousand Eight Hundred Sixty Eight"]
[5869,"Five Thousand Eight Hundred Sixty Nine"]
[5870,"Five Thousand Eight Hundred Seventy "]
[5871,"Five Thousand Eight Hundred Seventy One"]
[5872,"Five Thousand Eight Hundred Seventy Two"]
[5873,"Five Thousand Eight Hundred Seventy Three"]
[5874,"Five Thousand Eight Hundred Seventy Four"]
[5875,"Five Thousand Eight Hundred Seventy Five"]
[5876,"Five Thousand Eight Hundred Seventy Six"]
[5877,"Five Thousand Eight Hundred Seventy Seven"]
[5878,"Five Thousand Eight Hundred Seventy Eight"]
[5879,"Five Thousand Eight Hundred Seventy Nine"]
[5880,"Five Thousand Eight Hundred Eighty "]
[5881,"Five Thousand Eight Hundred Eighty One"]
[5882,"Five Thousand Eight Hundred Eighty Two"]
[5883,"Five Thousand Eight Hundred Eighty Three"]
[5884,{"$f":"spellnumber(A5886)","v":"Five Thousand Eight Hundred Eighty Four"}]
[5885,"Five Thousand Eight Hundred Eighty Five"]
[5886,"Five Thousand Eight Hundred Eighty Six"]
[5887,"Five Thousand Eight Hundred Eighty Seven"]
[5888,"Five Thousand Eight Hundred Eighty Eight"]
[5889,"Five Thousand Eight Hundred Eighty Nine"]
[5890,"Five Thousand Eight Hundred Ninety "]
[5891,"Five Thousand Eight Hundred Ninety One"]
[5892,"Five Thousand Eight Hundred Ninety Two"]
[5893,"Five Thousand Eight Hundred Ninety Three"]
[5894,"Five Thousand Eight Hundred Ninety Four"]
[5895,"Five Thousand Eight Hundred Ninety Five"]
[5896,"Five Thousand Eight Hundred Ninety Six"]
[5897,"Five Thousand Eight Hundred Ninety Seven"]
[5898,"Five Thousand Eight Hundred Ninety Eight"]
[5899,"Five Thousand Eight Hundred Ninety Nine"]
[5900,"Five Thousand Nine Hundred "]
[5901,"Five Thousand Nine Hundred One"]
[5902,"Five Thousand Nine Hundred Two"]
[5903,"Five Thousand Nine Hundred Three"]
[5904,"Five Thousand Nine Hundred Four"]
[5905,"Five Thousand Nine Hundred Five"]
[5906,"Five Thousand Nine Hundred Six"]
[5907,"Five Thousand Nine Hundred Seven"]
[5908,"Five Thousand Nine Hundred Eight"]
[5909,"Five Thousand Nine Hundred Nine"]
[5910,"Five Thousand Nine Hundred Ten"]
[5911,"Five Thousand Nine Hundred Eleven"]
[5912,"Five Thousand Nine Hundred Twelve"]
[5913,"Five Thousand Nine Hundred Thirteen"]
[5914,"Five Thousand Nine Hundred Fourteen"]
[5915,"Five Thousand Nine Hundred Fifteen"]
[5916,"Five Thousand Nine Hundred Sixteen"]
[5917,"Five Thousand Nine Hundred Seventeen"]
[5918,"Five Thousand Nine Hundred Eighteen"]
[5919,"Five Thousand Nine Hundred Nineteen"]
[5920,"Five Thousand Nine Hundred Twenty "]
[5921,"Five Thousand Nine Hundred Twenty One"]
[5922,"Five Thousand Nine Hundred Twenty Two"]
[5923,"Five Thousand Nine Hundred Twenty Three"]
[5924,"Five Thousand Nine Hundred Twenty Four"]
[5925,"Five Thousand Nine Hundred Twenty Five"]
[5926,"Five Thousand Nine Hundred Twenty Six"]
[5927,"Five Thousand Nine Hundred Twenty Seven"]
[5928,"Five Thousand Nine Hundred Twenty Eight"]
[5929,"Five Thousand Nine Hundred Twenty Nine"]
[5930,"Five Thousand Nine Hundred Thirty "]
[5931,"Five Thousand Nine Hundred Thirty One"]
[5932,"Five Thousand Nine Hundred Thirty Two"]
[5933,"Five Thousand Nine Hundred Thirty Three"]
[5934,"Five Thousand Nine Hundred Thirty Four"]
[5935,"Five Thousand Nine Hundred Thirty Five"]
[5936,"Five Thousand Nine Hundred Thirty Six"]
[5937,"Five Thousand Nine Hundred Thirty Seven"]
[5938,"Five Thousand Nine Hundred Thirty Eight"]
[5939,"Five Thousand Nine Hundred Thirty Nine"]
[5940,"Five Thousand Nine Hundred Forty "]
[5941,"Five Thousand Nine Hundred Forty One"]
[5942,"Five Thousand Nine Hundred Forty Two"]
[5943,"Five Thousand Nine Hundred Forty Three"]
[5944,"Five Thousand Nine Hundred Forty Four"]
[5945,"Five Thousand Nine Hundred Forty Five"]
[5946,"Five Thousand Nine Hundred Forty Six"]
[5947,"Five Thousand Nine Hundred Forty Seven"]
[5948,{"$f":"spellnumber(A5950)","v":"Five Thousand Nine Hundred Forty Eight"}]
[5949,"Five Thousand Nine Hundred Forty Nine"]
[5950,"Five Thousand Nine Hundred Fifty "]
[5951,"Five Thousand Nine Hundred Fifty One"]
[5952,"Five Thousand Nine Hundred Fifty Two"]
[5953,"Five Thousand Nine Hundred Fifty Three"]
[5954,"Five Thousand Nine Hundred Fifty Four"]
[5955,"Five Thousand Nine Hundred Fifty Five"]
[5956,"Five Thousand Nine Hundred Fifty Six"]
[5957,"Five Thousand Nine Hundred Fifty Seven"]
[5958,"Five Thousand Nine Hundred Fifty Eight"]
[5959,"Five Thousand Nine Hundred Fifty Nine"]
[5960,"Five Thousand Nine Hundred Sixty "]
[5961,"Five Thousand Nine Hundred Sixty One"]
[5962,"Five Thousand Nine Hundred Sixty Two"]
[5963,"Five Thousand Nine Hundred Sixty Three"]
[5964,"Five Thousand Nine Hundred Sixty Four"]
[5965,"Five Thousand Nine Hundred Sixty Five"]
[5966,"Five Thousand Nine Hundred Sixty Six"]
[5967,"Five Thousand Nine Hundred Sixty Seven"]
[5968,"Five Thousand Nine Hundred Sixty Eight"]
[5969,"Five Thousand Nine Hundred Sixty Nine"]
[5970,"Five Thousand Nine Hundred Seventy "]
[5971,"Five Thousand Nine Hundred Seventy One"]
[5972,"Five Thousand Nine Hundred Seventy Two"]
[5973,"Five Thousand Nine Hundred Seventy Three"]
[5974,"Five Thousand Nine Hundred Seventy Four"]
[5975,"Five Thousand Nine Hundred Seventy Five"]
[5976,"Five Thousand Nine Hundred Seventy Six"]
[5977,"Five Thousand Nine Hundred Seventy Seven"]
[5978,"Five Thousand Nine Hundred Seventy Eight"]
[5979,"Five Thousand Nine Hundred Seventy Nine"]
[5980,"Five Thousand Nine Hundred Eighty "]
[5981,"Five Thousand Nine Hundred Eighty One"]
[5982,"Five Thousand Nine Hundred Eighty Two"]
[5983,"Five Thousand Nine Hundred Eighty Three"]
[5984,"Five Thousand Nine Hundred Eighty Four"]
[5985,"Five Thousand Nine Hundred Eighty Five"]
[5986,"Five Thousand Nine Hundred Eighty Six"]
[5987,"Five Thousand Nine Hundred Eighty Seven"]
[5988,"Five Thousand Nine Hundred Eighty Eight"]
[5989,"Five Thousand Nine Hundred Eighty Nine"]
[5990,"Five Thousand Nine Hundred Ninety "]
[5991,"Five Thousand Nine Hundred Ninety One"]
[5992,"Five Thousand Nine Hundred Ninety Two"]
[5993,"Five Thousand Nine Hundred Ninety Three"]
[5994,"Five Thousand Nine Hundred Ninety Four"]
[5995,"Five Thousand Nine Hundred Ninety Five"]
[5996,"Five Thousand Nine Hundred Ninety Six"]
[5997,"Five Thousand Nine Hundred Ninety Seven"]
[5998,"Five Thousand Nine Hundred Ninety Eight"]
[5999,"Five Thousand Nine Hundred Ninety Nine"]
[6000,"Six Thousand "]
[6001,"Six Thousand One"]
[6002,"Six Thousand Two"]
[6003,"Six Thousand Three"]
[6004,"Six Thousand Four"]
[6005,"Six Thousand Five"]
[6006,"Six Thousand Six"]
[6007,"Six Thousand Seven"]
[6008,"Six Thousand Eight"]
[6009,"Six Thousand Nine"]
[6010,"Six Thousand Ten"]
[6011,"Six Thousand Eleven"]
[6012,{"$f":"spellnumber(A6014)","v":"Six Thousand Twelve"}]
[6013,"Six Thousand Thirteen"]
[6014,"Six Thousand Fourteen"]
[6015,"Six Thousand Fifteen"]
[6016,"Six Thousand Sixteen"]
[6017,"Six Thousand Seventeen"]
[6018,"Six Thousand Eighteen"]
[6019,"Six Thousand Nineteen"]
[6020,"Six Thousand Twenty "]
[6021,"Six Thousand Twenty One"]
[6022,"Six Thousand Twenty Two"]
[6023,"Six Thousand Twenty Three"]
[6024,"Six Thousand Twenty Four"]
[6025,"Six Thousand Twenty Five"]
[6026,"Six Thousand Twenty Six"]
[6027,"Six Thousand Twenty Seven"]
[6028,"Six Thousand Twenty Eight"]
[6029,"Six Thousand Twenty Nine"]
[6030,"Six Thousand Thirty "]
[6031,"Six Thousand Thirty One"]
[6032,"Six Thousand Thirty Two"]
[6033,"Six Thousand Thirty Three"]
[6034,"Six Thousand Thirty Four"]
[6035,"Six Thousand Thirty Five"]
[6036,"Six Thousand Thirty Six"]
[6037,"Six Thousand Thirty Seven"]
[6038,"Six Thousand Thirty Eight"]
[6039,"Six Thousand Thirty Nine"]
[6040,"Six Thousand Forty "]
[6041,"Six Thousand Forty One"]
[6042,"Six Thousand Forty Two"]
[6043,"Six Thousand Forty Three"]
[6044,"Six Thousand Forty Four"]
[6045,"Six Thousand Forty Five"]
[6046,"Six Thousand Forty Six"]
[6047,"Six Thousand Forty Seven"]
[6048,"Six Thousand Forty Eight"]
[6049,"Six Thousand Forty Nine"]
[6050,"Six Thousand Fifty "]
[6051,"Six Thousand Fifty One"]
[6052,"Six Thousand Fifty Two"]
[6053,"Six Thousand Fifty Three"]
[6054,"Six Thousand Fifty Four"]
[6055,"Six Thousand Fifty Five"]
[6056,"Six Thousand Fifty Six"]
[6057,"Six Thousand Fifty Seven"]
[6058,"Six Thousand Fifty Eight"]
[6059,"Six Thousand Fifty Nine"]
[6060,"Six Thousand Sixty "]
[6061,"Six Thousand Sixty One"]
[6062,"Six Thousand Sixty Two"]
[6063,"Six Thousand Sixty Three"]
[6064,"Six Thousand Sixty Four"]
[6065,"Six Thousand Sixty Five"]
[6066,"Six Thousand Sixty Six"]
[6067,"Six Thousand Sixty Seven"]
[6068,"Six Thousand Sixty Eight"]
[6069,"Six Thousand Sixty Nine"]
[6070,"Six Thousand Seventy "]
[6071,"Six Thousand Seventy One"]
[6072,"Six Thousand Seventy Two"]
[6073,"Six Thousand Seventy Three"]
[6074,"Six Thousand Seventy Four"]
[6075,"Six Thousand Seventy Five"]
[6076,{"$f":"spellnumber(A6078)","v":"Six Thousand Seventy Six"}]
[6077,"Six Thousand Seventy Seven"]
[6078,"Six Thousand Seventy Eight"]
[6079,"Six Thousand Seventy Nine"]
[6080,"Six Thousand Eighty "]
[6081,"Six Thousand Eighty One"]
[6082,"Six Thousand Eighty Two"]
[6083,"Six Thousand Eighty Three"]
[6084,"Six Thousand Eighty Four"]
[6085,"Six Thousand Eighty Five"]
[6086,"Six Thousand Eighty Six"]
[6087,"Six Thousand Eighty Seven"]
[6088,"Six Thousand Eighty Eight"]
[6089,"Six Thousand Eighty Nine"]
[6090,"Six Thousand Ninety "]
[6091,"Six Thousand Ninety One"]
[6092,"Six Thousand Ninety Two"]
[6093,"Six Thousand Ninety Three"]
[6094,"Six Thousand Ninety Four"]
[6095,"Six Thousand Ninety Five"]
[6096,"Six Thousand Ninety Six"]
[6097,"Six Thousand Ninety Seven"]
[6098,"Six Thousand Ninety Eight"]
[6099,"Six Thousand Ninety Nine"]
[6100,"Six Thousand One Hundred "]
[6101,"Six Thousand One Hundred One"]
[6102,"Six Thousand One Hundred Two"]
[6103,"Six Thousand One Hundred Three"]
[6104,"Six Thousand One Hundred Four"]
[6105,"Six Thousand One Hundred Five"]
[6106,"Six Thousand One Hundred Six"]
[6107,"Six Thousand One Hundred Seven"]
[6108,"Six Thousand One Hundred Eight"]
[6109,"Six Thousand One Hundred Nine"]
[6110,"Six Thousand One Hundred Ten"]
[6111,"Six Thousand One Hundred Eleven"]
[6112,"Six Thousand One Hundred Twelve"]
[6113,"Six Thousand One Hundred Thirteen"]
[6114,"Six Thousand One Hundred Fourteen"]
[6115,"Six Thousand One Hundred Fifteen"]
[6116,"Six Thousand One Hundred Sixteen"]
[6117,"Six Thousand One Hundred Seventeen"]
[6118,"Six Thousand One Hundred Eighteen"]
[6119,"Six Thousand One Hundred Nineteen"]
[6120,"Six Thousand One Hundred Twenty "]
[6121,"Six Thousand One Hundred Twenty One"]
[6122,"Six Thousand One Hundred Twenty Two"]
[6123,"Six Thousand One Hundred Twenty Three"]
[6124,"Six Thousand One Hundred Twenty Four"]
[6125,"Six Thousand One Hundred Twenty Five"]
[6126,"Six Thousand One Hundred Twenty Six"]
[6127,"Six Thousand One Hundred Twenty Seven"]
[6128,"Six Thousand One Hundred Twenty Eight"]
[6129,"Six Thousand One Hundred Twenty Nine"]
[6130,"Six Thousand One Hundred Thirty "]
[6131,"Six Thousand One Hundred Thirty One"]
[6132,"Six Thousand One Hundred Thirty Two"]
[6133,"Six Thousand One Hundred Thirty Three"]
[6134,"Six Thousand One Hundred Thirty Four"]
[6135,"Six Thousand One Hundred Thirty Five"]
[6136,"Six Thousand One Hundred Thirty Six"]
[6137,"Six Thousand One Hundred Thirty Seven"]
[6138,"Six Thousand One Hundred Thirty Eight"]
[6139,"Six Thousand One Hundred Thirty Nine"]
[6140,{"$f":"spellnumber(A6142)","v":"Six Thousand One Hundred Forty "}]
[6141,"Six Thousand One Hundred Forty One"]
[6142,"Six Thousand One Hundred Forty Two"]
[6143,"Six Thousand One Hundred Forty Three"]
[6144,"Six Thousand One Hundred Forty Four"]
[6145,"Six Thousand One Hundred Forty Five"]
[6146,"Six Thousand One Hundred Forty Six"]
[6147,"Six Thousand One Hundred Forty Seven"]
[6148,"Six Thousand One Hundred Forty Eight"]
[6149,"Six Thousand One Hundred Forty Nine"]
[6150,"Six Thousand One Hundred Fifty "]
[6151,"Six Thousand One Hundred Fifty One"]
[6152,"Six Thousand One Hundred Fifty Two"]
[6153,"Six Thousand One Hundred Fifty Three"]
[6154,"Six Thousand One Hundred Fifty Four"]
[6155,"Six Thousand One Hundred Fifty Five"]
[6156,"Six Thousand One Hundred Fifty Six"]
[6157,"Six Thousand One Hundred Fifty Seven"]
[6158,"Six Thousand One Hundred Fifty Eight"]
[6159,"Six Thousand One Hundred Fifty Nine"]
[6160,"Six Thousand One Hundred Sixty "]
[6161,"Six Thousand One Hundred Sixty One"]
[6162,"Six Thousand One Hundred Sixty Two"]
[6163,"Six Thousand One Hundred Sixty Three"]
[6164,"Six Thousand One Hundred Sixty Four"]
[6165,"Six Thousand One Hundred Sixty Five"]
[6166,"Six Thousand One Hundred Sixty Six"]
[6167,"Six Thousand One Hundred Sixty Seven"]
[6168,"Six Thousand One Hundred Sixty Eight"]
[6169,"Six Thousand One Hundred Sixty Nine"]
[6170,"Six Thousand One Hundred Seventy "]
[6171,"Six Thousand One Hundred Seventy One"]
[6172,"Six Thousand One Hundred Seventy Two"]
[6173,"Six Thousand One Hundred Seventy Three"]
[6174,"Six Thousand One Hundred Seventy Four"]
[6175,"Six Thousand One Hundred Seventy Five"]
[6176,"Six Thousand One Hundred Seventy Six"]
[6177,"Six Thousand One Hundred Seventy Seven"]
[6178,"Six Thousand One Hundred Seventy Eight"]
[6179,"Six Thousand One Hundred Seventy Nine"]
[6180,"Six Thousand One Hundred Eighty "]
[6181,"Six Thousand One Hundred Eighty One"]
[6182,"Six Thousand One Hundred Eighty Two"]
[6183,"Six Thousand One Hundred Eighty Three"]
[6184,"Six Thousand One Hundred Eighty Four"]
[6185,"Six Thousand One Hundred Eighty Five"]
[6186,"Six Thousand One Hundred Eighty Six"]
[6187,"Six Thousand One Hundred Eighty Seven"]
[6188,"Six Thousand One Hundred Eighty Eight"]
[6189,"Six Thousand One Hundred Eighty Nine"]
[6190,"Six Thousand One Hundred Ninety "]
[6191,"Six Thousand One Hundred Ninety One"]
[6192,"Six Thousand One Hundred Ninety Two"]
[6193,"Six Thousand One Hundred Ninety Three"]
[6194,"Six Thousand One Hundred Ninety Four"]
[6195,"Six Thousand One Hundred Ninety Five"]
[6196,"Six Thousand One Hundred Ninety Six"]
[6197,"Six Thousand One Hundred Ninety Seven"]
[6198,"Six Thousand One Hundred Ninety Eight"]
[6199,"Six Thousand One Hundred Ninety Nine"]
[6200,"Six Thousand Two Hundred "]
[6201,"Six Thousand Two Hundred One"]
[6202,"Six Thousand Two Hundred Two"]
[6203,"Six Thousand Two Hundred Three"]
[6204,{"$f":"spellnumber(A6206)","v":"Six Thousand Two Hundred Four"}]
[6205,"Six Thousand Two Hundred Five"]
[6206,"Six Thousand Two Hundred Six"]
[6207,"Six Thousand Two Hundred Seven"]
[6208,"Six Thousand Two Hundred Eight"]
[6209,"Six Thousand Two Hundred Nine"]
[6210,"Six Thousand Two Hundred Ten"]
[6211,"Six Thousand Two Hundred Eleven"]
[6212,"Six Thousand Two Hundred Twelve"]
[6213,"Six Thousand Two Hundred Thirteen"]
[6214,"Six Thousand Two Hundred Fourteen"]
[6215,"Six Thousand Two Hundred Fifteen"]
[6216,"Six Thousand Two Hundred Sixteen"]
[6217,"Six Thousand Two Hundred Seventeen"]
[6218,"Six Thousand Two Hundred Eighteen"]
[6219,"Six Thousand Two Hundred Nineteen"]
[6220,"Six Thousand Two Hundred Twenty "]
[6221,"Six Thousand Two Hundred Twenty One"]
[6222,"Six Thousand Two Hundred Twenty Two"]
[6223,"Six Thousand Two Hundred Twenty Three"]
[6224,"Six Thousand Two Hundred Twenty Four"]
[6225,"Six Thousand Two Hundred Twenty Five"]
[6226,"Six Thousand Two Hundred Twenty Six"]
[6227,"Six Thousand Two Hundred Twenty Seven"]
[6228,"Six Thousand Two Hundred Twenty Eight"]
[6229,"Six Thousand Two Hundred Twenty Nine"]
[6230,"Six Thousand Two Hundred Thirty "]
[6231,"Six Thousand Two Hundred Thirty One"]
[6232,"Six Thousand Two Hundred Thirty Two"]
[6233,"Six Thousand Two Hundred Thirty Three"]
[6234,"Six Thousand Two Hundred Thirty Four"]
[6235,"Six Thousand Two Hundred Thirty Five"]
[6236,"Six Thousand Two Hundred Thirty Six"]
[6237,"Six Thousand Two Hundred Thirty Seven"]
[6238,"Six Thousand Two Hundred Thirty Eight"]
[6239,"Six Thousand Two Hundred Thirty Nine"]
[6240,"Six Thousand Two Hundred Forty "]
[6241,"Six Thousand Two Hundred Forty One"]
[6242,"Six Thousand Two Hundred Forty Two"]
[6243,"Six Thousand Two Hundred Forty Three"]
[6244,"Six Thousand Two Hundred Forty Four"]
[6245,"Six Thousand Two Hundred Forty Five"]
[6246,"Six Thousand Two Hundred Forty Six"]
[6247,"Six Thousand Two Hundred Forty Seven"]
[6248,"Six Thousand Two Hundred Forty Eight"]
[6249,"Six Thousand Two Hundred Forty Nine"]
[6250,"Six Thousand Two Hundred Fifty "]
[6251,"Six Thousand Two Hundred Fifty One"]
[6252,"Six Thousand Two Hundred Fifty Two"]
[6253,"Six Thousand Two Hundred Fifty Three"]
[6254,"Six Thousand Two Hundred Fifty Four"]
[6255,"Six Thousand Two Hundred Fifty Five"]
[6256,"Six Thousand Two Hundred Fifty Six"]
[6257,"Six Thousand Two Hundred Fifty Seven"]
[6258,"Six Thousand Two Hundred Fifty Eight"]
[6259,"Six Thousand Two Hundred Fifty Nine"]
[6260,"Six Thousand Two Hundred Sixty "]
[6261,"Six Thousand Two Hundred Sixty One"]
[6262,"Six Thousand Two Hundred Sixty Two"]
[6263,"Six Thousand Two Hundred Sixty Three"]
[6264,"Six Thousand Two Hundred Sixty Four"]
[6265,"Six Thousand Two Hundred Sixty Five"]
[6266,"Six Thousand Two Hundred Sixty Six"]
[6267,"Six Thousand Two Hundred Sixty Seven"]
[6268,{"$f":"spellnumber(A6270)","v":"Six Thousand Two Hundred Sixty Eight"}]
[6269,"Six Thousand Two Hundred Sixty Nine"]
[6270,"Six Thousand Two Hundred Seventy "]
[6271,"Six Thousand Two Hundred Seventy One"]
[6272,"Six Thousand Two Hundred Seventy Two"]
[6273,"Six Thousand Two Hundred Seventy Three"]
[6274,"Six Thousand Two Hundred Seventy Four"]
[6275,"Six Thousand Two Hundred Seventy Five"]
[6276,"Six Thousand Two Hundred Seventy Six"]
[6277,"Six Thousand Two Hundred Seventy Seven"]
[6278,"Six Thousand Two Hundred Seventy Eight"]
[6279,"Six Thousand Two Hundred Seventy Nine"]
[6280,"Six Thousand Two Hundred Eighty "]
[6281,"Six Thousand Two Hundred Eighty One"]
[6282,"Six Thousand Two Hundred Eighty Two"]
[6283,"Six Thousand Two Hundred Eighty Three"]
[6284,"Six Thousand Two Hundred Eighty Four"]
[6285,"Six Thousand Two Hundred Eighty Five"]
[6286,"Six Thousand Two Hundred Eighty Six"]
[6287,"Six Thousand Two Hundred Eighty Seven"]
[6288,"Six Thousand Two Hundred Eighty Eight"]
[6289,"Six Thousand Two Hundred Eighty Nine"]
[6290,"Six Thousand Two Hundred Ninety "]
[6291,"Six Thousand Two Hundred Ninety One"]
[6292,"Six Thousand Two Hundred Ninety Two"]
[6293,"Six Thousand Two Hundred Ninety Three"]
[6294,"Six Thousand Two Hundred Ninety Four"]
[6295,"Six Thousand Two Hundred Ninety Five"]
[6296,"Six Thousand Two Hundred Ninety Six"]
[6297,"Six Thousand Two Hundred Ninety Seven"]
[6298,"Six Thousand Two Hundred Ninety Eight"]
[6299,"Six Thousand Two Hundred Ninety Nine"]
[6300,"Six Thousand Three Hundred "]
[6301,"Six Thousand Three Hundred One"]
[6302,"Six Thousand Three Hundred Two"]
[6303,"Six Thousand Three Hundred Three"]
[6304,"Six Thousand Three Hundred Four"]
[6305,"Six Thousand Three Hundred Five"]
[6306,"Six Thousand Three Hundred Six"]
[6307,"Six Thousand Three Hundred Seven"]
[6308,"Six Thousand Three Hundred Eight"]
[6309,"Six Thousand Three Hundred Nine"]
[6310,"Six Thousand Three Hundred Ten"]
[6311,"Six Thousand Three Hundred Eleven"]
[6312,"Six Thousand Three Hundred Twelve"]
[6313,"Six Thousand Three Hundred Thirteen"]
[6314,"Six Thousand Three Hundred Fourteen"]
[6315,"Six Thousand Three Hundred Fifteen"]
[6316,"Six Thousand Three Hundred Sixteen"]
[6317,"Six Thousand Three Hundred Seventeen"]
[6318,"Six Thousand Three Hundred Eighteen"]
[6319,"Six Thousand Three Hundred Nineteen"]
[6320,"Six Thousand Three Hundred Twenty "]
[6321,"Six Thousand Three Hundred Twenty One"]
[6322,"Six Thousand Three Hundred Twenty Two"]
[6323,"Six Thousand Three Hundred Twenty Three"]
[6324,"Six Thousand Three Hundred Twenty Four"]
[6325,"Six Thousand Three Hundred Twenty Five"]
[6326,"Six Thousand Three Hundred Twenty Six"]
[6327,"Six Thousand Three Hundred Twenty Seven"]
[6328,"Six Thousand Three Hundred Twenty Eight"]
[6329,"Six Thousand Three Hundred Twenty Nine"]
[6330,"Six Thousand Three Hundred Thirty "]
[6331,"Six Thousand Three Hundred Thirty One"]
[6332,{"$f":"spellnumber(A6334)","v":"Six Thousand Three Hundred Thirty Two"}]
[6333,"Six Thousand Three Hundred Thirty Three"]
[6334,"Six Thousand Three Hundred Thirty Four"]
[6335,"Six Thousand Three Hundred Thirty Five"]
[6336,"Six Thousand Three Hundred Thirty Six"]
[6337,"Six Thousand Three Hundred Thirty Seven"]
[6338,"Six Thousand Three Hundred Thirty Eight"]
[6339,"Six Thousand Three Hundred Thirty Nine"]
[6340,"Six Thousand Three Hundred Forty "]
[6341,"Six Thousand Three Hundred Forty One"]
[6342,"Six Thousand Three Hundred Forty Two"]
[6343,"Six Thousand Three Hundred Forty Three"]
[6344,"Six Thousand Three Hundred Forty Four"]
[6345,"Six Thousand Three Hundred Forty Five"]
[6346,"Six Thousand Three Hundred Forty Six"]
[6347,"Six Thousand Three Hundred Forty Seven"]
[6348,"Six Thousand Three Hundred Forty Eight"]
[6349,"Six Thousand Three Hundred Forty Nine"]
[6350,"Six Thousand Three Hundred Fifty "]
[6351,"Six Thousand Three Hundred Fifty One"]
[6352,"Six Thousand Three Hundred Fifty Two"]
[6353,"Six Thousand Three Hundred Fifty Three"]
[6354,"Six Thousand Three Hundred Fifty Four"]
[6355,"Six Thousand Three Hundred Fifty Five"]
[6356,"Six Thousand Three Hundred Fifty Six"]
[6357,"Six Thousand Three Hundred Fifty Seven"]
[6358,"Six Thousand Three Hundred Fifty Eight"]
[6359,"Six Thousand Three Hundred Fifty Nine"]
[6360,"Six Thousand Three Hundred Sixty "]
[6361,"Six Thousand Three Hundred Sixty One"]
[6362,"Six Thousand Three Hundred Sixty Two"]
[6363,"Six Thousand Three Hundred Sixty Three"]
[6364,"Six Thousand Three Hundred Sixty Four"]
[6365,"Six Thousand Three Hundred Sixty Five"]
[6366,"Six Thousand Three Hundred Sixty Six"]
[6367,"Six Thousand Three Hundred Sixty Seven"]
[6368,"Six Thousand Three Hundred Sixty Eight"]
[6369,"Six Thousand Three Hundred Sixty Nine"]
[6370,"Six Thousand Three Hundred Seventy "]
[6371,"Six Thousand Three Hundred Seventy One"]
[6372,"Six Thousand Three Hundred Seventy Two"]
[6373,"Six Thousand Three Hundred Seventy Three"]
[6374,"Six Thousand Three Hundred Seventy Four"]
[6375,"Six Thousand Three Hundred Seventy Five"]
[6376,"Six Thousand Three Hundred Seventy Six"]
[6377,"Six Thousand Three Hundred Seventy Seven"]
[6378,"Six Thousand Three Hundred Seventy Eight"]
[6379,"Six Thousand Three Hundred Seventy Nine"]
[6380,"Six Thousand Three Hundred Eighty "]
[6381,"Six Thousand Three Hundred Eighty One"]
[6382,"Six Thousand Three Hundred Eighty Two"]
[6383,"Six Thousand Three Hundred Eighty Three"]
[6384,"Six Thousand Three Hundred Eighty Four"]
[6385,"Six Thousand Three Hundred Eighty Five"]
[6386,"Six Thousand Three Hundred Eighty Six"]
[6387,"Six Thousand Three Hundred Eighty Seven"]
[6388,"Six Thousand Three Hundred Eighty Eight"]
[6389,"Six Thousand Three Hundred Eighty Nine"]
[6390,"Six Thousand Three Hundred Ninety "]
[6391,"Six Thousand Three Hundred Ninety One"]
[6392,"Six Thousand Three Hundred Ninety Two"]
[6393,"Six Thousand Three Hundred Ninety Three"]
[6394,"Six Thousand Three Hundred Ninety Four"]
[6395,"Six Thousand Three Hundred Ninety Five"]
[6396,{"$f":"spellnumber(A6398)","v":"Six Thousand Three Hundred Ninety Six"}]
[6397,"Six Thousand Three Hundred Ninety Seven"]
[6398,"Six Thousand Three Hundred Ninety Eight"]
[6399,"Six Thousand Three Hundred Ninety Nine"]
[6400,"Six Thousand Four Hundred "]
[6401,"Six Thousand Four Hundred One"]
[6402,"Six Thousand Four Hundred Two"]
[6403,"Six Thousand Four Hundred Three"]
[6404,"Six Thousand Four Hundred Four"]
[6405,"Six Thousand Four Hundred Five"]
[6406,"Six Thousand Four Hundred Six"]
[6407,"Six Thousand Four Hundred Seven"]
[6408,"Six Thousand Four Hundred Eight"]
[6409,"Six Thousand Four Hundred Nine"]
[6410,"Six Thousand Four Hundred Ten"]
[6411,"Six Thousand Four Hundred Eleven"]
[6412,"Six Thousand Four Hundred Twelve"]
[6413,"Six Thousand Four Hundred Thirteen"]
[6414,"Six Thousand Four Hundred Fourteen"]
[6415,"Six Thousand Four Hundred Fifteen"]
[6416,"Six Thousand Four Hundred Sixteen"]
[6417,"Six Thousand Four Hundred Seventeen"]
[6418,"Six Thousand Four Hundred Eighteen"]
[6419,"Six Thousand Four Hundred Nineteen"]
[6420,"Six Thousand Four Hundred Twenty "]
[6421,"Six Thousand Four Hundred Twenty One"]
[6422,"Six Thousand Four Hundred Twenty Two"]
[6423,"Six Thousand Four Hundred Twenty Three"]
[6424,"Six Thousand Four Hundred Twenty Four"]
[6425,"Six Thousand Four Hundred Twenty Five"]
[6426,"Six Thousand Four Hundred Twenty Six"]
[6427,"Six Thousand Four Hundred Twenty Seven"]
[6428,"Six Thousand Four Hundred Twenty Eight"]
[6429,"Six Thousand Four Hundred Twenty Nine"]
[6430,"Six Thousand Four Hundred Thirty "]
[6431,"Six Thousand Four Hundred Thirty One"]
[6432,"Six Thousand Four Hundred Thirty Two"]
[6433,"Six Thousand Four Hundred Thirty Three"]
[6434,"Six Thousand Four Hundred Thirty Four"]
[6435,"Six Thousand Four Hundred Thirty Five"]
[6436,"Six Thousand Four Hundred Thirty Six"]
[6437,"Six Thousand Four Hundred Thirty Seven"]
[6438,"Six Thousand Four Hundred Thirty Eight"]
[6439,"Six Thousand Four Hundred Thirty Nine"]
[6440,"Six Thousand Four Hundred Forty "]
[6441,"Six Thousand Four Hundred Forty One"]
[6442,"Six Thousand Four Hundred Forty Two"]
[6443,"Six Thousand Four Hundred Forty Three"]
[6444,"Six Thousand Four Hundred Forty Four"]
[6445,"Six Thousand Four Hundred Forty Five"]
[6446,"Six Thousand Four Hundred Forty Six"]
[6447,"Six Thousand Four Hundred Forty Seven"]
[6448,"Six Thousand Four Hundred Forty Eight"]
[6449,"Six Thousand Four Hundred Forty Nine"]
[6450,"Six Thousand Four Hundred Fifty "]
[6451,"Six Thousand Four Hundred Fifty One"]
[6452,"Six Thousand Four Hundred Fifty Two"]
[6453,"Six Thousand Four Hundred Fifty Three"]
[6454,"Six Thousand Four Hundred Fifty Four"]
[6455,"Six Thousand Four Hundred Fifty Five"]
[6456,"Six Thousand Four Hundred Fifty Six"]
[6457,"Six Thousand Four Hundred Fifty Seven"]
[6458,"Six Thousand Four Hundred Fifty Eight"]
[6459,"Six Thousand Four Hundred Fifty Nine"]
[6460,{"$f":"spellnumber(A6462)","v":"Six Thousand Four Hundred Sixty "}]
[6461,"Six Thousand Four Hundred Sixty One"]
[6462,"Six Thousand Four Hundred Sixty Two"]
[6463,"Six Thousand Four Hundred Sixty Three"]
[6464,"Six Thousand Four Hundred Sixty Four"]
[6465,"Six Thousand Four Hundred Sixty Five"]
[6466,"Six Thousand Four Hundred Sixty Six"]
[6467,"Six Thousand Four Hundred Sixty Seven"]
[6468,"Six Thousand Four Hundred Sixty Eight"]
[6469,"Six Thousand Four Hundred Sixty Nine"]
[6470,"Six Thousand Four Hundred Seventy "]
[6471,"Six Thousand Four Hundred Seventy One"]
[6472,"Six Thousand Four Hundred Seventy Two"]
[6473,"Six Thousand Four Hundred Seventy Three"]
[6474,"Six Thousand Four Hundred Seventy Four"]
[6475,"Six Thousand Four Hundred Seventy Five"]
[6476,"Six Thousand Four Hundred Seventy Six"]
[6477,"Six Thousand Four Hundred Seventy Seven"]
[6478,"Six Thousand Four Hundred Seventy Eight"]
[6479,"Six Thousand Four Hundred Seventy Nine"]
[6480,"Six Thousand Four Hundred Eighty "]
[6481,"Six Thousand Four Hundred Eighty One"]
[6482,"Six Thousand Four Hundred Eighty Two"]
[6483,"Six Thousand Four Hundred Eighty Three"]
[6484,"Six Thousand Four Hundred Eighty Four"]
[6485,"Six Thousand Four Hundred Eighty Five"]
[6486,"Six Thousand Four Hundred Eighty Six"]
[6487,"Six Thousand Four Hundred Eighty Seven"]
[6488,"Six Thousand Four Hundred Eighty Eight"]
[6489,"Six Thousand Four Hundred Eighty Nine"]
[6490,"Six Thousand Four Hundred Ninety "]
[6491,"Six Thousand Four Hundred Ninety One"]
[6492,"Six Thousand Four Hundred Ninety Two"]
[6493,"Six Thousand Four Hundred Ninety Three"]
[6494,"Six Thousand Four Hundred Ninety Four"]
[6495,"Six Thousand Four Hundred Ninety Five"]
[6496,"Six Thousand Four Hundred Ninety Six"]
[6497,"Six Thousand Four Hundred Ninety Seven"]
[6498,"Six Thousand Four Hundred Ninety Eight"]
[6499,"Six Thousand Four Hundred Ninety Nine"]
[6500,"Six Thousand Five Hundred "]
[6501,"Six Thousand Five Hundred One"]
[6502,"Six Thousand Five Hundred Two"]
[6503,"Six Thousand Five Hundred Three"]
[6504,"Six Thousand Five Hundred Four"]
[6505,"Six Thousand Five Hundred Five"]
[6506,"Six Thousand Five Hundred Six"]
[6507,"Six Thousand Five Hundred Seven"]
[6508,"Six Thousand Five Hundred Eight"]
[6509,"Six Thousand Five Hundred Nine"]
[6510,"Six Thousand Five Hundred Ten"]
[6511,"Six Thousand Five Hundred Eleven"]
[6512,"Six Thousand Five Hundred Twelve"]
[6513,"Six Thousand Five Hundred Thirteen"]
[6514,"Six Thousand Five Hundred Fourteen"]
[6515,"Six Thousand Five Hundred Fifteen"]
[6516,"Six Thousand Five Hundred Sixteen"]
[6517,"Six Thousand Five Hundred Seventeen"]
[6518,"Six Thousand Five Hundred Eighteen"]
[6519,"Six Thousand Five Hundred Nineteen"]
[6520,"Six Thousand Five Hundred Twenty "]
[6521,"Six Thousand Five Hundred Twenty One"]
[6522,"Six Thousand Five Hundred Twenty Two"]
[6523,"Six Thousand Five Hundred Twenty Three"]
[6524,{"$f":"spellnumber(A6526)","v":"Six Thousand Five Hundred Twenty Four"}]
[6525,"Six Thousand Five Hundred Twenty Five"]
[6526,"Six Thousand Five Hundred Twenty Six"]
[6527,"Six Thousand Five Hundred Twenty Seven"]
[6528,"Six Thousand Five Hundred Twenty Eight"]
[6529,"Six Thousand Five Hundred Twenty Nine"]
[6530,"Six Thousand Five Hundred Thirty "]
[6531,"Six Thousand Five Hundred Thirty One"]
[6532,"Six Thousand Five Hundred Thirty Two"]
[6533,"Six Thousand Five Hundred Thirty Three"]
[6534,"Six Thousand Five Hundred Thirty Four"]
[6535,"Six Thousand Five Hundred Thirty Five"]
[6536,"Six Thousand Five Hundred Thirty Six"]
[6537,"Six Thousand Five Hundred Thirty Seven"]
[6538,"Six Thousand Five Hundred Thirty Eight"]
[6539,"Six Thousand Five Hundred Thirty Nine"]
[6540,"Six Thousand Five Hundred Forty "]
[6541,"Six Thousand Five Hundred Forty One"]
[6542,"Six Thousand Five Hundred Forty Two"]
[6543,"Six Thousand Five Hundred Forty Three"]
[6544,"Six Thousand Five Hundred Forty Four"]
[6545,"Six Thousand Five Hundred Forty Five"]
[6546,"Six Thousand Five Hundred Forty Six"]
[6547,"Six Thousand Five Hundred Forty Seven"]
[6548,"Six Thousand Five Hundred Forty Eight"]
[6549,"Six Thousand Five Hundred Forty Nine"]
[6550,"Six Thousand Five Hundred Fifty "]
[6551,"Six Thousand Five Hundred Fifty One"]
[6552,"Six Thousand Five Hundred Fifty Two"]
[6553,"Six Thousand Five Hundred Fifty Three"]
[6554,"Six Thousand Five Hundred Fifty Four"]
[6555,"Six Thousand Five Hundred Fifty Five"]
[6556,"Six Thousand Five Hundred Fifty Six"]
[6557,"Six Thousand Five Hundred Fifty Seven"]
[6558,"Six Thousand Five Hundred Fifty Eight"]
[6559,"Six Thousand Five Hundred Fifty Nine"]
[6560,"Six Thousand Five Hundred Sixty "]
[6561,"Six Thousand Five Hundred Sixty One"]
[6562,"Six Thousand Five Hundred Sixty Two"]
[6563,"Six Thousand Five Hundred Sixty Three"]
[6564,"Six Thousand Five Hundred Sixty Four"]
[6565,"Six Thousand Five Hundred Sixty Five"]
[6566,"Six Thousand Five Hundred Sixty Six"]
[6567,"Six Thousand Five Hundred Sixty Seven"]
[6568,"Six Thousand Five Hundred Sixty Eight"]
[6569,"Six Thousand Five Hundred Sixty Nine"]
[6570,"Six Thousand Five Hundred Seventy "]
[6571,"Six Thousand Five Hundred Seventy One"]
[6572,"Six Thousand Five Hundred Seventy Two"]
[6573,"Six Thousand Five Hundred Seventy Three"]
[6574,"Six Thousand Five Hundred Seventy Four"]
[6575,"Six Thousand Five Hundred Seventy Five"]
[6576,"Six Thousand Five Hundred Seventy Six"]
[6577,"Six Thousand Five Hundred Seventy Seven"]
[6578,"Six Thousand Five Hundred Seventy Eight"]
[6579,"Six Thousand Five Hundred Seventy Nine"]
[6580,"Six Thousand Five Hundred Eighty "]
[6581,"Six Thousand Five Hundred Eighty One"]
[6582,"Six Thousand Five Hundred Eighty Two"]
[6583,"Six Thousand Five Hundred Eighty Three"]
[6584,"Six Thousand Five Hundred Eighty Four"]
[6585,"Six Thousand Five Hundred Eighty Five"]
[6586,"Six Thousand Five Hundred Eighty Six"]
[6587,"Six Thousand Five Hundred Eighty Seven"]
[6588,{"$f":"spellnumber(A6590)","v":"Six Thousand Five Hundred Eighty Eight"}]
[6589,"Six Thousand Five Hundred Eighty Nine"]
[6590,"Six Thousand Five Hundred Ninety "]
[6591,"Six Thousand Five Hundred Ninety One"]
[6592,"Six Thousand Five Hundred Ninety Two"]
[6593,"Six Thousand Five Hundred Ninety Three"]
[6594,"Six Thousand Five Hundred Ninety Four"]
[6595,"Six Thousand Five Hundred Ninety Five"]
[6596,"Six Thousand Five Hundred Ninety Six"]
[6597,"Six Thousand Five Hundred Ninety Seven"]
[6598,"Six Thousand Five Hundred Ninety Eight"]
[6599,"Six Thousand Five Hundred Ninety Nine"]
[6600,"Six Thousand Six Hundred "]
[6601,"Six Thousand Six Hundred One"]
[6602,"Six Thousand Six Hundred Two"]
[6603,"Six Thousand Six Hundred Three"]
[6604,"Six Thousand Six Hundred Four"]
[6605,"Six Thousand Six Hundred Five"]
[6606,"Six Thousand Six Hundred Six"]
[6607,"Six Thousand Six Hundred Seven"]
[6608,"Six Thousand Six Hundred Eight"]
[6609,"Six Thousand Six Hundred Nine"]
[6610,"Six Thousand Six Hundred Ten"]
[6611,"Six Thousand Six Hundred Eleven"]
[6612,"Six Thousand Six Hundred Twelve"]
[6613,"Six Thousand Six Hundred Thirteen"]
[6614,"Six Thousand Six Hundred Fourteen"]
[6615,"Six Thousand Six Hundred Fifteen"]
[6616,"Six Thousand Six Hundred Sixteen"]
[6617,"Six Thousand Six Hundred Seventeen"]
[6618,"Six Thousand Six Hundred Eighteen"]
[6619,"Six Thousand Six Hundred Nineteen"]
[6620,"Six Thousand Six Hundred Twenty "]
[6621,"Six Thousand Six Hundred Twenty One"]
[6622,"Six Thousand Six Hundred Twenty Two"]
[6623,"Six Thousand Six Hundred Twenty Three"]
[6624,"Six Thousand Six Hundred Twenty Four"]
[6625,"Six Thousand Six Hundred Twenty Five"]
[6626,"Six Thousand Six Hundred Twenty Six"]
[6627,"Six Thousand Six Hundred Twenty Seven"]
[6628,"Six Thousand Six Hundred Twenty Eight"]
[6629,"Six Thousand Six Hundred Twenty Nine"]
[6630,"Six Thousand Six Hundred Thirty "]
[6631,"Six Thousand Six Hundred Thirty One"]
[6632,"Six Thousand Six Hundred Thirty Two"]
[6633,"Six Thousand Six Hundred Thirty Three"]
[6634,"Six Thousand Six Hundred Thirty Four"]
[6635,"Six Thousand Six Hundred Thirty Five"]
[6636,"Six Thousand Six Hundred Thirty Six"]
[6637,"Six Thousand Six Hundred Thirty Seven"]
[6638,"Six Thousand Six Hundred Thirty Eight"]
[6639,"Six Thousand Six Hundred Thirty Nine"]
[6640,"Six Thousand Six Hundred Forty "]
[6641,"Six Thousand Six Hundred Forty One"]
[6642,"Six Thousand Six Hundred Forty Two"]
[6643,"Six Thousand Six Hundred Forty Three"]
[6644,"Six Thousand Six Hundred Forty Four"]
[6645,"Six Thousand Six Hundred Forty Five"]
[6646,"Six Thousand Six Hundred Forty Six"]
[6647,"Six Thousand Six Hundred Forty Seven"]
[6648,"Six Thousand Six Hundred Forty Eight"]
[6649,"Six Thousand Six Hundred Forty Nine"]
[6650,"Six Thousand Six Hundred Fifty "]
[6651,"Six Thousand Six Hundred Fifty One"]
[6652,{"$f":"spellnumber(A6654)","v":"Six Thousand Six Hundred Fifty Two"}]
[6653,"Six Thousand Six Hundred Fifty Three"]
[6654,"Six Thousand Six Hundred Fifty Four"]
[6655,"Six Thousand Six Hundred Fifty Five"]
[6656,"Six Thousand Six Hundred Fifty Six"]
[6657,"Six Thousand Six Hundred Fifty Seven"]
[6658,"Six Thousand Six Hundred Fifty Eight"]
[6659,"Six Thousand Six Hundred Fifty Nine"]
[6660,"Six Thousand Six Hundred Sixty "]
[6661,"Six Thousand Six Hundred Sixty One"]
[6662,"Six Thousand Six Hundred Sixty Two"]
[6663,"Six Thousand Six Hundred Sixty Three"]
[6664,"Six Thousand Six Hundred Sixty Four"]
[6665,"Six Thousand Six Hundred Sixty Five"]
[6666,"Six Thousand Six Hundred Sixty Six"]
[6667,"Six Thousand Six Hundred Sixty Seven"]
[6668,"Six Thousand Six Hundred Sixty Eight"]
[6669,"Six Thousand Six Hundred Sixty Nine"]
[6670,"Six Thousand Six Hundred Seventy "]
[6671,"Six Thousand Six Hundred Seventy One"]
[6672,"Six Thousand Six Hundred Seventy Two"]
[6673,"Six Thousand Six Hundred Seventy Three"]
[6674,"Six Thousand Six Hundred Seventy Four"]
[6675,"Six Thousand Six Hundred Seventy Five"]
[6676,"Six Thousand Six Hundred Seventy Six"]
[6677,"Six Thousand Six Hundred Seventy Seven"]
[6678,"Six Thousand Six Hundred Seventy Eight"]
[6679,"Six Thousand Six Hundred Seventy Nine"]
[6680,"Six Thousand Six Hundred Eighty "]
[6681,"Six Thousand Six Hundred Eighty One"]
[6682,"Six Thousand Six Hundred Eighty Two"]
[6683,"Six Thousand Six Hundred Eighty Three"]
[6684,"Six Thousand Six Hundred Eighty Four"]
[6685,"Six Thousand Six Hundred Eighty Five"]
[6686,"Six Thousand Six Hundred Eighty Six"]
[6687,"Six Thousand Six Hundred Eighty Seven"]
[6688,"Six Thousand Six Hundred Eighty Eight"]
[6689,"Six Thousand Six Hundred Eighty Nine"]
[6690,"Six Thousand Six Hundred Ninety "]
[6691,"Six Thousand Six Hundred Ninety One"]
[6692,"Six Thousand Six Hundred Ninety Two"]
[6693,"Six Thousand Six Hundred Ninety Three"]
[6694,"Six Thousand Six Hundred Ninety Four"]
[6695,"Six Thousand Six Hundred Ninety Five"]
[6696,"Six Thousand Six Hundred Ninety Six"]
[6697,"Six Thousand Six Hundred Ninety Seven"]
[6698,"Six Thousand Six Hundred Ninety Eight"]
[6699,"Six Thousand Six Hundred Ninety Nine"]
[6700,"Six Thousand Seven Hundred "]
[6701,"Six Thousand Seven Hundred One"]
[6702,"Six Thousand Seven Hundred Two"]
[6703,"Six Thousand Seven Hundred Three"]
[6704,"Six Thousand Seven Hundred Four"]
[6705,"Six Thousand Seven Hundred Five"]
[6706,"Six Thousand Seven Hundred Six"]
[6707,"Six Thousand Seven Hundred Seven"]
[6708,"Six Thousand Seven Hundred Eight"]
[6709,"Six Thousand Seven Hundred Nine"]
[6710,"Six Thousand Seven Hundred Ten"]
[6711,"Six Thousand Seven Hundred Eleven"]
[6712,"Six Thousand Seven Hundred Twelve"]
[6713,"Six Thousand Seven Hundred Thirteen"]
[6714,"Six Thousand Seven Hundred Fourteen"]
[6715,"Six Thousand Seven Hundred Fifteen"]
[6716,{"$f":"spellnumber(A6718)","v":"Six Thousand Seven Hundred Sixteen"}]
[6717,"Six Thousand Seven Hundred Seventeen"]
[6718,"Six Thousand Seven Hundred Eighteen"]
[6719,"Six Thousand Seven Hundred Nineteen"]
[6720,"Six Thousand Seven Hundred Twenty "]
[6721,"Six Thousand Seven Hundred Twenty One"]
[6722,"Six Thousand Seven Hundred Twenty Two"]
[6723,"Six Thousand Seven Hundred Twenty Three"]
[6724,"Six Thousand Seven Hundred Twenty Four"]
[6725,"Six Thousand Seven Hundred Twenty Five"]
[6726,"Six Thousand Seven Hundred Twenty Six"]
[6727,"Six Thousand Seven Hundred Twenty Seven"]
[6728,"Six Thousand Seven Hundred Twenty Eight"]
[6729,"Six Thousand Seven Hundred Twenty Nine"]
[6730,"Six Thousand Seven Hundred Thirty "]
[6731,"Six Thousand Seven Hundred Thirty One"]
[6732,"Six Thousand Seven Hundred Thirty Two"]
[6733,"Six Thousand Seven Hundred Thirty Three"]
[6734,"Six Thousand Seven Hundred Thirty Four"]
[6735,"Six Thousand Seven Hundred Thirty Five"]
[6736,"Six Thousand Seven Hundred Thirty Six"]
[6737,"Six Thousand Seven Hundred Thirty Seven"]
[6738,"Six Thousand Seven Hundred Thirty Eight"]
[6739,"Six Thousand Seven Hundred Thirty Nine"]
[6740,"Six Thousand Seven Hundred Forty "]
[6741,"Six Thousand Seven Hundred Forty One"]
[6742,"Six Thousand Seven Hundred Forty Two"]
[6743,"Six Thousand Seven Hundred Forty Three"]
[6744,"Six Thousand Seven Hundred Forty Four"]
[6745,"Six Thousand Seven Hundred Forty Five"]
[6746,"Six Thousand Seven Hundred Forty Six"]
[6747,"Six Thousand Seven Hundred Forty Seven"]
[6748,"Six Thousand Seven Hundred Forty Eight"]
[6749,"Six Thousand Seven Hundred Forty Nine"]
[6750,"Six Thousand Seven Hundred Fifty "]
[6751,"Six Thousand Seven Hundred Fifty One"]
[6752,"Six Thousand Seven Hundred Fifty Two"]
[6753,"Six Thousand Seven Hundred Fifty Three"]
[6754,"Six Thousand Seven Hundred Fifty Four"]
[6755,"Six Thousand Seven Hundred Fifty Five"]
[6756,"Six Thousand Seven Hundred Fifty Six"]
[6757,"Six Thousand Seven Hundred Fifty Seven"]
[6758,"Six Thousand Seven Hundred Fifty Eight"]
[6759,"Six Thousand Seven Hundred Fifty Nine"]
[6760,"Six Thousand Seven Hundred Sixty "]
[6761,"Six Thousand Seven Hundred Sixty One"]
[6762,"Six Thousand Seven Hundred Sixty Two"]
[6763,"Six Thousand Seven Hundred Sixty Three"]
[6764,"Six Thousand Seven Hundred Sixty Four"]
[6765,"Six Thousand Seven Hundred Sixty Five"]
[6766,"Six Thousand Seven Hundred Sixty Six"]
[6767,"Six Thousand Seven Hundred Sixty Seven"]
[6768,"Six Thousand Seven Hundred Sixty Eight"]
[6769,"Six Thousand Seven Hundred Sixty Nine"]
[6770,"Six Thousand Seven Hundred Seventy "]
[6771,"Six Thousand Seven Hundred Seventy One"]
[6772,"Six Thousand Seven Hundred Seventy Two"]
[6773,"Six Thousand Seven Hundred Seventy Three"]
[6774,"Six Thousand Seven Hundred Seventy Four"]
[6775,"Six Thousand Seven Hundred Seventy Five"]
[6776,"Six Thousand Seven Hundred Seventy Six"]
[6777,"Six Thousand Seven Hundred Seventy Seven"]
[6778,"Six Thousand Seven Hundred Seventy Eight"]
[6779,"Six Thousand Seven Hundred Seventy Nine"]
[6780,{"$f":"spellnumber(A6782)","v":"Six Thousand Seven Hundred Eighty "}]
[6781,"Six Thousand Seven Hundred Eighty One"]
[6782,"Six Thousand Seven Hundred Eighty Two"]
[6783,"Six Thousand Seven Hundred Eighty Three"]
[6784,"Six Thousand Seven Hundred Eighty Four"]
[6785,"Six Thousand Seven Hundred Eighty Five"]
[6786,"Six Thousand Seven Hundred Eighty Six"]
[6787,"Six Thousand Seven Hundred Eighty Seven"]
[6788,"Six Thousand Seven Hundred Eighty Eight"]
[6789,"Six Thousand Seven Hundred Eighty Nine"]
[6790,"Six Thousand Seven Hundred Ninety "]
[6791,"Six Thousand Seven Hundred Ninety One"]
[6792,"Six Thousand Seven Hundred Ninety Two"]
[6793,"Six Thousand Seven Hundred Ninety Three"]
[6794,"Six Thousand Seven Hundred Ninety Four"]
[6795,"Six Thousand Seven Hundred Ninety Five"]
[6796,"Six Thousand Seven Hundred Ninety Six"]
[6797,"Six Thousand Seven Hundred Ninety Seven"]
[6798,"Six Thousand Seven Hundred Ninety Eight"]
[6799,"Six Thousand Seven Hundred Ninety Nine"]
[6800,"Six Thousand Eight Hundred "]
[6801,"Six Thousand Eight Hundred One"]
[6802,"Six Thousand Eight Hundred Two"]
[6803,"Six Thousand Eight Hundred Three"]
[6804,"Six Thousand Eight Hundred Four"]
[6805,"Six Thousand Eight Hundred Five"]
[6806,"Six Thousand Eight Hundred Six"]
[6807,"Six Thousand Eight Hundred Seven"]
[6808,"Six Thousand Eight Hundred Eight"]
[6809,"Six Thousand Eight Hundred Nine"]
[6810,"Six Thousand Eight Hundred Ten"]
[6811,"Six Thousand Eight Hundred Eleven"]
[6812,"Six Thousand Eight Hundred Twelve"]
[6813,"Six Thousand Eight Hundred Thirteen"]
[6814,"Six Thousand Eight Hundred Fourteen"]
[6815,"Six Thousand Eight Hundred Fifteen"]
[6816,"Six Thousand Eight Hundred Sixteen"]
[6817,"Six Thousand Eight Hundred Seventeen"]
[6818,"Six Thousand Eight Hundred Eighteen"]
[6819,"Six Thousand Eight Hundred Nineteen"]
[6820,"Six Thousand Eight Hundred Twenty "]
[6821,"Six Thousand Eight Hundred Twenty One"]
[6822,"Six Thousand Eight Hundred Twenty Two"]
[6823,"Six Thousand Eight Hundred Twenty Three"]
[6824,"Six Thousand Eight Hundred Twenty Four"]
[6825,"Six Thousand Eight Hundred Twenty Five"]
[6826,"Six Thousand Eight Hundred Twenty Six"]
[6827,"Six Thousand Eight Hundred Twenty Seven"]
[6828,"Six Thousand Eight Hundred Twenty Eight"]
[6829,"Six Thousand Eight Hundred Twenty Nine"]
[6830,"Six Thousand Eight Hundred Thirty "]
[6831,"Six Thousand Eight Hundred Thirty One"]
[6832,"Six Thousand Eight Hundred Thirty Two"]
[6833,"Six Thousand Eight Hundred Thirty Three"]
[6834,"Six Thousand Eight Hundred Thirty Four"]
[6835,"Six Thousand Eight Hundred Thirty Five"]
[6836,"Six Thousand Eight Hundred Thirty Six"]
[6837,"Six Thousand Eight Hundred Thirty Seven"]
[6838,"Six Thousand Eight Hundred Thirty Eight"]
[6839,"Six Thousand Eight Hundred Thirty Nine"]
[6840,"Six Thousand Eight Hundred Forty "]
[6841,"Six Thousand Eight Hundred Forty One"]
[6842,"Six Thousand Eight Hundred Forty Two"]
[6843,"Six Thousand Eight Hundred Forty Three"]
[6844,{"$f":"spellnumber(A6846)","v":"Six Thousand Eight Hundred Forty Four"}]
[6845,"Six Thousand Eight Hundred Forty Five"]
[6846,"Six Thousand Eight Hundred Forty Six"]
[6847,"Six Thousand Eight Hundred Forty Seven"]
[6848,"Six Thousand Eight Hundred Forty Eight"]
[6849,"Six Thousand Eight Hundred Forty Nine"]
[6850,"Six Thousand Eight Hundred Fifty "]
[6851,"Six Thousand Eight Hundred Fifty One"]
[6852,"Six Thousand Eight Hundred Fifty Two"]
[6853,"Six Thousand Eight Hundred Fifty Three"]
[6854,"Six Thousand Eight Hundred Fifty Four"]
[6855,"Six Thousand Eight Hundred Fifty Five"]
[6856,"Six Thousand Eight Hundred Fifty Six"]
[6857,"Six Thousand Eight Hundred Fifty Seven"]
[6858,"Six Thousand Eight Hundred Fifty Eight"]
[6859,"Six Thousand Eight Hundred Fifty Nine"]
[6860,"Six Thousand Eight Hundred Sixty "]
[6861,"Six Thousand Eight Hundred Sixty One"]
[6862,"Six Thousand Eight Hundred Sixty Two"]
[6863,"Six Thousand Eight Hundred Sixty Three"]
[6864,"Six Thousand Eight Hundred Sixty Four"]
[6865,"Six Thousand Eight Hundred Sixty Five"]
[6866,"Six Thousand Eight Hundred Sixty Six"]
[6867,"Six Thousand Eight Hundred Sixty Seven"]
[6868,"Six Thousand Eight Hundred Sixty Eight"]
[6869,"Six Thousand Eight Hundred Sixty Nine"]
[6870,"Six Thousand Eight Hundred Seventy "]
[6871,"Six Thousand Eight Hundred Seventy One"]
[6872,"Six Thousand Eight Hundred Seventy Two"]
[6873,"Six Thousand Eight Hundred Seventy Three"]
[6874,"Six Thousand Eight Hundred Seventy Four"]
[6875,"Six Thousand Eight Hundred Seventy Five"]
[6876,"Six Thousand Eight Hundred Seventy Six"]
[6877,"Six Thousand Eight Hundred Seventy Seven"]
[6878,"Six Thousand Eight Hundred Seventy Eight"]
[6879,"Six Thousand Eight Hundred Seventy Nine"]
[6880,"Six Thousand Eight Hundred Eighty "]
[6881,"Six Thousand Eight Hundred Eighty One"]
[6882,"Six Thousand Eight Hundred Eighty Two"]
[6883,"Six Thousand Eight Hundred Eighty Three"]
[6884,"Six Thousand Eight Hundred Eighty Four"]
[6885,"Six Thousand Eight Hundred Eighty Five"]
[6886,"Six Thousand Eight Hundred Eighty Six"]
[6887,"Six Thousand Eight Hundred Eighty Seven"]
[6888,"Six Thousand Eight Hundred Eighty Eight"]
[6889,"Six Thousand Eight Hundred Eighty Nine"]
[6890,"Six Thousand Eight Hundred Ninety "]
[6891,"Six Thousand Eight Hundred Ninety One"]
[6892,"Six Thousand Eight Hundred Ninety Two"]
[6893,"Six Thousand Eight Hundred Ninety Three"]
[6894,"Six Thousand Eight Hundred Ninety Four"]
[6895,"Six Thousand Eight Hundred Ninety Five"]
[6896,"Six Thousand Eight Hundred Ninety Six"]
[6897,"Six Thousand Eight Hundred Ninety Seven"]
[6898,"Six Thousand Eight Hundred Ninety Eight"]
[6899,"Six Thousand Eight Hundred Ninety Nine"]
[6900,"Six Thousand Nine Hundred "]
[6901,"Six Thousand Nine Hundred One"]
[6902,"Six Thousand Nine Hundred Two"]
[6903,"Six Thousand Nine Hundred Three"]
[6904,"Six Thousand Nine Hundred Four"]
[6905,"Six Thousand Nine Hundred Five"]
[6906,"Six Thousand Nine Hundred Six"]
[6907,"Six Thousand Nine Hundred Seven"]
[6908,{"$f":"spellnumber(A6910)","v":"Six Thousand Nine Hundred Eight"}]
[6909,"Six Thousand Nine Hundred Nine"]
[6910,"Six Thousand Nine Hundred Ten"]
[6911,"Six Thousand Nine Hundred Eleven"]
[6912,"Six Thousand Nine Hundred Twelve"]
[6913,"Six Thousand Nine Hundred Thirteen"]
[6914,"Six Thousand Nine Hundred Fourteen"]
[6915,"Six Thousand Nine Hundred Fifteen"]
[6916,"Six Thousand Nine Hundred Sixteen"]
[6917,"Six Thousand Nine Hundred Seventeen"]
[6918,"Six Thousand Nine Hundred Eighteen"]
[6919,"Six Thousand Nine Hundred Nineteen"]
[6920,"Six Thousand Nine Hundred Twenty "]
[6921,"Six Thousand Nine Hundred Twenty One"]
[6922,"Six Thousand Nine Hundred Twenty Two"]
[6923,"Six Thousand Nine Hundred Twenty Three"]
[6924,"Six Thousand Nine Hundred Twenty Four"]
[6925,"Six Thousand Nine Hundred Twenty Five"]
[6926,"Six Thousand Nine Hundred Twenty Six"]
[6927,"Six Thousand Nine Hundred Twenty Seven"]
[6928,"Six Thousand Nine Hundred Twenty Eight"]
[6929,"Six Thousand Nine Hundred Twenty Nine"]
[6930,"Six Thousand Nine Hundred Thirty "]
[6931,"Six Thousand Nine Hundred Thirty One"]
[6932,"Six Thousand Nine Hundred Thirty Two"]
[6933,"Six Thousand Nine Hundred Thirty Three"]
[6934,"Six Thousand Nine Hundred Thirty Four"]
[6935,"Six Thousand Nine Hundred Thirty Five"]
[6936,"Six Thousand Nine Hundred Thirty Six"]
[6937,"Six Thousand Nine Hundred Thirty Seven"]
[6938,"Six Thousand Nine Hundred Thirty Eight"]
[6939,"Six Thousand Nine Hundred Thirty Nine"]
[6940,"Six Thousand Nine Hundred Forty "]
[6941,"Six Thousand Nine Hundred Forty One"]
[6942,"Six Thousand Nine Hundred Forty Two"]
[6943,"Six Thousand Nine Hundred Forty Three"]
[6944,"Six Thousand Nine Hundred Forty Four"]
[6945,"Six Thousand Nine Hundred Forty Five"]
[6946,"Six Thousand Nine Hundred Forty Six"]
[6947,"Six Thousand Nine Hundred Forty Seven"]
[6948,"Six Thousand Nine Hundred Forty Eight"]
[6949,"Six Thousand Nine Hundred Forty Nine"]
[6950,"Six Thousand Nine Hundred Fifty "]
[6951,"Six Thousand Nine Hundred Fifty One"]
[6952,"Six Thousand Nine Hundred Fifty Two"]
[6953,"Six Thousand Nine Hundred Fifty Three"]
[6954,"Six Thousand Nine Hundred Fifty Four"]
[6955,"Six Thousand Nine Hundred Fifty Five"]
[6956,"Six Thousand Nine Hundred Fifty Six"]
[6957,"Six Thousand Nine Hundred Fifty Seven"]
[6958,"Six Thousand Nine Hundred Fifty Eight"]
[6959,"Six Thousand Nine Hundred Fifty Nine"]
[6960,"Six Thousand Nine Hundred Sixty "]
[6961,"Six Thousand Nine Hundred Sixty One"]
[6962,"Six Thousand Nine Hundred Sixty Two"]
[6963,"Six Thousand Nine Hundred Sixty Three"]
[6964,"Six Thousand Nine Hundred Sixty Four"]
[6965,"Six Thousand Nine Hundred Sixty Five"]
[6966,"Six Thousand Nine Hundred Sixty Six"]
[6967,"Six Thousand Nine Hundred Sixty Seven"]
[6968,"Six Thousand Nine Hundred Sixty Eight"]
[6969,"Six Thousand Nine Hundred Sixty Nine"]
[6970,"Six Thousand Nine Hundred Seventy "]
[6971,"Six Thousand Nine Hundred Seventy One"]
[6972,{"$f":"spellnumber(A6974)","v":"Six Thousand Nine Hundred Seventy Two"}]
[6973,"Six Thousand Nine Hundred Seventy Three"]
[6974,"Six Thousand Nine Hundred Seventy Four"]
[6975,"Six Thousand Nine Hundred Seventy Five"]
[6976,"Six Thousand Nine Hundred Seventy Six"]
[6977,"Six Thousand Nine Hundred Seventy Seven"]
[6978,"Six Thousand Nine Hundred Seventy Eight"]
[6979,"Six Thousand Nine Hundred Seventy Nine"]
[6980,"Six Thousand Nine Hundred Eighty "]
[6981,"Six Thousand Nine Hundred Eighty One"]
[6982,"Six Thousand Nine Hundred Eighty Two"]
[6983,"Six Thousand Nine Hundred Eighty Three"]
[6984,"Six Thousand Nine Hundred Eighty Four"]
[6985,"Six Thousand Nine Hundred Eighty Five"]
[6986,"Six Thousand Nine Hundred Eighty Six"]
[6987,"Six Thousand Nine Hundred Eighty Seven"]
[6988,"Six Thousand Nine Hundred Eighty Eight"]
[6989,"Six Thousand Nine Hundred Eighty Nine"]
[6990,"Six Thousand Nine Hundred Ninety "]
[6991,"Six Thousand Nine Hundred Ninety One"]
[6992,"Six Thousand Nine Hundred Ninety Two"]
[6993,"Six Thousand Nine Hundred Ninety Three"]
[6994,"Six Thousand Nine Hundred Ninety Four"]
[6995,"Six Thousand Nine Hundred Ninety Five"]
[6996,"Six Thousand Nine Hundred Ninety Six"]
[6997,"Six Thousand Nine Hundred Ninety Seven"]
[6998,"Six Thousand Nine Hundred Ninety Eight"]
[6999,"Six Thousand Nine Hundred Ninety Nine"]
[7000,"Seven Thousand "]
[7001,"Seven Thousand One"]
[7002,"Seven Thousand Two"]
[7003,"Seven Thousand Three"]
[7004,"Seven Thousand Four"]
[7005,"Seven Thousand Five"]
[7006,"Seven Thousand Six"]
[7007,"Seven Thousand Seven"]
[7008,"Seven Thousand Eight"]
[7009,"Seven Thousand Nine"]
[7010,"Seven Thousand Ten"]
[7011,"Seven Thousand Eleven"]
[7012,"Seven Thousand Twelve"]
[7013,"Seven Thousand Thirteen"]
[7014,"Seven Thousand Fourteen"]
[7015,"Seven Thousand Fifteen"]
[7016,"Seven Thousand Sixteen"]
[7017,"Seven Thousand Seventeen"]
[7018,"Seven Thousand Eighteen"]
[7019,"Seven Thousand Nineteen"]
[7020,"Seven Thousand Twenty "]
[7021,"Seven Thousand Twenty One"]
[7022,"Seven Thousand Twenty Two"]
[7023,"Seven Thousand Twenty Three"]
[7024,"Seven Thousand Twenty Four"]
[7025,"Seven Thousand Twenty Five"]
[7026,"Seven Thousand Twenty Six"]
[7027,"Seven Thousand Twenty Seven"]
[7028,"Seven Thousand Twenty Eight"]
[7029,"Seven Thousand Twenty Nine"]
[7030,"Seven Thousand Thirty "]
[7031,"Seven Thousand Thirty One"]
[7032,"Seven Thousand Thirty Two"]
[7033,"Seven Thousand Thirty Three"]
[7034,"Seven Thousand Thirty Four"]
[7035,"Seven Thousand Thirty Five"]
[7036,{"$f":"spellnumber(A7038)","v":"Seven Thousand Thirty Six"}]
[7037,"Seven Thousand Thirty Seven"]
[7038,"Seven Thousand Thirty Eight"]
[7039,"Seven Thousand Thirty Nine"]
[7040,"Seven Thousand Forty "]
[7041,"Seven Thousand Forty One"]
[7042,"Seven Thousand Forty Two"]
[7043,"Seven Thousand Forty Three"]
[7044,"Seven Thousand Forty Four"]
[7045,"Seven Thousand Forty Five"]
[7046,"Seven Thousand Forty Six"]
[7047,"Seven Thousand Forty Seven"]
[7048,"Seven Thousand Forty Eight"]
[7049,"Seven Thousand Forty Nine"]
[7050,"Seven Thousand Fifty "]
[7051,"Seven Thousand Fifty One"]
[7052,"Seven Thousand Fifty Two"]
[7053,"Seven Thousand Fifty Three"]
[7054,"Seven Thousand Fifty Four"]
[7055,"Seven Thousand Fifty Five"]
[7056,"Seven Thousand Fifty Six"]
[7057,"Seven Thousand Fifty Seven"]
[7058,"Seven Thousand Fifty Eight"]
[7059,"Seven Thousand Fifty Nine"]
[7060,"Seven Thousand Sixty "]
[7061,"Seven Thousand Sixty One"]
[7062,"Seven Thousand Sixty Two"]
[7063,"Seven Thousand Sixty Three"]
[7064,"Seven Thousand Sixty Four"]
[7065,"Seven Thousand Sixty Five"]
[7066,"Seven Thousand Sixty Six"]
[7067,"Seven Thousand Sixty Seven"]
[7068,"Seven Thousand Sixty Eight"]
[7069,"Seven Thousand Sixty Nine"]
[7070,"Seven Thousand Seventy "]
[7071,"Seven Thousand Seventy One"]
[7072,"Seven Thousand Seventy Two"]
[7073,"Seven Thousand Seventy Three"]
[7074,"Seven Thousand Seventy Four"]
[7075,"Seven Thousand Seventy Five"]
[7076,"Seven Thousand Seventy Six"]
[7077,"Seven Thousand Seventy Seven"]
[7078,"Seven Thousand Seventy Eight"]
[7079,"Seven Thousand Seventy Nine"]
[7080,"Seven Thousand Eighty "]
[7081,"Seven Thousand Eighty One"]
[7082,"Seven Thousand Eighty Two"]
[7083,"Seven Thousand Eighty Three"]
[7084,"Seven Thousand Eighty Four"]
[7085,"Seven Thousand Eighty Five"]
[7086,"Seven Thousand Eighty Six"]
[7087,"Seven Thousand Eighty Seven"]
[7088,"Seven Thousand Eighty Eight"]
[7089,"Seven Thousand Eighty Nine"]
[7090,"Seven Thousand Ninety "]
[7091,"Seven Thousand Ninety One"]
[7092,"Seven Thousand Ninety Two"]
[7093,"Seven Thousand Ninety Three"]
[7094,"Seven Thousand Ninety Four"]
[7095,"Seven Thousand Ninety Five"]
[7096,"Seven Thousand Ninety Six"]
[7097,"Seven Thousand Ninety Seven"]
[7098,"Seven Thousand Ninety Eight"]
[7099,"Seven Thousand Ninety Nine"]
[7100,{"$f":"spellnumber(A7102)","v":"Seven Thousand One Hundred "}]
[7101,"Seven Thousand One Hundred One"]
[7102,"Seven Thousand One Hundred Two"]
[7103,"Seven Thousand One Hundred Three"]
[7104,"Seven Thousand One Hundred Four"]
[7105,"Seven Thousand One Hundred Five"]
[7106,"Seven Thousand One Hundred Six"]
[7107,"Seven Thousand One Hundred Seven"]
[7108,"Seven Thousand One Hundred Eight"]
[7109,"Seven Thousand One Hundred Nine"]
[7110,"Seven Thousand One Hundred Ten"]
[7111,"Seven Thousand One Hundred Eleven"]
[7112,"Seven Thousand One Hundred Twelve"]
[7113,"Seven Thousand One Hundred Thirteen"]
[7114,"Seven Thousand One Hundred Fourteen"]
[7115,"Seven Thousand One Hundred Fifteen"]
[7116,"Seven Thousand One Hundred Sixteen"]
[7117,"Seven Thousand One Hundred Seventeen"]
[7118,"Seven Thousand One Hundred Eighteen"]
[7119,"Seven Thousand One Hundred Nineteen"]
[7120,"Seven Thousand One Hundred Twenty "]
[7121,"Seven Thousand One Hundred Twenty One"]
[7122,"Seven Thousand One Hundred Twenty Two"]
[7123,"Seven Thousand One Hundred Twenty Three"]
[7124,"Seven Thousand One Hundred Twenty Four"]
[7125,"Seven Thousand One Hundred Twenty Five"]
[7126,"Seven Thousand One Hundred Twenty Six"]
[7127,"Seven Thousand One Hundred Twenty Seven"]
[7128,"Seven Thousand One Hundred Twenty Eight"]
[7129,"Seven Thousand One Hundred Twenty Nine"]
[7130,"Seven Thousand One Hundred Thirty "]
[7131,"Seven Thousand One Hundred Thirty One"]
[7132,"Seven Thousand One Hundred Thirty Two"]
[7133,"Seven Thousand One Hundred Thirty Three"]
[7134,"Seven Thousand One Hundred Thirty Four"]
[7135,"Seven Thousand One Hundred Thirty Five"]
[7136,"Seven Thousand One Hundred Thirty Six"]
[7137,"Seven Thousand One Hundred Thirty Seven"]
[7138,"Seven Thousand One Hundred Thirty Eight"]
[7139,"Seven Thousand One Hundred Thirty Nine"]
[7140,"Seven Thousand One Hundred Forty "]
[7141,"Seven Thousand One Hundred Forty One"]
[7142,"Seven Thousand One Hundred Forty Two"]
[7143,"Seven Thousand One Hundred Forty Three"]
[7144,"Seven Thousand One Hundred Forty Four"]
[7145,"Seven Thousand One Hundred Forty Five"]
[7146,"Seven Thousand One Hundred Forty Six"]
[7147,"Seven Thousand One Hundred Forty Seven"]
[7148,"Seven Thousand One Hundred Forty Eight"]
[7149,"Seven Thousand One Hundred Forty Nine"]
[7150,"Seven Thousand One Hundred Fifty "]
[7151,"Seven Thousand One Hundred Fifty One"]
[7152,"Seven Thousand One Hundred Fifty Two"]
[7153,"Seven Thousand One Hundred Fifty Three"]
[7154,"Seven Thousand One Hundred Fifty Four"]
[7155,"Seven Thousand One Hundred Fifty Five"]
[7156,"Seven Thousand One Hundred Fifty Six"]
[7157,"Seven Thousand One Hundred Fifty Seven"]
[7158,"Seven Thousand One Hundred Fifty Eight"]
[7159,"Seven Thousand One Hundred Fifty Nine"]
[7160,"Seven Thousand One Hundred Sixty "]
[7161,"Seven Thousand One Hundred Sixty One"]
[7162,"Seven Thousand One Hundred Sixty Two"]
[7163,"Seven Thousand One Hundred Sixty Three"]
[7164,{"$f":"spellnumber(A7166)","v":"Seven Thousand One Hundred Sixty Four"}]
[7165,"Seven Thousand One Hundred Sixty Five"]
[7166,"Seven Thousand One Hundred Sixty Six"]
[7167,"Seven Thousand One Hundred Sixty Seven"]
[7168,"Seven Thousand One Hundred Sixty Eight"]
[7169,"Seven Thousand One Hundred Sixty Nine"]
[7170,"Seven Thousand One Hundred Seventy "]
[7171,"Seven Thousand One Hundred Seventy One"]
[7172,"Seven Thousand One Hundred Seventy Two"]
[7173,"Seven Thousand One Hundred Seventy Three"]
[7174,"Seven Thousand One Hundred Seventy Four"]
[7175,"Seven Thousand One Hundred Seventy Five"]
[7176,"Seven Thousand One Hundred Seventy Six"]
[7177,"Seven Thousand One Hundred Seventy Seven"]
[7178,"Seven Thousand One Hundred Seventy Eight"]
[7179,"Seven Thousand One Hundred Seventy Nine"]
[7180,"Seven Thousand One Hundred Eighty "]
[7181,"Seven Thousand One Hundred Eighty One"]
[7182,"Seven Thousand One Hundred Eighty Two"]
[7183,"Seven Thousand One Hundred Eighty Three"]
[7184,"Seven Thousand One Hundred Eighty Four"]
[7185,"Seven Thousand One Hundred Eighty Five"]
[7186,"Seven Thousand One Hundred Eighty Six"]
[7187,"Seven Thousand One Hundred Eighty Seven"]
[7188,"Seven Thousand One Hundred Eighty Eight"]
[7189,"Seven Thousand One Hundred Eighty Nine"]
[7190,"Seven Thousand One Hundred Ninety "]
[7191,"Seven Thousand One Hundred Ninety One"]
[7192,"Seven Thousand One Hundred Ninety Two"]
[7193,"Seven Thousand One Hundred Ninety Three"]
[7194,"Seven Thousand One Hundred Ninety Four"]
[7195,"Seven Thousand One Hundred Ninety Five"]
[7196,"Seven Thousand One Hundred Ninety Six"]
[7197,"Seven Thousand One Hundred Ninety Seven"]
[7198,"Seven Thousand One Hundred Ninety Eight"]
[7199,"Seven Thousand One Hundred Ninety Nine"]
[7200,"Seven Thousand Two Hundred "]
[7201,"Seven Thousand Two Hundred One"]
[7202,"Seven Thousand Two Hundred Two"]
[7203,"Seven Thousand Two Hundred Three"]
[7204,"Seven Thousand Two Hundred Four"]
[7205,"Seven Thousand Two Hundred Five"]
[7206,"Seven Thousand Two Hundred Six"]
[7207,"Seven Thousand Two Hundred Seven"]
[7208,"Seven Thousand Two Hundred Eight"]
[7209,"Seven Thousand Two Hundred Nine"]
[7210,"Seven Thousand Two Hundred Ten"]
[7211,"Seven Thousand Two Hundred Eleven"]
[7212,"Seven Thousand Two Hundred Twelve"]
[7213,"Seven Thousand Two Hundred Thirteen"]
[7214,"Seven Thousand Two Hundred Fourteen"]
[7215,"Seven Thousand Two Hundred Fifteen"]
[7216,"Seven Thousand Two Hundred Sixteen"]
[7217,"Seven Thousand Two Hundred Seventeen"]
[7218,"Seven Thousand Two Hundred Eighteen"]
[7219,"Seven Thousand Two Hundred Nineteen"]
[7220,"Seven Thousand Two Hundred Twenty "]
[7221,"Seven Thousand Two Hundred Twenty One"]
[7222,"Seven Thousand Two Hundred Twenty Two"]
[7223,"Seven Thousand Two Hundred Twenty Three"]
[7224,"Seven Thousand Two Hundred Twenty Four"]
[7225,"Seven Thousand Two Hundred Twenty Five"]
[7226,"Seven Thousand Two Hundred Twenty Six"]
[7227,"Seven Thousand Two Hundred Twenty Seven"]
[7228,{"$f":"spellnumber(A7230)","v":"Seven Thousand Two Hundred Twenty Eight"}]
[7229,"Seven Thousand Two Hundred Twenty Nine"]
[7230,"Seven Thousand Two Hundred Thirty "]
[7231,"Seven Thousand Two Hundred Thirty One"]
[7232,"Seven Thousand Two Hundred Thirty Two"]
[7233,"Seven Thousand Two Hundred Thirty Three"]
[7234,"Seven Thousand Two Hundred Thirty Four"]
[7235,"Seven Thousand Two Hundred Thirty Five"]
[7236,"Seven Thousand Two Hundred Thirty Six"]
[7237,"Seven Thousand Two Hundred Thirty Seven"]
[7238,"Seven Thousand Two Hundred Thirty Eight"]
[7239,"Seven Thousand Two Hundred Thirty Nine"]
[7240,"Seven Thousand Two Hundred Forty "]
[7241,"Seven Thousand Two Hundred Forty One"]
[7242,"Seven Thousand Two Hundred Forty Two"]
[7243,"Seven Thousand Two Hundred Forty Three"]
[7244,"Seven Thousand Two Hundred Forty Four"]
[7245,"Seven Thousand Two Hundred Forty Five"]
[7246,"Seven Thousand Two Hundred Forty Six"]
[7247,"Seven Thousand Two Hundred Forty Seven"]
[7248,"Seven Thousand Two Hundred Forty Eight"]
[7249,"Seven Thousand Two Hundred Forty Nine"]
[7250,"Seven Thousand Two Hundred Fifty "]
[7251,"Seven Thousand Two Hundred Fifty One"]
[7252,"Seven Thousand Two Hundred Fifty Two"]
[7253,"Seven Thousand Two Hundred Fifty Three"]
[7254,"Seven Thousand Two Hundred Fifty Four"]
[7255,"Seven Thousand Two Hundred Fifty Five"]
[7256,"Seven Thousand Two Hundred Fifty Six"]
[7257,"Seven Thousand Two Hundred Fifty Seven"]
[7258,"Seven Thousand Two Hundred Fifty Eight"]
[7259,"Seven Thousand Two Hundred Fifty Nine"]
[7260,"Seven Thousand Two Hundred Sixty "]
[7261,"Seven Thousand Two Hundred Sixty One"]
[7262,"Seven Thousand Two Hundred Sixty Two"]
[7263,"Seven Thousand Two Hundred Sixty Three"]
[7264,"Seven Thousand Two Hundred Sixty Four"]
[7265,"Seven Thousand Two Hundred Sixty Five"]
[7266,"Seven Thousand Two Hundred Sixty Six"]
[7267,"Seven Thousand Two Hundred Sixty Seven"]
[7268,"Seven Thousand Two Hundred Sixty Eight"]
[7269,"Seven Thousand Two Hundred Sixty Nine"]
[7270,"Seven Thousand Two Hundred Seventy "]
[7271,"Seven Thousand Two Hundred Seventy One"]
[7272,"Seven Thousand Two Hundred Seventy Two"]
[7273,"Seven Thousand Two Hundred Seventy Three"]
[7274,"Seven Thousand Two Hundred Seventy Four"]
[7275,"Seven Thousand Two Hundred Seventy Five"]
[7276,"Seven Thousand Two Hundred Seventy Six"]
[7277,"Seven Thousand Two Hundred Seventy Seven"]
[7278,"Seven Thousand Two Hundred Seventy Eight"]
[7279,"Seven Thousand Two Hundred Seventy Nine"]
[7280,"Seven Thousand Two Hundred Eighty "]
[7281,"Seven Thousand Two Hundred Eighty One"]
[7282,"Seven Thousand Two Hundred Eighty Two"]
[7283,"Seven Thousand Two Hundred Eighty Three"]
[7284,"Seven Thousand Two Hundred Eighty Four"]
[7285,"Seven Thousand Two Hundred Eighty Five"]
[7286,"Seven Thousand Two Hundred Eighty Six"]
[7287,"Seven Thousand Two Hundred Eighty Seven"]
[7288,"Seven Thousand Two Hundred Eighty Eight"]
[7289,"Seven Thousand Two Hundred Eighty Nine"]
[7290,"Seven Thousand Two Hundred Ninety "]
[7291,"Seven Thousand Two Hundred Ninety One"]
[7292,{"$f":"spellnumber(A7294)","v":"Seven Thousand Two Hundred Ninety Two"}]
[7293,"Seven Thousand Two Hundred Ninety Three"]
[7294,"Seven Thousand Two Hundred Ninety Four"]
[7295,"Seven Thousand Two Hundred Ninety Five"]
[7296,"Seven Thousand Two Hundred Ninety Six"]
[7297,"Seven Thousand Two Hundred Ninety Seven"]
[7298,"Seven Thousand Two Hundred Ninety Eight"]
[7299,"Seven Thousand Two Hundred Ninety Nine"]
[7300,"Seven Thousand Three Hundred "]
[7301,"Seven Thousand Three Hundred One"]
[7302,"Seven Thousand Three Hundred Two"]
[7303,"Seven Thousand Three Hundred Three"]
[7304,"Seven Thousand Three Hundred Four"]
[7305,"Seven Thousand Three Hundred Five"]
[7306,"Seven Thousand Three Hundred Six"]
[7307,"Seven Thousand Three Hundred Seven"]
[7308,"Seven Thousand Three Hundred Eight"]
[7309,"Seven Thousand Three Hundred Nine"]
[7310,"Seven Thousand Three Hundred Ten"]
[7311,"Seven Thousand Three Hundred Eleven"]
[7312,"Seven Thousand Three Hundred Twelve"]
[7313,"Seven Thousand Three Hundred Thirteen"]
[7314,"Seven Thousand Three Hundred Fourteen"]
[7315,"Seven Thousand Three Hundred Fifteen"]
[7316,"Seven Thousand Three Hundred Sixteen"]
[7317,"Seven Thousand Three Hundred Seventeen"]
[7318,"Seven Thousand Three Hundred Eighteen"]
[7319,"Seven Thousand Three Hundred Nineteen"]
[7320,"Seven Thousand Three Hundred Twenty "]
[7321,"Seven Thousand Three Hundred Twenty One"]
[7322,"Seven Thousand Three Hundred Twenty Two"]
[7323,"Seven Thousand Three Hundred Twenty Three"]
[7324,"Seven Thousand Three Hundred Twenty Four"]
[7325,"Seven Thousand Three Hundred Twenty Five"]
[7326,"Seven Thousand Three Hundred Twenty Six"]
[7327,"Seven Thousand Three Hundred Twenty Seven"]
[7328,"Seven Thousand Three Hundred Twenty Eight"]
[7329,"Seven Thousand Three Hundred Twenty Nine"]
[7330,"Seven Thousand Three Hundred Thirty "]
[7331,"Seven Thousand Three Hundred Thirty One"]
[7332,"Seven Thousand Three Hundred Thirty Two"]
[7333,"Seven Thousand Three Hundred Thirty Three"]
[7334,"Seven Thousand Three Hundred Thirty Four"]
[7335,"Seven Thousand Three Hundred Thirty Five"]
[7336,"Seven Thousand Three Hundred Thirty Six"]
[7337,"Seven Thousand Three Hundred Thirty Seven"]
[7338,"Seven Thousand Three Hundred Thirty Eight"]
[7339,"Seven Thousand Three Hundred Thirty Nine"]
[7340,"Seven Thousand Three Hundred Forty "]
[7341,"Seven Thousand Three Hundred Forty One"]
[7342,"Seven Thousand Three Hundred Forty Two"]
[7343,"Seven Thousand Three Hundred Forty Three"]
[7344,"Seven Thousand Three Hundred Forty Four"]
[7345,"Seven Thousand Three Hundred Forty Five"]
[7346,"Seven Thousand Three Hundred Forty Six"]
[7347,"Seven Thousand Three Hundred Forty Seven"]
[7348,"Seven Thousand Three Hundred Forty Eight"]
[7349,"Seven Thousand Three Hundred Forty Nine"]
[7350,"Seven Thousand Three Hundred Fifty "]
[7351,"Seven Thousand Three Hundred Fifty One"]
[7352,"Seven Thousand Three Hundred Fifty Two"]
[7353,"Seven Thousand Three Hundred Fifty Three"]
[7354,"Seven Thousand Three Hundred Fifty Four"]
[7355,"Seven Thousand Three Hundred Fifty Five"]
[7356,{"$f":"spellnumber(A7358)","v":"Seven Thousand Three Hundred Fifty Six"}]
[7357,"Seven Thousand Three Hundred Fifty Seven"]
[7358,"Seven Thousand Three Hundred Fifty Eight"]
[7359,"Seven Thousand Three Hundred Fifty Nine"]
[7360,"Seven Thousand Three Hundred Sixty "]
[7361,"Seven Thousand Three Hundred Sixty One"]
[7362,"Seven Thousand Three Hundred Sixty Two"]
[7363,"Seven Thousand Three Hundred Sixty Three"]
[7364,"Seven Thousand Three Hundred Sixty Four"]
[7365,"Seven Thousand Three Hundred Sixty Five"]
[7366,"Seven Thousand Three Hundred Sixty Six"]
[7367,"Seven Thousand Three Hundred Sixty Seven"]
[7368,"Seven Thousand Three Hundred Sixty Eight"]
[7369,"Seven Thousand Three Hundred Sixty Nine"]
[7370,"Seven Thousand Three Hundred Seventy "]
[7371,"Seven Thousand Three Hundred Seventy One"]
[7372,"Seven Thousand Three Hundred Seventy Two"]
[7373,"Seven Thousand Three Hundred Seventy Three"]
[7374,"Seven Thousand Three Hundred Seventy Four"]
[7375,"Seven Thousand Three Hundred Seventy Five"]
[7376,"Seven Thousand Three Hundred Seventy Six"]
[7377,"Seven Thousand Three Hundred Seventy Seven"]
[7378,"Seven Thousand Three Hundred Seventy Eight"]
[7379,"Seven Thousand Three Hundred Seventy Nine"]
[7380,"Seven Thousand Three Hundred Eighty "]
[7381,"Seven Thousand Three Hundred Eighty One"]
[7382,"Seven Thousand Three Hundred Eighty Two"]
[7383,"Seven Thousand Three Hundred Eighty Three"]
[7384,"Seven Thousand Three Hundred Eighty Four"]
[7385,"Seven Thousand Three Hundred Eighty Five"]
[7386,"Seven Thousand Three Hundred Eighty Six"]
[7387,"Seven Thousand Three Hundred Eighty Seven"]
[7388,"Seven Thousand Three Hundred Eighty Eight"]
[7389,"Seven Thousand Three Hundred Eighty Nine"]
[7390,"Seven Thousand Three Hundred Ninety "]
[7391,"Seven Thousand Three Hundred Ninety One"]
[7392,"Seven Thousand Three Hundred Ninety Two"]
[7393,"Seven Thousand Three Hundred Ninety Three"]
[7394,"Seven Thousand Three Hundred Ninety Four"]
[7395,"Seven Thousand Three Hundred Ninety Five"]
[7396,"Seven Thousand Three Hundred Ninety Six"]
[7397,"Seven Thousand Three Hundred Ninety Seven"]
[7398,"Seven Thousand Three Hundred Ninety Eight"]
[7399,"Seven Thousand Three Hundred Ninety Nine"]
[7400,"Seven Thousand Four Hundred "]
[7401,"Seven Thousand Four Hundred One"]
[7402,"Seven Thousand Four Hundred Two"]
[7403,"Seven Thousand Four Hundred Three"]
[7404,"Seven Thousand Four Hundred Four"]
[7405,"Seven Thousand Four Hundred Five"]
[7406,"Seven Thousand Four Hundred Six"]
[7407,"Seven Thousand Four Hundred Seven"]
[7408,"Seven Thousand Four Hundred Eight"]
[7409,"Seven Thousand Four Hundred Nine"]
[7410,"Seven Thousand Four Hundred Ten"]
[7411,"Seven Thousand Four Hundred Eleven"]
[7412,"Seven Thousand Four Hundred Twelve"]
[7413,"Seven Thousand Four Hundred Thirteen"]
[7414,"Seven Thousand Four Hundred Fourteen"]
[7415,"Seven Thousand Four Hundred Fifteen"]
[7416,"Seven Thousand Four Hundred Sixteen"]
[7417,"Seven Thousand Four Hundred Seventeen"]
[7418,"Seven Thousand Four Hundred Eighteen"]
[7419,"Seven Thousand Four Hundred Nineteen"]
[7420,{"$f":"spellnumber(A7422)","v":"Seven Thousand Four Hundred Twenty "}]
[7421,"Seven Thousand Four Hundred Twenty One"]
[7422,"Seven Thousand Four Hundred Twenty Two"]
[7423,"Seven Thousand Four Hundred Twenty Three"]
[7424,"Seven Thousand Four Hundred Twenty Four"]
[7425,"Seven Thousand Four Hundred Twenty Five"]
[7426,"Seven Thousand Four Hundred Twenty Six"]
[7427,"Seven Thousand Four Hundred Twenty Seven"]
[7428,"Seven Thousand Four Hundred Twenty Eight"]
[7429,"Seven Thousand Four Hundred Twenty Nine"]
[7430,"Seven Thousand Four Hundred Thirty "]
[7431,"Seven Thousand Four Hundred Thirty One"]
[7432,"Seven Thousand Four Hundred Thirty Two"]
[7433,"Seven Thousand Four Hundred Thirty Three"]
[7434,"Seven Thousand Four Hundred Thirty Four"]
[7435,"Seven Thousand Four Hundred Thirty Five"]
[7436,"Seven Thousand Four Hundred Thirty Six"]
[7437,"Seven Thousand Four Hundred Thirty Seven"]
[7438,"Seven Thousand Four Hundred Thirty Eight"]
[7439,"Seven Thousand Four Hundred Thirty Nine"]
[7440,"Seven Thousand Four Hundred Forty "]
[7441,"Seven Thousand Four Hundred Forty One"]
[7442,"Seven Thousand Four Hundred Forty Two"]
[7443,"Seven Thousand Four Hundred Forty Three"]
[7444,"Seven Thousand Four Hundred Forty Four"]
[7445,"Seven Thousand Four Hundred Forty Five"]
[7446,"Seven Thousand Four Hundred Forty Six"]
[7447,"Seven Thousand Four Hundred Forty Seven"]
[7448,"Seven Thousand Four Hundred Forty Eight"]
[7449,"Seven Thousand Four Hundred Forty Nine"]
[7450,"Seven Thousand Four Hundred Fifty "]
[7451,"Seven Thousand Four Hundred Fifty One"]
[7452,"Seven Thousand Four Hundred Fifty Two"]
[7453,"Seven Thousand Four Hundred Fifty Three"]
[7454,"Seven Thousand Four Hundred Fifty Four"]
[7455,"Seven Thousand Four Hundred Fifty Five"]
[7456,"Seven Thousand Four Hundred Fifty Six"]
[7457,"Seven Thousand Four Hundred Fifty Seven"]
[7458,"Seven Thousand Four Hundred Fifty Eight"]
[7459,"Seven Thousand Four Hundred Fifty Nine"]
[7460,"Seven Thousand Four Hundred Sixty "]
[7461,"Seven Thousand Four Hundred Sixty One"]
[7462,"Seven Thousand Four Hundred Sixty Two"]
[7463,"Seven Thousand Four Hundred Sixty Three"]
[7464,"Seven Thousand Four Hundred Sixty Four"]
[7465,"Seven Thousand Four Hundred Sixty Five"]
[7466,"Seven Thousand Four Hundred Sixty Six"]
[7467,"Seven Thousand Four Hundred Sixty Seven"]
[7468,"Seven Thousand Four Hundred Sixty Eight"]
[7469,"Seven Thousand Four Hundred Sixty Nine"]
[7470,"Seven Thousand Four Hundred Seventy "]
[7471,"Seven Thousand Four Hundred Seventy One"]
[7472,"Seven Thousand Four Hundred Seventy Two"]
[7473,"Seven Thousand Four Hundred Seventy Three"]
[7474,"Seven Thousand Four Hundred Seventy Four"]
[7475,"Seven Thousand Four Hundred Seventy Five"]
[7476,"Seven Thousand Four Hundred Seventy Six"]
[7477,"Seven Thousand Four Hundred Seventy Seven"]
[7478,"Seven Thousand Four Hundred Seventy Eight"]
[7479,"Seven Thousand Four Hundred Seventy Nine"]
[7480,"Seven Thousand Four Hundred Eighty "]
[7481,"Seven Thousand Four Hundred Eighty One"]
[7482,"Seven Thousand Four Hundred Eighty Two"]
[7483,"Seven Thousand Four Hundred Eighty Three"]
[7484,{"$f":"spellnumber(A7486)","v":"Seven Thousand Four Hundred Eighty Four"}]
[7485,"Seven Thousand Four Hundred Eighty Five"]
[7486,"Seven Thousand Four Hundred Eighty Six"]
[7487,"Seven Thousand Four Hundred Eighty Seven"]
[7488,"Seven Thousand Four Hundred Eighty Eight"]
[7489,"Seven Thousand Four Hundred Eighty Nine"]
[7490,"Seven Thousand Four Hundred Ninety "]
[7491,"Seven Thousand Four Hundred Ninety One"]
[7492,"Seven Thousand Four Hundred Ninety Two"]
[7493,"Seven Thousand Four Hundred Ninety Three"]
[7494,"Seven Thousand Four Hundred Ninety Four"]
[7495,"Seven Thousand Four Hundred Ninety Five"]
[7496,"Seven Thousand Four Hundred Ninety Six"]
[7497,"Seven Thousand Four Hundred Ninety Seven"]
[7498,"Seven Thousand Four Hundred Ninety Eight"]
[7499,"Seven Thousand Four Hundred Ninety Nine"]
[7500,"Seven Thousand Five Hundred "]
[7501,"Seven Thousand Five Hundred One"]
[7502,"Seven Thousand Five Hundred Two"]
[7503,"Seven Thousand Five Hundred Three"]
[7504,"Seven Thousand Five Hundred Four"]
[7505,"Seven Thousand Five Hundred Five"]
[7506,"Seven Thousand Five Hundred Six"]
[7507,"Seven Thousand Five Hundred Seven"]
[7508,"Seven Thousand Five Hundred Eight"]
[7509,"Seven Thousand Five Hundred Nine"]
[7510,"Seven Thousand Five Hundred Ten"]
[7511,"Seven Thousand Five Hundred Eleven"]
[7512,"Seven Thousand Five Hundred Twelve"]
[7513,"Seven Thousand Five Hundred Thirteen"]
[7514,"Seven Thousand Five Hundred Fourteen"]
[7515,"Seven Thousand Five Hundred Fifteen"]
[7516,"Seven Thousand Five Hundred Sixteen"]
[7517,"Seven Thousand Five Hundred Seventeen"]
[7518,"Seven Thousand Five Hundred Eighteen"]
[7519,"Seven Thousand Five Hundred Nineteen"]
[7520,"Seven Thousand Five Hundred Twenty "]
[7521,"Seven Thousand Five Hundred Twenty One"]
[7522,"Seven Thousand Five Hundred Twenty Two"]
[7523,"Seven Thousand Five Hundred Twenty Three"]
[7524,"Seven Thousand Five Hundred Twenty Four"]
[7525,"Seven Thousand Five Hundred Twenty Five"]
[7526,"Seven Thousand Five Hundred Twenty Six"]
[7527,"Seven Thousand Five Hundred Twenty Seven"]
[7528,"Seven Thousand Five Hundred Twenty Eight"]
[7529,"Seven Thousand Five Hundred Twenty Nine"]
[7530,"Seven Thousand Five Hundred Thirty "]
[7531,"Seven Thousand Five Hundred Thirty One"]
[7532,"Seven Thousand Five Hundred Thirty Two"]
[7533,"Seven Thousand Five Hundred Thirty Three"]
[7534,"Seven Thousand Five Hundred Thirty Four"]
[7535,"Seven Thousand Five Hundred Thirty Five"]
[7536,"Seven Thousand Five Hundred Thirty Six"]
[7537,"Seven Thousand Five Hundred Thirty Seven"]
[7538,"Seven Thousand Five Hundred Thirty Eight"]
[7539,"Seven Thousand Five Hundred Thirty Nine"]
[7540,"Seven Thousand Five Hundred Forty "]
[7541,"Seven Thousand Five Hundred Forty One"]
[7542,"Seven Thousand Five Hundred Forty Two"]
[7543,"Seven Thousand Five Hundred Forty Three"]
[7544,"Seven Thousand Five Hundred Forty Four"]
[7545,"Seven Thousand Five Hundred Forty Five"]
[7546,"Seven Thousand Five Hundred Forty Six"]
[7547,"Seven Thousand Five Hundred Forty Seven"]
[7548,{"$f":"spellnumber(A7550)","v":"Seven Thousand Five Hundred Forty Eight"}]
[7549,"Seven Thousand Five Hundred Forty Nine"]
[7550,"Seven Thousand Five Hundred Fifty "]
[7551,"Seven Thousand Five Hundred Fifty One"]
[7552,"Seven Thousand Five Hundred Fifty Two"]
[7553,"Seven Thousand Five Hundred Fifty Three"]
[7554,"Seven Thousand Five Hundred Fifty Four"]
[7555,"Seven Thousand Five Hundred Fifty Five"]
[7556,"Seven Thousand Five Hundred Fifty Six"]
[7557,"Seven Thousand Five Hundred Fifty Seven"]
[7558,"Seven Thousand Five Hundred Fifty Eight"]
[7559,"Seven Thousand Five Hundred Fifty Nine"]
[7560,"Seven Thousand Five Hundred Sixty "]
[7561,"Seven Thousand Five Hundred Sixty One"]
[7562,"Seven Thousand Five Hundred Sixty Two"]
[7563,"Seven Thousand Five Hundred Sixty Three"]
[7564,"Seven Thousand Five Hundred Sixty Four"]
[7565,"Seven Thousand Five Hundred Sixty Five"]
[7566,"Seven Thousand Five Hundred Sixty Six"]
[7567,"Seven Thousand Five Hundred Sixty Seven"]
[7568,"Seven Thousand Five Hundred Sixty Eight"]
[7569,"Seven Thousand Five Hundred Sixty Nine"]
[7570,"Seven Thousand Five Hundred Seventy "]
[7571,"Seven Thousand Five Hundred Seventy One"]
[7572,"Seven Thousand Five Hundred Seventy Two"]
[7573,"Seven Thousand Five Hundred Seventy Three"]
[7574,"Seven Thousand Five Hundred Seventy Four"]
[7575,"Seven Thousand Five Hundred Seventy Five"]
[7576,"Seven Thousand Five Hundred Seventy Six"]
[7577,"Seven Thousand Five Hundred Seventy Seven"]
[7578,"Seven Thousand Five Hundred Seventy Eight"]
[7579,"Seven Thousand Five Hundred Seventy Nine"]
[7580,"Seven Thousand Five Hundred Eighty "]
[7581,"Seven Thousand Five Hundred Eighty One"]
[7582,"Seven Thousand Five Hundred Eighty Two"]
[7583,"Seven Thousand Five Hundred Eighty Three"]
[7584,"Seven Thousand Five Hundred Eighty Four"]
[7585,"Seven Thousand Five Hundred Eighty Five"]
[7586,"Seven Thousand Five Hundred Eighty Six"]
[7587,"Seven Thousand Five Hundred Eighty Seven"]
[7588,"Seven Thousand Five Hundred Eighty Eight"]
[7589,"Seven Thousand Five Hundred Eighty Nine"]
[7590,"Seven Thousand Five Hundred Ninety "]
[7591,"Seven Thousand Five Hundred Ninety One"]
[7592,"Seven Thousand Five Hundred Ninety Two"]
[7593,"Seven Thousand Five Hundred Ninety Three"]
[7594,"Seven Thousand Five Hundred Ninety Four"]
[7595,"Seven Thousand Five Hundred Ninety Five"]
[7596,"Seven Thousand Five Hundred Ninety Six"]
[7597,"Seven Thousand Five Hundred Ninety Seven"]
[7598,"Seven Thousand Five Hundred Ninety Eight"]
[7599,"Seven Thousand Five Hundred Ninety Nine"]
[7600,"Seven Thousand Six Hundred "]
[7601,"Seven Thousand Six Hundred One"]
[7602,"Seven Thousand Six Hundred Two"]
[7603,"Seven Thousand Six Hundred Three"]
[7604,"Seven Thousand Six Hundred Four"]
[7605,"Seven Thousand Six Hundred Five"]
[7606,"Seven Thousand Six Hundred Six"]
[7607,"Seven Thousand Six Hundred Seven"]
[7608,"Seven Thousand Six Hundred Eight"]
[7609,"Seven Thousand Six Hundred Nine"]
[7610,"Seven Thousand Six Hundred Ten"]
[7611,"Seven Thousand Six Hundred Eleven"]
[7612,{"$f":"spellnumber(A7614)","v":"Seven Thousand Six Hundred Twelve"}]
[7613,"Seven Thousand Six Hundred Thirteen"]
[7614,"Seven Thousand Six Hundred Fourteen"]
[7615,"Seven Thousand Six Hundred Fifteen"]
[7616,"Seven Thousand Six Hundred Sixteen"]
[7617,"Seven Thousand Six Hundred Seventeen"]
[7618,"Seven Thousand Six Hundred Eighteen"]
[7619,"Seven Thousand Six Hundred Nineteen"]
[7620,"Seven Thousand Six Hundred Twenty "]
[7621,"Seven Thousand Six Hundred Twenty One"]
[7622,"Seven Thousand Six Hundred Twenty Two"]
[7623,"Seven Thousand Six Hundred Twenty Three"]
[7624,"Seven Thousand Six Hundred Twenty Four"]
[7625,"Seven Thousand Six Hundred Twenty Five"]
[7626,"Seven Thousand Six Hundred Twenty Six"]
[7627,"Seven Thousand Six Hundred Twenty Seven"]
[7628,"Seven Thousand Six Hundred Twenty Eight"]
[7629,"Seven Thousand Six Hundred Twenty Nine"]
[7630,"Seven Thousand Six Hundred Thirty "]
[7631,"Seven Thousand Six Hundred Thirty One"]
[7632,"Seven Thousand Six Hundred Thirty Two"]
[7633,"Seven Thousand Six Hundred Thirty Three"]
[7634,"Seven Thousand Six Hundred Thirty Four"]
[7635,"Seven Thousand Six Hundred Thirty Five"]
[7636,"Seven Thousand Six Hundred Thirty Six"]
[7637,"Seven Thousand Six Hundred Thirty Seven"]
[7638,"Seven Thousand Six Hundred Thirty Eight"]
[7639,"Seven Thousand Six Hundred Thirty Nine"]
[7640,"Seven Thousand Six Hundred Forty "]
[7641,"Seven Thousand Six Hundred Forty One"]
[7642,"Seven Thousand Six Hundred Forty Two"]
[7643,"Seven Thousand Six Hundred Forty Three"]
[7644,"Seven Thousand Six Hundred Forty Four"]
[7645,"Seven Thousand Six Hundred Forty Five"]
[7646,"Seven Thousand Six Hundred Forty Six"]
[7647,"Seven Thousand Six Hundred Forty Seven"]
[7648,"Seven Thousand Six Hundred Forty Eight"]
[7649,"Seven Thousand Six Hundred Forty Nine"]
[7650,"Seven Thousand Six Hundred Fifty "]
[7651,"Seven Thousand Six Hundred Fifty One"]
[7652,"Seven Thousand Six Hundred Fifty Two"]
[7653,"Seven Thousand Six Hundred Fifty Three"]
[7654,"Seven Thousand Six Hundred Fifty Four"]
[7655,"Seven Thousand Six Hundred Fifty Five"]
[7656,"Seven Thousand Six Hundred Fifty Six"]
[7657,"Seven Thousand Six Hundred Fifty Seven"]
[7658,"Seven Thousand Six Hundred Fifty Eight"]
[7659,"Seven Thousand Six Hundred Fifty Nine"]
[7660,"Seven Thousand Six Hundred Sixty "]
[7661,"Seven Thousand Six Hundred Sixty One"]
[7662,"Seven Thousand Six Hundred Sixty Two"]
[7663,"Seven Thousand Six Hundred Sixty Three"]
[7664,"Seven Thousand Six Hundred Sixty Four"]
[7665,"Seven Thousand Six Hundred Sixty Five"]
[7666,"Seven Thousand Six Hundred Sixty Six"]
[7667,"Seven Thousand Six Hundred Sixty Seven"]
[7668,"Seven Thousand Six Hundred Sixty Eight"]
[7669,"Seven Thousand Six Hundred Sixty Nine"]
[7670,"Seven Thousand Six Hundred Seventy "]
[7671,"Seven Thousand Six Hundred Seventy One"]
[7672,"Seven Thousand Six Hundred Seventy Two"]
[7673,"Seven Thousand Six Hundred Seventy Three"]
[7674,"Seven Thousand Six Hundred Seventy Four"]
[7675,"Seven Thousand Six Hundred Seventy Five"]
[7676,{"$f":"spellnumber(A7678)","v":"Seven Thousand Six Hundred Seventy Six"}]
[7677,"Seven Thousand Six Hundred Seventy Seven"]
[7678,"Seven Thousand Six Hundred Seventy Eight"]
[7679,"Seven Thousand Six Hundred Seventy Nine"]
[7680,"Seven Thousand Six Hundred Eighty "]
[7681,"Seven Thousand Six Hundred Eighty One"]
[7682,"Seven Thousand Six Hundred Eighty Two"]
[7683,"Seven Thousand Six Hundred Eighty Three"]
[7684,"Seven Thousand Six Hundred Eighty Four"]
[7685,"Seven Thousand Six Hundred Eighty Five"]
[7686,"Seven Thousand Six Hundred Eighty Six"]
[7687,"Seven Thousand Six Hundred Eighty Seven"]
[7688,"Seven Thousand Six Hundred Eighty Eight"]
[7689,"Seven Thousand Six Hundred Eighty Nine"]
[7690,"Seven Thousand Six Hundred Ninety "]
[7691,"Seven Thousand Six Hundred Ninety One"]
[7692,"Seven Thousand Six Hundred Ninety Two"]
[7693,"Seven Thousand Six Hundred Ninety Three"]
[7694,"Seven Thousand Six Hundred Ninety Four"]
[7695,"Seven Thousand Six Hundred Ninety Five"]
[7696,"Seven Thousand Six Hundred Ninety Six"]
[7697,"Seven Thousand Six Hundred Ninety Seven"]
[7698,"Seven Thousand Six Hundred Ninety Eight"]
[7699,"Seven Thousand Six Hundred Ninety Nine"]
[7700,"Seven Thousand Seven Hundred "]
[7701,"Seven Thousand Seven Hundred One"]
[7702,"Seven Thousand Seven Hundred Two"]
[7703,"Seven Thousand Seven Hundred Three"]
[7704,"Seven Thousand Seven Hundred Four"]
[7705,"Seven Thousand Seven Hundred Five"]
[7706,"Seven Thousand Seven Hundred Six"]
[7707,"Seven Thousand Seven Hundred Seven"]
[7708,"Seven Thousand Seven Hundred Eight"]
[7709,"Seven Thousand Seven Hundred Nine"]
[7710,"Seven Thousand Seven Hundred Ten"]
[7711,"Seven Thousand Seven Hundred Eleven"]
[7712,"Seven Thousand Seven Hundred Twelve"]
[7713,"Seven Thousand Seven Hundred Thirteen"]
[7714,"Seven Thousand Seven Hundred Fourteen"]
[7715,"Seven Thousand Seven Hundred Fifteen"]
[7716,"Seven Thousand Seven Hundred Sixteen"]
[7717,"Seven Thousand Seven Hundred Seventeen"]
[7718,"Seven Thousand Seven Hundred Eighteen"]
[7719,"Seven Thousand Seven Hundred Nineteen"]
[7720,"Seven Thousand Seven Hundred Twenty "]
[7721,"Seven Thousand Seven Hundred Twenty One"]
[7722,"Seven Thousand Seven Hundred Twenty Two"]
[7723,"Seven Thousand Seven Hundred Twenty Three"]
[7724,"Seven Thousand Seven Hundred Twenty Four"]
[7725,"Seven Thousand Seven Hundred Twenty Five"]
[7726,"Seven Thousand Seven Hundred Twenty Six"]
[7727,"Seven Thousand Seven Hundred Twenty Seven"]
[7728,"Seven Thousand Seven Hundred Twenty Eight"]
[7729,"Seven Thousand Seven Hundred Twenty Nine"]
[7730,"Seven Thousand Seven Hundred Thirty "]
[7731,"Seven Thousand Seven Hundred Thirty One"]
[7732,"Seven Thousand Seven Hundred Thirty Two"]
[7733,"Seven Thousand Seven Hundred Thirty Three"]
[7734,"Seven Thousand Seven Hundred Thirty Four"]
[7735,"Seven Thousand Seven Hundred Thirty Five"]
[7736,"Seven Thousand Seven Hundred Thirty Six"]
[7737,"Seven Thousand Seven Hundred Thirty Seven"]
[7738,"Seven Thousand Seven Hundred Thirty Eight"]
[7739,"Seven Thousand Seven Hundred Thirty Nine"]
[7740,{"$f":"spellnumber(A7742)","v":"Seven Thousand Seven Hundred Forty "}]
[7741,"Seven Thousand Seven Hundred Forty One"]
[7742,"Seven Thousand Seven Hundred Forty Two"]
[7743,"Seven Thousand Seven Hundred Forty Three"]
[7744,"Seven Thousand Seven Hundred Forty Four"]
[7745,"Seven Thousand Seven Hundred Forty Five"]
[7746,"Seven Thousand Seven Hundred Forty Six"]
[7747,"Seven Thousand Seven Hundred Forty Seven"]
[7748,"Seven Thousand Seven Hundred Forty Eight"]
[7749,"Seven Thousand Seven Hundred Forty Nine"]
[7750,"Seven Thousand Seven Hundred Fifty "]
[7751,"Seven Thousand Seven Hundred Fifty One"]
[7752,"Seven Thousand Seven Hundred Fifty Two"]
[7753,"Seven Thousand Seven Hundred Fifty Three"]
[7754,"Seven Thousand Seven Hundred Fifty Four"]
[7755,"Seven Thousand Seven Hundred Fifty Five"]
[7756,"Seven Thousand Seven Hundred Fifty Six"]
[7757,"Seven Thousand Seven Hundred Fifty Seven"]
[7758,"Seven Thousand Seven Hundred Fifty Eight"]
[7759,"Seven Thousand Seven Hundred Fifty Nine"]
[7760,"Seven Thousand Seven Hundred Sixty "]
[7761,"Seven Thousand Seven Hundred Sixty One"]
[7762,"Seven Thousand Seven Hundred Sixty Two"]
[7763,"Seven Thousand Seven Hundred Sixty Three"]
[7764,"Seven Thousand Seven Hundred Sixty Four"]
[7765,"Seven Thousand Seven Hundred Sixty Five"]
[7766,"Seven Thousand Seven Hundred Sixty Six"]
[7767,"Seven Thousand Seven Hundred Sixty Seven"]
[7768,"Seven Thousand Seven Hundred Sixty Eight"]
[7769,"Seven Thousand Seven Hundred Sixty Nine"]
[7770,"Seven Thousand Seven Hundred Seventy "]
[7771,"Seven Thousand Seven Hundred Seventy One"]
[7772,"Seven Thousand Seven Hundred Seventy Two"]
[7773,"Seven Thousand Seven Hundred Seventy Three"]
[7774,"Seven Thousand Seven Hundred Seventy Four"]
[7775,"Seven Thousand Seven Hundred Seventy Five"]
[7776,"Seven Thousand Seven Hundred Seventy Six"]
[7777,"Seven Thousand Seven Hundred Seventy Seven"]
[7778,"Seven Thousand Seven Hundred Seventy Eight"]
[7779,"Seven Thousand Seven Hundred Seventy Nine"]
[7780,"Seven Thousand Seven Hundred Eighty "]
[7781,"Seven Thousand Seven Hundred Eighty One"]
[7782,"Seven Thousand Seven Hundred Eighty Two"]
[7783,"Seven Thousand Seven Hundred Eighty Three"]
[7784,"Seven Thousand Seven Hundred Eighty Four"]
[7785,"Seven Thousand Seven Hundred Eighty Five"]
[7786,"Seven Thousand Seven Hundred Eighty Six"]
[7787,"Seven Thousand Seven Hundred Eighty Seven"]
[7788,"Seven Thousand Seven Hundred Eighty Eight"]
[7789,"Seven Thousand Seven Hundred Eighty Nine"]
[7790,"Seven Thousand Seven Hundred Ninety "]
[7791,"Seven Thousand Seven Hundred Ninety One"]
[7792,"Seven Thousand Seven Hundred Ninety Two"]
[7793,"Seven Thousand Seven Hundred Ninety Three"]
[7794,"Seven Thousand Seven Hundred Ninety Four"]
[7795,"Seven Thousand Seven Hundred Ninety Five"]
[7796,"Seven Thousand Seven Hundred Ninety Six"]
[7797,"Seven Thousand Seven Hundred Ninety Seven"]
[7798,"Seven Thousand Seven Hundred Ninety Eight"]
[7799,"Seven Thousand Seven Hundred Ninety Nine"]
[7800,"Seven Thousand Eight Hundred "]
[7801,"Seven Thousand Eight Hundred One"]
[7802,"Seven Thousand Eight Hundred Two"]
[7803,"Seven Thousand Eight Hundred Three"]
[7804,{"$f":"spellnumber(A7806)","v":"Seven Thousand Eight Hundred Four"}]
[7805,"Seven Thousand Eight Hundred Five"]
[7806,"Seven Thousand Eight Hundred Six"]
[7807,"Seven Thousand Eight Hundred Seven"]
[7808,"Seven Thousand Eight Hundred Eight"]
[7809,"Seven Thousand Eight Hundred Nine"]
[7810,"Seven Thousand Eight Hundred Ten"]
[7811,"Seven Thousand Eight Hundred Eleven"]
[7812,"Seven Thousand Eight Hundred Twelve"]
[7813,"Seven Thousand Eight Hundred Thirteen"]
[7814,"Seven Thousand Eight Hundred Fourteen"]
[7815,"Seven Thousand Eight Hundred Fifteen"]
[7816,"Seven Thousand Eight Hundred Sixteen"]
[7817,"Seven Thousand Eight Hundred Seventeen"]
[7818,"Seven Thousand Eight Hundred Eighteen"]
[7819,"Seven Thousand Eight Hundred Nineteen"]
[7820,"Seven Thousand Eight Hundred Twenty "]
[7821,"Seven Thousand Eight Hundred Twenty One"]
[7822,"Seven Thousand Eight Hundred Twenty Two"]
[7823,"Seven Thousand Eight Hundred Twenty Three"]
[7824,"Seven Thousand Eight Hundred Twenty Four"]
[7825,"Seven Thousand Eight Hundred Twenty Five"]
[7826,"Seven Thousand Eight Hundred Twenty Six"]
[7827,"Seven Thousand Eight Hundred Twenty Seven"]
[7828,"Seven Thousand Eight Hundred Twenty Eight"]
[7829,"Seven Thousand Eight Hundred Twenty Nine"]
[7830,"Seven Thousand Eight Hundred Thirty "]
[7831,"Seven Thousand Eight Hundred Thirty One"]
[7832,"Seven Thousand Eight Hundred Thirty Two"]
[7833,"Seven Thousand Eight Hundred Thirty Three"]
[7834,"Seven Thousand Eight Hundred Thirty Four"]
[7835,"Seven Thousand Eight Hundred Thirty Five"]
[7836,"Seven Thousand Eight Hundred Thirty Six"]
[7837,"Seven Thousand Eight Hundred Thirty Seven"]
[7838,"Seven Thousand Eight Hundred Thirty Eight"]
[7839,"Seven Thousand Eight Hundred Thirty Nine"]
[7840,"Seven Thousand Eight Hundred Forty "]
[7841,"Seven Thousand Eight Hundred Forty One"]
[7842,"Seven Thousand Eight Hundred Forty Two"]
[7843,"Seven Thousand Eight Hundred Forty Three"]
[7844,"Seven Thousand Eight Hundred Forty Four"]
[7845,"Seven Thousand Eight Hundred Forty Five"]
[7846,"Seven Thousand Eight Hundred Forty Six"]
[7847,"Seven Thousand Eight Hundred Forty Seven"]
[7848,"Seven Thousand Eight Hundred Forty Eight"]
[7849,"Seven Thousand Eight Hundred Forty Nine"]
[7850,"Seven Thousand Eight Hundred Fifty "]
[7851,"Seven Thousand Eight Hundred Fifty One"]
[7852,"Seven Thousand Eight Hundred Fifty Two"]
[7853,"Seven Thousand Eight Hundred Fifty Three"]
[7854,"Seven Thousand Eight Hundred Fifty Four"]
[7855,"Seven Thousand Eight Hundred Fifty Five"]
[7856,"Seven Thousand Eight Hundred Fifty Six"]
[7857,"Seven Thousand Eight Hundred Fifty Seven"]
[7858,"Seven Thousand Eight Hundred Fifty Eight"]
[7859,"Seven Thousand Eight Hundred Fifty Nine"]
[7860,"Seven Thousand Eight Hundred Sixty "]
[7861,"Seven Thousand Eight Hundred Sixty One"]
[7862,"Seven Thousand Eight Hundred Sixty Two"]
[7863,"Seven Thousand Eight Hundred Sixty Three"]
[7864,"Seven Thousand Eight Hundred Sixty Four"]
[7865,"Seven Thousand Eight Hundred Sixty Five"]
[7866,"Seven Thousand Eight Hundred Sixty Six"]
[7867,"Seven Thousand Eight Hundred Sixty Seven"]
[7868,{"$f":"spellnumber(A7870)","v":"Seven Thousand Eight Hundred Sixty Eight"}]
[7869,"Seven Thousand Eight Hundred Sixty Nine"]
[7870,"Seven Thousand Eight Hundred Seventy "]
[7871,"Seven Thousand Eight Hundred Seventy One"]
[7872,"Seven Thousand Eight Hundred Seventy Two"]
[7873,"Seven Thousand Eight Hundred Seventy Three"]
[7874,"Seven Thousand Eight Hundred Seventy Four"]
[7875,"Seven Thousand Eight Hundred Seventy Five"]
[7876,"Seven Thousand Eight Hundred Seventy Six"]
[7877,"Seven Thousand Eight Hundred Seventy Seven"]
[7878,"Seven Thousand Eight Hundred Seventy Eight"]
[7879,"Seven Thousand Eight Hundred Seventy Nine"]
[7880,"Seven Thousand Eight Hundred Eighty "]
[7881,"Seven Thousand Eight Hundred Eighty One"]
[7882,"Seven Thousand Eight Hundred Eighty Two"]
[7883,"Seven Thousand Eight Hundred Eighty Three"]
[7884,"Seven Thousand Eight Hundred Eighty Four"]
[7885,"Seven Thousand Eight Hundred Eighty Five"]
[7886,"Seven Thousand Eight Hundred Eighty Six"]
[7887,"Seven Thousand Eight Hundred Eighty Seven"]
[7888,"Seven Thousand Eight Hundred Eighty Eight"]
[7889,"Seven Thousand Eight Hundred Eighty Nine"]
[7890,"Seven Thousand Eight Hundred Ninety "]
[7891,"Seven Thousand Eight Hundred Ninety One"]
[7892,"Seven Thousand Eight Hundred Ninety Two"]
[7893,"Seven Thousand Eight Hundred Ninety Three"]
[7894,"Seven Thousand Eight Hundred Ninety Four"]
[7895,"Seven Thousand Eight Hundred Ninety Five"]
[7896,"Seven Thousand Eight Hundred Ninety Six"]
[7897,"Seven Thousand Eight Hundred Ninety Seven"]
[7898,"Seven Thousand Eight Hundred Ninety Eight"]
[7899,"Seven Thousand Eight Hundred Ninety Nine"]
[7900,"Seven Thousand Nine Hundred "]
[7901,"Seven Thousand Nine Hundred One"]
[7902,"Seven Thousand Nine Hundred Two"]
[7903,"Seven Thousand Nine Hundred Three"]
[7904,"Seven Thousand Nine Hundred Four"]
[7905,"Seven Thousand Nine Hundred Five"]
[7906,"Seven Thousand Nine Hundred Six"]
[7907,"Seven Thousand Nine Hundred Seven"]
[7908,"Seven Thousand Nine Hundred Eight"]
[7909,"Seven Thousand Nine Hundred Nine"]
[7910,"Seven Thousand Nine Hundred Ten"]
[7911,"Seven Thousand Nine Hundred Eleven"]
[7912,"Seven Thousand Nine Hundred Twelve"]
[7913,"Seven Thousand Nine Hundred Thirteen"]
[7914,"Seven Thousand Nine Hundred Fourteen"]
[7915,"Seven Thousand Nine Hundred Fifteen"]
[7916,"Seven Thousand Nine Hundred Sixteen"]
[7917,"Seven Thousand Nine Hundred Seventeen"]
[7918,"Seven Thousand Nine Hundred Eighteen"]
[7919,"Seven Thousand Nine Hundred Nineteen"]
[7920,"Seven Thousand Nine Hundred Twenty "]
[7921,"Seven Thousand Nine Hundred Twenty One"]
[7922,"Seven Thousand Nine Hundred Twenty Two"]
[7923,"Seven Thousand Nine Hundred Twenty Three"]
[7924,"Seven Thousand Nine Hundred Twenty Four"]
[7925,"Seven Thousand Nine Hundred Twenty Five"]
[7926,"Seven Thousand Nine Hundred Twenty Six"]
[7927,"Seven Thousand Nine Hundred Twenty Seven"]
[7928,"Seven Thousand Nine Hundred Twenty Eight"]
[7929,"Seven Thousand Nine Hundred Twenty Nine"]
[7930,"Seven Thousand Nine Hundred Thirty "]
[7931,"Seven Thousand Nine Hundred Thirty One"]
[7932,{"$f":"spellnumber(A7934)","v":"Seven Thousand Nine Hundred Thirty Two"}]
[7933,"Seven Thousand Nine Hundred Thirty Three"]
[7934,"Seven Thousand Nine Hundred Thirty Four"]
[7935,"Seven Thousand Nine Hundred Thirty Five"]
[7936,"Seven Thousand Nine Hundred Thirty Six"]
[7937,"Seven Thousand Nine Hundred Thirty Seven"]
[7938,"Seven Thousand Nine Hundred Thirty Eight"]
[7939,"Seven Thousand Nine Hundred Thirty Nine"]
[7940,"Seven Thousand Nine Hundred Forty "]
[7941,"Seven Thousand Nine Hundred Forty One"]
[7942,"Seven Thousand Nine Hundred Forty Two"]
[7943,"Seven Thousand Nine Hundred Forty Three"]
[7944,"Seven Thousand Nine Hundred Forty Four"]
[7945,"Seven Thousand Nine Hundred Forty Five"]
[7946,"Seven Thousand Nine Hundred Forty Six"]
[7947,"Seven Thousand Nine Hundred Forty Seven"]
[7948,"Seven Thousand Nine Hundred Forty Eight"]
[7949,"Seven Thousand Nine Hundred Forty Nine"]
[7950,"Seven Thousand Nine Hundred Fifty "]
[7951,"Seven Thousand Nine Hundred Fifty One"]
[7952,"Seven Thousand Nine Hundred Fifty Two"]
[7953,"Seven Thousand Nine Hundred Fifty Three"]
[7954,"Seven Thousand Nine Hundred Fifty Four"]
[7955,"Seven Thousand Nine Hundred Fifty Five"]
[7956,"Seven Thousand Nine Hundred Fifty Six"]
[7957,"Seven Thousand Nine Hundred Fifty Seven"]
[7958,"Seven Thousand Nine Hundred Fifty Eight"]
[7959,"Seven Thousand Nine Hundred Fifty Nine"]
[7960,"Seven Thousand Nine Hundred Sixty "]
[7961,"Seven Thousand Nine Hundred Sixty One"]
[7962,"Seven Thousand Nine Hundred Sixty Two"]
[7963,"Seven Thousand Nine Hundred Sixty Three"]
[7964,"Seven Thousand Nine Hundred Sixty Four"]
[7965,"Seven Thousand Nine Hundred Sixty Five"]
[7966,"Seven Thousand Nine Hundred Sixty Six"]
[7967,"Seven Thousand Nine Hundred Sixty Seven"]
[7968,"Seven Thousand Nine Hundred Sixty Eight"]
[7969,"Seven Thousand Nine Hundred Sixty Nine"]
[7970,"Seven Thousand Nine Hundred Seventy "]
[7971,"Seven Thousand Nine Hundred Seventy One"]
[7972,"Seven Thousand Nine Hundred Seventy Two"]
[7973,"Seven Thousand Nine Hundred Seventy Three"]
[7974,"Seven Thousand Nine Hundred Seventy Four"]
[7975,"Seven Thousand Nine Hundred Seventy Five"]
[7976,"Seven Thousand Nine Hundred Seventy Six"]
[7977,"Seven Thousand Nine Hundred Seventy Seven"]
[7978,"Seven Thousand Nine Hundred Seventy Eight"]
[7979,"Seven Thousand Nine Hundred Seventy Nine"]
[7980,"Seven Thousand Nine Hundred Eighty "]
[7981,"Seven Thousand Nine Hundred Eighty One"]
[7982,"Seven Thousand Nine Hundred Eighty Two"]
[7983,"Seven Thousand Nine Hundred Eighty Three"]
[7984,"Seven Thousand Nine Hundred Eighty Four"]
[7985,"Seven Thousand Nine Hundred Eighty Five"]
[7986,"Seven Thousand Nine Hundred Eighty Six"]
[7987,"Seven Thousand Nine Hundred Eighty Seven"]
[7988,"Seven Thousand Nine Hundred Eighty Eight"]
[7989,"Seven Thousand Nine Hundred Eighty Nine"]
[7990,"Seven Thousand Nine Hundred Ninety "]
[7991,"Seven Thousand Nine Hundred Ninety One"]
[7992,"Seven Thousand Nine Hundred Ninety Two"]
[7993,"Seven Thousand Nine Hundred Ninety Three"]
[7994,"Seven Thousand Nine Hundred Ninety Four"]
[7995,"Seven Thousand Nine Hundred Ninety Five"]
[7996,{"$f":"spellnumber(A7998)","v":"Seven Thousand Nine Hundred Ninety Six"}]
[7997,"Seven Thousand Nine Hundred Ninety Seven"]
[7998,"Seven Thousand Nine Hundred Ninety Eight"]
[7999,"Seven Thousand Nine Hundred Ninety Nine"]
[8000,"Eight Thousand "]
[8001,"Eight Thousand One"]
[8002,"Eight Thousand Two"]
[8003,"Eight Thousand Three"]
[8004,"Eight Thousand Four"]
[8005,"Eight Thousand Five"]
[8006,"Eight Thousand Six"]
[8007,"Eight Thousand Seven"]
[8008,"Eight Thousand Eight"]
[8009,"Eight Thousand Nine"]
[8010,"Eight Thousand Ten"]
[8011,"Eight Thousand Eleven"]
[8012,"Eight Thousand Twelve"]
[8013,"Eight Thousand Thirteen"]
[8014,"Eight Thousand Fourteen"]
[8015,"Eight Thousand Fifteen"]
[8016,"Eight Thousand Sixteen"]
[8017,"Eight Thousand Seventeen"]
[8018,"Eight Thousand Eighteen"]
[8019,"Eight Thousand Nineteen"]
[8020,"Eight Thousand Twenty "]
[8021,"Eight Thousand Twenty One"]
[8022,"Eight Thousand Twenty Two"]
[8023,"Eight Thousand Twenty Three"]
[8024,"Eight Thousand Twenty Four"]
[8025,"Eight Thousand Twenty Five"]
[8026,"Eight Thousand Twenty Six"]
[8027,"Eight Thousand Twenty Seven"]
[8028,"Eight Thousand Twenty Eight"]
[8029,"Eight Thousand Twenty Nine"]
[8030,"Eight Thousand Thirty "]
[8031,"Eight Thousand Thirty One"]
[8032,"Eight Thousand Thirty Two"]
[8033,"Eight Thousand Thirty Three"]
[8034,"Eight Thousand Thirty Four"]
[8035,"Eight Thousand Thirty Five"]
[8036,"Eight Thousand Thirty Six"]
[8037,"Eight Thousand Thirty Seven"]
[8038,"Eight Thousand Thirty Eight"]
[8039,"Eight Thousand Thirty Nine"]
[8040,"Eight Thousand Forty "]
[8041,"Eight Thousand Forty One"]
[8042,"Eight Thousand Forty Two"]
[8043,"Eight Thousand Forty Three"]
[8044,"Eight Thousand Forty Four"]
[8045,"Eight Thousand Forty Five"]
[8046,"Eight Thousand Forty Six"]
[8047,"Eight Thousand Forty Seven"]
[8048,"Eight Thousand Forty Eight"]
[8049,"Eight Thousand Forty Nine"]
[8050,"Eight Thousand Fifty "]
[8051,"Eight Thousand Fifty One"]
[8052,"Eight Thousand Fifty Two"]
[8053,"Eight Thousand Fifty Three"]
[8054,"Eight Thousand Fifty Four"]
[8055,"Eight Thousand Fifty Five"]
[8056,"Eight Thousand Fifty Six"]
[8057,"Eight Thousand Fifty Seven"]
[8058,"Eight Thousand Fifty Eight"]
[8059,"Eight Thousand Fifty Nine"]
[8060,{"$f":"spellnumber(A8062)","v":"Eight Thousand Sixty "}]
[8061,"Eight Thousand Sixty One"]
[8062,"Eight Thousand Sixty Two"]
[8063,"Eight Thousand Sixty Three"]
[8064,"Eight Thousand Sixty Four"]
[8065,"Eight Thousand Sixty Five"]
[8066,"Eight Thousand Sixty Six"]
[8067,"Eight Thousand Sixty Seven"]
[8068,"Eight Thousand Sixty Eight"]
[8069,"Eight Thousand Sixty Nine"]
[8070,"Eight Thousand Seventy "]
[8071,"Eight Thousand Seventy One"]
[8072,"Eight Thousand Seventy Two"]
[8073,"Eight Thousand Seventy Three"]
[8074,"Eight Thousand Seventy Four"]
[8075,"Eight Thousand Seventy Five"]
[8076,"Eight Thousand Seventy Six"]
[8077,"Eight Thousand Seventy Seven"]
[8078,"Eight Thousand Seventy Eight"]
[8079,"Eight Thousand Seventy Nine"]
[8080,"Eight Thousand Eighty "]
[8081,"Eight Thousand Eighty One"]
[8082,"Eight Thousand Eighty Two"]
[8083,"Eight Thousand Eighty Three"]
[8084,"Eight Thousand Eighty Four"]
[8085,"Eight Thousand Eighty Five"]
[8086,"Eight Thousand Eighty Six"]
[8087,"Eight Thousand Eighty Seven"]
[8088,"Eight Thousand Eighty Eight"]
[8089,"Eight Thousand Eighty Nine"]
[8090,"Eight Thousand Ninety "]
[8091,"Eight Thousand Ninety One"]
[8092,"Eight Thousand Ninety Two"]
[8093,"Eight Thousand Ninety Three"]
[8094,"Eight Thousand Ninety Four"]
[8095,"Eight Thousand Ninety Five"]
[8096,"Eight Thousand Ninety Six"]
[8097,"Eight Thousand Ninety Seven"]
[8098,"Eight Thousand Ninety Eight"]
[8099,"Eight Thousand Ninety Nine"]
[8100,"Eight Thousand One Hundred "]
[8101,"Eight Thousand One Hundred One"]
[8102,"Eight Thousand One Hundred Two"]
[8103,"Eight Thousand One Hundred Three"]
[8104,"Eight Thousand One Hundred Four"]
[8105,"Eight Thousand One Hundred Five"]
[8106,"Eight Thousand One Hundred Six"]
[8107,"Eight Thousand One Hundred Seven"]
[8108,"Eight Thousand One Hundred Eight"]
[8109,"Eight Thousand One Hundred Nine"]
[8110,"Eight Thousand One Hundred Ten"]
[8111,"Eight Thousand One Hundred Eleven"]
[8112,"Eight Thousand One Hundred Twelve"]
[8113,"Eight Thousand One Hundred Thirteen"]
[8114,"Eight Thousand One Hundred Fourteen"]
[8115,"Eight Thousand One Hundred Fifteen"]
[8116,"Eight Thousand One Hundred Sixteen"]
[8117,"Eight Thousand One Hundred Seventeen"]
[8118,"Eight Thousand One Hundred Eighteen"]
[8119,"Eight Thousand One Hundred Nineteen"]
[8120,"Eight Thousand One Hundred Twenty "]
[8121,"Eight Thousand One Hundred Twenty One"]
[8122,"Eight Thousand One Hundred Twenty Two"]
[8123,"Eight Thousand One Hundred Twenty Three"]
[8124,{"$f":"spellnumber(A8126)","v":"Eight Thousand One Hundred Twenty Four"}]
[8125,"Eight Thousand One Hundred Twenty Five"]
[8126,"Eight Thousand One Hundred Twenty Six"]
[8127,"Eight Thousand One Hundred Twenty Seven"]
[8128,"Eight Thousand One Hundred Twenty Eight"]
[8129,"Eight Thousand One Hundred Twenty Nine"]
[8130,"Eight Thousand One Hundred Thirty "]
[8131,"Eight Thousand One Hundred Thirty One"]
[8132,"Eight Thousand One Hundred Thirty Two"]
[8133,"Eight Thousand One Hundred Thirty Three"]
[8134,"Eight Thousand One Hundred Thirty Four"]
[8135,"Eight Thousand One Hundred Thirty Five"]
[8136,"Eight Thousand One Hundred Thirty Six"]
[8137,"Eight Thousand One Hundred Thirty Seven"]
[8138,"Eight Thousand One Hundred Thirty Eight"]
[8139,"Eight Thousand One Hundred Thirty Nine"]
[8140,"Eight Thousand One Hundred Forty "]
[8141,"Eight Thousand One Hundred Forty One"]
[8142,"Eight Thousand One Hundred Forty Two"]
[8143,"Eight Thousand One Hundred Forty Three"]
[8144,"Eight Thousand One Hundred Forty Four"]
[8145,"Eight Thousand One Hundred Forty Five"]
[8146,"Eight Thousand One Hundred Forty Six"]
[8147,"Eight Thousand One Hundred Forty Seven"]
[8148,"Eight Thousand One Hundred Forty Eight"]
[8149,"Eight Thousand One Hundred Forty Nine"]
[8150,"Eight Thousand One Hundred Fifty "]
[8151,"Eight Thousand One Hundred Fifty One"]
[8152,"Eight Thousand One Hundred Fifty Two"]
[8153,"Eight Thousand One Hundred Fifty Three"]
[8154,"Eight Thousand One Hundred Fifty Four"]
[8155,"Eight Thousand One Hundred Fifty Five"]
[8156,"Eight Thousand One Hundred Fifty Six"]
[8157,"Eight Thousand One Hundred Fifty Seven"]
[8158,"Eight Thousand One Hundred Fifty Eight"]
[8159,"Eight Thousand One Hundred Fifty Nine"]
[8160,"Eight Thousand One Hundred Sixty "]
[8161,"Eight Thousand One Hundred Sixty One"]
[8162,"Eight Thousand One Hundred Sixty Two"]
[8163,"Eight Thousand One Hundred Sixty Three"]
[8164,"Eight Thousand One Hundred Sixty Four"]
[8165,"Eight Thousand One Hundred Sixty Five"]
[8166,"Eight Thousand One Hundred Sixty Six"]
[8167,"Eight Thousand One Hundred Sixty Seven"]
[8168,"Eight Thousand One Hundred Sixty Eight"]
[8169,"Eight Thousand One Hundred Sixty Nine"]
[8170,"Eight Thousand One Hundred Seventy "]
[8171,"Eight Thousand One Hundred Seventy One"]
[8172,"Eight Thousand One Hundred Seventy Two"]
[8173,"Eight Thousand One Hundred Seventy Three"]
[8174,"Eight Thousand One Hundred Seventy Four"]
[8175,"Eight Thousand One Hundred Seventy Five"]
[8176,"Eight Thousand One Hundred Seventy Six"]
[8177,"Eight Thousand One Hundred Seventy Seven"]
[8178,"Eight Thousand One Hundred Seventy Eight"]
[8179,"Eight Thousand One Hundred Seventy Nine"]
[8180,"Eight Thousand One Hundred Eighty "]
[8181,"Eight Thousand One Hundred Eighty One"]
[8182,"Eight Thousand One Hundred Eighty Two"]
[8183,"Eight Thousand One Hundred Eighty Three"]
[8184,"Eight Thousand One Hundred Eighty Four"]
[8185,"Eight Thousand One Hundred Eighty Five"]
[8186,"Eight Thousand One Hundred Eighty Six"]
[8187,"Eight Thousand One Hundred Eighty Seven"]
[8188,{"$f":"spellnumber(A8190)","v":"Eight Thousand One Hundred Eighty Eight"}]
[8189,"Eight Thousand One Hundred Eighty Nine"]
[8190,"Eight Thousand One Hundred Ninety "]
[8191,"Eight Thousand One Hundred Ninety One"]
[8192,"Eight Thousand One Hundred Ninety Two"]
[8193,"Eight Thousand One Hundred Ninety Three"]
[8194,"Eight Thousand One Hundred Ninety Four"]
[8195,"Eight Thousand One Hundred Ninety Five"]
[8196,"Eight Thousand One Hundred Ninety Six"]
[8197,"Eight Thousand One Hundred Ninety Seven"]
[8198,"Eight Thousand One Hundred Ninety Eight"]
[8199,"Eight Thousand One Hundred Ninety Nine"]
[8200,"Eight Thousand Two Hundred "]
[8201,"Eight Thousand Two Hundred One"]
[8202,"Eight Thousand Two Hundred Two"]
[8203,"Eight Thousand Two Hundred Three"]
[8204,"Eight Thousand Two Hundred Four"]
[8205,"Eight Thousand Two Hundred Five"]
[8206,"Eight Thousand Two Hundred Six"]
[8207,"Eight Thousand Two Hundred Seven"]
[8208,"Eight Thousand Two Hundred Eight"]
[8209,"Eight Thousand Two Hundred Nine"]
[8210,"Eight Thousand Two Hundred Ten"]
[8211,"Eight Thousand Two Hundred Eleven"]
[8212,"Eight Thousand Two Hundred Twelve"]
[8213,"Eight Thousand Two Hundred Thirteen"]
[8214,"Eight Thousand Two Hundred Fourteen"]
[8215,"Eight Thousand Two Hundred Fifteen"]
[8216,"Eight Thousand Two Hundred Sixteen"]
[8217,"Eight Thousand Two Hundred Seventeen"]
[8218,"Eight Thousand Two Hundred Eighteen"]
[8219,"Eight Thousand Two Hundred Nineteen"]
[8220,"Eight Thousand Two Hundred Twenty "]
[8221,"Eight Thousand Two Hundred Twenty One"]
[8222,"Eight Thousand Two Hundred Twenty Two"]
[8223,"Eight Thousand Two Hundred Twenty Three"]
[8224,"Eight Thousand Two Hundred Twenty Four"]
[8225,"Eight Thousand Two Hundred Twenty Five"]
[8226,"Eight Thousand Two Hundred Twenty Six"]
[8227,"Eight Thousand Two Hundred Twenty Seven"]
[8228,"Eight Thousand Two Hundred Twenty Eight"]
[8229,"Eight Thousand Two Hundred Twenty Nine"]
[8230,"Eight Thousand Two Hundred Thirty "]
[8231,"Eight Thousand Two Hundred Thirty One"]
[8232,"Eight Thousand Two Hundred Thirty Two"]
[8233,"Eight Thousand Two Hundred Thirty Three"]
[8234,"Eight Thousand Two Hundred Thirty Four"]
[8235,"Eight Thousand Two Hundred Thirty Five"]
[8236,"Eight Thousand Two Hundred Thirty Six"]
[8237,"Eight Thousand Two Hundred Thirty Seven"]
[8238,"Eight Thousand Two Hundred Thirty Eight"]
[8239,"Eight Thousand Two Hundred Thirty Nine"]
[8240,"Eight Thousand Two Hundred Forty "]
[8241,"Eight Thousand Two Hundred Forty One"]
[8242,"Eight Thousand Two Hundred Forty Two"]
[8243,"Eight Thousand Two Hundred Forty Three"]
[8244,"Eight Thousand Two Hundred Forty Four"]
[8245,"Eight Thousand Two Hundred Forty Five"]
[8246,"Eight Thousand Two Hundred Forty Six"]
[8247,"Eight Thousand Two Hundred Forty Seven"]
[8248,"Eight Thousand Two Hundred Forty Eight"]
[8249,"Eight Thousand Two Hundred Forty Nine"]
[8250,"Eight Thousand Two Hundred Fifty "]
[8251,"Eight Thousand Two Hundred Fifty One"]
[8252,{"$f":"spellnumber(A8254)","v":"Eight Thousand Two Hundred Fifty Two"}]
[8253,"Eight Thousand Two Hundred Fifty Three"]
[8254,"Eight Thousand Two Hundred Fifty Four"]
[8255,"Eight Thousand Two Hundred Fifty Five"]
[8256,"Eight Thousand Two Hundred Fifty Six"]
[8257,"Eight Thousand Two Hundred Fifty Seven"]
[8258,"Eight Thousand Two Hundred Fifty Eight"]
[8259,"Eight Thousand Two Hundred Fifty Nine"]
[8260,"Eight Thousand Two Hundred Sixty "]
[8261,"Eight Thousand Two Hundred Sixty One"]
[8262,"Eight Thousand Two Hundred Sixty Two"]
[8263,"Eight Thousand Two Hundred Sixty Three"]
[8264,"Eight Thousand Two Hundred Sixty Four"]
[8265,"Eight Thousand Two Hundred Sixty Five"]
[8266,"Eight Thousand Two Hundred Sixty Six"]
[8267,"Eight Thousand Two Hundred Sixty Seven"]
[8268,"Eight Thousand Two Hundred Sixty Eight"]
[8269,"Eight Thousand Two Hundred Sixty Nine"]
[8270,"Eight Thousand Two Hundred Seventy "]
[8271,"Eight Thousand Two Hundred Seventy One"]
[8272,"Eight Thousand Two Hundred Seventy Two"]
[8273,"Eight Thousand Two Hundred Seventy Three"]
[8274,"Eight Thousand Two Hundred Seventy Four"]
[8275,"Eight Thousand Two Hundred Seventy Five"]
[8276,"Eight Thousand Two Hundred Seventy Six"]
[8277,"Eight Thousand Two Hundred Seventy Seven"]
[8278,"Eight Thousand Two Hundred Seventy Eight"]
[8279,"Eight Thousand Two Hundred Seventy Nine"]
[8280,"Eight Thousand Two Hundred Eighty "]
[8281,"Eight Thousand Two Hundred Eighty One"]
[8282,"Eight Thousand Two Hundred Eighty Two"]
[8283,"Eight Thousand Two Hundred Eighty Three"]
[8284,"Eight Thousand Two Hundred Eighty Four"]
[8285,"Eight Thousand Two Hundred Eighty Five"]
[8286,"Eight Thousand Two Hundred Eighty Six"]
[8287,"Eight Thousand Two Hundred Eighty Seven"]
[8288,"Eight Thousand Two Hundred Eighty Eight"]
[8289,"Eight Thousand Two Hundred Eighty Nine"]
[8290,"Eight Thousand Two Hundred Ninety "]
[8291,"Eight Thousand Two Hundred Ninety One"]
[8292,"Eight Thousand Two Hundred Ninety Two"]
[8293,"Eight Thousand Two Hundred Ninety Three"]
[8294,"Eight Thousand Two Hundred Ninety Four"]
[8295,"Eight Thousand Two Hundred Ninety Five"]
[8296,"Eight Thousand Two Hundred Ninety Six"]
[8297,"Eight Thousand Two Hundred Ninety Seven"]
[8298,"Eight Thousand Two Hundred Ninety Eight"]
[8299,"Eight Thousand Two Hundred Ninety Nine"]
[8300,"Eight Thousand Three Hundred "]
[8301,"Eight Thousand Three Hundred One"]
[8302,"Eight Thousand Three Hundred Two"]
[8303,"Eight Thousand Three Hundred Three"]
[8304,"Eight Thousand Three Hundred Four"]
[8305,"Eight Thousand Three Hundred Five"]
[8306,"Eight Thousand Three Hundred Six"]
[8307,"Eight Thousand Three Hundred Seven"]
[8308,"Eight Thousand Three Hundred Eight"]
[8309,"Eight Thousand Three Hundred Nine"]
[8310,"Eight Thousand Three Hundred Ten"]
[8311,"Eight Thousand Three Hundred Eleven"]
[8312,"Eight Thousand Three Hundred Twelve"]
[8313,"Eight Thousand Three Hundred Thirteen"]
[8314,"Eight Thousand Three Hundred Fourteen"]
[8315,"Eight Thousand Three Hundred Fifteen"]
[8316,{"$f":"spellnumber(A8318)","v":"Eight Thousand Three Hundred Sixteen"}]
[8317,"Eight Thousand Three Hundred Seventeen"]
[8318,"Eight Thousand Three Hundred Eighteen"]
[8319,"Eight Thousand Three Hundred Nineteen"]
[8320,"Eight Thousand Three Hundred Twenty "]
[8321,"Eight Thousand Three Hundred Twenty One"]
[8322,"Eight Thousand Three Hundred Twenty Two"]
[8323,"Eight Thousand Three Hundred Twenty Three"]
[8324,"Eight Thousand Three Hundred Twenty Four"]
[8325,"Eight Thousand Three Hundred Twenty Five"]
[8326,"Eight Thousand Three Hundred Twenty Six"]
[8327,"Eight Thousand Three Hundred Twenty Seven"]
[8328,"Eight Thousand Three Hundred Twenty Eight"]
[8329,"Eight Thousand Three Hundred Twenty Nine"]
[8330,"Eight Thousand Three Hundred Thirty "]
[8331,"Eight Thousand Three Hundred Thirty One"]
[8332,"Eight Thousand Three Hundred Thirty Two"]
[8333,"Eight Thousand Three Hundred Thirty Three"]
[8334,"Eight Thousand Three Hundred Thirty Four"]
[8335,"Eight Thousand Three Hundred Thirty Five"]
[8336,"Eight Thousand Three Hundred Thirty Six"]
[8337,"Eight Thousand Three Hundred Thirty Seven"]
[8338,"Eight Thousand Three Hundred Thirty Eight"]
[8339,"Eight Thousand Three Hundred Thirty Nine"]
[8340,"Eight Thousand Three Hundred Forty "]
[8341,"Eight Thousand Three Hundred Forty One"]
[8342,"Eight Thousand Three Hundred Forty Two"]
[8343,"Eight Thousand Three Hundred Forty Three"]
[8344,"Eight Thousand Three Hundred Forty Four"]
[8345,"Eight Thousand Three Hundred Forty Five"]
[8346,"Eight Thousand Three Hundred Forty Six"]
[8347,"Eight Thousand Three Hundred Forty Seven"]
[8348,"Eight Thousand Three Hundred Forty Eight"]
[8349,"Eight Thousand Three Hundred Forty Nine"]
[8350,"Eight Thousand Three Hundred Fifty "]
[8351,"Eight Thousand Three Hundred Fifty One"]
[8352,"Eight Thousand Three Hundred Fifty Two"]
[8353,"Eight Thousand Three Hundred Fifty Three"]
[8354,"Eight Thousand Three Hundred Fifty Four"]
[8355,"Eight Thousand Three Hundred Fifty Five"]
[8356,"Eight Thousand Three Hundred Fifty Six"]
[8357,"Eight Thousand Three Hundred Fifty Seven"]
[8358,"Eight Thousand Three Hundred Fifty Eight"]
[8359,"Eight Thousand Three Hundred Fifty Nine"]
[8360,"Eight Thousand Three Hundred Sixty "]
[8361,"Eight Thousand Three Hundred Sixty One"]
[8362,"Eight Thousand Three Hundred Sixty Two"]
[8363,"Eight Thousand Three Hundred Sixty Three"]
[8364,"Eight Thousand Three Hundred Sixty Four"]
[8365,"Eight Thousand Three Hundred Sixty Five"]
[8366,"Eight Thousand Three Hundred Sixty Six"]
[8367,"Eight Thousand Three Hundred Sixty Seven"]
[8368,"Eight Thousand Three Hundred Sixty Eight"]
[8369,"Eight Thousand Three Hundred Sixty Nine"]
[8370,"Eight Thousand Three Hundred Seventy "]
[8371,"Eight Thousand Three Hundred Seventy One"]
[8372,"Eight Thousand Three Hundred Seventy Two"]
[8373,"Eight Thousand Three Hundred Seventy Three"]
[8374,"Eight Thousand Three Hundred Seventy Four"]
[8375,"Eight Thousand Three Hundred Seventy Five"]
[8376,"Eight Thousand Three Hundred Seventy Six"]
[8377,"Eight Thousand Three Hundred Seventy Seven"]
[8378,"Eight Thousand Three Hundred Seventy Eight"]
[8379,"Eight Thousand Three Hundred Seventy Nine"]
[8380,{"$f":"spellnumber(A8382)","v":"Eight Thousand Three Hundred Eighty "}]
[8381,"Eight Thousand Three Hundred Eighty One"]
[8382,"Eight Thousand Three Hundred Eighty Two"]
[8383,"Eight Thousand Three Hundred Eighty Three"]
[8384,"Eight Thousand Three Hundred Eighty Four"]
[8385,"Eight Thousand Three Hundred Eighty Five"]
[8386,"Eight Thousand Three Hundred Eighty Six"]
[8387,"Eight Thousand Three Hundred Eighty Seven"]
[8388,"Eight Thousand Three Hundred Eighty Eight"]
[8389,"Eight Thousand Three Hundred Eighty Nine"]
[8390,"Eight Thousand Three Hundred Ninety "]
[8391,"Eight Thousand Three Hundred Ninety One"]
[8392,"Eight Thousand Three Hundred Ninety Two"]
[8393,"Eight Thousand Three Hundred Ninety Three"]
[8394,"Eight Thousand Three Hundred Ninety Four"]
[8395,"Eight Thousand Three Hundred Ninety Five"]
[8396,"Eight Thousand Three Hundred Ninety Six"]
[8397,"Eight Thousand Three Hundred Ninety Seven"]
[8398,"Eight Thousand Three Hundred Ninety Eight"]
[8399,"Eight Thousand Three Hundred Ninety Nine"]
[8400,"Eight Thousand Four Hundred "]
[8401,"Eight Thousand Four Hundred One"]
[8402,"Eight Thousand Four Hundred Two"]
[8403,"Eight Thousand Four Hundred Three"]
[8404,"Eight Thousand Four Hundred Four"]
[8405,"Eight Thousand Four Hundred Five"]
[8406,"Eight Thousand Four Hundred Six"]
[8407,"Eight Thousand Four Hundred Seven"]
[8408,"Eight Thousand Four Hundred Eight"]
[8409,"Eight Thousand Four Hundred Nine"]
[8410,"Eight Thousand Four Hundred Ten"]
[8411,"Eight Thousand Four Hundred Eleven"]
[8412,"Eight Thousand Four Hundred Twelve"]
[8413,"Eight Thousand Four Hundred Thirteen"]
[8414,"Eight Thousand Four Hundred Fourteen"]
[8415,"Eight Thousand Four Hundred Fifteen"]
[8416,"Eight Thousand Four Hundred Sixteen"]
[8417,"Eight Thousand Four Hundred Seventeen"]
[8418,"Eight Thousand Four Hundred Eighteen"]
[8419,"Eight Thousand Four Hundred Nineteen"]
[8420,"Eight Thousand Four Hundred Twenty "]
[8421,"Eight Thousand Four Hundred Twenty One"]
[8422,"Eight Thousand Four Hundred Twenty Two"]
[8423,"Eight Thousand Four Hundred Twenty Three"]
[8424,"Eight Thousand Four Hundred Twenty Four"]
[8425,"Eight Thousand Four Hundred Twenty Five"]
[8426,"Eight Thousand Four Hundred Twenty Six"]
[8427,"Eight Thousand Four Hundred Twenty Seven"]
[8428,"Eight Thousand Four Hundred Twenty Eight"]
[8429,"Eight Thousand Four Hundred Twenty Nine"]
[8430,"Eight Thousand Four Hundred Thirty "]
[8431,"Eight Thousand Four Hundred Thirty One"]
[8432,"Eight Thousand Four Hundred Thirty Two"]
[8433,"Eight Thousand Four Hundred Thirty Three"]
[8434,"Eight Thousand Four Hundred Thirty Four"]
[8435,"Eight Thousand Four Hundred Thirty Five"]
[8436,"Eight Thousand Four Hundred Thirty Six"]
[8437,"Eight Thousand Four Hundred Thirty Seven"]
[8438,"Eight Thousand Four Hundred Thirty Eight"]
[8439,"Eight Thousand Four Hundred Thirty Nine"]
[8440,"Eight Thousand Four Hundred Forty "]
[8441,"Eight Thousand Four Hundred Forty One"]
[8442,"Eight Thousand Four Hundred Forty Two"]
[8443,"Eight Thousand Four Hundred Forty Three"]
[8444,{"$f":"spellnumber(A8446)","v":"Eight Thousand Four Hundred Forty Four"}]
[8445,"Eight Thousand Four Hundred Forty Five"]
[8446,"Eight Thousand Four Hundred Forty Six"]
[8447,"Eight Thousand Four Hundred Forty Seven"]
[8448,"Eight Thousand Four Hundred Forty Eight"]
[8449,"Eight Thousand Four Hundred Forty Nine"]
[8450,"Eight Thousand Four Hundred Fifty "]
[8451,"Eight Thousand Four Hundred Fifty One"]
[8452,"Eight Thousand Four Hundred Fifty Two"]
[8453,"Eight Thousand Four Hundred Fifty Three"]
[8454,"Eight Thousand Four Hundred Fifty Four"]
[8455,"Eight Thousand Four Hundred Fifty Five"]
[8456,"Eight Thousand Four Hundred Fifty Six"]
[8457,"Eight Thousand Four Hundred Fifty Seven"]
[8458,"Eight Thousand Four Hundred Fifty Eight"]
[8459,"Eight Thousand Four Hundred Fifty Nine"]
[8460,"Eight Thousand Four Hundred Sixty "]
[8461,"Eight Thousand Four Hundred Sixty One"]
[8462,"Eight Thousand Four Hundred Sixty Two"]
[8463,"Eight Thousand Four Hundred Sixty Three"]
[8464,"Eight Thousand Four Hundred Sixty Four"]
[8465,"Eight Thousand Four Hundred Sixty Five"]
[8466,"Eight Thousand Four Hundred Sixty Six"]
[8467,"Eight Thousand Four Hundred Sixty Seven"]
[8468,"Eight Thousand Four Hundred Sixty Eight"]
[8469,"Eight Thousand Four Hundred Sixty Nine"]
[8470,"Eight Thousand Four Hundred Seventy "]
[8471,"Eight Thousand Four Hundred Seventy One"]
[8472,"Eight Thousand Four Hundred Seventy Two"]
[8473,"Eight Thousand Four Hundred Seventy Three"]
[8474,"Eight Thousand Four Hundred Seventy Four"]
[8475,"Eight Thousand Four Hundred Seventy Five"]
[8476,"Eight Thousand Four Hundred Seventy Six"]
[8477,"Eight Thousand Four Hundred Seventy Seven"]
[8478,"Eight Thousand Four Hundred Seventy Eight"]
[8479,"Eight Thousand Four Hundred Seventy Nine"]
[8480,"Eight Thousand Four Hundred Eighty "]
[8481,"Eight Thousand Four Hundred Eighty One"]
[8482,"Eight Thousand Four Hundred Eighty Two"]
[8483,"Eight Thousand Four Hundred Eighty Three"]
[8484,"Eight Thousand Four Hundred Eighty Four"]
[8485,"Eight Thousand Four Hundred Eighty Five"]
[8486,"Eight Thousand Four Hundred Eighty Six"]
[8487,"Eight Thousand Four Hundred Eighty Seven"]
[8488,"Eight Thousand Four Hundred Eighty Eight"]
[8489,"Eight Thousand Four Hundred Eighty Nine"]
[8490,"Eight Thousand Four Hundred Ninety "]
[8491,"Eight Thousand Four Hundred Ninety One"]
[8492,"Eight Thousand Four Hundred Ninety Two"]
[8493,"Eight Thousand Four Hundred Ninety Three"]
[8494,"Eight Thousand Four Hundred Ninety Four"]
[8495,"Eight Thousand Four Hundred Ninety Five"]
[8496,"Eight Thousand Four Hundred Ninety Six"]
[8497,"Eight Thousand Four Hundred Ninety Seven"]
[8498,"Eight Thousand Four Hundred Ninety Eight"]
[8499,"Eight Thousand Four Hundred Ninety Nine"]
[8500,"Eight Thousand Five Hundred "]
[8501,"Eight Thousand Five Hundred One"]
[8502,"Eight Thousand Five Hundred Two"]
[8503,"Eight Thousand Five Hundred Three"]
[8504,"Eight Thousand Five Hundred Four"]
[8505,"Eight Thousand Five Hundred Five"]
[8506,"Eight Thousand Five Hundred Six"]
[8507,"Eight Thousand Five Hundred Seven"]
[8508,{"$f":"spellnumber(A8510)","v":"Eight Thousand Five Hundred Eight"}]
[8509,"Eight Thousand Five Hundred Nine"]
[8510,"Eight Thousand Five Hundred Ten"]
[8511,"Eight Thousand Five Hundred Eleven"]
[8512,"Eight Thousand Five Hundred Twelve"]
[8513,"Eight Thousand Five Hundred Thirteen"]
[8514,"Eight Thousand Five Hundred Fourteen"]
[8515,"Eight Thousand Five Hundred Fifteen"]
[8516,"Eight Thousand Five Hundred Sixteen"]
[8517,"Eight Thousand Five Hundred Seventeen"]
[8518,"Eight Thousand Five Hundred Eighteen"]
[8519,"Eight Thousand Five Hundred Nineteen"]
[8520,"Eight Thousand Five Hundred Twenty "]
[8521,"Eight Thousand Five Hundred Twenty One"]
[8522,"Eight Thousand Five Hundred Twenty Two"]
[8523,"Eight Thousand Five Hundred Twenty Three"]
[8524,"Eight Thousand Five Hundred Twenty Four"]
[8525,"Eight Thousand Five Hundred Twenty Five"]
[8526,"Eight Thousand Five Hundred Twenty Six"]
[8527,"Eight Thousand Five Hundred Twenty Seven"]
[8528,"Eight Thousand Five Hundred Twenty Eight"]
[8529,"Eight Thousand Five Hundred Twenty Nine"]
[8530,"Eight Thousand Five Hundred Thirty "]
[8531,"Eight Thousand Five Hundred Thirty One"]
[8532,"Eight Thousand Five Hundred Thirty Two"]
[8533,"Eight Thousand Five Hundred Thirty Three"]
[8534,"Eight Thousand Five Hundred Thirty Four"]
[8535,"Eight Thousand Five Hundred Thirty Five"]
[8536,"Eight Thousand Five Hundred Thirty Six"]
[8537,"Eight Thousand Five Hundred Thirty Seven"]
[8538,"Eight Thousand Five Hundred Thirty Eight"]
[8539,"Eight Thousand Five Hundred Thirty Nine"]
[8540,"Eight Thousand Five Hundred Forty "]
[8541,"Eight Thousand Five Hundred Forty One"]
[8542,"Eight Thousand Five Hundred Forty Two"]
[8543,"Eight Thousand Five Hundred Forty Three"]
[8544,"Eight Thousand Five Hundred Forty Four"]
[8545,"Eight Thousand Five Hundred Forty Five"]
[8546,"Eight Thousand Five Hundred Forty Six"]
[8547,"Eight Thousand Five Hundred Forty Seven"]
[8548,"Eight Thousand Five Hundred Forty Eight"]
[8549,"Eight Thousand Five Hundred Forty Nine"]
[8550,"Eight Thousand Five Hundred Fifty "]
[8551,"Eight Thousand Five Hundred Fifty One"]
[8552,"Eight Thousand Five Hundred Fifty Two"]
[8553,"Eight Thousand Five Hundred Fifty Three"]
[8554,"Eight Thousand Five Hundred Fifty Four"]
[8555,"Eight Thousand Five Hundred Fifty Five"]
[8556,"Eight Thousand Five Hundred Fifty Six"]
[8557,"Eight Thousand Five Hundred Fifty Seven"]
[8558,"Eight Thousand Five Hundred Fifty Eight"]
[8559,"Eight Thousand Five Hundred Fifty Nine"]
[8560,"Eight Thousand Five Hundred Sixty "]
[8561,"Eight Thousand Five Hundred Sixty One"]
[8562,"Eight Thousand Five Hundred Sixty Two"]
[8563,"Eight Thousand Five Hundred Sixty Three"]
[8564,"Eight Thousand Five Hundred Sixty Four"]
[8565,"Eight Thousand Five Hundred Sixty Five"]
[8566,"Eight Thousand Five Hundred Sixty Six"]
[8567,"Eight Thousand Five Hundred Sixty Seven"]
[8568,"Eight Thousand Five Hundred Sixty Eight"]
[8569,"Eight Thousand Five Hundred Sixty Nine"]
[8570,"Eight Thousand Five Hundred Seventy "]
[8571,"Eight Thousand Five Hundred Seventy One"]
[8572,{"$f":"spellnumber(A8574)","v":"Eight Thousand Five Hundred Seventy Two"}]
[8573,"Eight Thousand Five Hundred Seventy Three"]
[8574,"Eight Thousand Five Hundred Seventy Four"]
[8575,"Eight Thousand Five Hundred Seventy Five"]
[8576,"Eight Thousand Five Hundred Seventy Six"]
[8577,"Eight Thousand Five Hundred Seventy Seven"]
[8578,"Eight Thousand Five Hundred Seventy Eight"]
[8579,"Eight Thousand Five Hundred Seventy Nine"]
[8580,"Eight Thousand Five Hundred Eighty "]
[8581,"Eight Thousand Five Hundred Eighty One"]
[8582,"Eight Thousand Five Hundred Eighty Two"]
[8583,"Eight Thousand Five Hundred Eighty Three"]
[8584,"Eight Thousand Five Hundred Eighty Four"]
[8585,"Eight Thousand Five Hundred Eighty Five"]
[8586,"Eight Thousand Five Hundred Eighty Six"]
[8587,"Eight Thousand Five Hundred Eighty Seven"]
[8588,"Eight Thousand Five Hundred Eighty Eight"]
[8589,"Eight Thousand Five Hundred Eighty Nine"]
[8590,"Eight Thousand Five Hundred Ninety "]
[8591,"Eight Thousand Five Hundred Ninety One"]
[8592,"Eight Thousand Five Hundred Ninety Two"]
[8593,"Eight Thousand Five Hundred Ninety Three"]
[8594,"Eight Thousand Five Hundred Ninety Four"]
[8595,"Eight Thousand Five Hundred Ninety Five"]
[8596,"Eight Thousand Five Hundred Ninety Six"]
[8597,"Eight Thousand Five Hundred Ninety Seven"]
[8598,"Eight Thousand Five Hundred Ninety Eight"]
[8599,"Eight Thousand Five Hundred Ninety Nine"]
[8600,"Eight Thousand Six Hundred "]
[8601,"Eight Thousand Six Hundred One"]
[8602,"Eight Thousand Six Hundred Two"]
[8603,"Eight Thousand Six Hundred Three"]
[8604,"Eight Thousand Six Hundred Four"]
[8605,"Eight Thousand Six Hundred Five"]
[8606,"Eight Thousand Six Hundred Six"]
[8607,"Eight Thousand Six Hundred Seven"]
[8608,"Eight Thousand Six Hundred Eight"]
[8609,"Eight Thousand Six Hundred Nine"]
[8610,"Eight Thousand Six Hundred Ten"]
[8611,"Eight Thousand Six Hundred Eleven"]
[8612,"Eight Thousand Six Hundred Twelve"]
[8613,"Eight Thousand Six Hundred Thirteen"]
[8614,"Eight Thousand Six Hundred Fourteen"]
[8615,"Eight Thousand Six Hundred Fifteen"]
[8616,"Eight Thousand Six Hundred Sixteen"]
[8617,"Eight Thousand Six Hundred Seventeen"]
[8618,"Eight Thousand Six Hundred Eighteen"]
[8619,"Eight Thousand Six Hundred Nineteen"]
[8620,"Eight Thousand Six Hundred Twenty "]
[8621,"Eight Thousand Six Hundred Twenty One"]
[8622,"Eight Thousand Six Hundred Twenty Two"]
[8623,"Eight Thousand Six Hundred Twenty Three"]
[8624,"Eight Thousand Six Hundred Twenty Four"]
[8625,"Eight Thousand Six Hundred Twenty Five"]
[8626,"Eight Thousand Six Hundred Twenty Six"]
[8627,"Eight Thousand Six Hundred Twenty Seven"]
[8628,"Eight Thousand Six Hundred Twenty Eight"]
[8629,"Eight Thousand Six Hundred Twenty Nine"]
[8630,"Eight Thousand Six Hundred Thirty "]
[8631,"Eight Thousand Six Hundred Thirty One"]
[8632,"Eight Thousand Six Hundred Thirty Two"]
[8633,"Eight Thousand Six Hundred Thirty Three"]
[8634,"Eight Thousand Six Hundred Thirty Four"]
[8635,"Eight Thousand Six Hundred Thirty Five"]
[8636,{"$f":"spellnumber(A8638)","v":"Eight Thousand Six Hundred Thirty Six"}]
[8637,"Eight Thousand Six Hundred Thirty Seven"]
[8638,"Eight Thousand Six Hundred Thirty Eight"]
[8639,"Eight Thousand Six Hundred Thirty Nine"]
[8640,"Eight Thousand Six Hundred Forty "]
[8641,"Eight Thousand Six Hundred Forty One"]
[8642,"Eight Thousand Six Hundred Forty Two"]
[8643,"Eight Thousand Six Hundred Forty Three"]
[8644,"Eight Thousand Six Hundred Forty Four"]
[8645,"Eight Thousand Six Hundred Forty Five"]
[8646,"Eight Thousand Six Hundred Forty Six"]
[8647,"Eight Thousand Six Hundred Forty Seven"]
[8648,"Eight Thousand Six Hundred Forty Eight"]
[8649,"Eight Thousand Six Hundred Forty Nine"]
[8650,"Eight Thousand Six Hundred Fifty "]
[8651,"Eight Thousand Six Hundred Fifty One"]
[8652,"Eight Thousand Six Hundred Fifty Two"]
[8653,"Eight Thousand Six Hundred Fifty Three"]
[8654,"Eight Thousand Six Hundred Fifty Four"]
[8655,"Eight Thousand Six Hundred Fifty Five"]
[8656,"Eight Thousand Six Hundred Fifty Six"]
[8657,"Eight Thousand Six Hundred Fifty Seven"]
[8658,"Eight Thousand Six Hundred Fifty Eight"]
[8659,"Eight Thousand Six Hundred Fifty Nine"]
[8660,"Eight Thousand Six Hundred Sixty "]
[8661,"Eight Thousand Six Hundred Sixty One"]
[8662,"Eight Thousand Six Hundred Sixty Two"]
[8663,"Eight Thousand Six Hundred Sixty Three"]
[8664,"Eight Thousand Six Hundred Sixty Four"]
[8665,"Eight Thousand Six Hundred Sixty Five"]
[8666,"Eight Thousand Six Hundred Sixty Six"]
[8667,"Eight Thousand Six Hundred Sixty Seven"]
[8668,"Eight Thousand Six Hundred Sixty Eight"]
[8669,"Eight Thousand Six Hundred Sixty Nine"]
[8670,"Eight Thousand Six Hundred Seventy "]
[8671,"Eight Thousand Six Hundred Seventy One"]
[8672,"Eight Thousand Six Hundred Seventy Two"]
[8673,"Eight Thousand Six Hundred Seventy Three"]
[8674,"Eight Thousand Six Hundred Seventy Four"]
[8675,"Eight Thousand Six Hundred Seventy Five"]
[8676,"Eight Thousand Six Hundred Seventy Six"]
[8677,"Eight Thousand Six Hundred Seventy Seven"]
[8678,"Eight Thousand Six Hundred Seventy Eight"]
[8679,"Eight Thousand Six Hundred Seventy Nine"]
[8680,"Eight Thousand Six Hundred Eighty "]
[8681,"Eight Thousand Six Hundred Eighty One"]
[8682,"Eight Thousand Six Hundred Eighty Two"]
[8683,"Eight Thousand Six Hundred Eighty Three"]
[8684,"Eight Thousand Six Hundred Eighty Four"]
[8685,"Eight Thousand Six Hundred Eighty Five"]
[8686,"Eight Thousand Six Hundred Eighty Six"]
[8687,"Eight Thousand Six Hundred Eighty Seven"]
[8688,"Eight Thousand Six Hundred Eighty Eight"]
[8689,"Eight Thousand Six Hundred Eighty Nine"]
[8690,"Eight Thousand Six Hundred Ninety "]
[8691,"Eight Thousand Six Hundred Ninety One"]
[8692,"Eight Thousand Six Hundred Ninety Two"]
[8693,"Eight Thousand Six Hundred Ninety Three"]
[8694,"Eight Thousand Six Hundred Ninety Four"]
[8695,"Eight Thousand Six Hundred Ninety Five"]
[8696,"Eight Thousand Six Hundred Ninety Six"]
[8697,"Eight Thousand Six Hundred Ninety Seven"]
[8698,"Eight Thousand Six Hundred Ninety Eight"]
[8699,"Eight Thousand Six Hundred Ninety Nine"]
[8700,{"$f":"spellnumber(A8702)","v":"Eight Thousand Seven Hundred "}]
[8701,"Eight Thousand Seven Hundred One"]
[8702,"Eight Thousand Seven Hundred Two"]
[8703,"Eight Thousand Seven Hundred Three"]
[8704,"Eight Thousand Seven Hundred Four"]
[8705,"Eight Thousand Seven Hundred Five"]
[8706,"Eight Thousand Seven Hundred Six"]
[8707,"Eight Thousand Seven Hundred Seven"]
[8708,"Eight Thousand Seven Hundred Eight"]
[8709,"Eight Thousand Seven Hundred Nine"]
[8710,"Eight Thousand Seven Hundred Ten"]
[8711,"Eight Thousand Seven Hundred Eleven"]
[8712,"Eight Thousand Seven Hundred Twelve"]
[8713,"Eight Thousand Seven Hundred Thirteen"]
[8714,"Eight Thousand Seven Hundred Fourteen"]
[8715,"Eight Thousand Seven Hundred Fifteen"]
[8716,"Eight Thousand Seven Hundred Sixteen"]
[8717,"Eight Thousand Seven Hundred Seventeen"]
[8718,"Eight Thousand Seven Hundred Eighteen"]
[8719,"Eight Thousand Seven Hundred Nineteen"]
[8720,"Eight Thousand Seven Hundred Twenty "]
[8721,"Eight Thousand Seven Hundred Twenty One"]
[8722,"Eight Thousand Seven Hundred Twenty Two"]
[8723,"Eight Thousand Seven Hundred Twenty Three"]
[8724,"Eight Thousand Seven Hundred Twenty Four"]
[8725,"Eight Thousand Seven Hundred Twenty Five"]
[8726,"Eight Thousand Seven Hundred Twenty Six"]
[8727,"Eight Thousand Seven Hundred Twenty Seven"]
[8728,"Eight Thousand Seven Hundred Twenty Eight"]
[8729,"Eight Thousand Seven Hundred Twenty Nine"]
[8730,"Eight Thousand Seven Hundred Thirty "]
[8731,"Eight Thousand Seven Hundred Thirty One"]
[8732,"Eight Thousand Seven Hundred Thirty Two"]
[8733,"Eight Thousand Seven Hundred Thirty Three"]
[8734,"Eight Thousand Seven Hundred Thirty Four"]
[8735,"Eight Thousand Seven Hundred Thirty Five"]
[8736,"Eight Thousand Seven Hundred Thirty Six"]
[8737,"Eight Thousand Seven Hundred Thirty Seven"]
[8738,"Eight Thousand Seven Hundred Thirty Eight"]
[8739,"Eight Thousand Seven Hundred Thirty Nine"]
[8740,"Eight Thousand Seven Hundred Forty "]
[8741,"Eight Thousand Seven Hundred Forty One"]
[8742,"Eight Thousand Seven Hundred Forty Two"]
[8743,"Eight Thousand Seven Hundred Forty Three"]
[8744,"Eight Thousand Seven Hundred Forty Four"]
[8745,"Eight Thousand Seven Hundred Forty Five"]
[8746,"Eight Thousand Seven Hundred Forty Six"]
[8747,"Eight Thousand Seven Hundred Forty Seven"]
[8748,"Eight Thousand Seven Hundred Forty Eight"]
[8749,"Eight Thousand Seven Hundred Forty Nine"]
[8750,"Eight Thousand Seven Hundred Fifty "]
[8751,"Eight Thousand Seven Hundred Fifty One"]
[8752,"Eight Thousand Seven Hundred Fifty Two"]
[8753,"Eight Thousand Seven Hundred Fifty Three"]
[8754,"Eight Thousand Seven Hundred Fifty Four"]
[8755,"Eight Thousand Seven Hundred Fifty Five"]
[8756,"Eight Thousand Seven Hundred Fifty Six"]
[8757,"Eight Thousand Seven Hundred Fifty Seven"]
[8758,"Eight Thousand Seven Hundred Fifty Eight"]
[8759,"Eight Thousand Seven Hundred Fifty Nine"]
[8760,"Eight Thousand Seven Hundred Sixty "]
[8761,"Eight Thousand Seven Hundred Sixty One"]
[8762,"Eight Thousand Seven Hundred Sixty Two"]
[8763,"Eight Thousand Seven Hundred Sixty Three"]
[8764,{"$f":"spellnumber(A8766)","v":"Eight Thousand Seven Hundred Sixty Four"}]
[8765,"Eight Thousand Seven Hundred Sixty Five"]
[8766,"Eight Thousand Seven Hundred Sixty Six"]
[8767,"Eight Thousand Seven Hundred Sixty Seven"]
[8768,"Eight Thousand Seven Hundred Sixty Eight"]
[8769,"Eight Thousand Seven Hundred Sixty Nine"]
[8770,"Eight Thousand Seven Hundred Seventy "]
[8771,"Eight Thousand Seven Hundred Seventy One"]
[8772,"Eight Thousand Seven Hundred Seventy Two"]
[8773,"Eight Thousand Seven Hundred Seventy Three"]
[8774,"Eight Thousand Seven Hundred Seventy Four"]
[8775,"Eight Thousand Seven Hundred Seventy Five"]
[8776,"Eight Thousand Seven Hundred Seventy Six"]
[8777,"Eight Thousand Seven Hundred Seventy Seven"]
[8778,"Eight Thousand Seven Hundred Seventy Eight"]
[8779,"Eight Thousand Seven Hundred Seventy Nine"]
[8780,"Eight Thousand Seven Hundred Eighty "]
[8781,"Eight Thousand Seven Hundred Eighty One"]
[8782,"Eight Thousand Seven Hundred Eighty Two"]
[8783,"Eight Thousand Seven Hundred Eighty Three"]
[8784,"Eight Thousand Seven Hundred Eighty Four"]
[8785,"Eight Thousand Seven Hundred Eighty Five"]
[8786,"Eight Thousand Seven Hundred Eighty Six"]
[8787,"Eight Thousand Seven Hundred Eighty Seven"]
[8788,"Eight Thousand Seven Hundred Eighty Eight"]
[8789,"Eight Thousand Seven Hundred Eighty Nine"]
[8790,"Eight Thousand Seven Hundred Ninety "]
[8791,"Eight Thousand Seven Hundred Ninety One"]
[8792,"Eight Thousand Seven Hundred Ninety Two"]
[8793,"Eight Thousand Seven Hundred Ninety Three"]
[8794,"Eight Thousand Seven Hundred Ninety Four"]
[8795,"Eight Thousand Seven Hundred Ninety Five"]
[8796,"Eight Thousand Seven Hundred Ninety Six"]
[8797,"Eight Thousand Seven Hundred Ninety Seven"]
[8798,"Eight Thousand Seven Hundred Ninety Eight"]
[8799,"Eight Thousand Seven Hundred Ninety Nine"]
[8800,"Eight Thousand Eight Hundred "]
[8801,"Eight Thousand Eight Hundred One"]
[8802,"Eight Thousand Eight Hundred Two"]
[8803,"Eight Thousand Eight Hundred Three"]
[8804,"Eight Thousand Eight Hundred Four"]
[8805,"Eight Thousand Eight Hundred Five"]
[8806,"Eight Thousand Eight Hundred Six"]
[8807,"Eight Thousand Eight Hundred Seven"]
[8808,"Eight Thousand Eight Hundred Eight"]
[8809,"Eight Thousand Eight Hundred Nine"]
[8810,"Eight Thousand Eight Hundred Ten"]
[8811,"Eight Thousand Eight Hundred Eleven"]
[8812,"Eight Thousand Eight Hundred Twelve"]
[8813,"Eight Thousand Eight Hundred Thirteen"]
[8814,"Eight Thousand Eight Hundred Fourteen"]
[8815,"Eight Thousand Eight Hundred Fifteen"]
[8816,"Eight Thousand Eight Hundred Sixteen"]
[8817,"Eight Thousand Eight Hundred Seventeen"]
[8818,"Eight Thousand Eight Hundred Eighteen"]
[8819,"Eight Thousand Eight Hundred Nineteen"]
[8820,"Eight Thousand Eight Hundred Twenty "]
[8821,"Eight Thousand Eight Hundred Twenty One"]
[8822,"Eight Thousand Eight Hundred Twenty Two"]
[8823,"Eight Thousand Eight Hundred Twenty Three"]
[8824,"Eight Thousand Eight Hundred Twenty Four"]
[8825,"Eight Thousand Eight Hundred Twenty Five"]
[8826,"Eight Thousand Eight Hundred Twenty Six"]
[8827,"Eight Thousand Eight Hundred Twenty Seven"]
[8828,{"$f":"spellnumber(A8830)","v":"Eight Thousand Eight Hundred Twenty Eight"}]
[8829,"Eight Thousand Eight Hundred Twenty Nine"]
[8830,"Eight Thousand Eight Hundred Thirty "]
[8831,"Eight Thousand Eight Hundred Thirty One"]
[8832,"Eight Thousand Eight Hundred Thirty Two"]
[8833,"Eight Thousand Eight Hundred Thirty Three"]
[8834,"Eight Thousand Eight Hundred Thirty Four"]
[8835,"Eight Thousand Eight Hundred Thirty Five"]
[8836,"Eight Thousand Eight Hundred Thirty Six"]
[8837,"Eight Thousand Eight Hundred Thirty Seven"]
[8838,"Eight Thousand Eight Hundred Thirty Eight"]
[8839,"Eight Thousand Eight Hundred Thirty Nine"]
[8840,"Eight Thousand Eight Hundred Forty "]
[8841,"Eight Thousand Eight Hundred Forty One"]
[8842,"Eight Thousand Eight Hundred Forty Two"]
[8843,"Eight Thousand Eight Hundred Forty Three"]
[8844,"Eight Thousand Eight Hundred Forty Four"]
[8845,"Eight Thousand Eight Hundred Forty Five"]
[8846,"Eight Thousand Eight Hundred Forty Six"]
[8847,"Eight Thousand Eight Hundred Forty Seven"]
[8848,"Eight Thousand Eight Hundred Forty Eight"]
[8849,"Eight Thousand Eight Hundred Forty Nine"]
[8850,"Eight Thousand Eight Hundred Fifty "]
[8851,"Eight Thousand Eight Hundred Fifty One"]
[8852,"Eight Thousand Eight Hundred Fifty Two"]
[8853,"Eight Thousand Eight Hundred Fifty Three"]
[8854,"Eight Thousand Eight Hundred Fifty Four"]
[8855,"Eight Thousand Eight Hundred Fifty Five"]
[8856,"Eight Thousand Eight Hundred Fifty Six"]
[8857,"Eight Thousand Eight Hundred Fifty Seven"]
[8858,"Eight Thousand Eight Hundred Fifty Eight"]
[8859,"Eight Thousand Eight Hundred Fifty Nine"]
[8860,"Eight Thousand Eight Hundred Sixty "]
[8861,"Eight Thousand Eight Hundred Sixty One"]
[8862,"Eight Thousand Eight Hundred Sixty Two"]
[8863,"Eight Thousand Eight Hundred Sixty Three"]
[8864,"Eight Thousand Eight Hundred Sixty Four"]
[8865,"Eight Thousand Eight Hundred Sixty Five"]
[8866,"Eight Thousand Eight Hundred Sixty Six"]
[8867,"Eight Thousand Eight Hundred Sixty Seven"]
[8868,"Eight Thousand Eight Hundred Sixty Eight"]
[8869,"Eight Thousand Eight Hundred Sixty Nine"]
[8870,"Eight Thousand Eight Hundred Seventy "]
[8871,"Eight Thousand Eight Hundred Seventy One"]
[8872,"Eight Thousand Eight Hundred Seventy Two"]
[8873,"Eight Thousand Eight Hundred Seventy Three"]
[8874,"Eight Thousand Eight Hundred Seventy Four"]
[8875,"Eight Thousand Eight Hundred Seventy Five"]
[8876,"Eight Thousand Eight Hundred Seventy Six"]
[8877,"Eight Thousand Eight Hundred Seventy Seven"]
[8878,"Eight Thousand Eight Hundred Seventy Eight"]
[8879,"Eight Thousand Eight Hundred Seventy Nine"]
[8880,"Eight Thousand Eight Hundred Eighty "]
[8881,"Eight Thousand Eight Hundred Eighty One"]
[8882,"Eight Thousand Eight Hundred Eighty Two"]
[8883,"Eight Thousand Eight Hundred Eighty Three"]
[8884,"Eight Thousand Eight Hundred Eighty Four"]
[8885,"Eight Thousand Eight Hundred Eighty Five"]
[8886,"Eight Thousand Eight Hundred Eighty Six"]
[8887,"Eight Thousand Eight Hundred Eighty Seven"]
[8888,"Eight Thousand Eight Hundred Eighty Eight"]
[8889,"Eight Thousand Eight Hundred Eighty Nine"]
[8890,"Eight Thousand Eight Hundred Ninety "]
[8891,"Eight Thousand Eight Hundred Ninety One"]
[8892,{"$f":"spellnumber(A8894)","v":"Eight Thousand Eight Hundred Ninety Two"}]
[8893,"Eight Thousand Eight Hundred Ninety Three"]
[8894,"Eight Thousand Eight Hundred Ninety Four"]
[8895,"Eight Thousand Eight Hundred Ninety Five"]
[8896,"Eight Thousand Eight Hundred Ninety Six"]
[8897,"Eight Thousand Eight Hundred Ninety Seven"]
[8898,"Eight Thousand Eight Hundred Ninety Eight"]
[8899,"Eight Thousand Eight Hundred Ninety Nine"]
[8900,"Eight Thousand Nine Hundred "]
[8901,"Eight Thousand Nine Hundred One"]
[8902,"Eight Thousand Nine Hundred Two"]
[8903,"Eight Thousand Nine Hundred Three"]
[8904,"Eight Thousand Nine Hundred Four"]
[8905,"Eight Thousand Nine Hundred Five"]
[8906,"Eight Thousand Nine Hundred Six"]
[8907,"Eight Thousand Nine Hundred Seven"]
[8908,"Eight Thousand Nine Hundred Eight"]
[8909,"Eight Thousand Nine Hundred Nine"]
[8910,"Eight Thousand Nine Hundred Ten"]
[8911,"Eight Thousand Nine Hundred Eleven"]
[8912,"Eight Thousand Nine Hundred Twelve"]
[8913,"Eight Thousand Nine Hundred Thirteen"]
[8914,"Eight Thousand Nine Hundred Fourteen"]
[8915,"Eight Thousand Nine Hundred Fifteen"]
[8916,"Eight Thousand Nine Hundred Sixteen"]
[8917,"Eight Thousand Nine Hundred Seventeen"]
[8918,"Eight Thousand Nine Hundred Eighteen"]
[8919,"Eight Thousand Nine Hundred Nineteen"]
[8920,"Eight Thousand Nine Hundred Twenty "]
[8921,"Eight Thousand Nine Hundred Twenty One"]
[8922,"Eight Thousand Nine Hundred Twenty Two"]
[8923,"Eight Thousand Nine Hundred Twenty Three"]
[8924,"Eight Thousand Nine Hundred Twenty Four"]
[8925,"Eight Thousand Nine Hundred Twenty Five"]
[8926,"Eight Thousand Nine Hundred Twenty Six"]
[8927,"Eight Thousand Nine Hundred Twenty Seven"]
[8928,"Eight Thousand Nine Hundred Twenty Eight"]
[8929,"Eight Thousand Nine Hundred Twenty Nine"]
[8930,"Eight Thousand Nine Hundred Thirty "]
[8931,"Eight Thousand Nine Hundred Thirty One"]
[8932,"Eight Thousand Nine Hundred Thirty Two"]
[8933,"Eight Thousand Nine Hundred Thirty Three"]
[8934,"Eight Thousand Nine Hundred Thirty Four"]
[8935,"Eight Thousand Nine Hundred Thirty Five"]
[8936,"Eight Thousand Nine Hundred Thirty Six"]
[8937,"Eight Thousand Nine Hundred Thirty Seven"]
[8938,"Eight Thousand Nine Hundred Thirty Eight"]
[8939,"Eight Thousand Nine Hundred Thirty Nine"]
[8940,"Eight Thousand Nine Hundred Forty "]
[8941,"Eight Thousand Nine Hundred Forty One"]
[8942,"Eight Thousand Nine Hundred Forty Two"]
[8943,"Eight Thousand Nine Hundred Forty Three"]
[8944,"Eight Thousand Nine Hundred Forty Four"]
[8945,"Eight Thousand Nine Hundred Forty Five"]
[8946,"Eight Thousand Nine Hundred Forty Six"]
[8947,"Eight Thousand Nine Hundred Forty Seven"]
[8948,"Eight Thousand Nine Hundred Forty Eight"]
[8949,"Eight Thousand Nine Hundred Forty Nine"]
[8950,"Eight Thousand Nine Hundred Fifty "]
[8951,"Eight Thousand Nine Hundred Fifty One"]
[8952,"Eight Thousand Nine Hundred Fifty Two"]
[8953,"Eight Thousand Nine Hundred Fifty Three"]
[8954,"Eight Thousand Nine Hundred Fifty Four"]
[8955,"Eight Thousand Nine Hundred Fifty Five"]
[8956,{"$f":"spellnumber(A8958)","v":"Eight Thousand Nine Hundred Fifty Six"}]
[8957,"Eight Thousand Nine Hundred Fifty Seven"]
[8958,"Eight Thousand Nine Hundred Fifty Eight"]
[8959,"Eight Thousand Nine Hundred Fifty Nine"]
[8960,"Eight Thousand Nine Hundred Sixty "]
[8961,"Eight Thousand Nine Hundred Sixty One"]
[8962,"Eight Thousand Nine Hundred Sixty Two"]
[8963,"Eight Thousand Nine Hundred Sixty Three"]
[8964,"Eight Thousand Nine Hundred Sixty Four"]
[8965,"Eight Thousand Nine Hundred Sixty Five"]
[8966,"Eight Thousand Nine Hundred Sixty Six"]
[8967,"Eight Thousand Nine Hundred Sixty Seven"]
[8968,"Eight Thousand Nine Hundred Sixty Eight"]
[8969,"Eight Thousand Nine Hundred Sixty Nine"]
[8970,"Eight Thousand Nine Hundred Seventy "]
[8971,"Eight Thousand Nine Hundred Seventy One"]
[8972,"Eight Thousand Nine Hundred Seventy Two"]
[8973,"Eight Thousand Nine Hundred Seventy Three"]
[8974,"Eight Thousand Nine Hundred Seventy Four"]
[8975,"Eight Thousand Nine Hundred Seventy Five"]
[8976,"Eight Thousand Nine Hundred Seventy Six"]
[8977,"Eight Thousand Nine Hundred Seventy Seven"]
[8978,"Eight Thousand Nine Hundred Seventy Eight"]
[8979,"Eight Thousand Nine Hundred Seventy Nine"]
[8980,"Eight Thousand Nine Hundred Eighty "]
[8981,"Eight Thousand Nine Hundred Eighty One"]
[8982,"Eight Thousand Nine Hundred Eighty Two"]
[8983,"Eight Thousand Nine Hundred Eighty Three"]
[8984,"Eight Thousand Nine Hundred Eighty Four"]
[8985,"Eight Thousand Nine Hundred Eighty Five"]
[8986,"Eight Thousand Nine Hundred Eighty Six"]
[8987,"Eight Thousand Nine Hundred Eighty Seven"]
[8988,"Eight Thousand Nine Hundred Eighty Eight"]
[8989,"Eight Thousand Nine Hundred Eighty Nine"]
[8990,"Eight Thousand Nine Hundred Ninety "]
[8991,"Eight Thousand Nine Hundred Ninety One"]
[8992,"Eight Thousand Nine Hundred Ninety Two"]
[8993,"Eight Thousand Nine Hundred Ninety Three"]
[8994,"Eight Thousand Nine Hundred Ninety Four"]
[8995,"Eight Thousand Nine Hundred Ninety Five"]
[8996,"Eight Thousand Nine Hundred Ninety Six"]
[8997,"Eight Thousand Nine Hundred Ninety Seven"]
[8998,"Eight Thousand Nine Hundred Ninety Eight"]
[8999,"Eight Thousand Nine Hundred Ninety Nine"]
[9000,"Nine Thousand "]
[9001,"Nine Thousand One"]
[9002,"Nine Thousand Two"]
[9003,"Nine Thousand Three"]
[9004,"Nine Thousand Four"]
[9005,"Nine Thousand Five"]
[9006,"Nine Thousand Six"]
[9007,"Nine Thousand Seven"]
[9008,"Nine Thousand Eight"]
[9009,"Nine Thousand Nine"]
[9010,"Nine Thousand Ten"]
[9011,"Nine Thousand Eleven"]
[9012,"Nine Thousand Twelve"]
[9013,"Nine Thousand Thirteen"]
[9014,"Nine Thousand Fourteen"]
[9015,"Nine Thousand Fifteen"]
[9016,"Nine Thousand Sixteen"]
[9017,"Nine Thousand Seventeen"]
[9018,"Nine Thousand Eighteen"]
[9019,"Nine Thousand Nineteen"]
[9020,{"$f":"spellnumber(A9022)","v":"Nine Thousand Twenty "}]
[9021,"Nine Thousand Twenty One"]
[9022,"Nine Thousand Twenty Two"]
[9023,"Nine Thousand Twenty Three"]
[9024,"Nine Thousand Twenty Four"]
[9025,"Nine Thousand Twenty Five"]
[9026,"Nine Thousand Twenty Six"]
[9027,"Nine Thousand Twenty Seven"]
[9028,"Nine Thousand Twenty Eight"]
[9029,"Nine Thousand Twenty Nine"]
[9030,"Nine Thousand Thirty "]
[9031,"Nine Thousand Thirty One"]
[9032,"Nine Thousand Thirty Two"]
[9033,"Nine Thousand Thirty Three"]
[9034,"Nine Thousand Thirty Four"]
[9035,"Nine Thousand Thirty Five"]
[9036,"Nine Thousand Thirty Six"]
[9037,"Nine Thousand Thirty Seven"]
[9038,"Nine Thousand Thirty Eight"]
[9039,"Nine Thousand Thirty Nine"]
[9040,"Nine Thousand Forty "]
[9041,"Nine Thousand Forty One"]
[9042,"Nine Thousand Forty Two"]
[9043,"Nine Thousand Forty Three"]
[9044,"Nine Thousand Forty Four"]
[9045,"Nine Thousand Forty Five"]
[9046,"Nine Thousand Forty Six"]
[9047,"Nine Thousand Forty Seven"]
[9048,"Nine Thousand Forty Eight"]
[9049,"Nine Thousand Forty Nine"]
[9050,"Nine Thousand Fifty "]
[9051,"Nine Thousand Fifty One"]
[9052,"Nine Thousand Fifty Two"]
[9053,"Nine Thousand Fifty Three"]
[9054,"Nine Thousand Fifty Four"]
[9055,"Nine Thousand Fifty Five"]
[9056,"Nine Thousand Fifty Six"]
[9057,"Nine Thousand Fifty Seven"]
[9058,"Nine Thousand Fifty Eight"]
[9059,"Nine Thousand Fifty Nine"]
[9060,"Nine Thousand Sixty "]
[9061,"Nine Thousand Sixty One"]
[9062,"Nine Thousand Sixty Two"]
[9063,"Nine Thousand Sixty Three"]
[9064,"Nine Thousand Sixty Four"]
[9065,"Nine Thousand Sixty Five"]
[9066,"Nine Thousand Sixty Six"]
[9067,"Nine Thousand Sixty Seven"]
[9068,"Nine Thousand Sixty Eight"]
[9069,"Nine Thousand Sixty Nine"]
[9070,"Nine Thousand Seventy "]
[9071,"Nine Thousand Seventy One"]
[9072,"Nine Thousand Seventy Two"]
[9073,"Nine Thousand Seventy Three"]
[9074,"Nine Thousand Seventy Four"]
[9075,"Nine Thousand Seventy Five"]
[9076,"Nine Thousand Seventy Six"]
[9077,"Nine Thousand Seventy Seven"]
[9078,"Nine Thousand Seventy Eight"]
[9079,"Nine Thousand Seventy Nine"]
[9080,"Nine Thousand Eighty "]
[9081,"Nine Thousand Eighty One"]
[9082,"Nine Thousand Eighty Two"]
[9083,"Nine Thousand Eighty Three"]
[9084,{"$f":"spellnumber(A9086)","v":"Nine Thousand Eighty Four"}]
[9085,"Nine Thousand Eighty Five"]
[9086,"Nine Thousand Eighty Six"]
[9087,"Nine Thousand Eighty Seven"]
[9088,"Nine Thousand Eighty Eight"]
[9089,"Nine Thousand Eighty Nine"]
[9090,"Nine Thousand Ninety "]
[9091,"Nine Thousand Ninety One"]
[9092,"Nine Thousand Ninety Two"]
[9093,"Nine Thousand Ninety Three"]
[9094,"Nine Thousand Ninety Four"]
[9095,"Nine Thousand Ninety Five"]
[9096,"Nine Thousand Ninety Six"]
[9097,"Nine Thousand Ninety Seven"]
[9098,"Nine Thousand Ninety Eight"]
[9099,"Nine Thousand Ninety Nine"]
[9100,"Nine Thousand One Hundred "]
[9101,"Nine Thousand One Hundred One"]
[9102,"Nine Thousand One Hundred Two"]
[9103,"Nine Thousand One Hundred Three"]
[9104,"Nine Thousand One Hundred Four"]
[9105,"Nine Thousand One Hundred Five"]
[9106,"Nine Thousand One Hundred Six"]
[9107,"Nine Thousand One Hundred Seven"]
[9108,"Nine Thousand One Hundred Eight"]
[9109,"Nine Thousand One Hundred Nine"]
[9110,"Nine Thousand One Hundred Ten"]
[9111,"Nine Thousand One Hundred Eleven"]
[9112,"Nine Thousand One Hundred Twelve"]
[9113,"Nine Thousand One Hundred Thirteen"]
[9114,"Nine Thousand One Hundred Fourteen"]
[9115,"Nine Thousand One Hundred Fifteen"]
[9116,"Nine Thousand One Hundred Sixteen"]
[9117,"Nine Thousand One Hundred Seventeen"]
[9118,"Nine Thousand One Hundred Eighteen"]
[9119,"Nine Thousand One Hundred Nineteen"]
[9120,"Nine Thousand One Hundred Twenty "]
[9121,"Nine Thousand One Hundred Twenty One"]
[9122,"Nine Thousand One Hundred Twenty Two"]
[9123,"Nine Thousand One Hundred Twenty Three"]
[9124,"Nine Thousand One Hundred Twenty Four"]
[9125,"Nine Thousand One Hundred Twenty Five"]
[9126,"Nine Thousand One Hundred Twenty Six"]
[9127,"Nine Thousand One Hundred Twenty Seven"]
[9128,"Nine Thousand One Hundred Twenty Eight"]
[9129,"Nine Thousand One Hundred Twenty Nine"]
[9130,"Nine Thousand One Hundred Thirty "]
[9131,"Nine Thousand One Hundred Thirty One"]
[9132,"Nine Thousand One Hundred Thirty Two"]
[9133,"Nine Thousand One Hundred Thirty Three"]
[9134,"Nine Thousand One Hundred Thirty Four"]
[9135,"Nine Thousand One Hundred Thirty Five"]
[9136,"Nine Thousand One Hundred Thirty Six"]
[9137,"Nine Thousand One Hundred Thirty Seven"]
[9138,"Nine Thousand One Hundred Thirty Eight"]
[9139,"Nine Thousand One Hundred Thirty Nine"]
[9140,"Nine Thousand One Hundred Forty "]
[9141,"Nine Thousand One Hundred Forty One"]
[9142,"Nine Thousand One Hundred Forty Two"]
[9143,"Nine Thousand One Hundred Forty Three"]
[9144,"Nine Thousand One Hundred Forty Four"]
[9145,"Nine Thousand One Hundred Forty Five"]
[9146,"Nine Thousand One Hundred Forty Six"]
[9147,"Nine Thousand One Hundred Forty Seven"]
[9148,{"$f":"spellnumber(A9150)","v":"Nine Thousand One Hundred Forty Eight"}]
[9149,"Nine Thousand One Hundred Forty Nine"]
[9150,"Nine Thousand One Hundred Fifty "]
[9151,"Nine Thousand One Hundred Fifty One"]
[9152,"Nine Thousand One Hundred Fifty Two"]
[9153,"Nine Thousand One Hundred Fifty Three"]
[9154,"Nine Thousand One Hundred Fifty Four"]
[9155,"Nine Thousand One Hundred Fifty Five"]
[9156,"Nine Thousand One Hundred Fifty Six"]
[9157,"Nine Thousand One Hundred Fifty Seven"]
[9158,"Nine Thousand One Hundred Fifty Eight"]
[9159,"Nine Thousand One Hundred Fifty Nine"]
[9160,"Nine Thousand One Hundred Sixty "]
[9161,"Nine Thousand One Hundred Sixty One"]
[9162,"Nine Thousand One Hundred Sixty Two"]
[9163,"Nine Thousand One Hundred Sixty Three"]
[9164,"Nine Thousand One Hundred Sixty Four"]
[9165,"Nine Thousand One Hundred Sixty Five"]
[9166,"Nine Thousand One Hundred Sixty Six"]
[9167,"Nine Thousand One Hundred Sixty Seven"]
[9168,"Nine Thousand One Hundred Sixty Eight"]
[9169,"Nine Thousand One Hundred Sixty Nine"]
[9170,"Nine Thousand One Hundred Seventy "]
[9171,"Nine Thousand One Hundred Seventy One"]
[9172,"Nine Thousand One Hundred Seventy Two"]
[9173,"Nine Thousand One Hundred Seventy Three"]
[9174,"Nine Thousand One Hundred Seventy Four"]
[9175,"Nine Thousand One Hundred Seventy Five"]
[9176,"Nine Thousand One Hundred Seventy Six"]
[9177,"Nine Thousand One Hundred Seventy Seven"]
[9178,"Nine Thousand One Hundred Seventy Eight"]
[9179,"Nine Thousand One Hundred Seventy Nine"]
[9180,"Nine Thousand One Hundred Eighty "]
[9181,"Nine Thousand One Hundred Eighty One"]
[9182,"Nine Thousand One Hundred Eighty Two"]
[9183,"Nine Thousand One Hundred Eighty Three"]
[9184,"Nine Thousand One Hundred Eighty Four"]
[9185,"Nine Thousand One Hundred Eighty Five"]
[9186,"Nine Thousand One Hundred Eighty Six"]
[9187,"Nine Thousand One Hundred Eighty Seven"]
[9188,"Nine Thousand One Hundred Eighty Eight"]
[9189,"Nine Thousand One Hundred Eighty Nine"]
[9190,"Nine Thousand One Hundred Ninety "]
[9191,"Nine Thousand One Hundred Ninety One"]
[9192,"Nine Thousand One Hundred Ninety Two"]
[9193,"Nine Thousand One Hundred Ninety Three"]
[9194,"Nine Thousand One Hundred Ninety Four"]
[9195,"Nine Thousand One Hundred Ninety Five"]
[9196,"Nine Thousand One Hundred Ninety Six"]
[9197,"Nine Thousand One Hundred Ninety Seven"]
[9198,"Nine Thousand One Hundred Ninety Eight"]
[9199,"Nine Thousand One Hundred Ninety Nine"]
[9200,"Nine Thousand Two Hundred "]
[9201,"Nine Thousand Two Hundred One"]
[9202,"Nine Thousand Two Hundred Two"]
[9203,"Nine Thousand Two Hundred Three"]
[9204,"Nine Thousand Two Hundred Four"]
[9205,"Nine Thousand Two Hundred Five"]
[9206,"Nine Thousand Two Hundred Six"]
[9207,"Nine Thousand Two Hundred Seven"]
[9208,"Nine Thousand Two Hundred Eight"]
[9209,"Nine Thousand Two Hundred Nine"]
[9210,"Nine Thousand Two Hundred Ten"]
[9211,"Nine Thousand Two Hundred Eleven"]
[9212,{"$f":"spellnumber(A9214)","v":"Nine Thousand Two Hundred Twelve"}]
[9213,"Nine Thousand Two Hundred Thirteen"]
[9214,"Nine Thousand Two Hundred Fourteen"]
[9215,"Nine Thousand Two Hundred Fifteen"]
[9216,"Nine Thousand Two Hundred Sixteen"]
[9217,"Nine Thousand Two Hundred Seventeen"]
[9218,"Nine Thousand Two Hundred Eighteen"]
[9219,"Nine Thousand Two Hundred Nineteen"]
[9220,"Nine Thousand Two Hundred Twenty "]
[9221,"Nine Thousand Two Hundred Twenty One"]
[9222,"Nine Thousand Two Hundred Twenty Two"]
[9223,"Nine Thousand Two Hundred Twenty Three"]
[9224,"Nine Thousand Two Hundred Twenty Four"]
[9225,"Nine Thousand Two Hundred Twenty Five"]
[9226,"Nine Thousand Two Hundred Twenty Six"]
[9227,"Nine Thousand Two Hundred Twenty Seven"]
[9228,"Nine Thousand Two Hundred Twenty Eight"]
[9229,"Nine Thousand Two Hundred Twenty Nine"]
[9230,"Nine Thousand Two Hundred Thirty "]
[9231,"Nine Thousand Two Hundred Thirty One"]
[9232,"Nine Thousand Two Hundred Thirty Two"]
[9233,"Nine Thousand Two Hundred Thirty Three"]
[9234,"Nine Thousand Two Hundred Thirty Four"]
[9235,"Nine Thousand Two Hundred Thirty Five"]
[9236,"Nine Thousand Two Hundred Thirty Six"]
[9237,"Nine Thousand Two Hundred Thirty Seven"]
[9238,"Nine Thousand Two Hundred Thirty Eight"]
[9239,"Nine Thousand Two Hundred Thirty Nine"]
[9240,"Nine Thousand Two Hundred Forty "]
[9241,"Nine Thousand Two Hundred Forty One"]
[9242,"Nine Thousand Two Hundred Forty Two"]
[9243,"Nine Thousand Two Hundred Forty Three"]
[9244,"Nine Thousand Two Hundred Forty Four"]
[9245,"Nine Thousand Two Hundred Forty Five"]
[9246,"Nine Thousand Two Hundred Forty Six"]
[9247,"Nine Thousand Two Hundred Forty Seven"]
[9248,"Nine Thousand Two Hundred Forty Eight"]
[9249,"Nine Thousand Two Hundred Forty Nine"]
[9250,"Nine Thousand Two Hundred Fifty "]
[9251,"Nine Thousand Two Hundred Fifty One"]
[9252,"Nine Thousand Two Hundred Fifty Two"]
[9253,"Nine Thousand Two Hundred Fifty Three"]
[9254,"Nine Thousand Two Hundred Fifty Four"]
[9255,"Nine Thousand Two Hundred Fifty Five"]
[9256,"Nine Thousand Two Hundred Fifty Six"]
[9257,"Nine Thousand Two Hundred Fifty Seven"]
[9258,"Nine Thousand Two Hundred Fifty Eight"]
[9259,"Nine Thousand Two Hundred Fifty Nine"]
[9260,"Nine Thousand Two Hundred Sixty "]
[9261,"Nine Thousand Two Hundred Sixty One"]
[9262,"Nine Thousand Two Hundred Sixty Two"]
[9263,"Nine Thousand Two Hundred Sixty Three"]
[9264,"Nine Thousand Two Hundred Sixty Four"]
[9265,"Nine Thousand Two Hundred Sixty Five"]
[9266,"Nine Thousand Two Hundred Sixty Six"]
[9267,"Nine Thousand Two Hundred Sixty Seven"]
[9268,"Nine Thousand Two Hundred Sixty Eight"]
[9269,"Nine Thousand Two Hundred Sixty Nine"]
[9270,"Nine Thousand Two Hundred Seventy "]
[9271,"Nine Thousand Two Hundred Seventy One"]
[9272,"Nine Thousand Two Hundred Seventy Two"]
[9273,"Nine Thousand Two Hundred Seventy Three"]
[9274,"Nine Thousand Two Hundred Seventy Four"]
[9275,"Nine Thousand Two Hundred Seventy Five"]
[9276,{"$f":"spellnumber(A9278)","v":"Nine Thousand Two Hundred Seventy Six"}]
[9277,"Nine Thousand Two Hundred Seventy Seven"]
[9278,"Nine Thousand Two Hundred Seventy Eight"]
[9279,"Nine Thousand Two Hundred Seventy Nine"]
[9280,"Nine Thousand Two Hundred Eighty "]
[9281,"Nine Thousand Two Hundred Eighty One"]
[9282,"Nine Thousand Two Hundred Eighty Two"]
[9283,"Nine Thousand Two Hundred Eighty Three"]
[9284,"Nine Thousand Two Hundred Eighty Four"]
[9285,"Nine Thousand Two Hundred Eighty Five"]
[9286,"Nine Thousand Two Hundred Eighty Six"]
[9287,"Nine Thousand Two Hundred Eighty Seven"]
[9288,"Nine Thousand Two Hundred Eighty Eight"]
[9289,"Nine Thousand Two Hundred Eighty Nine"]
[9290,"Nine Thousand Two Hundred Ninety "]
[9291,"Nine Thousand Two Hundred Ninety One"]
[9292,"Nine Thousand Two Hundred Ninety Two"]
[9293,"Nine Thousand Two Hundred Ninety Three"]
[9294,"Nine Thousand Two Hundred Ninety Four"]
[9295,"Nine Thousand Two Hundred Ninety Five"]
[9296,"Nine Thousand Two Hundred Ninety Six"]
[9297,"Nine Thousand Two Hundred Ninety Seven"]
[9298,"Nine Thousand Two Hundred Ninety Eight"]
[9299,"Nine Thousand Two Hundred Ninety Nine"]
[9300,"Nine Thousand Three Hundred "]
[9301,"Nine Thousand Three Hundred One"]
[9302,"Nine Thousand Three Hundred Two"]
[9303,"Nine Thousand Three Hundred Three"]
[9304,"Nine Thousand Three Hundred Four"]
[9305,"Nine Thousand Three Hundred Five"]
[9306,"Nine Thousand Three Hundred Six"]
[9307,"Nine Thousand Three Hundred Seven"]
[9308,"Nine Thousand Three Hundred Eight"]
[9309,"Nine Thousand Three Hundred Nine"]
[9310,"Nine Thousand Three Hundred Ten"]
[9311,"Nine Thousand Three Hundred Eleven"]
[9312,"Nine Thousand Three Hundred Twelve"]
[9313,"Nine Thousand Three Hundred Thirteen"]
[9314,"Nine Thousand Three Hundred Fourteen"]
[9315,"Nine Thousand Three Hundred Fifteen"]
[9316,"Nine Thousand Three Hundred Sixteen"]
[9317,"Nine Thousand Three Hundred Seventeen"]
[9318,"Nine Thousand Three Hundred Eighteen"]
[9319,"Nine Thousand Three Hundred Nineteen"]
[9320,"Nine Thousand Three Hundred Twenty "]
[9321,"Nine Thousand Three Hundred Twenty One"]
[9322,"Nine Thousand Three Hundred Twenty Two"]
[9323,"Nine Thousand Three Hundred Twenty Three"]
[9324,"Nine Thousand Three Hundred Twenty Four"]
[9325,"Nine Thousand Three Hundred Twenty Five"]
[9326,"Nine Thousand Three Hundred Twenty Six"]
[9327,"Nine Thousand Three Hundred Twenty Seven"]
[9328,"Nine Thousand Three Hundred Twenty Eight"]
[9329,"Nine Thousand Three Hundred Twenty Nine"]
[9330,"Nine Thousand Three Hundred Thirty "]
[9331,"Nine Thousand Three Hundred Thirty One"]
[9332,"Nine Thousand Three Hundred Thirty Two"]
[9333,"Nine Thousand Three Hundred Thirty Three"]
[9334,"Nine Thousand Three Hundred Thirty Four"]
[9335,"Nine Thousand Three Hundred Thirty Five"]
[9336,"Nine Thousand Three Hundred Thirty Six"]
[9337,"Nine Thousand Three Hundred Thirty Seven"]
[9338,"Nine Thousand Three Hundred Thirty Eight"]
[9339,"Nine Thousand Three Hundred Thirty Nine"]
[9340,{"$f":"spellnumber(A9342)","v":"Nine Thousand Three Hundred Forty "}]
[9341,"Nine Thousand Three Hundred Forty One"]
[9342,"Nine Thousand Three Hundred Forty Two"]
[9343,"Nine Thousand Three Hundred Forty Three"]
[9344,"Nine Thousand Three Hundred Forty Four"]
[9345,"Nine Thousand Three Hundred Forty Five"]
[9346,"Nine Thousand Three Hundred Forty Six"]
[9347,"Nine Thousand Three Hundred Forty Seven"]
[9348,"Nine Thousand Three Hundred Forty Eight"]
[9349,"Nine Thousand Three Hundred Forty Nine"]
[9350,"Nine Thousand Three Hundred Fifty "]
[9351,"Nine Thousand Three Hundred Fifty One"]
[9352,"Nine Thousand Three Hundred Fifty Two"]
[9353,"Nine Thousand Three Hundred Fifty Three"]
[9354,"Nine Thousand Three Hundred Fifty Four"]
[9355,"Nine Thousand Three Hundred Fifty Five"]
[9356,"Nine Thousand Three Hundred Fifty Six"]
[9357,"Nine Thousand Three Hundred Fifty Seven"]
[9358,"Nine Thousand Three Hundred Fifty Eight"]
[9359,"Nine Thousand Three Hundred Fifty Nine"]
[9360,"Nine Thousand Three Hundred Sixty "]
[9361,"Nine Thousand Three Hundred Sixty One"]
[9362,"Nine Thousand Three Hundred Sixty Two"]
[9363,"Nine Thousand Three Hundred Sixty Three"]
[9364,"Nine Thousand Three Hundred Sixty Four"]
[9365,"Nine Thousand Three Hundred Sixty Five"]
[9366,"Nine Thousand Three Hundred Sixty Six"]
[9367,"Nine Thousand Three Hundred Sixty Seven"]
[9368,"Nine Thousand Three Hundred Sixty Eight"]
[9369,"Nine Thousand Three Hundred Sixty Nine"]
[9370,"Nine Thousand Three Hundred Seventy "]
[9371,"Nine Thousand Three Hundred Seventy One"]
[9372,"Nine Thousand Three Hundred Seventy Two"]
[9373,"Nine Thousand Three Hundred Seventy Three"]
[9374,"Nine Thousand Three Hundred Seventy Four"]
[9375,"Nine Thousand Three Hundred Seventy Five"]
[9376,"Nine Thousand Three Hundred Seventy Six"]
[9377,"Nine Thousand Three Hundred Seventy Seven"]
[9378,"Nine Thousand Three Hundred Seventy Eight"]
[9379,"Nine Thousand Three Hundred Seventy Nine"]
[9380,"Nine Thousand Three Hundred Eighty "]
[9381,"Nine Thousand Three Hundred Eighty One"]
[9382,"Nine Thousand Three Hundred Eighty Two"]
[9383,"Nine Thousand Three Hundred Eighty Three"]
[9384,"Nine Thousand Three Hundred Eighty Four"]
[9385,"Nine Thousand Three Hundred Eighty Five"]
[9386,"Nine Thousand Three Hundred Eighty Six"]
[9387,"Nine Thousand Three Hundred Eighty Seven"]
[9388,"Nine Thousand Three Hundred Eighty Eight"]
[9389,"Nine Thousand Three Hundred Eighty Nine"]
[9390,"Nine Thousand Three Hundred Ninety "]
[9391,"Nine Thousand Three Hundred Ninety One"]
[9392,"Nine Thousand Three Hundred Ninety Two"]
[9393,"Nine Thousand Three Hundred Ninety Three"]
[9394,"Nine Thousand Three Hundred Ninety Four"]
[9395,"Nine Thousand Three Hundred Ninety Five"]
[9396,"Nine Thousand Three Hundred Ninety Six"]
[9397,"Nine Thousand Three Hundred Ninety Seven"]
[9398,"Nine Thousand Three Hundred Ninety Eight"]
[9399,"Nine Thousand Three Hundred Ninety Nine"]
[9400,"Nine Thousand Four Hundred "]
[9401,"Nine Thousand Four Hundred One"]
[9402,"Nine Thousand Four Hundred Two"]
[9403,"Nine Thousand Four Hundred Three"]
[9404,{"$f":"spellnumber(A9406)","v":"Nine Thousand Four Hundred Four"}]
[9405,"Nine Thousand Four Hundred Five"]
[9406,"Nine Thousand Four Hundred Six"]
[9407,"Nine Thousand Four Hundred Seven"]
[9408,"Nine Thousand Four Hundred Eight"]
[9409,"Nine Thousand Four Hundred Nine"]
[9410,"Nine Thousand Four Hundred Ten"]
[9411,"Nine Thousand Four Hundred Eleven"]
[9412,"Nine Thousand Four Hundred Twelve"]
[9413,"Nine Thousand Four Hundred Thirteen"]
[9414,"Nine Thousand Four Hundred Fourteen"]
[9415,"Nine Thousand Four Hundred Fifteen"]
[9416,"Nine Thousand Four Hundred Sixteen"]
[9417,"Nine Thousand Four Hundred Seventeen"]
[9418,"Nine Thousand Four Hundred Eighteen"]
[9419,"Nine Thousand Four Hundred Nineteen"]
[9420,"Nine Thousand Four Hundred Twenty "]
[9421,"Nine Thousand Four Hundred Twenty One"]
[9422,"Nine Thousand Four Hundred Twenty Two"]
[9423,"Nine Thousand Four Hundred Twenty Three"]
[9424,"Nine Thousand Four Hundred Twenty Four"]
[9425,"Nine Thousand Four Hundred Twenty Five"]
[9426,"Nine Thousand Four Hundred Twenty Six"]
[9427,"Nine Thousand Four Hundred Twenty Seven"]
[9428,"Nine Thousand Four Hundred Twenty Eight"]
[9429,"Nine Thousand Four Hundred Twenty Nine"]
[9430,"Nine Thousand Four Hundred Thirty "]
[9431,"Nine Thousand Four Hundred Thirty One"]
[9432,"Nine Thousand Four Hundred Thirty Two"]
[9433,"Nine Thousand Four Hundred Thirty Three"]
[9434,"Nine Thousand Four Hundred Thirty Four"]
[9435,"Nine Thousand Four Hundred Thirty Five"]
[9436,"Nine Thousand Four Hundred Thirty Six"]
[9437,"Nine Thousand Four Hundred Thirty Seven"]
[9438,"Nine Thousand Four Hundred Thirty Eight"]
[9439,"Nine Thousand Four Hundred Thirty Nine"]
[9440,"Nine Thousand Four Hundred Forty "]
[9441,"Nine Thousand Four Hundred Forty One"]
[9442,"Nine Thousand Four Hundred Forty Two"]
[9443,"Nine Thousand Four Hundred Forty Three"]
[9444,"Nine Thousand Four Hundred Forty Four"]
[9445,"Nine Thousand Four Hundred Forty Five"]
[9446,"Nine Thousand Four Hundred Forty Six"]
[9447,"Nine Thousand Four Hundred Forty Seven"]
[9448,"Nine Thousand Four Hundred Forty Eight"]
[9449,"Nine Thousand Four Hundred Forty Nine"]
[9450,"Nine Thousand Four Hundred Fifty "]
[9451,"Nine Thousand Four Hundred Fifty One"]
[9452,"Nine Thousand Four Hundred Fifty Two"]
[9453,"Nine Thousand Four Hundred Fifty Three"]
[9454,"Nine Thousand Four Hundred Fifty Four"]
[9455,"Nine Thousand Four Hundred Fifty Five"]
[9456,"Nine Thousand Four Hundred Fifty Six"]
[9457,"Nine Thousand Four Hundred Fifty Seven"]
[9458,"Nine Thousand Four Hundred Fifty Eight"]
[9459,"Nine Thousand Four Hundred Fifty Nine"]
[9460,"Nine Thousand Four Hundred Sixty "]
[9461,"Nine Thousand Four Hundred Sixty One"]
[9462,"Nine Thousand Four Hundred Sixty Two"]
[9463,"Nine Thousand Four Hundred Sixty Three"]
[9464,"Nine Thousand Four Hundred Sixty Four"]
[9465,"Nine Thousand Four Hundred Sixty Five"]
[9466,"Nine Thousand Four Hundred Sixty Six"]
[9467,"Nine Thousand Four Hundred Sixty Seven"]
[9468,{"$f":"spellnumber(A9470)","v":"Nine Thousand Four Hundred Sixty Eight"}]
[9469,"Nine Thousand Four Hundred Sixty Nine"]
[9470,"Nine Thousand Four Hundred Seventy "]
[9471,"Nine Thousand Four Hundred Seventy One"]
[9472,"Nine Thousand Four Hundred Seventy Two"]
[9473,"Nine Thousand Four Hundred Seventy Three"]
[9474,"Nine Thousand Four Hundred Seventy Four"]
[9475,"Nine Thousand Four Hundred Seventy Five"]
[9476,"Nine Thousand Four Hundred Seventy Six"]
[9477,"Nine Thousand Four Hundred Seventy Seven"]
[9478,"Nine Thousand Four Hundred Seventy Eight"]
[9479,"Nine Thousand Four Hundred Seventy Nine"]
[9480,"Nine Thousand Four Hundred Eighty "]
[9481,"Nine Thousand Four Hundred Eighty One"]
[9482,"Nine Thousand Four Hundred Eighty Two"]
[9483,"Nine Thousand Four Hundred Eighty Three"]
[9484,"Nine Thousand Four Hundred Eighty Four"]
[9485,"Nine Thousand Four Hundred Eighty Five"]
[9486,"Nine Thousand Four Hundred Eighty Six"]
[9487,"Nine Thousand Four Hundred Eighty Seven"]
[9488,"Nine Thousand Four Hundred Eighty Eight"]
[9489,"Nine Thousand Four Hundred Eighty Nine"]
[9490,"Nine Thousand Four Hundred Ninety "]
[9491,"Nine Thousand Four Hundred Ninety One"]
[9492,"Nine Thousand Four Hundred Ninety Two"]
[9493,"Nine Thousand Four Hundred Ninety Three"]
[9494,"Nine Thousand Four Hundred Ninety Four"]
[9495,"Nine Thousand Four Hundred Ninety Five"]
[9496,"Nine Thousand Four Hundred Ninety Six"]
[9497,"Nine Thousand Four Hundred Ninety Seven"]
[9498,"Nine Thousand Four Hundred Ninety Eight"]
[9499,"Nine Thousand Four Hundred Ninety Nine"]
[9500,"Nine Thousand Five Hundred "]
[9501,"Nine Thousand Five Hundred One"]
[9502,"Nine Thousand Five Hundred Two"]
[9503,"Nine Thousand Five Hundred Three"]
[9504,"Nine Thousand Five Hundred Four"]
[9505,"Nine Thousand Five Hundred Five"]
[9506,"Nine Thousand Five Hundred Six"]
[9507,"Nine Thousand Five Hundred Seven"]
[9508,"Nine Thousand Five Hundred Eight"]
[9509,"Nine Thousand Five Hundred Nine"]
[9510,"Nine Thousand Five Hundred Ten"]
[9511,"Nine Thousand Five Hundred Eleven"]
[9512,"Nine Thousand Five Hundred Twelve"]
[9513,"Nine Thousand Five Hundred Thirteen"]
[9514,"Nine Thousand Five Hundred Fourteen"]
[9515,"Nine Thousand Five Hundred Fifteen"]
[9516,"Nine Thousand Five Hundred Sixteen"]
[9517,"Nine Thousand Five Hundred Seventeen"]
[9518,"Nine Thousand Five Hundred Eighteen"]
[9519,"Nine Thousand Five Hundred Nineteen"]
[9520,"Nine Thousand Five Hundred Twenty "]
[9521,"Nine Thousand Five Hundred Twenty One"]
[9522,"Nine Thousand Five Hundred Twenty Two"]
[9523,"Nine Thousand Five Hundred Twenty Three"]
[9524,"Nine Thousand Five Hundred Twenty Four"]
[9525,"Nine Thousand Five Hundred Twenty Five"]
[9526,"Nine Thousand Five Hundred Twenty Six"]
[9527,"Nine Thousand Five Hundred Twenty Seven"]
[9528,"Nine Thousand Five Hundred Twenty Eight"]
[9529,"Nine Thousand Five Hundred Twenty Nine"]
[9530,"Nine Thousand Five Hundred Thirty "]
[9531,"Nine Thousand Five Hundred Thirty One"]
[9532,{"$f":"spellnumber(A9534)","v":"Nine Thousand Five Hundred Thirty Two"}]
[9533,"Nine Thousand Five Hundred Thirty Three"]
[9534,"Nine Thousand Five Hundred Thirty Four"]
[9535,"Nine Thousand Five Hundred Thirty Five"]
[9536,"Nine Thousand Five Hundred Thirty Six"]
[9537,"Nine Thousand Five Hundred Thirty Seven"]
[9538,"Nine Thousand Five Hundred Thirty Eight"]
[9539,"Nine Thousand Five Hundred Thirty Nine"]
[9540,"Nine Thousand Five Hundred Forty "]
[9541,"Nine Thousand Five Hundred Forty One"]
[9542,"Nine Thousand Five Hundred Forty Two"]
[9543,"Nine Thousand Five Hundred Forty Three"]
[9544,"Nine Thousand Five Hundred Forty Four"]
[9545,"Nine Thousand Five Hundred Forty Five"]
[9546,"Nine Thousand Five Hundred Forty Six"]
[9547,"Nine Thousand Five Hundred Forty Seven"]
[9548,"Nine Thousand Five Hundred Forty Eight"]
[9549,"Nine Thousand Five Hundred Forty Nine"]
[9550,"Nine Thousand Five Hundred Fifty "]
[9551,"Nine Thousand Five Hundred Fifty One"]
[9552,"Nine Thousand Five Hundred Fifty Two"]
[9553,"Nine Thousand Five Hundred Fifty Three"]
[9554,"Nine Thousand Five Hundred Fifty Four"]
[9555,"Nine Thousand Five Hundred Fifty Five"]
[9556,"Nine Thousand Five Hundred Fifty Six"]
[9557,"Nine Thousand Five Hundred Fifty Seven"]
[9558,"Nine Thousand Five Hundred Fifty Eight"]
[9559,"Nine Thousand Five Hundred Fifty Nine"]
[9560,"Nine Thousand Five Hundred Sixty "]
[9561,"Nine Thousand Five Hundred Sixty One"]
[9562,"Nine Thousand Five Hundred Sixty Two"]
[9563,"Nine Thousand Five Hundred Sixty Three"]
[9564,"Nine Thousand Five Hundred Sixty Four"]
[9565,"Nine Thousand Five Hundred Sixty Five"]
[9566,"Nine Thousand Five Hundred Sixty Six"]
[9567,"Nine Thousand Five Hundred Sixty Seven"]
[9568,"Nine Thousand Five Hundred Sixty Eight"]
[9569,"Nine Thousand Five Hundred Sixty Nine"]
[9570,"Nine Thousand Five Hundred Seventy "]
[9571,"Nine Thousand Five Hundred Seventy One"]
[9572,"Nine Thousand Five Hundred Seventy Two"]
[9573,"Nine Thousand Five Hundred Seventy Three"]
[9574,"Nine Thousand Five Hundred Seventy Four"]
[9575,"Nine Thousand Five Hundred Seventy Five"]
[9576,"Nine Thousand Five Hundred Seventy Six"]
[9577,"Nine Thousand Five Hundred Seventy Seven"]
[9578,"Nine Thousand Five Hundred Seventy Eight"]
[9579,"Nine Thousand Five Hundred Seventy Nine"]
[9580,"Nine Thousand Five Hundred Eighty "]
[9581,"Nine Thousand Five Hundred Eighty One"]
[9582,"Nine Thousand Five Hundred Eighty Two"]
[9583,"Nine Thousand Five Hundred Eighty Three"]
[9584,"Nine Thousand Five Hundred Eighty Four"]
[9585,"Nine Thousand Five Hundred Eighty Five"]
[9586,"Nine Thousand Five Hundred Eighty Six"]
[9587,"Nine Thousand Five Hundred Eighty Seven"]
[9588,"Nine Thousand Five Hundred Eighty Eight"]
[9589,"Nine Thousand Five Hundred Eighty Nine"]
[9590,"Nine Thousand Five Hundred Ninety "]
[9591,"Nine Thousand Five Hundred Ninety One"]
[9592,"Nine Thousand Five Hundred Ninety Two"]
[9593,"Nine Thousand Five Hundred Ninety Three"]
[9594,"Nine Thousand Five Hundred Ninety Four"]
[9595,"Nine Thousand Five Hundred Ninety Five"]
[9596,{"$f":"spellnumber(A9598)","v":"Nine Thousand Five Hundred Ninety Six"}]
[9597,"Nine Thousand Five Hundred Ninety Seven"]
[9598,"Nine Thousand Five Hundred Ninety Eight"]
[9599,"Nine Thousand Five Hundred Ninety Nine"]
[9600,"Nine Thousand Six Hundred "]
[9601,"Nine Thousand Six Hundred One"]
[9602,"Nine Thousand Six Hundred Two"]
[9603,"Nine Thousand Six Hundred Three"]
[9604,"Nine Thousand Six Hundred Four"]
[9605,"Nine Thousand Six Hundred Five"]
[9606,"Nine Thousand Six Hundred Six"]
[9607,"Nine Thousand Six Hundred Seven"]
[9608,"Nine Thousand Six Hundred Eight"]
[9609,"Nine Thousand Six Hundred Nine"]
[9610,"Nine Thousand Six Hundred Ten"]
[9611,"Nine Thousand Six Hundred Eleven"]
[9612,"Nine Thousand Six Hundred Twelve"]
[9613,"Nine Thousand Six Hundred Thirteen"]
[9614,"Nine Thousand Six Hundred Fourteen"]
[9615,"Nine Thousand Six Hundred Fifteen"]
[9616,"Nine Thousand Six Hundred Sixteen"]
[9617,"Nine Thousand Six Hundred Seventeen"]
[9618,"Nine Thousand Six Hundred Eighteen"]
[9619,"Nine Thousand Six Hundred Nineteen"]
[9620,"Nine Thousand Six Hundred Twenty "]
[9621,"Nine Thousand Six Hundred Twenty One"]
[9622,"Nine Thousand Six Hundred Twenty Two"]
[9623,"Nine Thousand Six Hundred Twenty Three"]
[9624,"Nine Thousand Six Hundred Twenty Four"]
[9625,"Nine Thousand Six Hundred Twenty Five"]
[9626,"Nine Thousand Six Hundred Twenty Six"]
[9627,"Nine Thousand Six Hundred Twenty Seven"]
[9628,"Nine Thousand Six Hundred Twenty Eight"]
[9629,"Nine Thousand Six Hundred Twenty Nine"]
[9630,"Nine Thousand Six Hundred Thirty "]
[9631,"Nine Thousand Six Hundred Thirty One"]
[9632,"Nine Thousand Six Hundred Thirty Two"]
[9633,"Nine Thousand Six Hundred Thirty Three"]
[9634,"Nine Thousand Six Hundred Thirty Four"]
[9635,"Nine Thousand Six Hundred Thirty Five"]
[9636,"Nine Thousand Six Hundred Thirty Six"]
[9637,"Nine Thousand Six Hundred Thirty Seven"]
[9638,"Nine Thousand Six Hundred Thirty Eight"]
[9639,"Nine Thousand Six Hundred Thirty Nine"]
[9640,"Nine Thousand Six Hundred Forty "]
[9641,"Nine Thousand Six Hundred Forty One"]
[9642,"Nine Thousand Six Hundred Forty Two"]
[9643,"Nine Thousand Six Hundred Forty Three"]
[9644,"Nine Thousand Six Hundred Forty Four"]
[9645,"Nine Thousand Six Hundred Forty Five"]
[9646,"Nine Thousand Six Hundred Forty Six"]
[9647,"Nine Thousand Six Hundred Forty Seven"]
[9648,"Nine Thousand Six Hundred Forty Eight"]
[9649,"Nine Thousand Six Hundred Forty Nine"]
[9650,"Nine Thousand Six Hundred Fifty "]
[9651,"Nine Thousand Six Hundred Fifty One"]
[9652,"Nine Thousand Six Hundred Fifty Two"]
[9653,"Nine Thousand Six Hundred Fifty Three"]
[9654,"Nine Thousand Six Hundred Fifty Four"]
[9655,"Nine Thousand Six Hundred Fifty Five"]
[9656,"Nine Thousand Six Hundred Fifty Six"]
[9657,"Nine Thousand Six Hundred Fifty Seven"]
[9658,"Nine Thousand Six Hundred Fifty Eight"]
[9659,"Nine Thousand Six Hundred Fifty Nine"]
[9660,{"$f":"spellnumber(A9662)","v":"Nine Thousand Six Hundred Sixty "}]
[9661,"Nine Thousand Six Hundred Sixty One"]
[9662,"Nine Thousand Six Hundred Sixty Two"]
[9663,"Nine Thousand Six Hundred Sixty Three"]
[9664,"Nine Thousand Six Hundred Sixty Four"]
[9665,"Nine Thousand Six Hundred Sixty Five"]
[9666,"Nine Thousand Six Hundred Sixty Six"]
[9667,"Nine Thousand Six Hundred Sixty Seven"]
[9668,"Nine Thousand Six Hundred Sixty Eight"]
[9669,"Nine Thousand Six Hundred Sixty Nine"]
[9670,"Nine Thousand Six Hundred Seventy "]
[9671,"Nine Thousand Six Hundred Seventy One"]
[9672,"Nine Thousand Six Hundred Seventy Two"]
[9673,"Nine Thousand Six Hundred Seventy Three"]
[9674,"Nine Thousand Six Hundred Seventy Four"]
[9675,"Nine Thousand Six Hundred Seventy Five"]
[9676,"Nine Thousand Six Hundred Seventy Six"]
[9677,"Nine Thousand Six Hundred Seventy Seven"]
[9678,"Nine Thousand Six Hundred Seventy Eight"]
[9679,"Nine Thousand Six Hundred Seventy Nine"]
[9680,"Nine Thousand Six Hundred Eighty "]
[9681,"Nine Thousand Six Hundred Eighty One"]
[9682,"Nine Thousand Six Hundred Eighty Two"]
[9683,"Nine Thousand Six Hundred Eighty Three"]
[9684,"Nine Thousand Six Hundred Eighty Four"]
[9685,"Nine Thousand Six Hundred Eighty Five"]
[9686,"Nine Thousand Six Hundred Eighty Six"]
[9687,"Nine Thousand Six Hundred Eighty Seven"]
[9688,"Nine Thousand Six Hundred Eighty Eight"]
[9689,"Nine Thousand Six Hundred Eighty Nine"]
[9690,"Nine Thousand Six Hundred Ninety "]
[9691,"Nine Thousand Six Hundred Ninety One"]
[9692,"Nine Thousand Six Hundred Ninety Two"]
[9693,"Nine Thousand Six Hundred Ninety Three"]
[9694,"Nine Thousand Six Hundred Ninety Four"]
[9695,"Nine Thousand Six Hundred Ninety Five"]
[9696,"Nine Thousand Six Hundred Ninety Six"]
[9697,"Nine Thousand Six Hundred Ninety Seven"]
[9698,"Nine Thousand Six Hundred Ninety Eight"]
[9699,"Nine Thousand Six Hundred Ninety Nine"]
[9700,"Nine Thousand Seven Hundred "]
[9701,"Nine Thousand Seven Hundred One"]
[9702,"Nine Thousand Seven Hundred Two"]
[9703,"Nine Thousand Seven Hundred Three"]
[9704,"Nine Thousand Seven Hundred Four"]
[9705,"Nine Thousand Seven Hundred Five"]
[9706,"Nine Thousand Seven Hundred Six"]
[9707,"Nine Thousand Seven Hundred Seven"]
[9708,"Nine Thousand Seven Hundred Eight"]
[9709,"Nine Thousand Seven Hundred Nine"]
[9710,"Nine Thousand Seven Hundred Ten"]
[9711,"Nine Thousand Seven Hundred Eleven"]
[9712,"Nine Thousand Seven Hundred Twelve"]
[9713,"Nine Thousand Seven Hundred Thirteen"]
[9714,"Nine Thousand Seven Hundred Fourteen"]
[9715,"Nine Thousand Seven Hundred Fifteen"]
[9716,"Nine Thousand Seven Hundred Sixteen"]
[9717,"Nine Thousand Seven Hundred Seventeen"]
[9718,"Nine Thousand Seven Hundred Eighteen"]
[9719,"Nine Thousand Seven Hundred Nineteen"]
[9720,"Nine Thousand Seven Hundred Twenty "]
[9721,"Nine Thousand Seven Hundred Twenty One"]
[9722,"Nine Thousand Seven Hundred Twenty Two"]
[9723,"Nine Thousand Seven Hundred Twenty Three"]
[9724,{"$f":"spellnumber(A9726)","v":"Nine Thousand Seven Hundred Twenty Four"}]
[9725,"Nine Thousand Seven Hundred Twenty Five"]
[9726,"Nine Thousand Seven Hundred Twenty Six"]
[9727,"Nine Thousand Seven Hundred Twenty Seven"]
[9728,"Nine Thousand Seven Hundred Twenty Eight"]
[9729,"Nine Thousand Seven Hundred Twenty Nine"]
[9730,"Nine Thousand Seven Hundred Thirty "]
[9731,"Nine Thousand Seven Hundred Thirty One"]
[9732,"Nine Thousand Seven Hundred Thirty Two"]
[9733,"Nine Thousand Seven Hundred Thirty Three"]
[9734,"Nine Thousand Seven Hundred Thirty Four"]
[9735,"Nine Thousand Seven Hundred Thirty Five"]
[9736,"Nine Thousand Seven Hundred Thirty Six"]
[9737,"Nine Thousand Seven Hundred Thirty Seven"]
[9738,"Nine Thousand Seven Hundred Thirty Eight"]
[9739,"Nine Thousand Seven Hundred Thirty Nine"]
[9740,"Nine Thousand Seven Hundred Forty "]
[9741,"Nine Thousand Seven Hundred Forty One"]
[9742,"Nine Thousand Seven Hundred Forty Two"]
[9743,"Nine Thousand Seven Hundred Forty Three"]
[9744,"Nine Thousand Seven Hundred Forty Four"]
[9745,"Nine Thousand Seven Hundred Forty Five"]
[9746,"Nine Thousand Seven Hundred Forty Six"]
[9747,"Nine Thousand Seven Hundred Forty Seven"]
[9748,"Nine Thousand Seven Hundred Forty Eight"]
[9749,"Nine Thousand Seven Hundred Forty Nine"]
[9750,"Nine Thousand Seven Hundred Fifty "]
[9751,"Nine Thousand Seven Hundred Fifty One"]
[9752,"Nine Thousand Seven Hundred Fifty Two"]
[9753,"Nine Thousand Seven Hundred Fifty Three"]
[9754,"Nine Thousand Seven Hundred Fifty Four"]
[9755,"Nine Thousand Seven Hundred Fifty Five"]
[9756,"Nine Thousand Seven Hundred Fifty Six"]
[9757,"Nine Thousand Seven Hundred Fifty Seven"]
[9758,"Nine Thousand Seven Hundred Fifty Eight"]
[9759,"Nine Thousand Seven Hundred Fifty Nine"]
[9760,"Nine Thousand Seven Hundred Sixty "]
[9761,"Nine Thousand Seven Hundred Sixty One"]
[9762,"Nine Thousand Seven Hundred Sixty Two"]
[9763,"Nine Thousand Seven Hundred Sixty Three"]
[9764,"Nine Thousand Seven Hundred Sixty Four"]
[9765,"Nine Thousand Seven Hundred Sixty Five"]
[9766,"Nine Thousand Seven Hundred Sixty Six"]
[9767,"Nine Thousand Seven Hundred Sixty Seven"]
[9768,"Nine Thousand Seven Hundred Sixty Eight"]
[9769,"Nine Thousand Seven Hundred Sixty Nine"]
[9770,"Nine Thousand Seven Hundred Seventy "]
[9771,"Nine Thousand Seven Hundred Seventy One"]
[9772,"Nine Thousand Seven Hundred Seventy Two"]
[9773,"Nine Thousand Seven Hundred Seventy Three"]
[9774,"Nine Thousand Seven Hundred Seventy Four"]
[9775,"Nine Thousand Seven Hundred Seventy Five"]
[9776,"Nine Thousand Seven Hundred Seventy Six"]
[9777,"Nine Thousand Seven Hundred Seventy Seven"]
[9778,"Nine Thousand Seven Hundred Seventy Eight"]
[9779,"Nine Thousand Seven Hundred Seventy Nine"]
[9780,"Nine Thousand Seven Hundred Eighty "]
[9781,"Nine Thousand Seven Hundred Eighty One"]
[9782,"Nine Thousand Seven Hundred Eighty Two"]
[9783,"Nine Thousand Seven Hundred Eighty Three"]
[9784,"Nine Thousand Seven Hundred Eighty Four"]
[9785,"Nine Thousand Seven Hundred Eighty Five"]
[9786,"Nine Thousand Seven Hundred Eighty Six"]
[9787,"Nine Thousand Seven Hundred Eighty Seven"]
[9788,{"$f":"spellnumber(A9790)","v":"Nine Thousand Seven Hundred Eighty Eight"}]
[9789,"Nine Thousand Seven Hundred Eighty Nine"]
[9790,"Nine Thousand Seven Hundred Ninety "]
[9791,"Nine Thousand Seven Hundred Ninety One"]
[9792,"Nine Thousand Seven Hundred Ninety Two"]
[9793,"Nine Thousand Seven Hundred Ninety Three"]
[9794,"Nine Thousand Seven Hundred Ninety Four"]
[9795,"Nine Thousand Seven Hundred Ninety Five"]
[9796,"Nine Thousand Seven Hundred Ninety Six"]
[9797,"Nine Thousand Seven Hundred Ninety Seven"]
[9798,"Nine Thousand Seven Hundred Ninety Eight"]
[9799,"Nine Thousand Seven Hundred Ninety Nine"]
[9800,"Nine Thousand Eight Hundred "]
[9801,"Nine Thousand Eight Hundred One"]
[9802,"Nine Thousand Eight Hundred Two"]
[9803,"Nine Thousand Eight Hundred Three"]
[9804,"Nine Thousand Eight Hundred Four"]
[9805,"Nine Thousand Eight Hundred Five"]
[9806,"Nine Thousand Eight Hundred Six"]
[9807,"Nine Thousand Eight Hundred Seven"]
[9808,"Nine Thousand Eight Hundred Eight"]
[9809,"Nine Thousand Eight Hundred Nine"]
[9810,"Nine Thousand Eight Hundred Ten"]
[9811,"Nine Thousand Eight Hundred Eleven"]
[9812,"Nine Thousand Eight Hundred Twelve"]
[9813,"Nine Thousand Eight Hundred Thirteen"]
[9814,"Nine Thousand Eight Hundred Fourteen"]
[9815,"Nine Thousand Eight Hundred Fifteen"]
[9816,"Nine Thousand Eight Hundred Sixteen"]
[9817,"Nine Thousand Eight Hundred Seventeen"]
[9818,"Nine Thousand Eight Hundred Eighteen"]
[9819,"Nine Thousand Eight Hundred Nineteen"]
[9820,"Nine Thousand Eight Hundred Twenty "]
[9821,"Nine Thousand Eight Hundred Twenty One"]
[9822,"Nine Thousand Eight Hundred Twenty Two"]
[9823,"Nine Thousand Eight Hundred Twenty Three"]
[9824,"Nine Thousand Eight Hundred Twenty Four"]
[9825,"Nine Thousand Eight Hundred Twenty Five"]
[9826,"Nine Thousand Eight Hundred Twenty Six"]
[9827,"Nine Thousand Eight Hundred Twenty Seven"]
[9828,"Nine Thousand Eight Hundred Twenty Eight"]
[9829,"Nine Thousand Eight Hundred Twenty Nine"]
[9830,"Nine Thousand Eight Hundred Thirty "]
[9831,"Nine Thousand Eight Hundred Thirty One"]
[9832,"Nine Thousand Eight Hundred Thirty Two"]
[9833,"Nine Thousand Eight Hundred Thirty Three"]
[9834,"Nine Thousand Eight Hundred Thirty Four"]
[9835,"Nine Thousand Eight Hundred Thirty Five"]
[9836,"Nine Thousand Eight Hundred Thirty Six"]
[9837,"Nine Thousand Eight Hundred Thirty Seven"]
[9838,"Nine Thousand Eight Hundred Thirty Eight"]
[9839,"Nine Thousand Eight Hundred Thirty Nine"]
[9840,"Nine Thousand Eight Hundred Forty "]
[9841,"Nine Thousand Eight Hundred Forty One"]
[9842,"Nine Thousand Eight Hundred Forty Two"]
[9843,"Nine Thousand Eight Hundred Forty Three"]
[9844,"Nine Thousand Eight Hundred Forty Four"]
[9845,"Nine Thousand Eight Hundred Forty Five"]
[9846,"Nine Thousand Eight Hundred Forty Six"]
[9847,"Nine Thousand Eight Hundred Forty Seven"]
[9848,"Nine Thousand Eight Hundred Forty Eight"]
[9849,"Nine Thousand Eight Hundred Forty Nine"]
[9850,"Nine Thousand Eight Hundred Fifty "]
[9851,"Nine Thousand Eight Hundred Fifty One"]
[9852,{"$f":"spellnumber(A9854)","v":"Nine Thousand Eight Hundred Fifty Two"}]
[9853,"Nine Thousand Eight Hundred Fifty Three"]
[9854,"Nine Thousand Eight Hundred Fifty Four"]
[9855,"Nine Thousand Eight Hundred Fifty Five"]
[9856,"Nine Thousand Eight Hundred Fifty Six"]
[9857,"Nine Thousand Eight Hundred Fifty Seven"]
[9858,"Nine Thousand Eight Hundred Fifty Eight"]
[9859,"Nine Thousand Eight Hundred Fifty Nine"]
[9860,"Nine Thousand Eight Hundred Sixty "]
[9861,"Nine Thousand Eight Hundred Sixty One"]
[9862,"Nine Thousand Eight Hundred Sixty Two"]
[9863,"Nine Thousand Eight Hundred Sixty Three"]
[9864,"Nine Thousand Eight Hundred Sixty Four"]
[9865,"Nine Thousand Eight Hundred Sixty Five"]
[9866,"Nine Thousand Eight Hundred Sixty Six"]
[9867,"Nine Thousand Eight Hundred Sixty Seven"]
[9868,"Nine Thousand Eight Hundred Sixty Eight"]
[9869,"Nine Thousand Eight Hundred Sixty Nine"]
[9870,"Nine Thousand Eight Hundred Seventy "]
[9871,"Nine Thousand Eight Hundred Seventy One"]
[9872,"Nine Thousand Eight Hundred Seventy Two"]
[9873,"Nine Thousand Eight Hundred Seventy Three"]
[9874,"Nine Thousand Eight Hundred Seventy Four"]
[9875,"Nine Thousand Eight Hundred Seventy Five"]
[9876,"Nine Thousand Eight Hundred Seventy Six"]
[9877,"Nine Thousand Eight Hundred Seventy Seven"]
[9878,"Nine Thousand Eight Hundred Seventy Eight"]
[9879,"Nine Thousand Eight Hundred Seventy Nine"]
[9880,"Nine Thousand Eight Hundred Eighty "]
[9881,"Nine Thousand Eight Hundred Eighty One"]
[9882,"Nine Thousand Eight Hundred Eighty Two"]
[9883,"Nine Thousand Eight Hundred Eighty Three"]
[9884,"Nine Thousand Eight Hundred Eighty Four"]
[9885,"Nine Thousand Eight Hundred Eighty Five"]
[9886,"Nine Thousand Eight Hundred Eighty Six"]
[9887,"Nine Thousand Eight Hundred Eighty Seven"]
[9888,"Nine Thousand Eight Hundred Eighty Eight"]
[9889,"Nine Thousand Eight Hundred Eighty Nine"]
[9890,"Nine Thousand Eight Hundred Ninety "]
[9891,"Nine Thousand Eight Hundred Ninety One"]
[9892,"Nine Thousand Eight Hundred Ninety Two"]
[9893,"Nine Thousand Eight Hundred Ninety Three"]
[9894,"Nine Thousand Eight Hundred Ninety Four"]
[9895,"Nine Thousand Eight Hundred Ninety Five"]
[9896,"Nine Thousand Eight Hundred Ninety Six"]
[9897,"Nine Thousand Eight Hundred Ninety Seven"]
[9898,"Nine Thousand Eight Hundred Ninety Eight"]
[9899,"Nine Thousand Eight Hundred Ninety Nine"]
[9900,"Nine Thousand Nine Hundred "]
[9901,"Nine Thousand Nine Hundred One"]
[9902,"Nine Thousand Nine Hundred Two"]
[9903,"Nine Thousand Nine Hundred Three"]
[9904,"Nine Thousand Nine Hundred Four"]
[9905,"Nine Thousand Nine Hundred Five"]
[9906,"Nine Thousand Nine Hundred Six"]
[9907,"Nine Thousand Nine Hundred Seven"]
[9908,"Nine Thousand Nine Hundred Eight"]
[9909,"Nine Thousand Nine Hundred Nine"]
[9910,"Nine Thousand Nine Hundred Ten"]
[9911,"Nine Thousand Nine Hundred Eleven"]
[9912,"Nine Thousand Nine Hundred Twelve"]
[9913,"Nine Thousand Nine Hundred Thirteen"]
[9914,"Nine Thousand Nine Hundred Fourteen"]
[9915,"Nine Thousand Nine Hundred Fifteen"]
[9916,{"$f":"spellnumber(A9918)","v":"Nine Thousand Nine Hundred Sixteen"}]
[9917,"Nine Thousand Nine Hundred Seventeen"]
[9918,"Nine Thousand Nine Hundred Eighteen"]
[9919,"Nine Thousand Nine Hundred Nineteen"]
[9920,"Nine Thousand Nine Hundred Twenty "]
[9921,"Nine Thousand Nine Hundred Twenty One"]
[9922,"Nine Thousand Nine Hundred Twenty Two"]
[9923,"Nine Thousand Nine Hundred Twenty Three"]
[9924,"Nine Thousand Nine Hundred Twenty Four"]
[9925,"Nine Thousand Nine Hundred Twenty Five"]
[9926,"Nine Thousand Nine Hundred Twenty Six"]
[9927,"Nine Thousand Nine Hundred Twenty Seven"]
[9928,"Nine Thousand Nine Hundred Twenty Eight"]
[9929,"Nine Thousand Nine Hundred Twenty Nine"]
[9930,"Nine Thousand Nine Hundred Thirty "]
[9931,"Nine Thousand Nine Hundred Thirty One"]
[9932,"Nine Thousand Nine Hundred Thirty Two"]
[9933,"Nine Thousand Nine Hundred Thirty Three"]
[9934,"Nine Thousand Nine Hundred Thirty Four"]
[9935,"Nine Thousand Nine Hundred Thirty Five"]
[9936,"Nine Thousand Nine Hundred Thirty Six"]
[9937,"Nine Thousand Nine Hundred Thirty Seven"]
[9938,"Nine Thousand Nine Hundred Thirty Eight"]
[9939,"Nine Thousand Nine Hundred Thirty Nine"]
[9940,"Nine Thousand Nine Hundred Forty "]
[9941,"Nine Thousand Nine Hundred Forty One"]
[9942,"Nine Thousand Nine Hundred Forty Two"]
[9943,"Nine Thousand Nine Hundred Forty Three"]
[9944,"Nine Thousand Nine Hundred Forty Four"]
[9945,"Nine Thousand Nine Hundred Forty Five"]
[9946,"Nine Thousand Nine Hundred Forty Six"]
[9947,"Nine Thousand Nine Hundred Forty Seven"]
[9948,"Nine Thousand Nine Hundred Forty Eight"]
[9949,"Nine Thousand Nine Hundred Forty Nine"]
[9950,"Nine Thousand Nine Hundred Fifty "]
[9951,"Nine Thousand Nine Hundred Fifty One"]
[9952,"Nine Thousand Nine Hundred Fifty Two"]
[9953,"Nine Thousand Nine Hundred Fifty Three"]
[9954,"Nine Thousand Nine Hundred Fifty Four"]
[9955,"Nine Thousand Nine Hundred Fifty Five"]
[9956,"Nine Thousand Nine Hundred Fifty Six"]
[9957,"Nine Thousand Nine Hundred Fifty Seven"]
[9958,"Nine Thousand Nine Hundred Fifty Eight"]
[9959,"Nine Thousand Nine Hundred Fifty Nine"]
[9960,"Nine Thousand Nine Hundred Sixty "]
[9961,"Nine Thousand Nine Hundred Sixty One"]
[9962,"Nine Thousand Nine Hundred Sixty Two"]
[9963,"Nine Thousand Nine Hundred Sixty Three"]
[9964,"Nine Thousand Nine Hundred Sixty Four"]
[9965,"Nine Thousand Nine Hundred Sixty Five"]
[9966,"Nine Thousand Nine Hundred Sixty Six"]
[9967,"Nine Thousand Nine Hundred Sixty Seven"]
[9968,"Nine Thousand Nine Hundred Sixty Eight"]
[9969,"Nine Thousand Nine Hundred Sixty Nine"]
[9970,"Nine Thousand Nine Hundred Seventy "]
[9971,"Nine Thousand Nine Hundred Seventy One"]
[9972,"Nine Thousand Nine Hundred Seventy Two"]
[9973,"Nine Thousand Nine Hundred Seventy Three"]
[9974,"Nine Thousand Nine Hundred Seventy Four"]
[9975,"Nine Thousand Nine Hundred Seventy Five"]
[9976,"Nine Thousand Nine Hundred Seventy Six"]
[9977,"Nine Thousand Nine Hundred Seventy Seven"]
[9978,"Nine Thousand Nine Hundred Seventy Eight"]
[9979,"Nine Thousand Nine Hundred Seventy Nine"]
[9980,{"$f":"spellnumber(A9982)","v":"Nine Thousand Nine Hundred Eighty "}]
[9981,"Nine Thousand Nine Hundred Eighty One"]
[9982,"Nine Thousand Nine Hundred Eighty Two"]
[9983,"Nine Thousand Nine Hundred Eighty Three"]
[9984,"Nine Thousand Nine Hundred Eighty Four"]
[9985,"Nine Thousand Nine Hundred Eighty Five"]
[9986,"Nine Thousand Nine Hundred Eighty Six"]
[9987,"Nine Thousand Nine Hundred Eighty Seven"]
[9988,"Nine Thousand Nine Hundred Eighty Eight"]
[9989,"Nine Thousand Nine Hundred Eighty Nine"]
[9990,"Nine Thousand Nine Hundred Ninety "]
[9991,"Nine Thousand Nine Hundred Ninety One"]
[9992,"Nine Thousand Nine Hundred Ninety Two"]
[9993,"Nine Thousand Nine Hundred Ninety Three"]
[9994,"Nine Thousand Nine Hundred Ninety Four"]
[9995,"Nine Thousand Nine Hundred Ninety Five"]
[9996,"Nine Thousand Nine Hundred Ninety Six"]
[9997,"Nine Thousand Nine Hundred Ninety Seven"]
[9998,"Nine Thousand Nine Hundred Ninety Eight"]
[9999,{"$f":"spellnumber(A10001)","v":"Nine Thousand Nine Hundred Ninety Nine"}]